{"text_format":"1","workbook":"xlsx","n_sheets":13,"sheets":["NCR","Checklist","Instructions","Tables","ECN Yes or No","Defects","Main & Sub Defect","Defect Type Code","Causes","Main & Sub Causes","Cause Code Code","Serial or Batch Number","Supplier or Source Inspector"],"not_rendered":{"charts":0,"images":5,"macros":1,"external_links":0,"defined_names":215,"comments":0,"pivot_tables":0},"unopened":[],"bounds":{"document_bytes":16777216,"sheet_cells":100000,"rows_first":2000,"rows_last":500,"rows_between":2000,"halvings":0,"cell_chars":16384,"cell_head_chars":4096},"cells_cut":0,"cells_raw":0,"read":"whole","date_system":"1900"}

{"sheet":"NCR","index":0,"n_rows":116,"n_cols":8,"rows_kept":116,"cut":false,"hidden":false,"merged":[[110,3,112,5],[0,1,0,6],[19,1,19,2],[7,1,7,3],[21,1,21,3],[22,1,22,3],[20,1,20,3],[66,1,67,6],[58,0,58,6],[38,0,38,7],[40,1,40,6],[51,1,51,3],[51,5,51,6],[53,1,53,6],[49,1,49,6],[47,7,49,7],[51,7,53,7],[56,0,56,7],[47,1,47,3],[47,5,47,6],[36,5,36,7],[42,4,45,6],[1,0,1,7],[3,0,3,7],[4,3,4,6],[12,0,13,0],[5,1,5,7],[10,1,10,7],[12,1,12,2],[16,0,17,0],[34,1,34,6],[75,0,76,0],[86,0,86,6],[28,1,28,3],[87,0,87,6],[73,0,74,0],[73,1,74,6],[68,1,69,6],[59,0,59,6],[60,0,61,0],[60,1,61,6],[62,0,63,0],[62,1,63,6],[64,0,65,0],[64,1,65,6],[66,0,67,0],[68,0,69,0],[83,1,84,6],[97,0,97,2],[97,3,97,5],[103,1,103,2],[103,3,103,5],[104,1,104,2],[104,3,104,5],[107,3,107,5],[99,3,99,5],[98,3,98,4],[106,3,106,5],[90,0,90,6],[91,0,91,6],[105,1,105,2],[105,3,105,5],[31,0,31,7],[33,5,33,6],[33,1,33,2],[14,1,14,2],[36,1,36,2],[23,1,23,3],[24,1,24,3],[25,1,25,3],[16,1,16,2],[71,0,72,6],[89,0,89,6],[75,1,76,6],[77,0,78,0],[77,1,78,6],[79,0,80,0],[79,1,80,6],[81,0,82,0],[81,1,82,6],[83,0,84,0],[96,0,96,2],[115,3,115,5],[95,0,95,5],[101,0,102,0],[103,0,105,0],[107,0,109,0],[109,1,109,2],[109,3,109,5],[110,0,115,0],[114,1,114,2],[114,3,114,5],[108,3,108,5],[100,1,100,2],[100,3,100,5],[101,1,101,2],[101,3,101,5],[102,1,102,2],[110,1,110,2],[107,1,107,2],[102,3,102,5],[113,1,113,2],[113,3,113,5],[115,1,115,2],[108,1,108,2],[96,3,96,5]]}
[null,null,null,null,null,null,null,"GTF-COR-21011   Rev 04, Nov 2020"]
["Non-Conformance Request / Report (NCR)\n(referred to as \"Supplier Request Form\" in the TechnipFMC process)"]
[]
["REFERENCES (drop down fields are yellow)"]
[]
[null,"Pre-PO Placement"]
[]
[" Bid Number, when Pre-PO",null,null,null,null,"Coding:","                   Deviation","Technical Clarification"]
[]
[]
[null,"Post-PO Placement"]
[]
["Purchasing Order (PO):\n(Only ONE PO # per NCR form)"]
[null,null,null,"Coding: ","Concession",null,"                   Deviation","Technical Clarification"]
["PO Line:"]
[]
["If needed, include more PO lines when same Part Number:"]
[]
[]
["Created Date:"]
["Supplier Internal NCR Reference:"]
["Supplier Name:"]
["Supplier Contact Name:"]
["Supplier Contact Phone:"]
["TechnipFMC SQE Name:"]
["TechnipFMC Buyer Name:"]
[]
[]
[null,"Required by Engineering Change Notice(ECN)?",null,null,null,null,"Who discovered the defect?"]
[]
[]
["PRODUCT DETAILS (drop down fields are yellow)"]
[]
["TechnipFMC Part Number:",null,null,null,"Revision:"]
["Traceability / Serial Number:"]
[]
["Defect Quantity:",null,null,null,"Part Description:"]
[]
[]
[]
["Defect Part Number:"]
[]
["Serial or Batch Number?",null,null,"Serial/ Batch Number:"]
[]
[]
[]
[]
["Main Defect Code:",null,null,null,"Sub-Defect Code:",null,null,"Select Code Group and Code from drop down menu (ex: Q0001002_Machining_Related 0010 Inside Diameter Error)"]
[]
["Defect Comments:"]
[]
["Main Cause Code:",null,null,null,"Sub-Cause Code:",null,null,"Select Code Group and Code from drop down menu (ex: Q0001010_FMC_Engineering_ Related 0010 Engineering Error)"]
[]
["Cause Comments: "]
[]
[]
["DESCRIPTION OF FINDING AND ACTIONS"]
[]
["DETAILED DESCRIPTION OF FINDING:"]
["State the requirement and the actual non-conformance. State the containment action performed\n(Include dimensions of non-conformance and measured location referencing existing datum and grid location on drawing)."]
["Source of Requirement: "]
[]
["Requirement:"]
[]
["Actual (Applicable for Concession Request only)"]
[]
["Defect Description:"]
[]
["Containment Action:"]
[]
[]
["Root Cause Analysis:\nApplicable only for Concession Request. Required before formal submission. If not valid, provide objective evidence to say otherwise. "]
[]
["1st Why? (Why the problem has occurred). Answer:"]
[]
["2nd Why? (Why did the 1st answer occur). Answer:"]
[]
["3rd Why? (Why did the 2nd answer occur). Answer:"]
[]
["4th Why? (Why did the 3rd answer occur). Answer:"]
[]
["5th Why? (Why did the 4th answer occur). Answer:"]
[]
["Why?\nAnswer:","More than 5 Whys may be required to determine the true root cause. Continue until you are certain of the true root cause."]
[]
[]
["PROPOSED SOLUTION:\nExplain how to correct the problem with the part."]
[]
[]
["CORRECTIVE ACTION:\nApplicable only for Concession Request. Explain the plan to prevent reoccurrence. "]
[]
["Note: Supplier shall put in place processes to prevent the reoccurrence of the identified source of the defect."]
[]
[]
[]
["The NCR form shall be submitted in Excel-format by email to the following TechnipFMC Site (Plant) that issued the PO:"]
["North America(former Western Region) Subsea & Subsea Services",null,null,"SupplierQualityNotification@technipfmc.com"]
["Dunfermline                                       Subsea",null,null,"ConcessionsSupplier@technipfmc.com"]
["MPM",null,null,"Quality point of Contact for the PO"]
["Bergen                                       ","Subsea",null,"SupplierNCR.Bergen@technipfmc.com "]
["Kongsberg                                    ","Subsea",null,"SupplierNCR.Kongsberg@technipfmc.com",null,null,null," "]
["South America (former Brazil)","Subsea",null,"Brazilsuppliernonconformance@technipfmc.com"]
[null,"Subsea Services",null,"Ssuppliernonconformance@technipfmc.com"]
["Asia Pacific","SDS",null,"MalaysiaESG-APSDSQualityNotification@technipfmc.com"]
[null,"Global Supply",null,"MalaysiaESG-GlobalSupplyVendorQN@technipfmc.com"]
[null,"Others",null,"Commercial Point of Contact (Buyer) for the PO"]
["India","Subsea",null,"India.QN@technipfmc.com."]
["Africa","Angola",null,"AngolaSupplier.concessions@technipfmc.com"]
[null,"Ghana",null,"GhanaSupplier.concessions@technipfmc.com"]
[null,"Nigeria",null,"NigeriaSupplier.concessions@technipfmc.com"]
["Surface International","Singapore",null,"SingaporeESG-SurfaceQNVendorReq@technipfmc.com"]
[null,"Europe, Africa & CIS"]
[null,"Middle East, Asia Pacific"]
[null,"Fluid Control",null,"QNSurface@technipfmc.com",null,null," "]
[null,"Wellhead Stephenville",null,"QNSurface@technipfmc.com"]
[null,"Loading Systems                 ",null,"ESML.Supplier.Concessions@technipfmc.com"]

{"sheet":"Checklist","index":1,"n_rows":35,"n_cols":3,"rows_kept":35,"cut":false,"hidden":false,"merged":[[7,0,7,1],[0,0,0,2],[3,0,3,1],[4,0,4,1],[5,0,5,1],[6,0,6,1],[27,0,27,1],[8,0,8,1],[9,0,9,1],[12,0,12,1],[13,0,13,1],[16,0,16,1],[17,0,17,1],[18,0,18,1],[21,0,21,1],[22,0,22,1],[25,0,25,1],[26,0,26,1],[28,0,28,1],[29,0,29,1],[30,0,30,1],[33,0,33,1],[34,0,34,1]]}
["Checklist for Supplier NCR submission"]
["Requirement Category","Specific Requirements","ü"]
["Minimum Requirements ","Note: All forms must include these minimum requirements, plus the relevant additions below."]
["Detailed and concise description of the issue (including drawing page and zone location as applicable). State 'NA' if no drawing exists."]
["Images wherever required. Include photos if available, to better communicate."]
["Specify the current part level (pre-weld, inlay, finish machine, raw)."]
["Current status of the part (where in process)."]
["Root Cause of issue for Concession requests (how occurred)."]
["Proposed Solution."]
["Name of Subsupplier, if applicable."]
[]
["+ Addition for Machining Related"]
["Drawing mark-ups on TechnipFMC drawing with the non-conforming feature. If feature is not shown, provide sketch of issue in addition if required."]
["Dimensional report if product is complete or dimension report of the features associated to the non-conformance."]
[]
["+ Addition for Material Related"]
[" Material Test Report (MTR), (whomever creates non-conformance report must supply MTR)."]
["Prolongation / Qualification Test Coupon (QTC), (Is it available for additional testing if required – communication / notification)."]
["If requesting Alternate material – specify alternate material requested, and impact (to schedule, etc.) if not approved."]
[]
["+ Addition for Coating Related"]
["Location of coating error."]
["Actual depth of coating if coating thickness is the non-conformance. Define thickness measurements."]
[]
["+ Addition for Welding Related"]
["Approved weld repair procedure (state if no procedure exists)."]
["Number of Post Weld Heat Treatment (PWHT) cycles the part has seen."]
["Weld maps of the weld with the non-conformance feature."]
["MTR (whomever creates non-conformance report must supply MTR)."]
["Remaining clad / weld thickness after nonconformance is removed."]
["If Non-Destructive Examination (NDE) indications apply – mark on drawing or mark on part for photo."]
[]
["+ Addition for Damage Related"]
["Images of the damage."]
["Dimensions (depth, width, length, location, etc.) of the damage."]

{"sheet":"Instructions","index":2,"n_rows":89,"n_cols":3,"rows_kept":89,"cut":false,"hidden":false,"merged":[[74,0,75,2],[87,0,87,2],[88,0,88,2],[59,0,61,0],[0,0,0,1],[3,0,4,0],[3,1,4,1],[40,0,40,1],[41,0,47,0],[53,0,58,0],[63,0,63,1]]}
["NCR Instructions"]
["Field","Description"]
["General"]
[" Empty Cells Checker","\nThis is a tool to check for empty cells, and to get a confirmation if the form is \"compliant\" and ready to be sent to TechnipFMC.\nBy clicking on this button you will get the status of all the mandatory fields (i.e. what cell should be filled-in).\nA message will show up with a “list” of the identified empty cells, and by clicking the “ok” button it will highlight those empty cells.\nIf supplier does not fill in all the mandatory fields, the following red \"warning message\" will appear at the top of the form:\n''Draft! Please fill in all the required fields''.\nThis message will be automatically removed once all the fields are properly filled in, by clicking on the “Empty Cell checker” again. The NCR will not be registered by TechnipFMC if it received with that \"Red\" message.\n","A"]
[]
[" Reset Form","This button will empty all the \"filled-in\" cells, except the following References fields:\n• Created Date,\n• Supplier Internal NCR Reference,\n• Supplier Name,\n• Supplier Contact Name,\n• Supplier Contact Phone,\n• TechnipFMC SQE Name,\n• TechnipFMC Buyer Name,\n\nIt will also reset all selected buttons (i.e. a blank form)\n"]
["The buttons:\n• Concession Request\n• Deviation Request\n• Technical Clarification","Select what is applied for the NCR form.\nOnly one button can be selected, and selecting between buttons will result in setting \"N/A\" in one or more of the following cells depending on the selection type:\n • Bid Number, when Pre-PO,                                                                                                                                                              •  PO,                                                                                                                                                                                                                                                            \n• PO Line,\n• If needed, include more PO lines when same Part Number,\n"]
["REFERENCES"]
[" Created Date","The date the Supplier generated the NCR Form."]
[" Bid Number, when Pre-PO","TechnipFMC Bid number. Only ONE Bid Number per NCR form. You can either enter a bid number or PO #; not both. "]
[" Purchase Order (PO)","TechnipFMC purchase order number. Only ONE PO# per NCR form. "]
[" PO Line","TechnipFMC purchase order line item number. "]
[" If needed, include more PO lines  when same Part Number","Multiple PO line numbers if the non-conformance is for the same PO and Part Number. Put NA if not applicable,"]
[" Supplier Internal NCR Reference\n","Supplier specific number to track Quality Notifications (QN) before a QN number is assigned by SAP.  This number will be tracked by the Supplier to ensure no duplicates are created. The format is the SAP vendor number-XXXXX, with the last five digits being non-duplicating."]
[" Supplier Name","Supplier full legal entity name with no abbreviations."]
[" Supplier Contact Name","The person that should be contacted with any questions regarding the information on the QN."]
[" Supplier Contact Phone","The contact person's phone number."]
[" TechnipFMC SQE Name","The regional TechnipFMC Supplier Quality Engineer (SQE) who trains and develops the Supplier."]
[" TechnipFMC Buyer Name","The TechnipFMC Commercial Point of Contact, the Buyer who manage the PO with the Supplier."]
[" Coding","This is how Supplier generated QNs are categorized.  This must be filled in by the Supplier. You must select 1 code."]
[" Concession Request","\nDefect detected and reported by Supplier(Post realization). Supplier shall propose a solution, and TechnipFMC provide a disposition. This includes Product Alerts / Recalls.                                                                                         In case of the product Alerts/ Recalls supplier shall use Post PO Placement Concession coding  per part number and  if more than one Purchase Order is impacted by the same Product Alert / Recall, then the Supplier shall reference all applicable Purchase Orders impacted in the Containment Action field of the NCR form. Supplier shall also list all the affected Serial numbers on the Serial number field of the NCR Form.\n"]
[" Deviation Request","Request to deviate from the required specification, prior to the work being done, e.g. material substitution, heat treat time, etc."]
[" Technical Clarification ","A request for clarity or to obtain detailed information concerning technical requirements, e.g. engineering specifications, drawings, BOM, production requirements."]
[" Required by ECN?","Is the non-conformance being generated due to a TechnipFMC Engineering Change Notice? Select either \"Yes\" or \"No\"."]
[" Who discovered the defect?","Select from dropdown menu if Supplier or Source Inspector discovered the defect."]
["PRODUCT DETAILS"]
[" Technip FMC Part Number","Part number on the PO."]
[" Traceability /Serial Number","Traceability of the part on the PO."]
[" Part Description","Description of the part on the PO."]
[" Revision","Revision of the part on the PO."]
[" Defect Quantity","Total number of defects from the part number on the PO."]
[" Defect Part Number","Actual Part number which has defects(Nonconformity related  to Non-fulfiment of a requirement). This could be a sub-level part number or part number on the PO depending where the defect originates."]
[" Serial or Batch number","Select from dropdown menu if it is Serial or Batch Number, and enter the applicable number ( This is the Traceability related to the part which has defects)"]
["CLASSIFICATIONS"]
["Main Defect code","Select  from drop down menu. "]
["Sub-Defect code","Select from drop down menu. "]
["Main Cause Code","Select from drop down menu. "]
["Sub-Cause Code","Select from drop down menu."]
["Defect Comments","Additional information  can be added here. If this is already covered by the Defect code  menus  put NA"]
["Cause Comments","Additional information  can be added here. If this is already covered by the Cause code menus put NA"]
["DESCRIPTION OF FINDING AND ACTIONS"]
["Detailed Description of Finding","The description should be concise and include all of the following information in every case:"]
[null,"Description of the defect or problem"]
[null,"Measured size (when applicable)"]
[null,"Measured depth (when applicable)"]
[null,"Measured location of the defect (when applicable)"]
[null,"This measurement should be from an existing datum on the drawing which should be noted along with the grid location on the drawing (i.e., “located at A3 on drawing 1111DU11111111”)"]
[null,"List of TechnipFMC Requirements/Specifications"]
["Source of Requirement","Where is the requirement coming from? Name the document number, revision, and sections if possible."]
["Requirement","What is the requirement? Be specific, clear, and concise. Paraphrase or quote the actual requirement from the source."]
["Actual (Only for Concession Request)","Simply state the defect."]
["Defect Description","Explain the actual state / non-conformance in detail. Give measurements, locations, etc. Attach helpful evidence; i.e. pictures, mark-ups, inspection reports, etc. "]
["Containment Action","Explain how the non-conformance has been physically controlled. How has unintended use been prevented?"]
["Root Cause Analysis \nOnly for Concession Request","This section of the form is critical to determine the real reason why the non-conformance was caused."]
[null,"Provide a 5-Why  for Concession Requests. Why did this non-conformance occur? "]
[null,"Continuing to ask why until the real root cause is determined will help reduce future occurrences of this problem."]
[null,"This explanation should be detailed and address the root cause of the non-conformance; not the symptoms. "]
[null,"If the 5-Why tool is not sufficient to reach the root cause, a Cause and Effect Diagram (Fishbone) or 8-D can be used and attached to this NCR."]
[null,"NOTE: The NCR type Concession will not be entered into TechnipFMC system for disposition until a Root Cause Analysis is provided. "]
["Proposed Solution","A proposed solution to bring the part as close to conforming to the Part Report and Drawing as possible."]
[null,"This should include a detailed description of the process to be followed to repair the part."]
[null,"This should note exactly which requirements on the Part Report and Drawing will not be met after repairing or processing the part. (i.e., after repair, the diameter will be +.002” out of tolerance)"]
["Corrective Action\n(Only for Concession Request)","Address the plan to reduce and eliminate the non-conformance in the future. This explanation should compliment the above Root Cause Analysis section.\nNote: It is not necessary for the Corrective Action to be put in place at the Supplier at time of NCR submittal. However, the plan must be described prior to the NCR being entered into TechnipFMC' system for disposition."]
["Relese Note"]
[null,"The relese note below contain information about the current release and contact information for technical support for the VBA macros in this NCR form. Please click the button below to show the information (password is required)"]
[]
[]
[]
[]
[]
[]
[]
[]
[]
["Release Note (for VBA macros)"]
[]
[]
["VBA Created by","Layth Alattar"]
["Email","Layth.alattar@technipfmc.com"]
[]
["VBA technical support\n(only for TechnipFMC users.)\n\nFor technical support of supplier users, please use the contact information in the front page.","Layth Alattar\nLayth.alattar@technipfmc.com"]
[]
["Document number","GTF-COR-21011"]
["Document Name","SUPPLIER NON-CONFORMANCE REPORT FORM"]
["Revision",0]
[]
[]
["Summary of changes in this release"]
["• The main improvement from Rev H ro Rav I is solving the problem with disappearing of the button selection in the NCR tab. I.e when we select \"concession\" and save the document, when we open the document again the button selection is cleared.\n\n• New VBA macros to make sure that all required field are filed in.\n\n• VBA macro called \"Empty Cell checker\" to give an overview of all the empty cells, and to give a warning message if any mandatory cells left blank.\n\n•VBA macro to Reset Form (i.e. empty all cells and reset all buttons).\n\n• Important feature! The supplier can only save the \"Form\" with a mandatory \"warning text\" at the top of the document in case any mandatory cells were left blank. The TechnipFMC user can still be able to save the Form without the mandatory \"warning text\" by using the administrator password.\nThis feature prevents from sending uncomplete Form to technipFMC since the a mandatory \"warning text\" will be always at the top, in case any mandatory cells were left blank\n\n•Remove the \"Contaiment Action\" form the mandatory cells for Pre-Po \"Deviation\" and  Pre-Po \"Technical Clarification\".\n\n"]

{"sheet":"Tables","index":3,"n_rows":347,"n_cols":10,"rows_kept":347,"cut":false,"hidden":true,"merged":[[276,0,276,2],[286,0,286,2],[304,0,304,2],[323,0,323,2],[337,0,337,2],[260,0,260,2],[250,0,250,4],[242,0,242,2],[206,0,206,2],[4,0,4,2],[50,0,50,2],[94,0,94,2],[133,0,133,2],[169,0,169,2]]}
[null,null,null,"Current NCR Type (NCR_Type_Selection)"]
[]
["All Cells in NCR sheet"]
[null,null,null,null,null,null,null,null,"Cell values","Cell or table  name"]
["NCR_EmptyCellsCheckList",null,null,"Selected Cell names","Cell tittle","Number of empty cells",null,null,null,"NCR_StartEmptyCellResutls"]
["Start",null,null,"NCR_CreatedDate","Created Date:",39]
[null,null,null,"NCR_RFQ_BidNumber","RFQ / Bid Number, when Pre-PO"]
[null,null,null,"NCR_PurchasingOrder","Purchasing Order (PO):\n(Only ONE PO # per NCR form)"]
[null,null,null,"NCR_PO_Line","PO Line:"]
[null,null,null,"NCR_More_PO_Line","If needed, include more PO lines when same Part Number:"]
[null,null,null,"NCR_SupplierInternalNCRRef","Supplier Internal NCR Reference:"]
[null,null,null,"NCR_SupplierName","Supplier Name:"]
[null,null,null,"NCR_SupplierContactName","Supplier Contact Name:"]
[null,null,null,"NCR_SupplierContactPhone","Supplier Contact Phone:"]
[null,null,null,"NCR_SQEName","TechnipFMC SQE Name:"]
[null,null,null,"NCR_BuyerName","TechnipFMC Buyer Name:"]
[null,null,null,"NCR_RequiredbyECN","Required by ECN?"]
[null,null,null,"NCR_WhoDiscoveredDefect","Who discovered the defect?"]
[null,null,null,"NCR_TFMC_PN","TechnipFMC Part Number:"]
["NCR_EmptyCellsCheckList",null,null,"NCR_Traceability_SN","Traceability / Serial Number:",null,null,null,null,"NCR_EmptyCellResutlsTable"]
[null,null,null,"NCR_DefectQuantity","Defect Quantity:"]
[null,null,null,"NCR_PNRevision","Revision:"]
[null,null,null,"NCR_PartDescription","Part Description:"]
[null,null,null,"NCR_Defect_PN","Defect Part Number:"]
[null,null,null,"NCR_Serial_Batch_Number","Serial or Batch Number?"]
[null,null,null,"NCR_Number","Number:"]
[null,null,null,"NCR_MainDefectCode","Main Defect Code:"]
[null,null,null,"NCR_SubDefectCode","Sub-Defect Code:"]
[null,null,null,"NCR_DefectComments","Defect Comments:"]
[null,null,null,"NCR_MainCauseCode","Main Cause Code:"]
[null,null,null,"NCR_SubCauseCode","Sub-Cause Code:"]
[null,null,null,"NCR_CauseComments","Cause Comments: "]
[null,null,null,"NCR_DetailedDescriptionFinding_source","Source of Requirement in \"DETAILED DESCRIPTION OF FINDING:\""]
[null,null,null,"NCR_DetailedDescriptionFinding_Req","Requirement in \"DETAILED DESCRIPTION OF FINDING:\""]
[null,null,null,"NCR_DetailedDescriptionFinding_Actual","Actual in \"DETAILED DESCRIPTION OF FINDING:\""]
[null,null,null,"NCR_DetailedDescriptionFinding_Defect","Defect Description in \"DETAILED DESCRIPTION OF FINDING:\""]
[null,null,null,"NCR_DetailedDescriptionFinding_Containment","Containment Action in \"DETAILED DESCRIPTION OF FINDING:\""]
[null,null,null,"NCR_RootCauseAnalysis_1st","1st Why in \"Root Cause Analysis\", or write N/A"]
[null,null,null,"NCR_RootCauseAnalysis_2nd","2nd Why in \"Root Cause Analysis\", or write N/A"]
[null,null,null,"NCR_RootCauseAnalysis_3rd","3rd Why in \"Root Cause Analysis\", or write N/A"]
[null,null,null,"NCR_RootCauseAnalysis_4th","4th Why in \"Root Cause Analysis\", or write N/A"]
[null,null,null,"NCR_RootCauseAnalysis_5th","5th Why in \"Root Cause Analysis\", or write N/A"]
[null,null,null,"NCR_RootCauseAnalysis_extra","Why? Answer:"]
[null,null,null,"NCR_ProposedSolution","PROPOSED SOLUTION:"]
["end",null,null,"NCR_CorrectiveAction","CORRECTIVE ACTION:"]
[]
[]
[]
[]
[]
["Concession_EmptyCellsCheckList",null,null,"Selected Cell names","Cell tittle","Number of empty cells-concession"]
["Start",null,null,"NCR_CreatedDate","Created Date:"]
[null,null,null,"NCR_PurchasingOrder","Purchasing Order (PO):\n(Only ONE PO # per NCR form)"]
[null,null,null,"NCR_PO_Line","PO Line:"]
[null,null,null,"NCR_More_PO_Line","If needed, include more PO lines when same Part Number:"]
[null,null,null,"NCR_SupplierInternalNCRRef","Supplier Internal NCR Reference:"]
[null,null,null,"NCR_SupplierName","Supplier Name:"]
[null,null,null,"NCR_SupplierContactName","Supplier Contact Name:"]
[null,null,null,"NCR_SupplierContactPhone","Supplier Contact Phone:"]
[null,null,null,"NCR_SQEName","TechnipFMC SQE Name:"]
[null,null,null,"NCR_BuyerName","TechnipFMC Buyer Name:"]
[null,null,null,"NCR_RequiredbyECN","Required by ECN?"]
[null,null,null,"NCR_WhoDiscoveredDefect","Who discovered the defect?"]
[null,null,null,"NCR_TFMC_PN","TechnipFMC Part Number:"]
["Concession_EmptyCellsCheckList",null,null,"NCR_Traceability_SN","Traceability / Serial Number:"]
[null,null,null,"NCR_DefectQuantity","Defect Quantity:"]
[null,null,null,"NCR_PNRevision","Revision:"]
[null,null,null,"NCR_PartDescription","Part Description:"]
[null,null,null,"NCR_Defect_PN","Defect Part Number:"]
[null,null,null,"NCR_Serial_Batch_Number","Serial or Batch Number?"]
[null,null,null,"NCR_Number","Number:"]
[null,null,null,"NCR_MainDefectCode","Main Defect Code:"]
[null,null,null,"NCR_SubDefectCode","Sub-Defect Code:"]
[null,null,null,"NCR_DefectComments","Defect Comments:"]
[null,null,null,"NCR_MainCauseCode","Main Cause Code:"]
[null,null,null,"NCR_SubCauseCode","Sub-Cause Code:"]
[null,null,null,"NCR_CauseComments","Cause Comments: "]
[null,null,null,"NCR_DetailedDescriptionFinding_source","Source of Requirement in \"DETAILED DESCRIPTION OF FINDING:\""]
[null,null,null,"NCR_DetailedDescriptionFinding_Req","Requirement in \"DETAILED DESCRIPTION OF FINDING:\""]
[null,null,null,"NCR_DetailedDescriptionFinding_Actual","Actual in \"DETAILED DESCRIPTION OF FINDING:\""]
[null,null,null,"NCR_DetailedDescriptionFinding_Defect","Defect Description in \"DETAILED DESCRIPTION OF FINDING:\""]
[null,null,null,"NCR_DetailedDescriptionFinding_Containment","Containment Action in \"DETAILED DESCRIPTION OF FINDING:\""]
[null,null,null,"NCR_RootCauseAnalysis_1st","1st Why in \"Root Cause Analysis\", or write N/A"]
[null,null,null,"NCR_RootCauseAnalysis_2nd","2nd Why in \"Root Cause Analysis\", or write N/A"]
[null,null,null,"NCR_RootCauseAnalysis_3rd","3rd Why in \"Root Cause Analysis\", or write N/A"]
[null,null,null,"NCR_RootCauseAnalysis_4th","4th Why in \"Root Cause Analysis\", or write N/A"]
[null,null,null,"NCR_RootCauseAnalysis_5th","5th Why in \"Root Cause Analysis\", or write N/A"]
[null,null,null,"NCR_ProposedSolution","PROPOSED SOLUTION:"]
["end",null,null,"NCR_CorrectiveAction","CORRECTIVE ACTION:"]
[]
[]
[]
[]
[]
["Deviation_EmptyCellsCheckList",null,null,"Selected Cell names","Cell tittle","Number of empty cells-Deviation"]
["Start",null,null,"NCR_CreatedDate","Created Date:"]
[null,null,null,"NCR_PurchasingOrder","Purchasing Order (PO):\n(Only ONE PO # per NCR form)"]
[null,null,null,"NCR_PO_Line","PO Line:"]
[null,null,null,"NCR_More_PO_Line","If needed, include more PO lines when same Part Number:"]
[null,null,null,"NCR_SupplierInternalNCRRef","Supplier Internal NCR Reference:"]
[null,null,null,"NCR_SupplierName","Supplier Name:"]
[null,null,null,"NCR_SupplierContactName","Supplier Contact Name:"]
[null,null,null,"NCR_SupplierContactPhone","Supplier Contact Phone:"]
[null,null,null,"NCR_SQEName","TechnipFMC SQE Name:"]
[null,null,null,"NCR_BuyerName","TechnipFMC Buyer Name:"]
[null,null,null,"NCR_RequiredbyECN","Required by ECN?"]
[null,null,null,"NCR_WhoDiscoveredDefect","Who discovered the defect?"]
[null,null,null,"NCR_TFMC_PN","TechnipFMC Part Number:"]
["Deviation_EmptyCellsCheckList",null,null,"NCR_Traceability_SN","Traceability / Serial Number:"]
[null,null,null,"NCR_DefectQuantity","Defect Quantity:"]
[null,null,null,"NCR_PNRevision","Revision:"]
[null,null,null,"NCR_PartDescription","Part Description:"]
[null,null,null,"NCR_Defect_PN","Defect Part Number:"]
[null,null,null,"NCR_Serial_Batch_Number","Serial or Batch Number?"]
[null,null,null,"NCR_Number","Number:"]
[null,null,null,"NCR_MainDefectCode","Main Defect Code:"]
[null,null,null,"NCR_SubDefectCode","Sub-Defect Code:"]
[null,null,null,"NCR_DefectComments","Defect Comments:"]
[null,null,null,"NCR_MainCauseCode","Main Cause Code:"]
[null,null,null,"NCR_SubCauseCode","Sub-Cause Code:"]
[null,null,null,"NCR_CauseComments","Cause Comments: "]
[null,null,null,"NCR_DetailedDescriptionFinding_source","Source of Requirement in \"DETAILED DESCRIPTION OF FINDING:\""]
[null,null,null,"NCR_DetailedDescriptionFinding_Req","Requirement in \"DETAILED DESCRIPTION OF FINDING:\""]
[null,null,null,"NCR_DetailedDescriptionFinding_Defect","Defect Description in \"DETAILED DESCRIPTION OF FINDING:\""]
[null,null,null,"NCR_DetailedDescriptionFinding_Containment","Containment Action in \"DETAILED DESCRIPTION OF FINDING:\""]
["end",null,null,"NCR_ProposedSolution","PROPOSED SOLUTION:"]
[]
[]
[]
[]
[]
[]
[]
["Technical_EmptyCellsCheckList",null,null,"Selected Cell names","Cell tittle","Number of empty cells-Technical"]
["Start",null,null,"NCR_CreatedDate","Created Date:"]
[null,null,null,"NCR_PurchasingOrder","Purchasing Order (PO):\n(Only ONE PO # per NCR form)"]
[null,null,null,"NCR_PO_Line","PO Line:"]
[null,null,null,"NCR_More_PO_Line","If needed, include more PO lines when same Part Number:"]
[null,null,null,"NCR_SupplierInternalNCRRef","Supplier Internal NCR Reference:"]
[null,null,null,"NCR_SupplierName","Supplier Name:"]
[null,null,null,"NCR_SupplierContactName","Supplier Contact Name:"]
[null,null,null,"NCR_SupplierContactPhone","Supplier Contact Phone:"]
[null,null,null,"NCR_SQEName","TechnipFMC SQE Name:"]
[null,null,null,"NCR_BuyerName","TechnipFMC Buyer Name:"]
[null,null,null,"NCR_RequiredbyECN","Required by ECN?"]
[null,null,null,"NCR_WhoDiscoveredDefect","Who discovered the defect?"]
[null,null,null,"NCR_TFMC_PN","TechnipFMC Part Number:"]
["Technical_EmptyCellsCheckList",null,null,"NCR_Traceability_SN","Traceability / Serial Number:"]
[null,null,null,"NCR_DefectQuantity","Defect Quantity:"]
[null,null,null,"NCR_PNRevision","Revision:"]
[null,null,null,"NCR_PartDescription","Part Description:"]
[null,null,null,"NCR_Defect_PN","Defect Part Number:"]
[null,null,null,"NCR_Serial_Batch_Number","Serial or Batch Number?"]
[null,null,null,"NCR_Number","Number:"]
[null,null,null,"NCR_MainDefectCode","Main Defect Code:"]
[null,null,null,"NCR_SubDefectCode","Sub-Defect Code:"]
[null,null,null,"NCR_DefectComments","Defect Comments:"]
[null,null,null,"NCR_MainCauseCode","Main Cause Code:"]
[null,null,null,"NCR_SubCauseCode","Sub-Cause Code:"]
[null,null,null,"NCR_CauseComments","Cause Comments: "]
[null,null,null,"NCR_DetailedDescriptionFinding_source","Source of Requirement in \"DETAILED DESCRIPTION OF FINDING:\""]
[null,null,null,"NCR_DetailedDescriptionFinding_Req","Requirement in \"DETAILED DESCRIPTION OF FINDING:\""]
[null,null,null,"NCR_DetailedDescriptionFinding_Defect","Defect Description in \"DETAILED DESCRIPTION OF FINDING:\""]
["end",null,null,"NCR_ProposedSolution","PROPOSED SOLUTION:"]
[]
[]
[]
[]
[]
["Deviation_Pre_EmptyCellsCheckList",null,null,"Selected Cell names","Cell tittle","Number of empty cells-Deviation"]
["Start",null,null,"NCR_CreatedDate","Created Date:"]
[null,null,null,"NCR_RFQ_BidNumber","RFQ / Bid Number, when Pre-PO"]
[null,null,null,"NCR_SupplierInternalNCRRef","Supplier Internal NCR Reference:"]
[null,null,null,"NCR_SupplierName","Supplier Name:"]
[null,null,null,"NCR_SupplierContactName","Supplier Contact Name:"]
[null,null,null,"NCR_SupplierContactPhone","Supplier Contact Phone:"]
[null,null,null,"NCR_SQEName","TechnipFMC SQE Name:"]
[null,null,null,"NCR_BuyerName","TechnipFMC Buyer Name:"]
[null,null,null,"NCR_RequiredbyECN","Required by ECN?"]
[null,null,null,"NCR_WhoDiscoveredDefect","Who discovered the defect?"]
[null,null,null,"NCR_TFMC_PN","TechnipFMC Part Number:"]
["Deviation_Pre_EmptyCellsCheckList",null,null,"NCR_Traceability_SN","Traceability / Serial Number:"]
[null,null,null,"NCR_DefectQuantity","Defect Quantity:"]
[null,null,null,"NCR_PNRevision","Revision:"]
[null,null,null,"NCR_PartDescription","Part Description:"]
[null,null,null,"NCR_Defect_PN","Defect Part Number:"]
[null,null,null,"NCR_Serial_Batch_Number","Serial or Batch Number?"]
[null,null,null,"NCR_Number","Number:"]
[null,null,null,"NCR_MainDefectCode","Main Defect Code:"]
[null,null,null,"NCR_SubDefectCode","Sub-Defect Code:"]
[null,null,null,"NCR_DefectComments","Defect Comments:"]
[null,null,null,"NCR_MainCauseCode","Main Cause Code:"]
[null,null,null,"NCR_SubCauseCode","Sub-Cause Code:"]
[null,null,null,"NCR_CauseComments","Cause Comments: "]
[null,null,null,"NCR_DetailedDescriptionFinding_source","Source of Requirement in \"DETAILED DESCRIPTION OF FINDING:\""]
[null,null,null,"NCR_DetailedDescriptionFinding_Req","Requirement in \"DETAILED DESCRIPTION OF FINDING:\""]
[null,null,null,"NCR_DetailedDescriptionFinding_Defect","Defect Description in \"DETAILED DESCRIPTION OF FINDING:\""]
[null,null,null,"NCR_DetailedDescriptionFinding_Containment","Containment Action in \"DETAILED DESCRIPTION OF FINDING:\""]
["end",null,null,"NCR_ProposedSolution","PROPOSED SOLUTION:"]
[]
[]
[]
[]
[]
[]
[]
["Technical_Pre_EmptyCellsCheckList",null,null,"Selected Cell names","Cell tittle","Number of empty cells-Technical"]
["Start",null,null,"NCR_CreatedDate","Created Date:"]
[null,null,null,"NCR_RFQ_BidNumber","RFQ / Bid Number, when Pre-PO"]
[null,null,null,"NCR_SupplierInternalNCRRef","Supplier Internal NCR Reference:"]
[null,null,null,"NCR_SupplierName","Supplier Name:"]
[null,null,null,"NCR_SupplierContactName","Supplier Contact Name:"]
[null,null,null,"NCR_SupplierContactPhone","Supplier Contact Phone:"]
[null,null,null,"NCR_SQEName","TechnipFMC SQE Name:"]
[null,null,null,"NCR_BuyerName","TechnipFMC Buyer Name:"]
[null,null,null,"NCR_RequiredbyECN","Required by ECN?"]
[null,null,null,"NCR_WhoDiscoveredDefect","Who discovered the defect?"]
[null,null,null,"NCR_TFMC_PN","TechnipFMC Part Number:"]
["Technical_Pre_EmptyCellsCheckList",null,null,"NCR_Traceability_SN","Traceability / Serial Number:"]
[null,null,null,"NCR_DefectQuantity","Defect Quantity:"]
[null,null,null,"NCR_PNRevision","Revision:"]
[null,null,null,"NCR_PartDescription","Part Description:"]
[null,null,null,"NCR_Defect_PN","Defect Part Number:"]
[null,null,null,"NCR_Serial_Batch_Number","Serial or Batch Number?"]
[null,null,null,"NCR_Number","Number:"]
[null,null,null,"NCR_MainDefectCode","Main Defect Code:"]
[null,null,null,"NCR_SubDefectCode","Sub-Defect Code:"]
[null,null,null,"NCR_DefectComments","Defect Comments:"]
[null,null,null,"NCR_MainCauseCode","Main Cause Code:"]
[null,null,null,"NCR_SubCauseCode","Sub-Cause Code:"]
[null,null,null,"NCR_CauseComments","Cause Comments: "]
[null,null,null,"NCR_DetailedDescriptionFinding_source","Source of Requirement in \"DETAILED DESCRIPTION OF FINDING:\""]
[null,null,null,"NCR_DetailedDescriptionFinding_Req","Requirement in \"DETAILED DESCRIPTION OF FINDING:\""]
[null,null,null,"NCR_DetailedDescriptionFinding_Defect","Defect Description in \"DETAILED DESCRIPTION OF FINDING:\""]
["end",null,null,"NCR_ProposedSolution","PROPOSED SOLUTION:"]
[]
[]
[]
[]
[]
[]
[]
["Warning Text"]
[null,null,null,"DRAFT! Please fill in all the required fields/cells"]
[]
[]
[]
[]
[]
[]
["Control variables"]
[null,null,null,"Name of the control vailable","Value (Enable=0 or Disable=1), default \"Disable=1\"",null,null,null,"NCR_RequiredbyECN"]
[null,null,null,"SavingEnableDisable",1,null,null,null,"NCR_WhoDiscoveredDefect"]
[null,null,null,null,null,null,null,null,"NCR_Serial_Batch_Number"]
[null,null,null,null,null,null,null,null,"NCR_MainDefectCode"]
[null,null,null,null,null,null,null,null,"NCR_SubDefectCode"]
[null,null,null,null,null,null,null,null,"NCR_MainCauseCode"]
[null,null,null,null,null,null,null,null,"NCR_SubCauseCode"]
[]
[]
["NCR_DropDownListCells",null,null,"Selected Cell names","Cell tittle"]
["Start",null,null,"NCR_RequiredbyECN","Required by ECN?"]
[null,null,null,"NCR_WhoDiscoveredDefect","Who discovered the defect?"]
[null,null,null,"NCR_Serial_Batch_Number","Serial or Batch Number?"]
[null,null,null,"NCR_MainDefectCode","Main Defect Code:"]
[null,null,null,"NCR_SubDefectCode","Sub-Defect Code:"]
[null,null,null,"NCR_MainCauseCode","Main Cause Code:"]
["end",null,null,"NCR_SubCauseCode","Sub-Cause Code:"]
[]
[]
[]
["Table to fill in emapy cells with NA (key word is Residual or Res)"]
[]
[]
["Post-PO Concession"]
[]
["NCR_EmptyCellsCheckList",null,null,"Selected Cell names","Cell tittle","Number of empty cells"]
["Res_Concession_EmptyCellsCheckList",null,null,"NCR_RootCauseAnalysis_extra","Why? Answer:"]
[]
[]
[]
[]
[]
[]
["Post-PO Deviation"]
[]
["NCR_EmptyCellsCheckList",null,null,"Selected Cell names","Cell tittle","Number of empty cells"]
["Start",null,null,"NCR_DetailedDescriptionFinding_Actual","Actual in \"DETAILED DESCRIPTION OF FINDING:\""]
[null,null,null,"NCR_RootCauseAnalysis_1st","1st Why in \"Root Cause Analysis\", or write N/A"]
[null,null,null,"NCR_RootCauseAnalysis_2nd","2nd Why in \"Root Cause Analysis\", or write N/A"]
["Res_Deviation_EmptyCellsCheckList",null,null,"NCR_RootCauseAnalysis_3rd","3rd Why in \"Root Cause Analysis\", or write N/A"]
[null,null,null,"NCR_RootCauseAnalysis_4th","4th Why in \"Root Cause Analysis\", or write N/A"]
[null,null,null,"NCR_RootCauseAnalysis_5th","5th Why in \"Root Cause Analysis\", or write N/A"]
[null,null,null,"NCR_RootCauseAnalysis_extra","Why? Answer:"]
["end",null,null,"NCR_CorrectiveAction","CORRECTIVE ACTION:"]
[]
[]
[]
[]
[]
[]
[]
["Post-PO Technical Clarification"]
[]
["NCR_EmptyCellsCheckList",null,null,"Selected Cell names","Cell tittle","Number of empty cells"]
["Start",null,null,"NCR_DetailedDescriptionFinding_Actual","Actual in \"DETAILED DESCRIPTION OF FINDING:\""]
[null,null,null,"NCR_DetailedDescriptionFinding_Containment","Containment Action in \"DETAILED DESCRIPTION OF FINDING:\""]
[null,null,null,"NCR_RootCauseAnalysis_1st","1st Why in \"Root Cause Analysis\", or write N/A"]
[null,null,null,"NCR_RootCauseAnalysis_2nd","2nd Why in \"Root Cause Analysis\", or write N/A"]
["Res_Technical_EmptyCellsCheckList",null,null,"NCR_RootCauseAnalysis_3rd","3rd Why in \"Root Cause Analysis\", or write N/A"]
[null,null,null,"NCR_RootCauseAnalysis_4th","4th Why in \"Root Cause Analysis\", or write N/A"]
[null,null,null,"NCR_RootCauseAnalysis_5th","5th Why in \"Root Cause Analysis\", or write N/A"]
[null,null,null,"NCR_RootCauseAnalysis_extra","Why? Answer:"]
[null,null,null,"NCR_CorrectiveAction","CORRECTIVE ACTION:"]
[]
[]
[]
[]
[]
[]
[]
["Rre-PO Deviation"]
[]
["NCR_EmptyCellsCheckList",null,null,"Selected Cell names","Cell tittle","Number of empty cells"]
["Start",null,null,"NCR_DetailedDescriptionFinding_Actual","Actual in \"DETAILED DESCRIPTION OF FINDING:\""]
[null,null,null,"NCR_RootCauseAnalysis_1st","1st Why in \"Root Cause Analysis\", or write N/A"]
[null,null,null,"NCR_RootCauseAnalysis_2nd","2nd Why in \"Root Cause Analysis\", or write N/A"]
[null,null,null,"NCR_RootCauseAnalysis_3rd","3rd Why in \"Root Cause Analysis\", or write N/A"]
["Res_Deviation_Pre_EmptyCellsCheckList",null,null,"NCR_RootCauseAnalysis_4th","4th Why in \"Root Cause Analysis\", or write N/A"]
[null,null,null,"NCR_RootCauseAnalysis_5th","5th Why in \"Root Cause Analysis\", or write N/A"]
[null,null,null,"NCR_RootCauseAnalysis_extra","Why? Answer:"]
[null,null,null,"NCR_CorrectiveAction","CORRECTIVE ACTION:"]
[]
[]
[]
["Rre-PO Technical Clarification"]
[]
["NCR_EmptyCellsCheckList",null,null,"Selected Cell names","Cell tittle","Number of empty cells"]
["Start",null,null,"NCR_DetailedDescriptionFinding_Actual","Actual in \"DETAILED DESCRIPTION OF FINDING:\""]
[null,null,null,"NCR_DetailedDescriptionFinding_Containment","Containment Action in \"DETAILED DESCRIPTION OF FINDING:\""]
[null,null,null,"NCR_RootCauseAnalysis_1st","1st Why in \"Root Cause Analysis\", or write N/A"]
[null,null,null,"NCR_RootCauseAnalysis_2nd","2nd Why in \"Root Cause Analysis\", or write N/A"]
["Res_Technical_Pre_EmptyCellsCheckList",null,null,"NCR_RootCauseAnalysis_3rd","3rd Why in \"Root Cause Analysis\", or write N/A"]
[null,null,null,"NCR_RootCauseAnalysis_4th","4th Why in \"Root Cause Analysis\", or write N/A"]
[null,null,null,"NCR_RootCauseAnalysis_5th","5th Why in \"Root Cause Analysis\", or write N/A"]
[null,null,null,"NCR_RootCauseAnalysis_extra","Why? Answer:"]
["end",null,null,"NCR_CorrectiveAction","CORRECTIVE ACTION:"]

{"sheet":"ECN Yes or No","index":4,"n_rows":4,"n_cols":1,"rows_kept":4,"cut":false,"hidden":true,"merged":[]}
[]
[]
["Yes"]
["No"]

{"sheet":"Defects","index":5,"n_rows":363,"n_cols":11,"rows_kept":363,"cut":false,"hidden":true,"merged":[]}
["Short text for the catalog","Keyword","QN type","Code group","Short text","Code","Short text for code"]
["Defect types","Defect type","ZB,ZC,ZD,ZF"]
["Defect types","Defect type",null,"Q0001007","Welding related: &"]
["Defect types","Defect type",null,"Q0001007","Welding related: &","0010","Structural Dimensional Error"]
["Defect types","Defect type",null,"Q0001007","Welding related: &","0020","Structural Visual Defect"]
["Defect types","Defect type",null,"Q0001007","Welding related: &","0030","Structural NDE Defect"]
["Defect types","Defect type",null,"Q0001007","Welding related: &","0040","Orbital Visual Defect"]
["Defect types","Defect type",null,"Q0001007","Welding related: &","0050","Orbital NDE Defect"]
["Defect types","Defect type",null,"Q0001007","Welding related: &","0060","Pressure Containing Dimensional Defect"]
["Defect types","Defect type",null,"Q0001007","Welding related: &","0070","Pressure Containing Surface NDE"]
["Defect types","Defect type",null,"Q0001007","Welding related: &","0080","Pressure containing Volumetric NDE"]
["Defect types","Defect type",null,"Q0001007","Welding related: &","0090","Cladding Surface NDE Defect"]
["Defect types","Defect type",null,"Q0001007","Welding related: &","0100","Cladding Volumetric NDE Defect",null,null,null," "]
["Defect types","Defect type",null,"Q0001007","Welding related: &","0110","Weld Clad"]
["Defect types","Defect type",null,"Q0001007","Welding related: &","0120","Hardness Test Defect"]
["Defect types","Defect type",null,"Q0001007","Welding related: &","0130","Weld Spatter"]
["Defect types","Defect type",null,"Q0001007","Welding related: &","0140","Missed Operation"]
["Defect types","Defect type",null,"Q0001007","Welding related: &","0150","Post Weld Heat Treatment"]
["Defect types","Defect type",null,"Q0001007","Welding related: &","0160","Lack of Weld"]
["Defect types","Defect type",null,"Q0001007","Welding related: &","0170","Leak from Weld"]
["Defect types","Defect type",null,"Q0001007","Welding related: &","0180","Material Issued Damaged"]
["Defect types","Defect type",null,"Q0001007","Welding related: &","0190","Part Incorrect"]
["Defect types","Defect type",null,"Q0001007","Welding related: &","0200","Part - Incorrect Revision"]
["Defect types","Defect type",null,"Q0001007","Welding related: &","0210","Material Incorrect"]
["Defect types","Defect type",null,"Q0001007","Welding related: &","0220","Miscellaneous"]
["Defect types","Defect type",null,"Q0001007","Welding related: &","0230","Defective (PT)"]
["Defect types","Defect type",null,"Q0001007","Welding related: &","0240","Defective (MT)"]
["Defect types","Defect type",null,"Q0001007","Welding related: &","0250","Defective (RT)"]
["Defect types","Defect type",null,"Q0001007","Welding related: &","0260","Visual Defect"]
["Defect types","Defect type",null,"Q0001007","Welding related: &","0270","Material Defect"]
["Defect types","Defect type",null,"Q0001007","Welding related: &","0280","Dimensional Defect"]
[]
["Defect types","Defect type",null,"Q0001016","Coating/Plating: &"]
["Defect types","Defect type",null,"Q0001016","Coating/Plating: &","0010","Coating Not Applied"]
["Defect types","Defect type",null,"Q0001016","Coating/Plating: &","0020","Coating Defect"]
["Defect types","Defect type",null,"Q0001016","Coating/Plating: &","0030","Plating Defect"]
["Defect types","Defect type",null,"Q0001016","Coating/Plating: &","0040","Missed Operation"]
["Defect types","Defect type",null,"Q0001016","Coating/Plating: &","0050","Plating Not Applied"]
["Defect types","Defect type",null,"Q0001016","Coating/Plating: &","0060","Painting Defect"]
["Defect types","Defect type",null,"Q0001016","Coating/Plating: &","0070","Painting Not Applied"]
["Defect types","Defect type",null,"Q0001016","Coating/Plating: &","0080","Incorrect Color/Coating"]
[]
["Defect types","Defect type",null,"Q0001020","Marking: &"]
["Defect types","Defect type",null,"Q0001020","Marking: &","0010","No Marking",null,null," "]
["Defect types","Defect type",null,"Q0001020","Marking: &","0020","Marking Content Error"]
["Defect types","Defect type",null,"Q0001020","Marking: &","0030","Marking Location Error"]
["Defect types","Defect type",null,"Q0001020","Marking: &","0040","Marking Not Readable"]
["Defect types","Defect type",null,"Q0001020","Marking: &","0050","Incorrect Size of Marking"]
[]
["Defect types","Defect type",null,"Q0001031","Design: &"]
["Defect types","Defect type",null,"Q0001031","Design: &","0010","DBI Error"]
["Defect types","Defect type",null,"Q0001031","Design: &","0020","Material Master Error"]
["Defect types","Defect type",null,"Q0001031","Design: &","0030","Drawing Error"]
["Defect types","Defect type",null,"Q0001031","Design: &","0040","Specification Error"]
["Defect types","Defect type",null,"Q0001031","Design: &","0050","Procedure Error"]
[]
["Defect types","Defect type",null,"Q0001035","Damage: &"]
["Defect types","Defect type",null,"Q0001035","Damage: &","0010","Damage During Transport"]
["Defect types","Defect type",null,"Q0001035","Damage: &","0020","Damage During Assembly"]
["Defect types","Defect type",null,"Q0001035","Damage: &","0030","Damage During Testing"]
["Defect types","Defect type",null,"Q0001035","Damage: &","0040","Wear & Tear"]
["Defect types","Defect type",null,"Q0001035","Damage: &","0050","Damage From Corrosion"]
["Defect types","Defect type",null,"Q0001035","Damage: &","0070","Damage Due to Handling"]
[]
["Defect types","Defect type",null,"Q0001040","Procurement: &"]
["Defect types","Defect type",null,"Q0001040","Procurement: &","0010","Unqualified Vendor"]
["Defect types","Defect type",null,"Q0001040","Procurement: &","0020","Purchase Order Incorrect"]
["Defect types","Defect type",null,"Q0001040","Procurement: &","0030","Vendor Did Not Complete Required Work"]
["Defect types","Defect type",null,"Q0001040","Procurement: &","0040","Unapproved (Raw) Material Vendor"]
["Defect types","Defect type",null,"Q0001040","Procurement: &","0050","Incomplete Kit Of Parts"]
["Defect types","Defect type",null,"Q0001040","Procurement: &","0060","Part Not Protected As Per DBI"]
[]
["Defect types","Defect type",null,"Q0001045","Change/Deviation Request: &"]
["Defect types","Defect type",null,"Q0001045","Change/Deviation Request: &","0010","Conversion Approval"]
["Defect types","Defect type",null,"Q0001045","Change/Deviation Request: &","0020","Raw Material Substitution Request"]
["Defect types","Defect type",null,"Q0001045","Change/Deviation Request: &","0030","Part Substitution Request"]
["Defect types","Defect type",null,"Q0001045","Change/Deviation Request: &","0040","Process Substitution Request"]
[]
["Defect types","Defect type",null,"Q0001050","FMC Other Defect: &"]
["Defect types","Defect type",null,"Q0001050","FMC Other Defect: &","0010","Physical"]
["Defect types","Defect type",null,"Q0001050","FMC Other Defect: &","0020","Functional"]
["Defect types","Defect type",null,"Q0001050","FMC Other Defect: &","0030","Part Lost"]
[]
["Defect types","Defect type",null,"Q0001055","Project: &"]
["Defect types","Defect type",null,"Q0001055","Project: &","0010","Project Requested Unfinished Shipment"]
[]
["Defect types","Defect type",null,"Q0001065","Obsolescence Issue: &"]
["Defect types","Defect type",null,"Q0001065","Obsolescence Issue: &","0010","Obsolecence Early Warning"]
["Defect types","Defect type",null,"Q0001065","Obsolescence Issue: &","0020","Last Time Buy (LTB) (Obsolescent)"]
["Defect types","Defect type",null,"Q0001065","Obsolescence Issue: &","0030","End Of Life (EOL) (Obsolete)"]
["Defect types","Defect type",null,"Q0001065","Obsolescence Issue: &","0040","Not Available"]
[]
["Defect types","Defect type",null,"Q1005010","Assembly Related: &"]
["Defect types","Defect type",null,"Q1005010","Assembly Related: &","0001","Scratched Surface"]
["Defect types","Defect type",null,"Q1005010","Assembly Related: &","0002","Dent In Surface"]
["Defect types","Defect type",null,"Q1005010","Assembly Related: &","0003","Corrosion Damage"]
["Defect types","Defect type",null,"Q1005010","Assembly Related: &","0004","Surface Finish Damage"]
["Defect types","Defect type",null,"Q1005010","Assembly Related: &","0005","Bent Component"]
["Defect types","Defect type",null,"Q1005010","Assembly Related: &","0006","Misalignment / Interface Error"]
["Defect types","Defect type",null,"Q1005010","Assembly Related: &","0007","Missing Components"]
["Defect types","Defect type",null,"Q1005010","Assembly Related: &","0008","Over Torqued"]
["Defect types","Defect type",null,"Q1005010","Assembly Related: &","0009","Under Torqued",null,null,null," "]
["Defect types","Defect type",null,"Q1005010","Assembly Related: &","0010","Dimensional Error",null," "]
["Defect types","Defect type",null,"Q1005010","Assembly Related: &","0011","Feature Position Error"]
["Defect types","Defect type",null,"Q1005010","Assembly Related: &","0012","Orientation Error"]
["Defect types","Defect type",null,"Q1005010","Assembly Related: &","0013","Incorrect Component"]
["Defect types","Defect type",null,"Q1005010","Assembly Related: &","0014","Other - Specify In Comments"]
["Defect types","Defect type",null,"Q1005010","Assembly Related: &","0015","Assembled Incorrectly"]
["Defect types","Defect type",null,"Q1005010","Assembly Related: &","0016","Dimension (Tolerance)"]
["Defect types","Defect type",null,"Q1005010","Assembly Related: &","0017","Component Traceability Not Maintained"]
["Defect types","Defect type",null,"Q1005010","Assembly Related: &","0018","Assembly Not Serialized"]
["Defect types","Defect type",null,"Q1005010","Assembly Related: &","0019","Wrong Part Assembled"]
["Defect types","Defect type",null,"Q1005010","Assembly Related: &","0020","Physical Damage"]
[]
["Defect types","Defect type",null,"Q1005020","Test Related: &"]
["Defect types","Defect type",null,"Q1005020","Test Related: &","0001","Leak"]
["Defect types","Defect type",null,"Q1005020","Test Related: &","0002","Damaged During Testing"]
["Defect types","Defect type",null,"Q1005020","Test Related: &","0003","Cleanliness"]
["Defect types","Defect type",null,"Q1005020","Test Related: &","0004","Function"]
["Defect types","Defect type",null,"Q1005020","Test Related: &","0005","Component Error"]
["Defect types","Defect type",null,"Q1005020","Test Related: &","0006","Wrong Test Procedure Used"]
["Defect types","Defect type",null,"Q1005020","Test Related: &","0007","Test Omitted"]
["Defect types","Defect type",null,"Q1005020","Test Related: &","0008","Missed Operation"]
[]
["Defect types","Defect type",null,"Q1005030","Raw Material: &"]
["Defect types","Defect type",null,"Q1005030","Raw Material: &","0001","Incorrect Material"]
["Defect types","Defect type",null,"Q1005030","Raw Material: &","0002","Chemistry"]
["Defect types","Defect type",null,"Q1005030","Raw Material: &","0003","Incorrect Dimension"]
["Defect types","Defect type",null,"Q1005030","Raw Material: &","0004","NDE Failure"]
["Defect types","Defect type",null,"Q1005030","Raw Material: &","0005","Chem./Mech./Heat Treat Process"]
["Defect types","Defect type",null,"Q1005030","Raw Material: &","0006","Defects In Material"]
["Defect types","Defect type",null,"Q1005030","Raw Material: &","0007","Hardness Out Of Tolerance"]
["Defect types","Defect type",null,"Q1005030","Raw Material: &","0008","Unapproved Material Substitution"]
[]
["Defect types","Defect type",null,"Q1005040","Machining Related: &"]
["Defect types","Defect type",null,"Q1005040","Machining Related: &","0001","Dimensional Error"]
["Defect types","Defect type",null,"Q1005040","Machining Related: &","0002","Burr/Chips"]
["Defect types","Defect type",null,"Q1005040","Machining Related: &","0003","Thread Error"]
["Defect types","Defect type",null,"Q1005040","Machining Related: &","0004","Surface Finish Error"]
["Defect types","Defect type",null,"Q1005040","Machining Related: &","0005","Tool Dig/Undercut"]
["Defect types","Defect type",null,"Q1005040","Machining Related: &","0006","False Cut"]
["Defect types","Defect type",null,"Q1005040","Machining Related: &","0007","Ring Groove Error"]
["Defect types","Defect type",null,"Q1005040","Machining Related: &","0008","Slot Error"]
["Defect types","Defect type",null,"Q1005040","Machining Related: &","0009","Other - Specify In Comments"]
["Defect types","Defect type",null,"Q1005040","Machining Related: &","0010","Inside Diameter Error"]
["Defect types","Defect type",null,"Q1005040","Machining Related: &","0011","Outside Diameter Error"]
["Defect types","Defect type",null,"Q1005040","Machining Related: &","0012","Length/Depth Error"]
["Defect types","Defect type",null,"Q1005040","Machining Related: &","0013","Angle Error"]
["Defect types","Defect type",null,"Q1005040","Machining Related: &","0015","GD&T (Geometric Dimension & Tolerance)"]
["Defect types","Defect type",null,"Q1005040","Machining Related: &","0016","Tool Dig"]
["Defect types","Defect type",null,"Q1005040","Machining Related: &","0017","Seat Pocket Error"]
[null,"Defect type",null,"Q1005040","Machining Related: &","0018","Position Error"]
[null,"Defect type",null,"Q1005040","Machining Related: &","0019","Hole or Groove Not Circular"]
[null,"Defect type",null,"Q1005040","Machining Related: &","0020","Contamination Within Intersection Holes"]
[null,"Defect type",null,"Q1005040","Machining Related: &","0021","Material Faulty"]
[null,"Defect type",null,"Q1005040","Machining Related: &","0022","Material Incorrect"]
[null,"Defect type",null,"Q1005040","Machining Related: &","0023","Material Issued Damaged"]
[null,"Defect type",null,"Q1005040","Machining Related: &","0024","Handling Damage"]
[null,"Defect type",null,"Q1005040","Machining Related: &","0025","Hole Size Error"]
[null,"Defect type",null,"Q1005040","Machining Related: &","0026","Casting Issues"]
[null,"Defect type",null,"Q1005040","Machining Related: &","0027","Miscellaneous"]
[null,"Defect type",null,"Q1005040","Machining Related: &","0028","Machine Proving / Set Up"]
[]
[null,"Defect type",null,"Q1005050","Welding - Structural Related: &"]
[null,"Defect type",null,"Q1005050","Welding - Structural Related: &","0001","Incomplete Penetration"]
[null,"Defect type",null,"Q1005050","Welding - Structural Related: &","0002","Concave Root / Underfill Cap"]
[null,"Defect type",null,"Q1005050","Welding - Structural Related: &","0003","Crack"]
[null,"Defect type",null,"Q1005050","Welding - Structural Related: &","0004","Dimensional Defect"]
[null,"Defect type",null,"Q1005050","Welding - Structural Related: &","0005","Excessive Root Reinforcement"]
[null,"Defect type",null,"Q1005050","Welding - Structural Related: &","0006","Excessive Spatter"]
[null,"Defect type",null,"Q1005050","Welding - Structural Related: &","0007","Hardness"]
[null,"Defect type",null,"Q1005050","Welding - Structural Related: &","0008","Incomplete Fusion"]
[null,"Defect type",null,"Q1005050","Welding - Structural Related: &","0009","Internal Incusions: Slag, Porosity, Tung"]
[null,"Defect type",null,"Q1005050","Welding - Structural Related: &","0010","Oxidation"]
[null,"Defect type",null,"Q1005050","Welding - Structural Related: &","0011","Process Error (Out of WPS Range)"]
[null,"Defect type",null,"Q1005050","Welding - Structural Related: &","0012","Surface Porosity / Rounded Indications"]
[null,"Defect type",null,"Q1005050","Welding - Structural Related: &","0013","Surface Roughness / Profile"]
[null,"Defect type",null,"Q1005050","Welding - Structural Related: &","0014","Undercut"]
[]
[null,"Defect type",null,"Q1005051","Welding - Cladding: &"]
[null,"Defect type",null,"Q1005051","Welding - Cladding: &","0001","Incomplete Penetration"]
[null,"Defect type",null,"Q1005051","Welding - Cladding: &","0002","Concave Root / Underfill Cap"]
[null,"Defect type",null,"Q1005051","Welding - Cladding: &","0003","Crack"]
[null,"Defect type",null,"Q1005051","Welding - Cladding: &","0004","Dimensional Defect"]
[null,"Defect type",null,"Q1005051","Welding - Cladding: &","0005","Excessive Root Reinforcement"]
[null,"Defect type",null,"Q1005051","Welding - Cladding: &","0006","Excessive Spatter"]
[null,"Defect type",null,"Q1005051","Welding - Cladding: &","0007","Hardness"]
[null,"Defect type",null,"Q1005051","Welding - Cladding: &","0008","Incomplete Fusion"]
[null,"Defect type",null,"Q1005051","Welding - Cladding: &","0009","Internal Incusions: Slag, Porosity, Tung"]
[null,"Defect type",null,"Q1005051","Welding - Cladding: &","0010","Oxidation"]
[null,"Defect type",null,"Q1005051","Welding - Cladding: &","0011","Process Error (Out of WPS Range)"]
[null,"Defect type",null,"Q1005051","Welding - Cladding: &","0012","Surface Porosity / Rounded Indications",null,null," "]
[null,"Defect type",null,"Q1005051","Welding - Cladding: &","0013","Surface Roughness / Profile"]
[null,"Defect type",null,"Q1005051","Welding - Cladding: &","0014","Undercut"]
[]
[null,"Defect type",null,"Q1005052","Welding - Butter: &"]
[null,"Defect type",null,"Q1005052","Welding - Butter: &","0001","Incomplete Penetration"]
[null,"Defect type",null,"Q1005052","Welding - Butter: &","0002","Concave Root / Underfill Cap"]
[null,"Defect type",null,"Q1005052","Welding - Butter: &","0003","Crack"]
[null,"Defect type",null,"Q1005052","Welding - Butter: &","0004","Dimensional Defect"]
[null,"Defect type",null,"Q1005052","Welding - Butter: &","0005","Excessive Root Reinforcement"]
[null,"Defect type",null,"Q1005052","Welding - Butter: &","0006","Excessive Spatter"]
[null,"Defect type",null,"Q1005052","Welding - Butter: &","0007","Hardness"]
[null,"Defect type",null,"Q1005052","Welding - Butter: &","0008","Incomplete Fusion"]
[null,"Defect type",null,"Q1005052","Welding - Butter: &","0009","Internal Incusions: Slag, Porosity, Tung"]
[null,"Defect type",null,"Q1005052","Welding - Butter: &","0010","Oxidation"]
[null,"Defect type",null,"Q1005052","Welding - Butter: &","0011","Process Error (Out of WPS Range)"]
[null,"Defect type",null,"Q1005052","Welding - Butter: &","0012","Surface Porosity / Rounded Indications"]
[null,"Defect type",null,"Q1005052","Welding - Butter: &","0013","Surface Roughness / Profile"]
[null,"Defect type",null,"Q1005052","Welding - Butter: &","0014","Undercut"]
[]
[null,"Defect type",null,"Q1005053","Welding - Manual Closure: &"]
[null,"Defect type",null,"Q1005053","Welding - Manual Closure: &","0001","Incomplete Penetration"]
[null,"Defect type",null,"Q1005053","Welding - Manual Closure: &","0002","Concave Root / Underfill Cap"]
[null,"Defect type",null,"Q1005053","Welding - Manual Closure: &","0003","Crack"]
[null,"Defect type",null,"Q1005053","Welding - Manual Closure: &","0004","Dimensional Defect"]
[null,"Defect type",null,"Q1005053","Welding - Manual Closure: &","0005","Excessive Root Reinforcement"]
[null,"Defect type",null,"Q1005053","Welding - Manual Closure: &","0006","Excessive Spatter"]
[null,"Defect type",null,"Q1005053","Welding - Manual Closure: &","0007","Hardness"]
[null,"Defect type",null,"Q1005053","Welding - Manual Closure: &","0008","Incomplete Fusion"]
[null,"Defect type",null,"Q1005053","Welding - Manual Closure: &","0009","Internal Incusions: Slag, Porosity, Tung"]
[null,"Defect type",null,"Q1005053","Welding - Manual Closure: &","0010","Oxidation"]
[null,"Defect type",null,"Q1005053","Welding - Manual Closure: &","0011","Process Error (Out of WPS Range)"]
[null,"Defect type",null,"Q1005053","Welding - Manual Closure: &","0012","Surface Porosity / Rounded Indications"]
[null,"Defect type",null,"Q1005053","Welding - Manual Closure: &","0013","Surface Roughness / Profile"]
[null,"Defect type",null,"Q1005053","Welding - Manual Closure: &","0014","Undercut"]
[]
[null,"Defect type",null,"Q1005054","Welding - Machine Closure: &"]
[null,"Defect type",null,"Q1005054","Welding - Machine Closure: &","0001","Incomplete Penetration"]
[null,"Defect type",null,"Q1005054","Welding - Machine Closure: &","0002","Concave Root / Underfill Cap"]
[null,"Defect type",null,"Q1005054","Welding - Machine Closure: &","0003","Crack"]
[null,"Defect type",null,"Q1005054","Welding - Machine Closure: &","0004","Dimensional Defect"]
[null,"Defect type",null,"Q1005054","Welding - Machine Closure: &","0005","Excessive Root Reinforcement"]
[null,"Defect type",null,"Q1005054","Welding - Machine Closure: &","0006","Excessive Spatter"]
[null,"Defect type",null,"Q1005054","Welding - Machine Closure: &","0007","Hardness"]
[null,"Defect type",null,"Q1005054","Welding - Machine Closure: &","0008","Incomplete Fusion"]
[null,"Defect type",null,"Q1005054","Welding - Machine Closure: &","0009","Internal Incusions: Slag, Porosity, Tung"]
[null,"Defect type",null,"Q1005054","Welding - Machine Closure: &","0010","Oxidation"]
[null,"Defect type",null,"Q1005054","Welding - Machine Closure: &","0011","Process Error (Out of WPS Range)"]
[null,"Defect type",null,"Q1005054","Welding - Machine Closure: &","0012","Surface Porosity / Rounded Indications"]
[null,"Defect type",null,"Q1005054","Welding - Machine Closure: &","0013","Surface Roughness / Profile"]
[null,"Defect type",null,"Q1005054","Welding - Machine Closure: &","0014","Undercut"]
[]
[null,"Defect type",null,"Q1005055","Welding - Manual Tubing: &"]
[null,"Defect type",null,"Q1005055","Welding - Manual Tubing: &","0001","Incomplete Penetration"]
[null,"Defect type",null,"Q1005055","Welding - Manual Tubing: &","0002","Concave Root / Underfill Cap"]
[null,"Defect type",null,"Q1005055","Welding - Manual Tubing: &","0003","Crack"]
[null,"Defect type",null,"Q1005055","Welding - Manual Tubing: &","0004","Dimensional Defect"]
[null,"Defect type",null,"Q1005055","Welding - Manual Tubing: &","0005","Excessive Root Reinforcement"]
[null,"Defect type",null,"Q1005055","Welding - Manual Tubing: &","0006","Excessive Spatter"]
[null,"Defect type",null,"Q1005055","Welding - Manual Tubing: &","0007","Hardness"]
[null,"Defect type",null,"Q1005055","Welding - Manual Tubing: &","0008","Incomplete Fusion"]
[null,"Defect type",null,"Q1005055","Welding - Manual Tubing: &","0009","Internal Incusions: Slag, Porosity, Tung"]
[null,"Defect type",null,"Q1005055","Welding - Manual Tubing: &","0010","Oxidation"]
[null,"Defect type",null,"Q1005055","Welding - Manual Tubing: &","0011","Process Error (Out of WPS Range)"]
[null,"Defect type",null,"Q1005055","Welding - Manual Tubing: &","0012","Surface Porosity / Rounded Indications"]
[null,"Defect type",null,"Q1005055","Welding - Manual Tubing: &","0013","Surface Roughness / Profile"]
[null,"Defect type",null,"Q1005055","Welding - Manual Tubing: &","0014","Undercut"]
[]
[null,"Defect type",null,"Q1005056","Welding - Orbital Tubing: &"]
[null,"Defect type",null,"Q1005056","Welding - Orbital Tubing: &","0001","Incomplete Penetration"]
[null,"Defect type",null,"Q1005056","Welding - Orbital Tubing: &","0002","Concave Root / Underfill Cap"]
[null,"Defect type",null,"Q1005056","Welding - Orbital Tubing: &","0003","Crack"]
[null,"Defect type",null,"Q1005056","Welding - Orbital Tubing: &","0004","Dimensional Defect"]
[null,"Defect type",null,"Q1005056","Welding - Orbital Tubing: &","0005","Excessive Root Reinforcement"]
[null,"Defect type",null,"Q1005056","Welding - Orbital Tubing: &","0006","Excessive Spatter"]
[null,"Defect type",null,"Q1005056","Welding - Orbital Tubing: &","0007","Hardness"]
[null,"Defect type",null,"Q1005056","Welding - Orbital Tubing: &","0008","Incomplete Fusion"]
[null,"Defect type",null,"Q1005056","Welding - Orbital Tubing: &","0009","Internal Incusions: Slag, Porosity, Tung"]
[null,"Defect type",null,"Q1005056","Welding - Orbital Tubing: &","0010","Oxidation"]
[null,"Defect type",null,"Q1005056","Welding - Orbital Tubing: &","0011","Process Error (Out of WPS Range)"]
[null,"Defect type",null,"Q1005056","Welding - Orbital Tubing: &","0012","Surface Porosity / Rounded Indications"]
[null,"Defect type",null,"Q1005056","Welding - Orbital Tubing: &","0013","Surface Roughness / Profile"]
[null,"Defect type",null,"Q1005056","Welding - Orbital Tubing: &","0014","Undercut"]
[]
[null,"Defect type",null,"Q1005057","Welding - Other: &"]
[null,"Defect type",null,"Q1005057","Welding - Other: &","0001","Incomplete Penetration"]
[null,"Defect type",null,"Q1005057","Welding - Other: &","0002","Concave Root / Underfill Cap"]
[null,"Defect type",null,"Q1005057","Welding - Other: &","0003","Crack"]
[null,"Defect type",null,"Q1005057","Welding - Other: &","0004","Dimensional Defect"]
[null,"Defect type",null,"Q1005057","Welding - Other: &","0005","Excessive Root Reinforcement"]
[null,"Defect type",null,"Q1005057","Welding - Other: &","0006","Excessive Spatter"]
[null,"Defect type",null,"Q1005057","Welding - Other: &","0007","Hardness"]
[null,"Defect type",null,"Q1005057","Welding - Other: &","0008","Incomplete Fusion"]
[null,"Defect type",null,"Q1005057","Welding - Other: &","0009","Internal Incusions: Slag, Porosity, Tung"]
[null,"Defect type",null,"Q1005057","Welding - Other: &","0010","Oxidation"]
[null,"Defect type",null,"Q1005057","Welding - Other: &","0011","Process Error (Out of WPS Range)"]
[null,"Defect type",null,"Q1005057","Welding - Other: &","0012","Surface Porosity / Rounded Indications"]
[null,"Defect type",null,"Q1005057","Welding - Other: &","0013","Surface Roughness / Profile"]
[null,"Defect type",null,"Q1005057","Welding - Other: &","0014","Undercut"]
[]
[null,"Defect type",null,"Q1005060","Coating: &"]
[null,"Defect type",null,"Q1005060","Coating: &","0001","Incorrect Area Coated"]
[null,"Defect type",null,"Q1005060","Coating: &","0002","Incorrect Thickness"]
[null,"Defect type",null,"Q1005060","Coating: &","0003","Holiday"]
[null,"Defect type",null,"Q1005060","Coating: &","0004","Incorrect Coating"]
[null,"Defect type",null,"Q1005060","Coating: &","0005","Delamination"]
[null,"Defect type",null,"Q1005060","Coating: &","0006","Damaged"]
[null,"Defect type",null,"Q1005060","Coating: &","0007","Rust / Corrosion"]
[null,"Defect type",null,"Q1005060","Coating: &","0008","Missing Coating"]
[null,"Defect type",null,"Q1005060","Coating: &","0009","Other - Specify In Comments"]
[]
["Defect types","Defect type",null,"Q1005070","Marking: &"]
["Defect types","Defect type",null,"Q1005070","Marking: &","0001","Missing Marking"]
["Defect types","Defect type",null,"Q1005070","Marking: &","0002","Marking Content Error"]
["Defect types","Defect type",null,"Q1005070","Marking: &","0003","Unreadable Marking"]
["Defect types","Defect type",null,"Q1005070","Marking: &","0004","Other - Specify In Comments"]
[]
["Defect types","Defect type",null,"Q1005080","Certification: &"]
["Defect types","Defect type",null,"Q1005080","Certification: &","0001","Not Available"]
["Defect types","Defect type",null,"Q1005080","Certification: &","0002","Information Missing"]
["Defect types","Defect type",null,"Q1005080","Certification: &","0003","Information Incorrect"]
["Defect types","Defect type",null,"Q1005080","Certification: &","0004","Not Maintained / Expired"]
["Defect types","Defect type",null,"Q1005080","Certification: &","0005","Incorrect Certification",null,null," "]
["Defect types","Defect type",null,"Q1005080","Certification: &","0006","Other - Specify In Comments"]
[]
[null,"Defect type",null,"Q1005090","Documentation Requirement: &"]
[null,"Defect type",null,"Q1005090","Documentation Requirement: &","0001","Purchase Order"]
[null,"Defect type",null,"Q1005090","Documentation Requirement: &","0002","Routing"]
[null,"Defect type",null,"Q1005090","Documentation Requirement: &","0003","Part Description / Drawing"]
[null,"Defect type",null,"Q1005090","Documentation Requirement: &","0004","Part Data (Trim / Temp / PSL Level)"]
[null,"Defect type",null,"Q1005090","Documentation Requirement: &","0005","Part BOM"]
[null,"Defect type",null,"Q1005090","Documentation Requirement: &","0006","Quality Matrix",null," "]
[null,"Defect type",null,"Q1005090","Documentation Requirement: &","0007","Engineering Notes"]
[null,"Defect type",null,"Q1005090","Documentation Requirement: &","0008","Production Docs (TDS / ASY / TST / DCP)"]
[null,"Defect type",null,"Q1005090","Documentation Requirement: &","0009","Service Docs (ICP / HFT / TDI / THI / PS)"]
[null,"Defect type",null,"Q1005090","Documentation Requirement: &","0010","Specification Type (C, E, G, M, P, Q, W)"]
[null,"Defect type",null,"Q1005090","Documentation Requirement: &","0011","Other - Specify In Comments"]
[null,"Defect type",null,"Q1005090","Documentation Requirement: &","0012","Missing Certificates / Records"]
[null,"Defect type",null,"Q1005090","Documentation Requirement: &","0013","Incorrect Certificates / Records"]
[null,"Defect type",null,"Q1005090","Documentation Requirement: &","0014","Missing User Documentation (Customer)"]
[null,"Defect type",null,"Q1005090","Documentation Requirement: &","0015","Incorrect User Documentation (Customer)"]
[null,"Defect type",null,"Q1005090","Documentation Requirement: &","0016","Procedure / Process Error"]
[]
[null,"Defect type",null,"Q1005100","Electrical: &"]
[null,"Defect type",null,"Q1005100","Electrical: &","0001","Supplier Assembly"]
[null,"Defect type",null,"Q1005100","Electrical: &","0002","Component Failure"]
[null,"Defect type",null,"Q1005100","Electrical: &","0003","Mechanical Failure"]
[null,"Defect type",null,"Q1005100","Electrical: &","0004","Wiring Short"]
[null,"Defect type",null,"Q1005100","Electrical: &","0005","Engineering Change"]
[null,"Defect type",null,"Q1005100","Electrical: &","0006","Program Configuration"]
[null,"Defect type",null,"Q1005100","Electrical: &","0007","Functional"]
[null,"Defect type",null,"Q1005100","Electrical: &","0008","Ease Of Use"]
[null,"Defect type",null,"Q1005100","Electrical: &","0009","Security"]
[null,"Defect type",null,"Q1005100","Electrical: &","0010","Performance"]
[null,"Defect type",null,"Q1005100","Electrical: &","0011","Serviceability"]
[null,"Defect type",null,"Q1005100","Electrical: &","0012","Documentation"]
[null,"Defect type",null,"Q1005100","Electrical: &","0013","Other - Specify In Comments"]
[]
[null,"Defect type",null,"Q1005101","Software: &"]
[null,"Defect type",null,"Q1005101","Software: &","0001","Supplier Assembly"]
[null,"Defect type",null,"Q1005101","Software: &","0002","Component Failure"]
[null,"Defect type",null,"Q1005101","Software: &","0003","Mechanical Failure"]
[null,"Defect type",null,"Q1005101","Software: &","0004","Wiring Short"]
[null,"Defect type",null,"Q1005101","Software: &","0005","Engineering Change"]
[null,"Defect type",null,"Q1005101","Software: &","0006","Program Configuration"]
[null,"Defect type",null,"Q1005101","Software: &","0007","Functional"]
[null,"Defect type",null,"Q1005101","Software: &","0008","Ease Of Use"]
[null,"Defect type",null,"Q1005101","Software: &","0009","Security"]
[null,"Defect type",null,"Q1005101","Software: &","0010","Performance"]
[null,"Defect type",null,"Q1005101","Software: &","0011","Serviceability"]
[null,"Defect type",null,"Q1005101","Software: &","0012","Documentation"]
[null,"Defect type",null,"Q1005101","Software: &","0013","Other - Specify In Comments"]

{"sheet":"Main & Sub Defect","index":6,"n_rows":307,"n_cols":4,"rows_kept":307,"cut":false,"hidden":true,"merged":[]}
["Code group","Code"]
["Q0001007 (Welding Related)","0010 Structural Dimensional Error",null,"Q0001007_Welding_Related"]
["Q0001007 (Welding Related)","0020 Structural Visual Defect",null,"Q0001016_Coating_Plating"]
["Q0001007 (Welding Related)","0030 Structural NDE Defect",null,"Q0001020_Marking"]
["Q0001007 (Welding Related)","0040 Orbital Visual Defect",null,"Q0001031_Design"]
["Q0001007 (Welding Related)","0050 Orbital NDE Defect",null,"Q0001035_Damage"]
["Q0001007 (Welding Related)","0060 Pressure Containing Dimensional Defect",null,"Q0001040_Procurement"]
["Q0001007 (Welding Related)","0070 Pressure Containing Surface NDE",null,"Q0001045_Change_Deviation_Request"]
["Q0001007 (Welding Related)","0080 Pressure containing Volumetric NDE",null,"Q0001050_FMC_Other_Defect"]
["Q0001007 (Welding Related)","0090 Cladding Surface NDE Defect",null,"Q0001055_Project"]
["Q0001007 (Welding Related)","0100 Cladding Volumetric NDE Defect",null,"Q0001065_Obsolescence_Issue"]
["Q0001007 (Welding Related)","0110 Weld Clad",null,"Q1005010_Assembly_Related"]
["Q0001007 (Welding Related)","0120 Hardness Test Defect",null,"Q1005020_Test_Related"]
["Q0001007 (Welding Related)","0130 Weld Spatter",null,"Q1005030_Raw_Material"]
["Q0001007 (Welding Related)","0140 Missed Operation",null,"Q1005040_Machining_Related"]
["Q0001007 (Welding Related)","0150 Post Weld Heat Treatment",null,"Q1005050_Welding_Structural_Related"]
["Q0001007 (Welding Related)","0160 Lack of Weld",null,"Q1005051_Welding_Cladding"]
["Q0001007 (Welding Related)","0170 Leak from Weld",null,"Q1005052_Welding_Butter"]
["Q0001007 (Welding Related)","0180 Material Issued Damaged",null,"Q1005053_Welding_Manual_Closure"]
["Q0001007 (Welding Related)","0190 Part Incorrect",null,"Q1005054_Welding_Machine_Closure"]
["Q0001007 (Welding Related)","0200 Part - Incorrect Revision",null,"Q1005055_Welding_Manual_Tubing"]
["Q0001007 (Welding Related)","0210 Material Incorrect",null,"Q1005056_Welding_Orbital_Tubing"]
["Q0001007 (Welding Related)","0220 Miscellaneous",null,"Q1005057_Welding_Other"]
["Q0001007 (Welding Related)","0230 Defective (PT)",null,"Q1005060_Coating"]
["Q0001007 (Welding Related)","0240 Defective (MT)",null,"Q1005070_Marking"]
["Q0001007 (Welding Related)","0250 Defective (RT)",null,"Q1005080_Certification"]
["Q0001007 (Welding Related)","0260 Visual Defect",null,"Q1005090_Documentation_Requirement"]
["Q0001007 (Welding Related)","0270 Material Defect",null,"Q1005100_Electrical"]
["Q0001007 (Welding Related)","0280 Dimensional Defect",null,"Q1005101_Software"]
["Q0001016 (Coating / Plating)","0010 Coating Not Applied"]
["Q0001016 (Coating / Plating)","0020 Coating Defect"]
["Q0001016 (Coating / Plating)","0030 Plating Defect"]
["Q0001016 (Coating / Plating)","0040 Missed Operation"]
["Q0001016 (Coating / Plating)","0050 Plating Not Applied"]
["Q0001016 (Coating / Plating)","0060 Painting Defect"]
["Q0001016 (Coating / Plating)","0070 Painting Not Applied"]
["Q0001016 (Coating / Plating)","0080 Incorrect Color/Coating"]
["Q0001020 (Marking)","0010 No Marking "]
["Q0001020 (Marking)","0020 Marking Content Error"]
["Q0001020 (Marking)","0030 Marking Location Error"]
["Q0001020 (Marking)","0040 Marking Not Readable"]
["Q0001020 (Marking)","0050 Incorrect Size of Marking"]
["Q0001031 (Design)","0010 DBI Error"]
["Q0001031 (Design)","0020 Material Master Error"]
["Q0001031 (Design)","0030 Drawing Error"]
["Q0001031 (Design)","0040 Specification Error"]
["Q0001031 (Design)","0050 Procedure Error"]
["Q0001035 (Damage)","0010 Damage During Transport"]
["Q0001035 (Damage)","0020 Damage During Assembly"]
["Q0001035 (Damage)","0030 Damage During Testing"]
["Q0001035 (Damage)","0040 Wear & Tear"]
["Q0001035 (Damage)","0050 Damage From Corrosion"]
["Q0001035 (Damage)","0070 Damage Due to Handling"]
["Q0001040 (Procurement)","0010 Unqualified Vendor"]
["Q0001040 (Procurement)","0020 Purchase Order Incorrect"]
["Q0001040 (Procurement)","0030 Vendor Did Not Complete Required Work"]
["Q0001040 (Procurement)","0040 Unapproved (Raw) Material Vendor"]
["Q0001040 (Procurement)","0050 Incomplete Kit Of Parts"]
["Q0001040 (Procurement)","0060 Part Not Protected As Per DBI"]
["Q0001045 (Change / Deviation Request)","0010 Conversion Approval"]
["Q0001045 (Change / Deviation Request)","0020 Raw Material Substitution Request"]
["Q0001045 (Change / Deviation Request)","0030 Part Substitution Request"]
["Q0001045 (Change / Deviation Request)","0040 Process Substitution Request"]
["Q0001050 (FMC Other Defect)","0010 Physical"]
["Q0001050 (FMC Other Defect)","0020 Functional"]
["Q0001050 (FMC Other Defect)","0030 Part Lost"]
["Q0001055 (Project)","0010 Project Requested Unfinished Shipment"]
["Q0001065 (Obsolescence Issue)","0010 Obsolecence Early Warning"]
["Q0001065 (Obsolescence Issue)","0020 Last Time Buy (LTB) (Obsolescent)"]
["Q0001065 (Obsolescence Issue)","0030 End Of Life (EOL) (Obsolete)"]
["Q0001065 (Obsolescence Issue)","0040 Not Available"]
["Q1005010 (Assembly Related)","0001 Scratched Surface"]
["Q1005010 (Assembly Related)","0002 Dent In Surface"]
["Q1005010 (Assembly Related)","0003 Corrosion Damage"]
["Q1005010 (Assembly Related)","0004 Surface Finish Damage"]
["Q1005010 (Assembly Related)","0005 Bent Component"]
["Q1005010 (Assembly Related)","0006 Misalignment / Interface Error"]
["Q1005010 (Assembly Related)","0007 Missing Components"]
["Q1005010 (Assembly Related)","0008 Over Torqued"]
["Q1005010 (Assembly Related)","0009 Under Torqued"]
["Q1005010 (Assembly Related)","0010 Dimensional Error"]
["Q1005010 (Assembly Related)","0011 Feature Position Error"]
["Q1005010 (Assembly Related)","0012 Orientation Error"]
["Q1005010 (Assembly Related)","0013 Incorrect Component"]
["Q1005010 (Assembly Related)","0014 Other - Specify In Comments"]
["Q1005010 (Assembly Related)","0015 Assembled Incorrectly"]
["Q1005010 (Assembly Related)","0016 Dimension (Tolerance)"]
["Q1005010 (Assembly Related)","0017 Component Traceability Not Maintained"]
["Q1005010 (Assembly Related)","0018 Assembly Not Serialized"]
["Q1005010 (Assembly Related)","0019 Wrong Part Assembled"]
["Q1005010 (Assembly Related)","0020 Physical Damage"]
["Q1005020 (Test Related)","0001 Leak"]
["Q1005020 (Test Related)","0002 Damaged During Testing"]
["Q1005020 (Test Related)","0003 Cleanliness"]
["Q1005020 (Test Related)","0004 Function"]
["Q1005020 (Test Related)","0005 Component Error"]
["Q1005020 (Test Related)","0006 Wrong Test Procedure Used"]
["Q1005020 (Test Related)","0007 Test Omitted"]
["Q1005020 (Test Related)","0008 Missed Operation"]
["Q1005030 (Raw Material)","0001 Incorrect Material"]
["Q1005030 (Raw Material)","0002 Chemistry"]
["Q1005030 (Raw Material)","0003 Incorrect Dimension"]
["Q1005030 (Raw Material)","0004 NDE Failure"]
["Q1005030 (Raw Material)","0005 Chem./Mech./Heat Treat Process"]
["Q1005030 (Raw Material)","0006 Defects In Material"]
["Q1005030 (Raw Material)","0007 Hardness Out Of Tolerance"]
["Q1005030 (Raw Material)","0008 Unapproved Material Substitution"]
["Q1005040 (Machining Related)","0001 Dimensional Error"]
["Q1005040 (Machining Related)","0002 Burr/Chips"]
["Q1005040 (Machining Related)","0003 Thread Error"]
["Q1005040 (Machining Related)","0004 Surface Finish Error"]
["Q1005040 (Machining Related)","0005 Tool Dig/Undercut"]
["Q1005040 (Machining Related)","0006 False Cut"]
["Q1005040 (Machining Related)","0007 Ring Groove Error"]
["Q1005040 (Machining Related)","0008 Slot Error"]
["Q1005040 (Machining Related)","0009 Other - Specify In Comments"]
["Q1005040 (Machining Related)","0010 Inside Diameter Error"]
["Q1005040 (Machining Related)","0011 Outside Diameter Error"]
["Q1005040 (Machining Related)","0012 Length/Depth Error"]
["Q1005040 (Machining Related)","0013 Angle Error"]
["Q1005040 (Machining Related)","0015 GD&T (Geometric Dimension & Tolerance)"]
["Q1005040 (Machining Related)","0016 Tool Dig"]
["Q1005040 (Machining Related)","0017 Seat Pocket Error"]
["Q1005040 (Machining Related)","0018 Position Error"]
["Q1005040 (Machining Related)","0019 Hole or Groove Not Circular"]
["Q1005040 (Machining Related)","0020 Contamination Within Intersection Holes"]
["Q1005040 (Machining Related)","0021 Material Faulty"]
["Q1005040 (Machining Related)","0022 Material Incorrect"]
["Q1005040 (Machining Related)","0023 Material Issued Damaged"]
["Q1005040 (Machining Related)","0024 Handling Damage"]
["Q1005040 (Machining Related)","0025 Hole Size Error"]
["Q1005040 (Machining Related)","0026 Casting Issues"]
["Q1005040 (Machining Related)","0027 Miscellaneous"]
["Q1005040 (Machining Related)","0028 Machine Proving / Set Up"]
["Q1005050 (Welding - Structural Related)","0001 Incomplete Penetration"]
["Q1005050 (Welding - Structural Related)","0002 Concave Root / Underfill Cap"]
["Q1005050 (Welding - Structural Related)","0003 Crack"]
["Q1005050 (Welding - Structural Related)","0004 Dimensional Defect"]
["Q1005050 (Welding - Structural Related)","0005 Excessive Root Reinforcement"]
["Q1005050 (Welding - Structural Related)","0006 Excessive Spatter"]
["Q1005050 (Welding - Structural Related)","0007 Hardness"]
["Q1005050 (Welding - Structural Related)","0008 Incomplete Fusion"]
["Q1005050 (Welding - Structural Related)","0009 Internal Inclusions: Slag, Porosity, Tung"]
["Q1005050 (Welding - Structural Related)","0010 Oxidation"]
["Q1005050 (Welding - Structural Related)","0011 Process Error (Out of WPS Range)"]
["Q1005050 (Welding - Structural Related)","0012 Surface Porosity / Rounded Indications"]
["Q1005050 (Welding - Structural Related)","0013 Surface Roughness / Profile"]
["Q1005050 (Welding - Structural Related)","0014 Undercut"]
["Q1005051 (Welding - Cladding)","0001 Incomplete Penetration"]
["Q1005051 (Welding - Cladding)","0002 Concave Root / Underfill Cap"]
["Q1005051 (Welding - Cladding)","0003 Crack"]
["Q1005051 (Welding - Cladding)","0004 Dimensional Defect"]
["Q1005051 (Welding - Cladding)","0005 Excessive Root Reinforcement"]
["Q1005051 (Welding - Cladding)","0006 Excessive Spatter"]
["Q1005051 (Welding - Cladding)","0007 Hardness"]
["Q1005051 (Welding - Cladding)","0008 Incomplete Fusion"]
["Q1005051 (Welding - Cladding)","0009 Internal Inclusions: Slag, Porosity, Tung"]
["Q1005051 (Welding - Cladding)","0010 Oxidation"]
["Q1005051 (Welding - Cladding)","0011 Process Error (Out of WPS Range)"]
["Q1005051 (Welding - Cladding)","0012 Surface Porosity / Rounded Indications"]
["Q1005051 (Welding - Cladding)","0013 Surface Roughness / Profile"]
["Q1005051 (Welding - Cladding)","0014 Undercut"]
["Q1005052 (Welding - Butter)","0001 Incomplete Penetration"]
["Q1005052 (Welding - Butter)","0002 Concave Root / Underfill Cap"]
["Q1005052 (Welding - Butter)","0003 Crack"]
["Q1005052 (Welding - Butter)","0004 Dimensional Defect"]
["Q1005052 (Welding - Butter)","0005 Excessive Root Reinforcement"]
["Q1005052 (Welding - Butter)","0006 Excessive Spatter"]
["Q1005052 (Welding - Butter)","0007 Hardness"]
["Q1005052 (Welding - Butter)","0008 Incomplete Fusion"]
["Q1005052 (Welding - Butter)","0009 Internal Inclusions: Slag, Porosity, Tung"]
["Q1005052 (Welding - Butter)","0010 Oxidation"]
["Q1005052 (Welding - Butter)","0011 Process Error (Out of WPS Range)"]
["Q1005052 (Welding - Butter)","0012 Surface Porosity / Rounded Indications"]
["Q1005052 (Welding - Butter)","0013 Surface Roughness / Profile"]
["Q1005052 (Welding - Butter)","0014 Undercut"]
["Q1005053 (Welding - Manual Closure)","0001 Incomplete Penetration"]
["Q1005053 (Welding - Manual Closure)","0002 Concave Root / Underfill Cap"]
["Q1005053 (Welding - Manual Closure)","0003 Crack"]
["Q1005053 (Welding - Manual Closure)","0004 Dimensional Defect"]
["Q1005053 (Welding - Manual Closure)","0005 Excessive Root Reinforcement"]
["Q1005053 (Welding - Manual Closure)","0006 Excessive Spatter"]
["Q1005053 (Welding - Manual Closure)","0007 Hardness"]
["Q1005053 (Welding - Manual Closure)","0008 Incomplete Fusion"]
["Q1005053 (Welding - Manual Closure)","0009 Internal Inclusions: Slag, Porosity, Tung"]
["Q1005053 (Welding - Manual Closure)","0010 Oxidation"]
["Q1005053 (Welding - Manual Closure)","0011 Process Error (Out of WPS Range)"]
["Q1005053 (Welding - Manual Closure)","0012 Surface Porosity / Rounded Indications"]
["Q1005053 (Welding - Manual Closure)","0013 Surface Roughness / Profile"]
["Q1005053 (Welding - Manual Closure)","0014 Undercut"]
["Q1005054 (Welding - Machine Closure)","0001 Incomplete Penetration"]
["Q1005054 (Welding - Machine Closure)","0002 Concave Root / Underfill Cap"]
["Q1005054 (Welding - Machine Closure)","0003 Crack"]
["Q1005054 (Welding - Machine Closure)","0004 Dimensional Defect"]
["Q1005054 (Welding - Machine Closure)","0005 Excessive Root Reinforcement"]
["Q1005054 (Welding - Machine Closure)","0006 Excessive Spatter"]
["Q1005054 (Welding - Machine Closure)","0007 Hardness"]
["Q1005054 (Welding - Machine Closure)","0008 Incomplete Fusion"]
["Q1005054 (Welding - Machine Closure)","0009 Internal Inclusions: Slag, Porosity, Tung"]
["Q1005054 (Welding - Machine Closure)","0010 Oxidation"]
["Q1005054 (Welding - Machine Closure)","0011 Process Error (Out of WPS Range)"]
["Q1005054 (Welding - Machine Closure)","0012 Surface Porosity / Rounded Indications"]
["Q1005054 (Welding - Machine Closure)","0013 Surface Roughness / Profile"]
["Q1005054 (Welding - Machine Closure)","0014 Undercut"]
["Q1005055 (Welding - Manual Tubing)","0001 Incomplete Penetration"]
["Q1005055 (Welding - Manual Tubing)","0002 Concave Root / Underfill Cap"]
["Q1005055 (Welding - Manual Tubing)","0003 Crack"]
["Q1005055 (Welding - Manual Tubing)","0004 Dimensional Defect"]
["Q1005055 (Welding - Manual Tubing)","0005 Excessive Root Reinforcement"]
["Q1005055 (Welding - Manual Tubing)","0006 Excessive Spatter"]
["Q1005055 (Welding - Manual Tubing)","0007 Hardness"]
["Q1005055 (Welding - Manual Tubing)","0008 Incomplete Fusion"]
["Q1005055 (Welding - Manual Tubing)","0009 Internal Inclusions: Slag, Porosity, Tung"]
["Q1005055 (Welding - Manual Tubing)","0010 Oxidation"]
["Q1005055 (Welding - Manual Tubing)","0011 Process Error (Out of WPS Range)"]
["Q1005055 (Welding - Manual Tubing)","0012 Surface Porosity / Rounded Indications"]
["Q1005055 (Welding - Manual Tubing)","0013 Surface Roughness / Profile"]
["Q1005055 (Welding - Manual Tubing)","0014 Undercut"]
["Q1005056 (Welding - Orbital Tubing)","0001 Incomplete Penetration"]
["Q1005056 (Welding - Orbital Tubing)","0002 Concave Root / Underfill Cap"]
["Q1005056 (Welding - Orbital Tubing)","0003 Crack"]
["Q1005056 (Welding - Orbital Tubing)","0004 Dimensional Defect"]
["Q1005056 (Welding - Orbital Tubing)","0005 Excessive Root Reinforcement"]
["Q1005056 (Welding - Orbital Tubing)","0006 Excessive Spatter"]
["Q1005056 (Welding - Orbital Tubing)","0007 Hardness"]
["Q1005056 (Welding - Orbital Tubing)","0008 Incomplete Fusion"]
["Q1005056 (Welding - Orbital Tubing)","0009 Internal Inclusions: Slag, Porosity, Tung"]
["Q1005056 (Welding - Orbital Tubing)","0010 Oxidation"]
["Q1005056 (Welding - Orbital Tubing)","0011 Process Error (Out of WPS Range)"]
["Q1005056 (Welding - Orbital Tubing)","0012 Surface Porosity / Rounded Indications"]
["Q1005056 (Welding - Orbital Tubing)","0013 Surface Roughness / Profile"]
["Q1005056 (Welding - Orbital Tubing)","0014 Undercut"]
["Q1005057 (Welding - Other)","0001 Incomplete Penetration"]
["Q1005057 (Welding - Other)","0002 Concave Root / Underfill Cap"]
["Q1005057 (Welding - Other)","0003 Crack"]
["Q1005057 (Welding - Other)","0004 Dimensional Defect"]
["Q1005057 (Welding - Other)","0005 Excessive Root Reinforcement"]
["Q1005057 (Welding - Other)","0006 Excessive Spatter"]
["Q1005057 (Welding - Other)","0007 Hardness"]
["Q1005057 (Welding - Other)","0008 Incomplete Fusion"]
["Q1005057 (Welding - Other)","0009 Internal Inclusions: Slag, Porosity, Tung"]
["Q1005057 (Welding - Other)","0010 Oxidation"]
["Q1005057 (Welding - Other)","0011 Process Error (Out of WPS Range)"]
["Q1005057 (Welding - Other)","0012 Surface Porosity / Rounded Indications"]
["Q1005057 (Welding - Other)","0013 Surface Roughness / Profile"]
["Q1005057 (Welding - Other)","0014 Undercut"]
["Q1005060 (Coating)","0001 Incorrect Area Coated"]
["Q1005060 (Coating)","0002 Incorrect Thickness"]
["Q1005060 (Coating)","0003 Holiday"]
["Q1005060 (Coating)","0004 Incorrect Coating"]
["Q1005060 (Coating)","0005 Delamination"]
["Q1005060 (Coating)","0006 Damaged"]
["Q1005060 (Coating)","0007 Rust / Corrosion"]
["Q1005060 (Coating)","0008 Missing Coating"]
["Q1005060 (Coating)","0009 Other - Specify In Comments"]
["Q1005070 (Marking)","0001 Missing Marking"]
["Q1005070 (Marking)","0002 Marking Content Error"]
["Q1005070 (Marking)","0003 Unreadable Marking"]
["Q1005070 (Marking)","0004 Other - Specify In Comments"]
["Q1005080 (Certification)","0001 Not Available"]
["Q1005080 (Certification)","0002 Information Missing"]
["Q1005080 (Certification)","0003 Information Incorrect"]
["Q1005080 (Certification)","0004 Not Maintained / Expired"]
["Q1005080 (Certification)","0005 Incorrect Certification"]
["Q1005080 (Certification)","0006 Other - Specify In Comments"]
["Q1005090 (Documentation Requirement)","0001 Purchase Order"]
["Q1005090 (Documentation Requirement)","0002 Routing"]
["Q1005090 (Documentation Requirement)","0003 Part Description / Drawing"]
["Q1005090 (Documentation Requirement)","0004 Part Data (Trim / Temp / PSL Level)"]
["Q1005090 (Documentation Requirement)","0005 Part BOM"]
["Q1005090 (Documentation Requirement)","0006 Quality Matrix"]
["Q1005090 (Documentation Requirement)","0007 Engineering Notes"]
["Q1005090 (Documentation Requirement)","0008 Production Docs (TDS / ASY / TST / DCP)"]
["Q1005090 (Documentation Requirement)","0009 Service Docs (ICP / HFT / TDI / THI / PS)"]
["Q1005090 (Documentation Requirement)","0010 Specification Type (C, E, G, M, P, Q, W)"]
["Q1005090 (Documentation Requirement)","0011 Other - Specify In Comments"]
["Q1005090 (Documentation Requirement)","0012 Missing Certificates / Records"]
["Q1005090 (Documentation Requirement)","0013 Incorrect Certificates / Records"]
["Q1005090 (Documentation Requirement)","0014 Missing User Documentation (Customer)"]
["Q1005090 (Documentation Requirement)","0015 Incorrect User Documentation (Customer)"]
["Q1005090 (Documentation Requirement)","0016 Procedure / Process Error"]
["Q1005100 (Electrical)","0001 Supplier Assembly"]
["Q1005100 (Electrical)","0002 Component Failure"]
["Q1005100 (Electrical)","0003 Mechanical Failure"]
["Q1005100 (Electrical)","0004 Wiring Short"]
["Q1005100 (Electrical)","0005 Engineering Change"]
["Q1005100 (Electrical)","0006 Program Configuration"]
["Q1005100 (Electrical)","0007 Functional"]
["Q1005100 (Electrical)","0008 Ease Of Use"]
["Q1005100 (Electrical)","0009 Security"]
["Q1005100 (Electrical)","0010 Performance"]
["Q1005100 (Electrical)","0011 Serviceability"]
["Q1005100 (Electrical)","0012 Documentation"]
["Q1005100 (Electrical)","0013 Other - Specify In Comments"]
["Q1005101 (Software)","0001 Supplier Assembly"]
["Q1005101 (Software)","0002 Component Failure"]
["Q1005101 (Software)","0003 Mechanical Failure"]
["Q1005101 (Software)","0004 Wiring Short"]
["Q1005101 (Software)","0005 Engineering Change"]
["Q1005101 (Software)","0006 Program Configuration"]
["Q1005101 (Software)","0007 Functional"]
["Q1005101 (Software)","0008 Ease Of Use"]
["Q1005101 (Software)","0009 Security"]
["Q1005101 (Software)","0010 Performance"]
["Q1005101 (Software)","0011 Serviceability"]
["Q1005101 (Software)","0012 Documentation"]
["Q1005101 (Software)","0013 Other - Specify In Comments"]

{"sheet":"Defect Type Code","index":7,"n_rows":57,"n_cols":7,"rows_kept":57,"cut":false,"hidden":true,"merged":[]}
["Code",null,"Code group"]
["0010",null,"Q0001007 (Welding Related)"]
["0020",null,"Q0001016 (Coating / Plating)"]
["0030",null,"Q0001020 (Marking)"]
["0040",null,"Q0001031 (Design)"]
["0050",null,"Q0001035 (Damage)"]
["0060",null,"Q0001040 (Procurement)"]
["0070",null,"Q0001045 (Change / Deviation Request)"]
["0080",null,"Q0001050 (FMC Other Defect)"]
["0090",null,"Q0001055 (Project)"]
["0100",null,"Q0001065 (Obsolescence Issue)"]
["0110",null,"Q1005010 (Assembly Related)"]
["0120",null,"Q1005020 (Test Related)"]
["0130",null,"Q1005030 (Raw Material)"]
["0140",null,"Q1005040 (Machining Related)"]
["0150",null,"Q1005050 (Welding - Structural Related)"]
["0160",null,"Q1005051 (Welding - Cladding)"]
["0170",null,"Q1005052 (Welding - Butter)"]
["0180",null,"Q1005053 (Welding - Manual Closure)"]
["0190",null,"Q1005054 (Welding - Machine Closure)"]
["0200",null,"Q1005055 (Welding - Manual Tubing)"]
["0210",null,"Q1005056 (Welding - Orbital Tubing)"]
["0220",null,"Q1005057 (Welding - Other)"]
["0230",null,"Q1005060 (Coating)"]
["0240",null,"Q1005070 (Marking)"]
["0250",null,"Q1005080 (Certification)"]
["0260",null,"Q1005090 (Documentation Requirement)"]
["0270",null,"Q1005100 (Electrical)"]
["0280",null,"Q1005101 (Software)"]
["0001"]
["0002",null,null,null,null,null," "]
["0003"]
["0004"]
["0005"]
["0006"]
["0007"]
["0008"]
["0009"]
["0010"]
["0011"]
["0012"]
["0013"]
["0014"]
["0015"]
["0016"]
["0017"]
["0018"]
["0019"]
["0020"]
["0021"]
["0022"]
["0023"]
["0024"]
["0025"]
["0026"]
["0027"]
["0028"]

{"sheet":"Causes","index":8,"n_rows":1025,"n_cols":14,"rows_kept":1025,"cut":false,"hidden":true,"merged":[]}
["Short text for the catalog","Keyword","QN type","Code group","Short text","Code","Short text for code"]
["CAUSES",{"$f":"Causes!F4&\" \"","v":"0010 "},"ZB;ZC,ZD.ZF"]
["Causes","Cause","ZB;ZC,ZD.ZF","Q0001010","FMC_Engineering_Related"]
["Causes","Cause","ZB;ZC,ZD.ZF","Q0001010","FMC Engineering Related: &","0010","Engineering Error",{"$f":"F4&\" \"&(G4)","v":"0010 Engineering Error"}]
["Causes","Cause","ZB;ZC,ZD.ZF","Q0001010","FMC Engineering Related: &","0015","Welding Engineer Error",{"$f":"F5&\" \"&(G5)","v":"0015 Welding Engineer Error"}]
["Causes","Cause","ZB;ZC,ZD.ZF","Q0001010","FMC Engineering Related: &","0020","Lack of Training","0020 Lack of Training"]
["Causes","Cause","ZB;ZC,ZD.ZF","Q0001010","FMC Engineering Related: &","0030","DWG Error","0030 DWG Error"]
["Causes","Cause","ZB;ZC,ZD.ZF","Q0001010","FMC Engineering Related: &","0040","DBI Error","0040 DBI Error"]
["Causes","Cause","ZB;ZC,ZD.ZF","Q0001010","FMC Engineering Related: &","0050","Procedure Error","0050 Procedure Error"]
["Causes","Cause","ZB;ZC,ZD.ZF","Q0001010","FMC Engineering Related: &","0060","Specification Error","0060 Specification Error"]
["Causes","Cause","ZB;ZC,ZD.ZF","Q0001010","FMC Engineering Related: &","0080","ECN Change","0080 ECN Change"]
["Causes","Cause","ZB;ZC,ZD.ZF","Q0001010","FMC Engineering Related: &","0090","ECN Error","0090 ECN Error"]
["Causes","Cause","ZB;ZC,ZD.ZF","Q0001010","FMC Engineering Related: &","0100","Continuous Improvement","0100 Continuous Improvement"]
[null,null,null,null,null,null,null,{"$f":"F14&\" \"&G14","v":" "}]
["Causes","Cause","ZB;ZC,ZD.ZF","Q0001020","FMC_Purchasing_Related",null,null," "]
["Causes","Cause","ZB;ZC,ZD.ZF","Q0001020","FMC Purchasing Related: &","0010","Purchasing Error","0010 Purchasing Error"]
["Causes","Cause","ZB;ZC,ZD.ZF","Q0001020","FMC Purchasing Related: &","0020","Lack of Training","0020 Lack of Training"]
["Causes","Cause","ZB;ZC,ZD.ZF","Q0001020","FMC Purchasing Related: &","0030","Unqualified Vendor used","0030 Unqualified Vendor used"]
["Causes","Cause","ZB;ZC,ZD.ZF","Q0001020","FMC Purchasing Related: &","0040","Free Issue Delivery","0040 Free Issue Delivery"]
[null,null,null,null,null,null,null," "]
["Causes","Cause","ZB;ZC,ZD.ZF","Q0001022","FMC_Materials_Stores_Related",null,null," "]
["Causes","Cause","ZB;ZC,ZD.ZF","Q0001022","FMC Materials/Stores Related: &","1010","Improper Packaging & Storage","1010 Improper Packaging & Storage"]
["Causes","Cause","ZB;ZC,ZD.ZF","Q0001022","FMC Materials/Stores Related: &","1020","Operator Error","1020 Operator Error"]
["Causes","Cause","ZB;ZC,ZD.ZF","Q0001022","FMC Materials/Stores Related: &","1030","Lack of Training","1030 Lack of Training"]
["Causes","Cause","ZB;ZC,ZD.ZF","Q0001022","FMC Materials/Stores Related: &","1040","Improper Handling","1040 Improper Handling"]
["Causes","Cause","ZB;ZC,ZD.ZF","Q0001022","FMC Materials/Stores Related: &","1050","Damaged During Transport","1050 Damaged During Transport"]
["Causes","Cause","ZB;ZC,ZD.ZF","Q0001022","FMC Materials/Stores Related: &","1060","Damage Due to Corrosion","1060 Damage Due to Corrosion"]
[null,null,null,null,null,null,null," "]
["Causes","Cause","ZB;ZC,ZD.ZF","Q0001023","FMC_Weld_Shop_Equipment",null,null," "]
["Causes","Cause","ZB;ZC,ZD.ZF","Q0001023","FMC Weld Shop Equipment: &","0010","Machine Malfunction","0010 Machine Malfunction"]
["Causes","Cause","ZB;ZC,ZD.ZF","Q0001023","FMC Weld Shop Equipment: &","0020","Gas Issues","0020 Gas Issues"]
["Causes","Cause","ZB;ZC,ZD.ZF","Q0001023","FMC Weld Shop Equipment: &","0030","Filler Material","0030 Filler Material"]
["Causes","Cause","ZB;ZC,ZD.ZF","Q0001023","FMC Weld Shop Equipment: &","0040","Lack of Maintenance","0040 Lack of Maintenance"]
[null,null,null,null,null,null,null,{"$f":"F34&\" \"&G34","v":" "}]
["Causes","Cause","ZB;ZC,ZD.ZF","Q0001025","FMC_Weld_Shop_Personnel",null,null," "]
["Causes","Cause","ZB;ZC,ZD.ZF","Q0001025","FMC Weld Shop Personnel: &","0010","Operator error","0010 Operator error",null,null," "]
["Causes","Cause","ZB;ZC,ZD.ZF","Q0001025","FMC Weld Shop Personnel: &","0020","Welding Engineer","0020 Welding Engineer"]
["Causes","Cause","ZB;ZC,ZD.ZF","Q0001025","FMC Weld Shop Personnel: &","0030","Lack of Training","0030 Lack of Training"]
["Causes","Cause","ZB;ZC,ZD.ZF","Q0001025","FMC Weld Shop Personnel: &","0040","Improper Handling","0040 Improper Handling"]
[null,null,null,null,null,null,null," "]
["Causes","Cause","ZB;ZC,ZD.ZF","Q0001027","FMC_Machine_Shop_Equipment",null,null," "]
["Causes","Cause","ZB;ZC,ZD.ZF","Q0001027","FMC Machine Shop Equipment: &","0010","Lack of Maintenance","0010 Lack of Maintenance"]
["Causes","Cause","ZB;ZC,ZD.ZF","Q0001027","FMC Machine Shop Equipment: &","0020","Tooling","0020 Tooling"]
["Causes","Cause","ZB;ZC,ZD.ZF","Q0001027","FMC Machine Shop Equipment: &","0030","Machine Malfunction","0030 Machine Malfunction"]
[null,null,null,null,null,null,null," "]
["Causes","Cause","ZB;ZC,ZD.ZF","Q0001029","FMC_Machine_Shop_Personnel",null,null," "]
["Causes","Cause","ZB;ZC,ZD.ZF","Q0001029","FMC Machine Shop Personnel: &","0010","Lack of Training","0010 Lack of Training"]
["Causes","Cause","ZB;ZC,ZD.ZF","Q0001029","FMC Machine Shop Personnel: &","0020","Operator Error","0020 Operator Error"]
["Causes","Cause","ZB;ZC,ZD.ZF","Q0001029","FMC Machine Shop Personnel: &","0030","ME Routing","0030 ME Routing"]
["Causes","Cause","ZB;ZC,ZD.ZF","Q0001029","FMC Machine Shop Personnel: &","0040","ME Programming","0040 ME Programming"]
["Causes","Cause","ZB;ZC,ZD.ZF","Q0001029","FMC Machine Shop Personnel: &","0050","Handling Damage","0050 Handling Damage"]
[null,null,null,null,null,null,null," "]
["Causes","Cause","ZB;ZC,ZD.ZF","Q0001030","FMC_Assembly",null,null," "]
["Causes","Cause","ZB;ZC,ZD.ZF","Q0001030","FMC Assy: &","1010","Operator Error","1010 Operator Error"]
["Causes","Cause","ZB;ZC,ZD.ZF","Q0001030","FMC Assy: &","1020","Lack of Training","1020 Lack of Training"]
["Causes","Cause","ZB;ZC,ZD.ZF","Q0001030","FMC Assy: &","1030","Manufacturing Engineer Error","1030 Manufacturing Engineer Error"]
["Causes","Cause","ZB;ZC,ZD.ZF","Q0001030","FMC Assy: &","1040","Missing Operation","1040 Missing Operation"]
["Causes","Cause","ZB;ZC,ZD.ZF","Q0001030","FMC Assy: &","1050","Improper Handling","1050 Improper Handling"]
["Causes","Cause","ZB;ZC,ZD.ZF","Q0001030","FMC Assy: &","1060","Damaged During Assembly","1060 Damaged During Assembly"]
["Causes","Cause","ZB;ZC,ZD.ZF","Q0001030","FMC Assy: &","1070","Lack of Maintenance","1070 Lack of Maintenance"]
["Causes","Cause","ZB;ZC,ZD.ZF","Q0001030","FMC Assy: &","1080","Missing Parts","1080 Missing Parts"]
[null,null,null,null,null,null,null," "]
["Causes","Cause","ZB;ZC,ZD.ZF","Q0001032","FMC_Test",null,null," "]
["Causes","Cause","ZB;ZC,ZD.ZF","Q0001032","FMC Test: &","0010","Incorrect Set Up / Testing","0010 Incorrect Set Up / Testing"]
["Causes","Cause","ZB;ZC,ZD.ZF","Q0001032","FMC Test: &","0020","Tooling","0020 Tooling"]
["Causes","Cause","ZB;ZC,ZD.ZF","Q0001032","FMC Test: &","0030","Missed Operation","0030 Missed Operation"]
["Causes","Cause","ZB;ZC,ZD.ZF","Q0001032","FMC Test: &","0040","Operator Error","0040 Operator Error"]
["Causes","Cause","ZB;ZC,ZD.ZF","Q0001032","FMC Test: &","0050","Damaged During Testing","0050 Damaged During Testing"]
["Causes","Cause","ZB;ZC,ZD.ZF","Q0001032","FMC Test: &","0060","Improper Handling","0060 Improper Handling"]
["Causes","Cause","ZB;ZC,ZD.ZF","Q0001032","FMC Test: &","0070","Missing Parts",{"$f":"F70&\" \"&G70","v":"0070 Missing Parts"}]
[null,null,null,null,null,null,null," "]
["Causes","Cause","ZB;ZC,ZD.ZF","Q0001033","FMC_Fabrication_Shop_Equipment",null,null," "]
["Causes","Cause","ZB;ZC,ZD.ZF","Q0001033","FMC Fabrication Shop Equipment: &","0010","Machine Malfunction","0010 Machine Malfunction"]
["Causes","Cause","ZB;ZC,ZD.ZF","Q0001033","FMC Fabrication Shop Equipment: &","0020","Gas Issues","0020 Gas Issues"]
["Causes","Cause","ZB;ZC,ZD.ZF","Q0001033","FMC Fabrication Shop Equipment: &","0030","Filler Material","0030 Filler Material"]
["Causes","Cause","ZB;ZC,ZD.ZF","Q0001033","FMC Fabrication Shop Equipment: &","0040","Lack of Maintenance","0040 Lack of Maintenance"]
[null,null,null,null,null,null,null," "]
["Causes","Cause","ZB;ZC,ZD.ZF","Q0001034","FMC_Fabrication_Shop_Personnel",null,null," "]
["Causes","Cause","ZB;ZC,ZD.ZF","Q0001034","FMC Fabrication Shop Personnel: &","0010","Operator error","0010 Operator error"]
["Causes","Cause","ZB;ZC,ZD.ZF","Q0001034","FMC Fabrication Shop Personnel: &","0020","Welding Engineer","0020 Welding Engineer"]
["Causes","Cause","ZB;ZC,ZD.ZF","Q0001034","FMC Fabrication Shop Personnel: &","0030","Lack of Training","0030 Lack of Training"]
["Causes","Cause","ZB;ZC,ZD.ZF","Q0001034","FMC Fabrication Shop Personnel: &","0040","Improper Handling","0040 Improper Handling"]
[null,null,null,null,null,null,null," "]
["Causes","Cause","ZB;ZC,ZD.ZF","Q0001036","FMC_Service_Related",null,null," "]
["Causes","Cause","ZB;ZC,ZD.ZF","Q0001036","FMC Service Related: &","0010","Damage During Installation","0010 Damage During Installation"]
["Causes","Cause","ZB;ZC,ZD.ZF","Q0001036","FMC Service Related: &","0020","Lack of Training","0020 Lack of Training"]
["Causes","Cause","ZB;ZC,ZD.ZF","Q0001036","FMC Service Related: &","0030","Improper Job Preparation","0030 Improper Job Preparation"]
[null,null,null,null,null,null,null," "]
["Causes","Cause","ZB;ZC,ZD.ZF","Q0001045","Vendor_Related",null,null," "]
["Causes","Cause","ZB;ZC,ZD.ZF","Q0001045","Vendor Related: &","0010","Design Error","0010 Design Error"]
["Causes","Cause","ZB;ZC,ZD.ZF","Q0001045","Vendor Related: &","0020","Specification Not Followed","0020 Specification Not Followed"]
["Causes","Cause","ZB;ZC,ZD.ZF","Q0001045","Vendor Related: &","0030","MPQP/WPS/Routing Not Followed","0030 MPQP/WPS/Routing Not Followed"]
["Causes","Cause","ZB;ZC,ZD.ZF","Q0001045","Vendor Related: &","0040","Programmer Error","0040 Programmer Error"]
["Causes","Cause","ZB;ZC,ZD.ZF","Q0001045","Vendor Related: &","0050","Operator Error","0050 Operator Error"]
["Causes","Cause","ZB;ZC,ZD.ZF","Q0001045","Vendor Related: &","0060","Incorrect Set Up","0060 Incorrect Set Up"]
["Causes","Cause","ZB;ZC,ZD.ZF","Q0001045","Vendor Related: &","0070","Assembly Error","0070 Assembly Error"]
["Causes","Cause","ZB;ZC,ZD.ZF","Q0001045","Vendor Related: &","0080","Material Error","0080 Material Error"]
["Causes","Cause","ZB;ZC,ZD.ZF","Q0001045","Vendor Related: &","0090","Tooling","0090 Tooling"]
["Causes","Cause","ZB;ZC,ZD.ZF","Q0001045","Vendor Related: &","0100","Equipment Malfunction","0100 Equipment Malfunction"]
["Causes","Cause","ZB;ZC,ZD.ZF","Q0001045","Vendor Related: &","0110","Second Tier Supplier Issue","0110 Second Tier Supplier Issue"]
["Causes","Cause","ZB;ZC,ZD.ZF","Q0001045","Vendor Related: &","0120","Maintenance","0120 Maintenance"]
["Causes","Cause","ZB;ZC,ZD.ZF","Q0001045","Vendor Related: &","0130","HSE/Environmental","0130 HSE/Environmental",null," "]
["Causes","Cause","ZB;ZC,ZD.ZF","Q0001045","Vendor Related: &","0140","Packaging/Handling","0140 Packaging/Handling"]
["Causes","Cause","ZB;ZC,ZD.ZF","Q0001045","Vendor Related: &","0150","Damage During Transport","0150 Damage During Transport"]
["Causes","Cause","ZB;ZC,ZD.ZF","Q0001045","Vendor Related: &","0180","Wrong Part Delivered","0180 Wrong Part Delivered"]
["Causes","Cause","ZB;ZC,ZD.ZF","Q0001045","Vendor Related: &","0190","Mixed Parts Delivered","0190 Mixed Parts Delivered"]
["Causes","Cause","ZB;ZC,ZD.ZF","Q0001045","Vendor Related: &","0200","Final Inspection Error","0200 Final Inspection Error"]
["Causes","Cause","ZB;ZC,ZD.ZF","Q0001045","Vendor Related: &","0210","Clarification","0210 Clarification"]
["Causes","Cause","ZB;ZC,ZD.ZF","Q0001045","Vendor Related: &","0220","Missing Parts","0220 Missing Parts"]
["Causes","Cause","ZB;ZC,ZD.ZF","Q0001045","Vendor Related: &","0230","Coating Defect","0230 Coating Defect"]
["Causes","Cause","ZB;ZC,ZD.ZF","Q0001045","Vendor Related: &","0240","Documentation","0240 Documentation"]
[null,null,null,null,null,null,null," "]
["Causes","Cause","ZB;ZC,ZD.ZF","Q0001065","FMC_Other_Causes_Damage",null,null," "]
["Causes","Cause","ZB;ZC,ZD.ZF","Q0001065","FMC Other Causes/damage: &","0040","Damage During Transport","0040 Damage During Transport"]
["Causes","Cause","ZB;ZC,ZD.ZF","Q0001065","FMC Other Causes/damage: &","0050","Damage From Wear and Tear","0050 Damage From Wear and Tear"]
["Causes","Cause","ZB;ZC,ZD.ZF","Q0001065","FMC Other Causes/damage: &","0070","Planning Error","0070 Planning Error"]
["Causes","Cause","ZB;ZC,ZD.ZF","Q0001065","FMC Other Causes/damage: &","0100","No Non-Compliance","0100 No Non-Compliance"]
["Causes","Cause","ZB;ZC,ZD.ZF","Q0001065","FMC Other Causes/damage: &","0110","QN Cancelled","0110 QN Cancelled"]
["Causes","Cause","ZB;ZC,ZD.ZF","Q0001065","FMC Other Causes/damage: &","0120","Cause Not Found","0120 Cause Not Found"]
["Causes","Cause","ZB;ZC,ZD.ZF","Q0001065","FMC Other Causes/damage: &","0130","Shelf Life Expiry","0130 Shelf Life Expiry"," "]
[null,null,null,null,null,null,null," "]
["Causes","Cause","ZB;ZC,ZD.ZF","Q0001070","Other_External_Causes",null,null," "]
["Causes","Cause","ZB;ZC,ZD.ZF","Q0001070","Other External Causes: &","1010","Customer Error/Responsibility","1010 Customer Error/Responsibility"]
[null,null,null,null,null,null,null," "]
["Causes","Cause","ZB;ZC,ZD.ZF","Q1002030","Projects_Related",null,null," "]
["Causes","Cause","ZB;ZC,ZD.ZF","Q1002030","Projects Related","0010","Free Issue Delivery","0010 Free Issue Delivery"]
["Causes","Cause","ZB;ZC,ZD.ZF","Q1002030","Projects Related","0020","Customer Error","0020 Customer Error"]
["Causes","Cause","ZB;ZC,ZD.ZF","Q1002030","Projects Related","0030","Material Error","0030 Material Error"]
["Causes","Cause","ZB;ZC,ZD.ZF","Q1002030","Projects Related","0040","Documentation Error","0040 Documentation Error"]
[null,null,null,null,null,null,null," "]
["Causes","Cause","ZB;ZC,ZD.ZF","Q1002040","QA_QS_QI_Related",null,null," "]
["Causes","Cause","ZB;ZC,ZD.ZF","Q1002040","QA/QS/QI Related","0010","Documentation Error","0010 Documentation Error"]
["Causes","Cause","ZB;ZC,ZD.ZF","Q1002040","QA/QS/QI Related","0020","Final Inspection Error","0020 Final Inspection Error"]
["Causes","Cause","ZB;ZC,ZD.ZF","Q1002040","QA/QS/QI Related","0030","Goods Receiving Inspection Error","0030 Goods Receiving Inspection Error"]
["Causes","Cause","ZB;ZC,ZD.ZF","Q1002040","QA/QS/QI Related","0040","Operator Error","0040 Operator Error"]
[null,null,null,null,null,null,null," "]
["Causes","Cause","ZB;ZC,ZD.ZF","Q1002050","Paint_Shop_Related",null,null," "]
["Causes","Cause","ZB;ZC,ZD.ZF","Q1002050","Paint Shop Related","0010","Missing Parts","0010 Missing Parts",null,null,null,null,null,"Q0001010_FMC_Engineering_Related"]
["Causes","Cause","ZB;ZC,ZD.ZF","Q1002050","Paint Shop Related","0020","Paint Defect","0020 Paint Defect",null,null,null,null,null,"Q0001020_FMC_Purchasing_Related"]
["Causes","Cause","ZB;ZC,ZD.ZF","Q1002050","Paint Shop Related","0030","Operator Error","0030 Operator Error",null,null,null,null,null,"Q0001022_FMC_Materials_Stores_Related"]
[null,null,null,null,null,null,null," ",null,null,null,null,null,"Q0001023_FMC_Weld_Shop_Equipment"]
["Causes","Cause","ZB;ZC,ZD.ZF","Q1002060","Manufacturing_Engineering",null,null," ",null,null,null,null,null,"Q0001025_FMC_Weld_Shop_Personnel"]
["Causes","Cause","ZB;ZC,ZD.ZF","Q1002060","Manufacturing Engineering","0010","ME Routing","0010 ME Routing",null,null,null,null,null,"Q0001027_FMC_Machine_Shop_Equipment"]
["Causes","Cause","ZB;ZC,ZD.ZF","Q1002060","Manufacturing Engineering","0020","ME Programming","0020 ME Programming",null,null,null,null,null,"Q0001029_FMC_Machine_Shop_Personnel"]
[null,null,null,null,null,null,null," ",null,null,null,null,null,"Q0001030_FMC_Assembly"]
["Causes","Cause","ZB;ZC,ZD.ZF","Q1002070","Intercompany",null,null," ",null,null,null,null,null,"Q0001032_FMC_Test"]
["Causes","Cause","ZB;ZC,ZD.ZF","Q1002070","Intercompany","0010","FMC Dunfermline","0010 FMC Dunfermline",null,null,null,null,null,"Q0001045_Vendor_Related"]
["Causes","Cause","ZB;ZC,ZD.ZF","Q1002070","Intercompany","0020","FMC Kongsberg","0020 FMC Kongsberg",null,null,null,null,null,"Q0001065_FMC_Other_Causes_Damage"]
["Causes","Cause","ZB;ZC,ZD.ZF","Q1002070","Intercompany","0030","FMC Houston","0030 FMC Houston",null,null,null,null,null,"Q0001070_Other_External_Causes"]
["Causes","Cause","ZB;ZC,ZD.ZF","Q1002070","Intercompany","0035","FMC Houston Subsea","0035 FMC Houston Subsea",null,null,null,null,null,"Q0001070_Other_External_Causes"]
["Causes","Cause","ZB;ZC,ZD.ZF","Q1002070","Intercompany","0040","FMC Brazil","0040 FMC Brazil",null,null,null,null,null,"Q1002030_Projects_Related"]
["Causes","Cause","ZB;ZC,ZD.ZF","Q1002070","Intercompany","0050","FMC Malaysia","0050 FMC Malaysia",null,null,null,null,null,"Q1002040_QA_QS_QI_Related"]
["Causes","Cause","ZB;ZC,ZD.ZF","Q1002070","Intercompany","0060","FMC Sens","0060 FMC Sens",null,null,null,null,null,"Q1002050_Paint_Shop_Related"]
["Causes","Cause","ZB;ZC,ZD.ZF","Q1002070","Intercompany","0070","FMC Singapore",{"$f":"F154&\" \"&G154","v":"0070 FMC Singapore"},null,null,null,null,null,"Q1002060_Manufacturing_Engineering"]
["Causes","Cause","ZB;ZC,ZD.ZF","Q1002070","Intercompany","0080","FMC Stephenville","0080 FMC Stephenville",null,null,null,null,null,"Q1002070_Intercompany"]
["Causes","Cause","ZB;ZC,ZD.ZF","Q1002070","Intercompany","0090","FMC Erie","0090 FMC Erie",null,null,null,null,null,"Q0001045_Vendor_Related"]
["Causes","Cause","ZB;ZC,ZD.ZF","Q1002070","Intercompany","0100","FMC Ellerbek","0100 FMC Ellerbek",null,null,null,null,null,"Q0001065_FMC_Other_Causes_Damage"]
["Causes","Cause","ZB;ZC,ZD.ZF","Q1002070","Intercompany","0110","FMC The Netherlands","0110 FMC The Netherlands",null,null,null,null,null,"Q0001070_Other_External_Causes"]
["Causes","Cause","ZB;ZC,ZD.ZF","Q1002070","Intercompany","0120","FMC Edmonton","0120 FMC Edmonton",null," ",null,null,null,"Q1002030_Projects_Related"]
["Causes","Cause","ZB;ZC,ZD.ZF","Q1002070","Intercompany","0130","FMC Oklahoma","0130 FMC Oklahoma",null,null,null,null,null,"Q1002040_QA_QS_QI_Related"]
["Causes","Cause","ZB;ZC,ZD.ZF","Q1002070","Intercompany","0140","FMC Indonesia","0140 FMC Indonesia",null,null,null,null,null,"Q1002050_Paint_Shop_Related"]
["Causes","Cause","ZB;ZC,ZD.ZF","Q1002070","Intercompany","0150","FMC Dubai","0150 FMC Dubai",null,null,null,null,null,"Q1002060_Manufacturing_Engineering"]
["Causes","Cause","ZB;ZC,ZD.ZF","Q1002070","Intercompany","0160","FMC Angola","0160 FMC Angola",null,null,null,null,null,"Q1002070_Intercompany"]
["Causes","Cause","ZB;ZC,ZD.ZF","Q1002070","Intercompany","0170","FMC Nigeria","0170 FMC Nigeria",null,null,null,null,null,"Q1002060_Manufacturing_Engineering"]
["Causes","Cause","ZB;ZC,ZD.ZF","Q1002070","Intercompany","0180","FMC Ghana","0180 FMC Ghana",null,null,null,null,null,"Q1002070_Intercompany"]
[null,null,null,null,null,null,null," ",null,null,null,null,null,"Q0001030_FMC_Assembly"]
["Causes","Cause","ZB;ZC,ZD.ZF","Q1005010","Assembly",null,null," ",null,null,null,null,null,"Q0001032_FMC_Test"]
["Causes","Cause","ZB;ZC,ZD.ZF","Q1005010","Assembly","0001","Damage During Manufacturing","0001 Damage During Manufacturing",null,null,null,null,null,"Q0001032_FMC_Test"]
["Causes","Cause","ZB;ZC,ZD.ZF","Q1005010","Assembly","0002","Damage After Manufacturing","0002 Damage After Manufacturing",null,null,null,null,null,"Q0001032_FMC_Test"]
["Causes","Cause","ZB;ZC,ZD.ZF","Q1005010","Assembly","0003","Damaged During Assembly","0003 Damaged During Assembly",null,null,null,null,null,"Q0001032_FMC_Test"]
["Causes","Cause","ZB;ZC,ZD.ZF","Q1005010","Assembly","0004","Damaged During Lifting","0004 Damaged During Lifting",null,null,null,null,null,"Q0001032_FMC_Test"]
["Causes","Cause","ZB;ZC,ZD.ZF","Q1005010","Assembly","0005","Struck With Object","0005 Struck With Object",null,null,null,null,null,"Q0001032_FMC_Test"]
["Causes","Cause","ZB;ZC,ZD.ZF","Q1005010","Assembly","0006","Weather","0006 Weather",null,null,null,null,null,"Q0001032_FMC_Test"]
["Causes","Cause","ZB;ZC,ZD.ZF","Q1005010","Assembly","0007","Improperly Protected","0007 Improperly Protected",null,null,null,null,null,"Q0001032_FMC_Test"]
["Causes","Cause","ZB;ZC,ZD.ZF","Q1005010","Assembly","0008","Not Properly Strapped Down","0008 Not Properly Strapped Down",null,null,null,null,null,"Q0001032_FMC_Test"]
["Causes","Cause","ZB;ZC,ZD.ZF","Q1005010","Assembly","0009","Improperly Handled","0009 Improperly Handled",null,null,null,null,null,"Q0001032_FMC_Test"]
["Causes","Cause","ZB;ZC,ZD.ZF","Q1005010","Assembly","0010","Improperly Installed","0010 Improperly Installed"," ",null,null,null,null,"Q0001032_FMC_Test"]
["Causes","Cause","ZB;ZC,ZD.ZF","Q1005010","Assembly","0011","Damaged Component","0011 Damaged Component",null,null,null,null,null,"Q0001032_FMC_Test"]
["Causes","Cause","ZB;ZC,ZD.ZF","Q1005010","Assembly","0012","Incorrect Component","0012 Incorrect Component",null,null,null,null,null,"Q0001032_FMC_Test"]
["Causes","Cause","ZB;ZC,ZD.ZF","Q1005010","Assembly","0013","Does Not Fit Properly","0013 Does Not Fit Properly",null,null,null,null,null,"Q0001032_FMC_Test"]
["Causes","Cause","ZB;ZC,ZD.ZF","Q1005010","Assembly","0014","Trash / Burr / Contamination","0014 Trash / Burr / Contamination",null,null,null,null,null,"Q0001032_FMC_Test"]
["Causes","Cause","ZB;ZC,ZD.ZF","Q1005010","Assembly","0015","Missing Component","0015 Missing Component",null,null,null,null,null,"Q0001032_FMC_Test"]
["Causes","Cause","ZB;ZC,ZD.ZF","Q1005010","Assembly","0016","Shelf Life Expiration","0016 Shelf Life Expiration",null,null,null,null,null,"Q0001032_FMC_Test"]
["Causes","Cause","ZB;ZC,ZD.ZF","Q1005010","Assembly","0017","Wear and Tear","0017 Wear and Tear",null,null,null,null,null,"Q0001032_FMC_Test"]
["Causes","Cause","ZB;ZC,ZD.ZF","Q1005010","Assembly","0018","Machine Malfunction","0018 Machine Malfunction",null,null,null,null,null,"Q0001032_FMC_Test"]
["Causes","Cause","ZB;ZC,ZD.ZF","Q1005010","Assembly","0019","Program Error","0019 Program Error",null,null,null,null,null,"Q0001032_FMC_Test"]
["Causes","Cause","ZB;ZC,ZD.ZF","Q1005010","Assembly","0020","DWG Incorrect","0020 DWG Incorrect",null,null,null,null,null,"Q0001032_FMC_Test"]
["Causes","Cause","ZB;ZC,ZD.ZF","Q1005010","Assembly","0021","Lack of Accessibility","0021 Lack of Accessibility",null,null,null,null,null,"Q0001032_FMC_Test"]
["Causes","Cause","ZB;ZC,ZD.ZF","Q1005010","Assembly","0022","Specification Not Followed","0022 Specification Not Followed",null,null,null,null,null,"Q0001032_FMC_Test"]
["Causes","Cause","ZB;ZC,ZD.ZF","Q1005010","Assembly","0023","Incorrect Set Up","0023 Incorrect Set Up",null,null,null,null,null,"Q0001032_FMC_Test"]
["Causes","Cause","ZB;ZC,ZD.ZF","Q1005010","Assembly","0024","Incorrect Tool","0024 Incorrect Tool",null,null,null,null,null,"Q0001032_FMC_Test"]
["Causes","Cause","ZB;ZC,ZD.ZF","Q1005010","Assembly","0025","Dull Tooling","0025 Dull Tooling",null,null,null,null,null,"Q0001032_FMC_Test"]
["Causes","Cause","ZB;ZC,ZD.ZF","Q1005010","Assembly","0026","Incorrect Program","0026 Incorrect Program",null,null,null,null,null,"Q0001032_FMC_Test"]
["Causes","Cause","ZB;ZC,ZD.ZF","Q1005010","Assembly","0027","DWG Not Followed","0027 DWG Not Followed",null,null,null,null,null,"Q0001032_FMC_Test"]
["Causes","Cause","ZB;ZC,ZD.ZF","Q1005010","Assembly","0028","Procedures Not Given","0028 Procedures Not Given",null,null,null,null,null,"Q0001032_FMC_Test"]
["Causes","Cause","ZB;ZC,ZD.ZF","Q1005010","Assembly","0029","Procedures Not Followed","0029 Procedures Not Followed",null,null,null,null,null,"Q0001032_FMC_Test"]
["Causes","Cause","ZB;ZC,ZD.ZF","Q1005010","Assembly","0030","Procedure Incorrect","0030 Procedure Incorrect",null,null,null,null,null,"Q0001032_FMC_Test"]
["Causes","Cause","ZB;ZC,ZD.ZF","Q1005010","Assembly","0031","Procedure Does Not Exist","0031 Procedure Does Not Exist",null,null,null,null,null,"Q0001032_FMC_Test"]
["Causes","Cause","ZB;ZC,ZD.ZF","Q1005010","Assembly","0032","Not Properly Trained","0032 Not Properly Trained",null,null,null,null,null,"Q0001032_FMC_Test"]
["Causes","Cause","ZB;ZC,ZD.ZF","Q1005010","Assembly","0033","Damaged Tooling","0033 Damaged Tooling",null,null,null,null,null,"Q0001032_FMC_Test"]
["Causes","Cause","ZB;ZC,ZD.ZF","Q1005010","Assembly","0034","Incorrect Tooling","0034 Incorrect Tooling",null,null,null,null,null,"Q0001032_FMC_Test"]
["Causes","Cause","ZB;ZC,ZD.ZF","Q1005010","Assembly","0035","5S Not Maintained","0035 5S Not Maintained",null,null,null,null,null,"Q0001032_FMC_Test"]
["Causes","Cause","ZB;ZC,ZD.ZF","Q1005010","Assembly","0036","Lack of Awareness","0036 Lack of Awareness",null,null," ",null,null,"Q0001032_FMC_Test"]
["Causes","Cause","ZB;ZC,ZD.ZF","Q1005010","Assembly","0037","Over Torqued","0037 Over Torqued",null,null,null,null,null,"Q0001032_FMC_Test"]
["Causes","Cause","ZB;ZC,ZD.ZF","Q1005010","Assembly","0038","Tooling Malfunction","0038 Tooling Malfunction",null,null,null,null,null,"Q0001032_FMC_Test"]
["Causes","Cause","ZB;ZC,ZD.ZF","Q1005010","Assembly","0039","Tool Out of Calibration","0039 Tool Out of Calibration",null,null,null,null,null,"Q0001032_FMC_Test"]
["Causes","Cause","ZB;ZC,ZD.ZF","Q1005010","Assembly","0040","No Other Component Available","0040 No Other Component Available",null,null,null,null,null,"Q0001032_FMC_Test"]
["Causes","Cause","ZB;ZC,ZD.ZF","Q1005010","Assembly","0041","Incorrect Component Kitted","0041 Incorrect Component Kitted",null,null,null,null,null,"Q0001032_FMC_Test"]
["Causes","Cause","ZB;ZC,ZD.ZF","Q1005010","Assembly","0042","Machined Incorrectly","0042 Machined Incorrectly",null,null,null,null,null,"Q0001032_FMC_Test"]
["Causes","Cause","ZB;ZC,ZD.ZF","Q1005010","Assembly","0043","Welded Incorrectly","0043 Welded Incorrectly",null,null,null,null,null,"Q0001032_FMC_Test"]
["Causes","Cause","ZB;ZC,ZD.ZF","Q1005010","Assembly","0044","Force To Fit","0044 Force To Fit",null,null,null,null,null,"Q0001032_FMC_Test"]
["Causes","Cause","ZB;ZC,ZD.ZF","Q1005010","Assembly","0045","Too Much Coating Applied","0045 Too Much Coating Applied",null,null,null,null,null,"Q0001032_FMC_Test"]
["Causes","Cause","ZB;ZC,ZD.ZF","Q1005010","Assembly","0046","Design Error","0046 Design Error",null,null,null,null,null,"Q0001032_FMC_Test"]
["Causes","Cause","ZB;ZC,ZD.ZF","Q1005010","Assembly","0047","Under Torqued","0047 Under Torqued",null,null,null,null,null,"Q0001032_FMC_Test"]
["Causes","Cause","ZB;ZC,ZD.ZF","Q1005010","Assembly","0048","Component Not Kitted","0048 Component Not Kitted",null,null,null,null,null,"Q0001032_FMC_Test"]
["Causes","Cause","ZB;ZC,ZD.ZF","Q1005010","Assembly","0049","Part Lost","0049 Part Lost",null,null," ",null,null,"Q0001032_FMC_Test"]
["Causes","Cause","ZB;ZC,ZD.ZF","Q1005010","Assembly","0050","Improper Set Up","0050 Improper Set Up",null,null,null,null,null,"Q0001032_FMC_Test"]
["Causes","Cause","ZB;ZC,ZD.ZF","Q1005010","Assembly","0051","Design Incorrect",{"$f":"F218&\" \"&G218","v":"0051 Design Incorrect"},null,null,null,null,null,"Q0001032_FMC_Test"]
["Causes","Cause","ZB;ZC,ZD.ZF","Q1005010","Assembly","0052","No Other Tooling Available","0052 No Other Tooling Available",null,null,null,null,null,"Q0001032_FMC_Test"]
["Causes","Cause","ZB;ZC,ZD.ZF","Q1005010","Assembly","0053","Incorrect Part Report","0053 Incorrect Part Report",null,null,null,null,null,"Q0001032_FMC_Test"]
["Causes","Cause","ZB;ZC,ZD.ZF","Q1005010","Assembly","0054","Part Report Not Followed","0054 Part Report Not Followed",null,null,null,null,null,"Q0001032_FMC_Test"]
["Causes","Cause","ZB;ZC,ZD.ZF","Q1005010","Assembly","0055","ECN Change","0055 ECN Change",null,null,null,null,null,"Q0001032_FMC_Test"]
["Causes","Cause","ZB;ZC,ZD.ZF","Q1005010","Assembly","0056","Improperly Stamped / Labeled","0056 Improperly Stamped / Labeled",null,null,null,null,null,"Q0001032_FMC_Test"]
["Causes","Cause","ZB;ZC,ZD.ZF","Q1005010","Assembly","0057","Part Report Incorrect","0057 Part Report Incorrect",null,null,null,null,null,"Q0001032_FMC_Test"]
["Causes","Cause","ZB;ZC,ZD.ZF","Q1005010","Assembly","0058","Other - Specify in Comments","0058 Other - Specify in Comments",null,null," ",null,null,"Q0001032_FMC_Test"]
[null,null,null,null,null,null,null," ",null,null,null,null,null,"Q0001030_FMC_Assembly"]
["Causes","Cause","ZB;ZC,ZD.ZF","Q1005020","Test",null,null," ",null,null,null,null,null,"Q0001032_FMC_Test"]
["Causes","Cause","ZB;ZC,ZD.ZF","Q1005020","Test","0001","Over Torqued","0001 Over Torqued",null,null,null,null,null,"Q0001032_FMC_Test"]
["Causes","Cause","ZB;ZC,ZD.ZF","Q1005020","Test","0002 ","Under Torqued","0002  Under Torqued",null," ",null,null,null,"Q0001032_FMC_Test"]
["Causes","Cause","ZB;ZC,ZD.ZF","Q1005020","Test","0003","Tooling Malfunction","0003 Tooling Malfunction",null,null,null,null,null,"Q0001032_FMC_Test"]
["Causes","Cause","ZB;ZC,ZD.ZF","Q1005020","Test","0004","Damaged Tooling Used","0004 Damaged Tooling Used",null,null,null,null,null,"Q0001032_FMC_Test"]
["Causes","Cause","ZB;ZC,ZD.ZF","Q1005020","Test","0005","Incorrect Tooling Used","0005 Incorrect Tooling Used",null,null,null,null,null,"Q0001032_FMC_Test"]
["Causes","Cause","ZB;ZC,ZD.ZF","Q1005020","Test","0006","Tool Out of Calibration","0006 Tool Out of Calibration",null,null,null,null,null,"Q0001032_FMC_Test"]
["Causes","Cause","ZB;ZC,ZD.ZF","Q1005020","Test","0007","Procedures Not Given","0007 Procedures Not Given",null,null,null,null,null,"Q0001032_FMC_Test"]
["Causes","Cause","ZB;ZC,ZD.ZF","Q1005020","Test","0008","Procedures Not Followed","0008 Procedures Not Followed",null,null,null,null,null,"Q0001032_FMC_Test"]
["Causes","Cause","ZB;ZC,ZD.ZF","Q1005020","Test","0009","Procedure Incorrect","0009 Procedure Incorrect",null,null,null,null,null,"Q0001032_FMC_Test"]
["Causes","Cause","ZB;ZC,ZD.ZF","Q1005020","Test","0010","Procedure Does Not Exist","0010 Procedure Does Not Exist",null,null,null,null,null,"Q0001032_FMC_Test"]
["Causes","Cause","ZB;ZC,ZD.ZF","Q1005020","Test","0011","Not Properly Trained","0011 Not Properly Trained",null,null,null,null,null,"Q0001032_FMC_Test"]
["Causes","Cause","ZB;ZC,ZD.ZF","Q1005020","Test","0012","Incorrect Component Used","0012 Incorrect Component Used",null,null,null,null,null,"Q0001032_FMC_Test"]
["Causes","Cause","ZB;ZC,ZD.ZF","Q1005020","Test","0013","Improperly Installed","0013 Improperly Installed",null,null,null,null,null,"Q0001032_FMC_Test"]
["Causes","Cause","ZB;ZC,ZD.ZF","Q1005020","Test","0014","Over Pressured","0014 Over Pressured",null,null,null,null,null,"Q0001032_FMC_Test"]
["Causes","Cause","ZB;ZC,ZD.ZF","Q1005020","Test","0015","Uncontrolled Pressure Release","0015 Uncontrolled Pressure Release",null,null,null,null,null,"Q0001032_FMC_Test"]
["Causes","Cause","ZB;ZC,ZD.ZF","Q1005020","Test","0016","Design Error","0016 Design Error",null,null,null,null,null,"Q0001032_FMC_Test"]
["Causes","Cause","ZB;ZC,ZD.ZF","Q1005020","Test","0017","Faulty Equipment Used","0017 Faulty Equipment Used",null,null,null,null,null,"Q0001032_FMC_Test"]
["Causes","Cause","ZB;ZC,ZD.ZF","Q1005020","Test","0018","No Other Component Available","0018 No Other Component Available",null,null,null,null,null,"Q0001032_FMC_Test"]
["Causes","Cause","ZB;ZC,ZD.ZF","Q1005020","Test","0019","Lack of Awareness","0019 Lack of Awareness",null,null,null,null,null,"Q0001032_FMC_Test"]
["Causes","Cause","ZB;ZC,ZD.ZF","Q1005020","Test","0020","Wear and Tear","0020 Wear and Tear",null,null,null,null,null,"Q0001032_FMC_Test"]
["Causes","Cause","ZB;ZC,ZD.ZF","Q1005020","Test","0021","Improperly Protected","0021 Improperly Protected",null,null,null,null,null,"Q0001032_FMC_Test"]
["Causes","Cause","ZB;ZC,ZD.ZF","Q1005020","Test","0022","Not Properly Strapped Down","0022 Not Properly Strapped Down",null,null,null,null,null,"Q0001032_FMC_Test"]
["Causes","Cause","ZB;ZC,ZD.ZF","Q1005020","Test","0023","5S Not Maintained","0023 5S Not Maintained",null,null,null,null,null,"Q0001032_FMC_Test"]
["Causes","Cause","ZB;ZC,ZD.ZF","Q1005020","Test","0024","Lack of Accessibility","0024 Lack of Accessibility",null,null,null,null,null,"Q0001032_FMC_Test"]
["Causes","Cause","ZB;ZC,ZD.ZF","Q1005020","Test","0025","Incorrect Component Kitted","0025 Incorrect Component Kitted",null,null,null,null,null,"Q0001032_FMC_Test"]
["Causes","Cause","ZB;ZC,ZD.ZF","Q1005020","Test","0026","Machined Incorrectly","0026 Machined Incorrectly",null,null,null,null,null,"Q0001032_FMC_Test"]
["Causes","Cause","ZB;ZC,ZD.ZF","Q1005020","Test","0027","Welded Incorrectly","0027 Welded Incorrectly",null,null,null,null,null,"Q0001032_FMC_Test"]
["Causes","Cause","ZB;ZC,ZD.ZF","Q1005020","Test","0028","Forced To Fit","0028 Forced To Fit",null,null,null,null,null,"Q0001032_FMC_Test"]
["Causes","Cause","ZB;ZC,ZD.ZF","Q1005020","Test","0029","Too Much Coating Applied","0029 Too Much Coating Applied",null,null,null,null,null,"Q0001032_FMC_Test"]
["Causes","Cause","ZB;ZC,ZD.ZF","Q1005020","Test","0030","No Other Tooling Available","0030 No Other Tooling Available",null,null,null,null,null,"Q0001032_FMC_Test"]
["Causes","Cause","ZB;ZC,ZD.ZF","Q1005020","Test","0031","Improper Set Up","0031 Improper Set Up",null,null,null,null,null,"Q0001032_FMC_Test"]
["Causes","Cause","ZB;ZC,ZD.ZF","Q1005020","Test","0032","Design Incorrect","0032 Design Incorrect",null,null,null,null,null,"Q0001032_FMC_Test"]
["Causes","Cause","ZB;ZC,ZD.ZF","Q1005020","Test","0033","Incorrect Part Report","0033 Incorrect Part Report",null,null,null,null,null,"Q0001032_FMC_Test"]
["Causes","Cause","ZB;ZC,ZD.ZF","Q1005020","Test","0034","Part Report Not Followed","0034 Part Report Not Followed",null,null,null,null,null,"Q0001032_FMC_Test"]
["Causes","Cause","ZB;ZC,ZD.ZF","Q1005020","Test","0035","ECN Change","0035 ECN Change",null,null,null,null,null,"Q0001032_FMC_Test"]
["Causes","Cause","ZB;ZC,ZD.ZF","Q1005020","Test","0036","Improperly Stamped / Labeled","0036 Improperly Stamped / Labeled",null,null,null,null,null,"Q0001032_FMC_Test"]
["Causes","Cause","ZB;ZC,ZD.ZF","Q1005020","Test","0037","Machine Malfunction","0037 Machine Malfunction",null,null,null,null,null,"Q0001032_FMC_Test"]
["Causes","Cause","ZB;ZC,ZD.ZF","Q1005020","Test","0038","Program Error","0038 Program Error",null,null,null,null,null,"Q0001032_FMC_Test"]
["Causes","Cause","ZB;ZC,ZD.ZF","Q1005020","Test","0039","DWG Incorrect","0039 DWG Incorrect",null,null,null,null,null,"Q0001032_FMC_Test"]
["Causes","Cause","ZB;ZC,ZD.ZF","Q1005020","Test","0040","Specification Not Followed","0040 Specification Not Followed",null,null,null,null,null,"Q0001032_FMC_Test"]
["Causes","Cause","ZB;ZC,ZD.ZF","Q1005020","Test","0041","Incorrect Setup","0041 Incorrect Setup",null,null,null,null,null,"Q0001032_FMC_Test"]
["Causes","Cause","ZB;ZC,ZD.ZF","Q1005020","Test","0042","Incorrect Tool Used","0042 Incorrect Tool Used",null,null,null,null,null,"Q0001032_FMC_Test"]
["Causes","Cause","ZB;ZC,ZD.ZF","Q1005020","Test","0043","Dull Tooling Used","0043 Dull Tooling Used",null,null,null,null,null,"Q0001032_FMC_Test"]
["Causes","Cause","ZB;ZC,ZD.ZF","Q1005020","Test","0044","Incorrect Program Used","0044 Incorrect Program Used",null,null,null,null,null,"Q0001032_FMC_Test"]
["Causes","Cause","ZB;ZC,ZD.ZF","Q1005020","Test","0045","DWG Not Followed","0045 DWG Not Followed",null,null,null,null,null,"Q0001032_FMC_Test"]
["Causes","Cause","ZB;ZC,ZD.ZF","Q1005020","Test","0046","Part Report Incorrect","0046 Part Report Incorrect",null,null,null,null,null,"Q0001032_FMC_Test"]
["Causes","Cause","ZB;ZC,ZD.ZF","Q1005020","Test","0047","Trash / Burr / Contamination","0047 Trash / Burr / Contamination",null,null,null,null,null,"Q0001032_FMC_Test"]
["Causes","Cause","ZB;ZC,ZD.ZF","Q1005020","Test","0048","Other - Specify in Comments","0048 Other - Specify in Comments"," ",null," ",null,null,"Q0001032_FMC_Test"]
["Causes","Cause","ZB;ZC,ZD.ZF","Q1005020","Test","0049","Improperly Installed","0049 Improperly Installed",null,null,null,null,null,"Q0001032_FMC_Test"]
["Causes","Cause","ZB;ZC,ZD.ZF","Q1005020","Test","0050","Component Malfunction","0050 Component Malfunction",null,null,null,null,null,"Q0001032_FMC_Test"]
["Causes","Cause","ZB;ZC,ZD.ZF","Q1005020","Test","0051","Damaged Component Used","0051 Damaged Component Used",null,null,null,null,null,"Q0001032_FMC_Test"]
["Causes","Cause","ZB;ZC,ZD.ZF","Q1005020","Test","0052","Shelf Life Expiration","0052 Shelf Life Expiration",null,null,null,null,null,"Q0001032_FMC_Test"]
["Causes","Cause","ZB;ZC,ZD.ZF","Q1005020","Test","0053","Wear and Tear","0053 Wear and Tear",null,null,null,null,null,"Q0001032_FMC_Test"]
["Causes","Cause","ZB;ZC,ZD.ZF","Q1005020","Test","0054","Damaged During Lifting","0054 Damaged During Lifting",null,null,null,null,null,"Q0001032_FMC_Test"]
["Causes","Cause","ZB;ZC,ZD.ZF","Q1005020","Test","0055","Struck With Object",{"$f":"F282&\" \"&G282","v":"0055 Struck With Object"},null,null,null,null,null,"Q0001032_FMC_Test"]
["Causes","Cause","ZB;ZC,ZD.ZF","Q1005020","Test","0056","Improperly Handled","0056 Improperly Handled",null,null,null,null,null,"Q0001032_FMC_Test"]
["Causes","Cause","ZB;ZC,ZD.ZF","Q1005020","Test","0057","Incorrect Component Used","0057 Incorrect Component Used",null,null,null,null,null,"Q0001032_FMC_Test"]
["Causes","Cause","ZB;ZC,ZD.ZF","Q1005020","Test","0058","Does Not Fit Properly","0058 Does Not Fit Properly",null,null,null,null,null,"Q0001032_FMC_Test"]
["Causes","Cause","ZB;ZC,ZD.ZF","Q1005020","Test","0060","Other - Specify in Comments","0060 Other - Specify in Comments",null,null,null,null,null,"Q0001032_FMC_Test"]
[null,null,null,null,null,null,null," ",null," ",null,null,null,"Q0001030_FMC_Assembly"]
["Causes","Cause","ZB;ZC,ZD.ZF","Q1005030","Raw_Material",null,null," ",null,null,null,null,null,"Q0001032_FMC_Test"]
["Causes","Cause","ZB;ZC,ZD.ZF","Q1005030","Raw Material","0001","Programming","0001 Programming",null,null,null,null,null,"Q0001032_FMC_Test"]
["Causes","Cause","ZB;ZC,ZD.ZF","Q1005030","Raw Material","0002","Operator","0002 Operator",null,null,null,null,null,"Q0001032_FMC_Test"]
["Causes","Cause","ZB;ZC,ZD.ZF","Q1005030","Raw Material","0003","Inadequate Management / Control","0003 Inadequate Management / Control",null,null,null,null,null,"Q0001032_FMC_Test"]
["Causes","Cause","ZB;ZC,ZD.ZF","Q1005030","Raw Material","0004","Equipment Malfunction","0004 Equipment Malfunction",null,null,null,null,null,"Q0001032_FMC_Test"]
["Causes","Cause","ZB;ZC,ZD.ZF","Q1005030","Raw Material","0005","Second Tier Supplier","0005 Second Tier Supplier",null,null,null,null,null,"Q0001032_FMC_Test"]
["Causes","Cause","ZB;ZC,ZD.ZF","Q1005030","Raw Material","0006","Clarification","0006 Clarification",null,null,null,null,null,"Q0001032_FMC_Test"]
["Causes","Cause","ZB;ZC,ZD.ZF","Q1005030","Raw Material","0007","Planning / Procurement","0007 Planning / Procurement",null,null,null,null,null,"Q0001032_FMC_Test"]
["Causes","Cause","ZB;ZC,ZD.ZF","Q1005030","Raw Material","0008","Recommended Improvement","0008 Recommended Improvement",null,null,null,null,null,"Q0001032_FMC_Test"]
["Causes","Cause","ZB;ZC,ZD.ZF","Q1005030","Raw Material","0009","Handling / Packaging / Preservation Error","0009 Handling / Packaging / Preservation Error",null,null,null,null,null,"Q0001032_FMC_Test"]
["Causes","Cause","ZB;ZC,ZD.ZF","Q1005030","Raw Material","0010","Tooling / Fixture Error","0010 Tooling / Fixture Error",null,null,null,null,null,"Q0001032_FMC_Test"]
["Causes","Cause","ZB;ZC,ZD.ZF","Q1005030","Raw Material","0011","Weather / Natural Disaster","0011 Weather / Natural Disaster",null,null,null,null,null,"Q0001032_FMC_Test"]
["Causes","Cause","ZB;ZC,ZD.ZF","Q1005030","Raw Material","0012","Purchasing Error","0012 Purchasing Error",null,null,null,null,null,"Q0001032_FMC_Test"]
["Causes","Cause","ZB;ZC,ZD.ZF","Q1005030","Raw Material","0013","Planning Error","0013 Planning Error",null,null,null,null,null,"Q0001032_FMC_Test"]
["Causes","Cause","ZB;ZC,ZD.ZF","Q1005030","Raw Material","0014","Free Issue Delivery","0014 Free Issue Delivery",null,null,null,null,null,"Q0001032_FMC_Test"]
["Causes","Cause","ZB;ZC,ZD.ZF","Q1005030","Raw Material","0015","Customer Request","0015 Customer Request",null,null,null,null,null,"Q0001032_FMC_Test"]
["Causes","Cause","ZB;ZC,ZD.ZF","Q1005030","Raw Material","0016","Unfinished Shipment","0016 Unfinished Shipment",null,null,null,null,null,"Q0001032_FMC_Test"]
["Causes","Cause","ZB;ZC,ZD.ZF","Q1005030","Raw Material","0017","Free Issued Delivery","0017 Free Issued Delivery",null,null,null,null,null,"Q0001032_FMC_Test"]
["Causes","Cause","ZB;ZC,ZD.ZF","Q1005030","Raw Material","0018","Unclear Requirements","0018 Unclear Requirements",null,null,null,null,null,"Q0001032_FMC_Test"]
["Causes","Cause","ZB;ZC,ZD.ZF","Q1005030","Raw Material","0019","Incorrect Material","0019 Incorrect Material",null,null,null,null,null,"Q0001032_FMC_Test"]
["Causes","Cause","ZB;ZC,ZD.ZF","Q1005030","Raw Material","0020","Material Spec Error","0020 Material Spec Error",null,null,null,null,null,"Q0001032_FMC_Test"]
["Causes","Cause","ZB;ZC,ZD.ZF","Q1005030","Raw Material","0021","Supplier Error","0021 Supplier Error",null,null,null,null,null,"Q0001032_FMC_Test"]
["Causes","Cause","ZB;ZC,ZD.ZF","Q1005030","Raw Material","0022","FMC Purchasing Error","0022 FMC Purchasing Error",null,null," ",null,null,"Q0001032_FMC_Test"]
["Causes","Cause","ZB;ZC,ZD.ZF","Q1005030","Raw Material","0025","Lack of Training / Certification","0025 Lack of Training / Certification",null,null,null,null,null,"Q0001032_FMC_Test"]
["Causes","Cause","ZB;ZC,ZD.ZF","Q1005030","Raw Material","0026","Lack of Experience","0026 Lack of Experience",null,null,null,null,null,"Q0001032_FMC_Test"]
["Causes","Cause","ZB;ZC,ZD.ZF","Q1005030","Raw Material","0027","Use of Unapproved Procedure","0027 Use of Unapproved Procedure",null,null,null,null,null,"Q0001032_FMC_Test"]
["Causes","Cause","ZB;ZC,ZD.ZF","Q1005030","Raw Material","0028","Specification Not Followed","0028 Specification Not Followed",null,null,null,null,null,"Q0001032_FMC_Test"]
["Causes","Cause","ZB;ZC,ZD.ZF","Q1005030","Raw Material","0029","Misunderstanding","0029 Misunderstanding",null,null,null,null,null,"Q0001032_FMC_Test"]
["Causes","Cause","ZB;ZC,ZD.ZF","Q1005030","Raw Material","0030","Incorrect Parts Ordered","0030 Incorrect Parts Ordered",null,null,null,null,null,"Q0001032_FMC_Test"]
["Causes","Cause","ZB;ZC,ZD.ZF","Q1005030","Raw Material","0031","Incorrect QTY Ordered","0031 Incorrect QTY Ordered",null,null,null,null,null,"Q0001032_FMC_Test"]
["Causes","Cause","ZB;ZC,ZD.ZF","Q1005030","Raw Material","0032","Lack of Training","0032 Lack of Training",null,null,null,null,null,"Q0001032_FMC_Test"]
["Causes","Cause","ZB;ZC,ZD.ZF","Q1005030","Raw Material","0033","Missing Information","0033 Missing Information",null,null,null,null,null,"Q0001032_FMC_Test"]
["Causes","Cause","ZB;ZC,ZD.ZF","Q1005030","Raw Material","0034","Incorrect Information","0034 Incorrect Information",null,null,null,null,null,"Q0001032_FMC_Test"]
["Causes","Cause","ZB;ZC,ZD.ZF","Q1005030","Raw Material","0035","Conflicting Information","0035 Conflicting Information",null,null,null,null,null,"Q0001032_FMC_Test"]
["Causes","Cause","ZB;ZC,ZD.ZF","Q1005030","Raw Material","0036","ECN Change","0036 ECN Change",null,null,null,null,null,"Q0001032_FMC_Test"]
["Causes","Cause","ZB;ZC,ZD.ZF","Q1005030","Raw Material","0037","Continuous Improvement","0037 Continuous Improvement",null,null,null,null,null,"Q0001032_FMC_Test"]
["Causes","Cause","ZB;ZC,ZD.ZF","Q1005030","Raw Material","0038","Incorrect Set Up","0038 Incorrect Set Up",null,null,null,null,null,"Q0001032_FMC_Test"]
["Causes","Cause","ZB;ZC,ZD.ZF","Q1005030","Raw Material","0039","Inadequate Knowledge of Working Process","0039 Inadequate Knowledge of Working Process",null,null,null,null,null,"Q0001032_FMC_Test"]
["Causes","Cause","ZB;ZC,ZD.ZF","Q1005030","Raw Material","0040","Unclear Communication Lines","0040 Unclear Communication Lines",null,null,null,null,null,"Q0001032_FMC_Test"]
["Causes","Cause","ZB;ZC,ZD.ZF","Q1005030","Raw Material","0041","Unclear Guidance For Responsibility","0041 Unclear Guidance For Responsibility",null,null,null,null,null,"Q0001032_FMC_Test"]
["Causes","Cause","ZB;ZC,ZD.ZF","Q1005030","Raw Material","0042","Unclear Goals For Execution","0042 Unclear Goals For Execution",null,null,null,null,null,"Q0001032_FMC_Test"]
["Causes","Cause","ZB;ZC,ZD.ZF","Q1005030","Raw Material","0043","Lack of Instructions / Procedures / Ref. Doc","0043 Lack of Instructions / Procedures / Ref. Doc",null,null,null,null,null,"Q0001032_FMC_Test"]
["Causes","Cause","ZB;ZC,ZD.ZF","Q1005030","Raw Material","0044","Lack of Focus On Damages / Loses","0044 Lack of Focus On Damages / Loses",null,null,null,null,null,"Q0001032_FMC_Test"]
["Causes","Cause","ZB;ZC,ZD.ZF","Q1005030","Raw Material","0045","Managers Lack of Knowledge About Execution","0045 Managers Lack of Knowledge About Execution",null,null,null,null,null,"Q0001032_FMC_Test"]
["Causes","Cause","ZB;ZC,ZD.ZF","Q1005030","Raw Material","0046","Lack of Maintenance","0046 Lack of Maintenance",null,null,null,null,null,"Q0001032_FMC_Test"]
["Causes","Cause","ZB;ZC,ZD.ZF","Q1005030","Raw Material","0047","Equipment Modification Not Verified Against the System","0047 Equipment Modification Not Verified Against the System",null,null,null,null,null,"Q0001032_FMC_Test"]
["Causes","Cause","ZB;ZC,ZD.ZF","Q1005030","Raw Material","0048","Equipment In Use Is Obsolete","0048 Equipment In Use Is Obsolete",null,null,null,null,null,"Q0001032_FMC_Test"]
["Causes","Cause","ZB;ZC,ZD.ZF","Q1005030","Raw Material","0049","Material Not Available","0049 Material Not Available",null,null,null,null,null,"Q0001032_FMC_Test"]
["Causes","Cause","ZB;ZC,ZD.ZF","Q1005030","Raw Material","0050","Supplier Suggestion For Permanent Change","0050 Supplier Suggestion For Permanent Change",null,null,null,null,null,"Q0001032_FMC_Test"]
["Causes","Cause","ZB;ZC,ZD.ZF","Q1005030","Raw Material","0051","Bad Weather Conditions","0051 Bad Weather Conditions",null,null,null,null,null,"Q0001032_FMC_Test"]
["Causes","Cause","ZB;ZC,ZD.ZF","Q1005030","Raw Material","0052","PO Inconsistent","0052 PO Inconsistent",null,null,null,null,null,"Q0001032_FMC_Test"]
["Causes","Cause","ZB;ZC,ZD.ZF","Q1005030","Raw Material","0053","Unqualified Vendor Used","0053 Unqualified Vendor Used",null,null,null,null,null,"Q0001032_FMC_Test"]
["Causes","Cause","ZB;ZC,ZD.ZF","Q1005030","Raw Material","0054","Scheduling Error / Data Entry Error","0054 Scheduling Error / Data Entry Error",null,null,null,null,null,"Q0001032_FMC_Test"]
["Causes","Cause","ZB;ZC,ZD.ZF","Q1005030","Raw Material","0055","DBI","0055 DBI",null,null,null,null,null,"Q0001032_FMC_Test"]
["Causes","Cause","ZB;ZC,ZD.ZF","Q1005030","Raw Material","0057","Supplier Error","0057 Supplier Error",null,null,null,null,null,"Q0001032_FMC_Test"]
["Causes","Cause","ZB;ZC,ZD.ZF","Q1005030","Raw Material","0058","FMC Planning / Procurement","0058 FMC Planning / Procurement",null,null,null,null,null,"Q0001032_FMC_Test"]
["Causes","Cause","ZB;ZC,ZD.ZF","Q1005030","Raw Material","0059","FMC Projects","0059 FMC Projects",null,null,null,null,null,"Q0001032_FMC_Test"]
["Causes","Cause","ZB;ZC,ZD.ZF","Q1005030","Raw Material","0060","FMC Intercompany Error","0060 FMC Intercompany Error",null,null,null,null,null,"Q0001032_FMC_Test"]
["Causes","Cause","ZB;ZC,ZD.ZF","Q1005030","Raw Material","0061","Existing Stock",{"$f":"F346&\" \"&G346","v":"0061 Existing Stock"},null,null,null,null,null,"Q0001032_FMC_Test"]
["Causes","Cause","ZB;ZC,ZD.ZF","Q1005030","Raw Material","0062","Unavailability of Material","0062 Unavailability of Material",null,null,null,null,null,"Q0001032_FMC_Test"]
["Causes","Cause","ZB;ZC,ZD.ZF","Q1005030","Raw Material","0063","Cheaper Material","0063 Cheaper Material",null,null,null,null,null,"Q0001032_FMC_Test"]
["Causes","Cause","ZB;ZC,ZD.ZF","Q1005030","Raw Material","0064","Exceeds Hardness","0064 Exceeds Hardness",null,null,null,null,null,"Q0001032_FMC_Test"]
["Causes","Cause","ZB;ZC,ZD.ZF","Q1005030","Raw Material","0065","Below Hardness","0065 Below Hardness",null,null,null,null,null,"Q0001032_FMC_Test"]
["Causes","Cause","ZB;ZC,ZD.ZF","Q1005030","Raw Material","0066","Exceeds MSPEC Requirement","0066 Exceeds MSPEC Requirement",null,null,null,null,null,"Q0001032_FMC_Test"]
["Causes","Cause","ZB;ZC,ZD.ZF","Q1005030","Raw Material","0067","Below MSPEC Requirement","0067 Below MSPEC Requirement",null,null,null,null,null,"Q0001032_FMC_Test"]
["Causes","Cause","ZB;ZC,ZD.ZF","Q1005030","Raw Material","0068","Wrong Material","0068 Wrong Material",null,null,null,null,null,"Q0001032_FMC_Test"]
["Causes","Cause","ZB;ZC,ZD.ZF","Q1005030","Raw Material","0069","Exceeds Elongation","0069 Exceeds Elongation",null,null,null,null,null,"Q0001032_FMC_Test"]
["Causes","Cause","ZB;ZC,ZD.ZF","Q1005030","Raw Material","0070","Other - Specify in Comments","0070 Other - Specify in Comments",null,null,null,null,null,"Q0001032_FMC_Test"]
[null,null,null,null,null,null,null," ",null," ",null,null,null,"Q0001030_FMC_Assembly"]
["Causes","Cause","ZB;ZC,ZD.ZF","Q1005040","Machining",null,null," ",null,null,null,null,null,"Q0001032_FMC_Test"]
["Causes","Cause","ZB;ZC,ZD.ZF","Q1005040","Machining","0001","Inside Diameter Error","0001 Inside Diameter Error",null,null,null,null,null,"Q0001032_FMC_Test"]
["Causes","Cause","ZB;ZC,ZD.ZF","Q1005040","Machining","0002","Outside Diameter Error","0002 Outside Diameter Error",null,null,null,null,null,"Q0001032_FMC_Test"]
["Causes","Cause","ZB;ZC,ZD.ZF","Q1005040","Machining","0003","Length / Depth Error","0003 Length / Depth Error",null,null,null,null,null,"Q0001032_FMC_Test"]
["Causes","Cause","ZB;ZC,ZD.ZF","Q1005040","Machining","0004","Angle Error","0004 Angle Error",null,null,null,null,null,"Q0001032_FMC_Test"]
["Causes","Cause","ZB;ZC,ZD.ZF","Q1005040","Machining","0005","Hole Size Error","0005 Hole Size Error",null,null,null,null,null,"Q0001032_FMC_Test"]
["Causes","Cause","ZB;ZC,ZD.ZF","Q1005040","Machining","0006","Seat Pocket Error","0006 Seat Pocket Error",null,null," ",null,null,"Q0001032_FMC_Test"]
["Causes","Cause","ZB;ZC,ZD.ZF","Q1005040","Machining","0007","Contamination Within Intersection Holes","0007 Contamination Within Intersection Holes",null,null,null,null,null,"Q0001032_FMC_Test"]
["Causes","Cause","ZB;ZC,ZD.ZF","Q1005040","Machining","0008","Position Error","0008 Position Error",null,null,null,null,null,"Q0001032_FMC_Test"]
["Causes","Cause","ZB;ZC,ZD.ZF","Q1005040","Machining","0009","Hole Or Groove Not Circular","0009 Hole Or Groove Not Circular",null,null,null,null,null,"Q0001032_FMC_Test"]
["Causes","Cause","ZB;ZC,ZD.ZF","Q1005040","Machining","0010","Machining Error","0010 Machining Error",null,null,null,null,null,"Q0001032_FMC_Test"]
["Causes","Cause","ZB;ZC,ZD.ZF","Q1005040","Machining","0011","Go Gauge Does Not Go Through","0011 Go Gauge Does Not Go Through",null,null,null,null,null,"Q0001032_FMC_Test"]
["Causes","Cause","ZB;ZC,ZD.ZF","Q1005040","Machining","0012","Nogo Gauge Goes Through","0012 Nogo Gauge Goes Through",null,null,null,null,null,"Q0001032_FMC_Test"]
["Causes","Cause","ZB;ZC,ZD.ZF","Q1005040","Machining","0013","Burr / Chips","0013 Burr / Chips",null,null,null,null,null,"Q0001032_FMC_Test"]
["Causes","Cause","ZB;ZC,ZD.ZF","Q1005040","Machining","0014","DBI / Drawing error","0014 DBI / Drawing error",null,null,null,null,null,"Q0001032_FMC_Test"]
["Causes","Cause","ZB;ZC,ZD.ZF","Q1005040","Machining","0015","Program Error","0015 Program Error",null,null,null,null,null,"Q0001032_FMC_Test"]
["Causes","Cause","ZB;ZC,ZD.ZF","Q1005040","Machining","0016","Worn / Broken Tool","0016 Worn / Broken Tool",null,null,null,null,null,"Q0001032_FMC_Test"]
["Causes","Cause","ZB;ZC,ZD.ZF","Q1005040","Machining","0017","Incorrect Set Up","0017 Incorrect Set Up",null,null,null,null,null,"Q0001032_FMC_Test"]
["Causes","Cause","ZB;ZC,ZD.ZF","Q1005040","Machining","0018","Machine Malfuction","0018 Machine Malfuction",null,null,null,null,null,"Q0001032_FMC_Test"]
["Causes","Cause","ZB;ZC,ZD.ZF","Q1005040","Machining","0019","Incorrect Tool","0019 Incorrect Tool",null,null,null,null,null,"Q0001032_FMC_Test"]
["Causes","Cause","ZB;ZC,ZD.ZF","Q1005040","Machining","0020","Coating Defect","0020 Coating Defect",null,null," ",null,null,"Q0001032_FMC_Test"]
["Causes","Cause","ZB;ZC,ZD.ZF","Q1005040","Machining","0021","Requirement Not Known","0021 Requirement Not Known",null,null,null,null,null,"Q0001032_FMC_Test"]
["Causes","Cause","ZB;ZC,ZD.ZF","Q1005040","Machining","0022","FMC Engineering Error","0022 FMC Engineering Error",null,null,null,null,null,"Q0001032_FMC_Test"]
["Causes","Cause","ZB;ZC,ZD.ZF","Q1005040","Machining","0023","Unclear DBI","0023 Unclear DBI",null,null,null,null,null,"Q0001032_FMC_Test"]
["Causes","Cause","ZB;ZC,ZD.ZF","Q1005040","Machining","0024","Final Inspection","0024 Final Inspection",null,null,null,null,null,"Q0001032_FMC_Test"]
["Causes","Cause","ZB;ZC,ZD.ZF","Q1005040","Machining","0025","Miscommunication","0025 Miscommunication",null,null,null,null,null,"Q0001032_FMC_Test"]
["Causes","Cause","ZB;ZC,ZD.ZF","Q1005040","Machining","0026","Lack of Training","0026 Lack of Training",null,null,null,null,null,"Q0001032_FMC_Test"]
["Causes","Cause","ZB;ZC,ZD.ZF","Q1005040","Machining","0027","Other - Specify in Comments","0027 Other - Specify in Comments",null,null,null,null,null,"Q0001032_FMC_Test"]
[null,null,null,null,null,null,null," ",null," ",null,null,null,"Q0001030_FMC_Assembly"]
["Causes","Cause","ZB;ZC,ZD.ZF","Q1005050","Welding_Structural",null,null," ",null,null,null,null,null,"Q0001032_FMC_Test"]
["Causes","Cause","ZB;ZC,ZD.ZF","Q1005050","Welding Structural","0001","Amps","0001 Amps",null,null,null,null,null,"Q0001032_FMC_Test"]
["Causes","Cause","ZB;ZC,ZD.ZF","Q1005050","Welding Structural","0002","Arc Voltage Too High","0002 Arc Voltage Too High",null,null,null,null,null,"Q0001032_FMC_Test"]
["Causes","Cause","ZB;ZC,ZD.ZF","Q1005050","Welding Structural","0003","Arc Voltage Too Low","0003 Arc Voltage Too Low",null,null,null,null,null,"Q0001032_FMC_Test"]
["Causes","Cause","ZB;ZC,ZD.ZF","Q1005050","Welding Structural","0004","Contaminated Filler Metal","0004 Contaminated Filler Metal",null,null,null,null,null,"Q0001032_FMC_Test"]
["Causes","Cause","ZB;ZC,ZD.ZF","Q1005050","Welding Structural","0005","Contaminated Gas (From Supplier)","0005 Contaminated Gas (From Supplier)",null,null,null,null,null,"Q0001032_FMC_Test"]
["Causes","Cause","ZB;ZC,ZD.ZF","Q1005050","Welding Structural","0006","Electrode Stickout Weld Puddle Rolling In Front of the Arc","0006 Electrode Stickout Weld Puddle Rolling In Front of the Arc",null," ",null,null,null,"Q0001032_FMC_Test"]
["Causes","Cause","ZB;ZC,ZD.ZF","Q1005050","Welding Structural","0007","Excessive Joint Restraint","0007 Excessive Joint Restraint",null,null,null,null,null,"Q0001032_FMC_Test"]
["Causes","Cause","ZB;ZC,ZD.ZF","Q1005050","Welding Structural","0008","Excessive Oxide On Plate","0008 Excessive Oxide On Plate",null,null,null,null,null,"Q0001032_FMC_Test"]
["Causes","Cause","ZB;ZC,ZD.ZF","Q1005050","Welding Structural","0009","Excessive Welding Currents","0009 Excessive Welding Currents",null,null,null,null,null,"Q0001032_FMC_Test"]
["Causes","Cause","ZB;ZC,ZD.ZF","Q1005050","Welding Structural","0010","Excessive Wire Feed","0010 Excessive Wire Feed",null,null,null,null,null,"Q0001032_FMC_Test"]
["Causes","Cause","ZB;ZC,ZD.ZF","Q1005050","Welding Structural","0011","Excessive Wire / Electrode Feed Speed","0011 Excessive Wire / Electrode Feed Speed",null,null,null,null,null,"Q0001032_FMC_Test"]
["Causes","Cause","ZB;ZC,ZD.ZF","Q1005050","Welding Structural","0012","Failure To Remove Slag / Oxides Between Weld Passes","0012 Failure To Remove Slag / Oxides Between Weld Passes",null,null,null,null,null,"Q0001032_FMC_Test"]
["Causes","Cause","ZB;ZC,ZD.ZF","Q1005050","Welding Structural","0013","Heat Input","0013 Heat Input",null,null,null,null,null,"Q0001032_FMC_Test"]
["Causes","Cause","ZB;ZC,ZD.ZF","Q1005050","Welding Structural","0014","High Hardness","0014 High Hardness",null,null,null,null,null,"Q0001032_FMC_Test"]
["Causes","Cause","ZB;ZC,ZD.ZF","Q1005050","Welding Structural","0015","Hole / Leak In Hose Or Manifold System","0015 Hole / Leak In Hose Or Manifold System",null,null,null,null,null,"Q0001032_FMC_Test"]
["Causes","Cause","ZB;ZC,ZD.ZF","Q1005050","Welding Structural","0016","Improper Cleaning","0016 Improper Cleaning",null,null,null,null,null,"Q0001032_FMC_Test"]
["Causes","Cause","ZB;ZC,ZD.ZF","Q1005050","Welding Structural","0017","Incorrect Base Metal Chemistry","0017 Incorrect Base Metal Chemistry",null,null,null,null,null,"Q0001032_FMC_Test"]
["Causes","Cause","ZB;ZC,ZD.ZF","Q1005050","Welding Structural","0018","Incorrect Bead Placement","0018 Incorrect Bead Placement",null,null,null,null,null,"Q0001032_FMC_Test"]
["Causes","Cause","ZB;ZC,ZD.ZF","Q1005050","Welding Structural","0019","Incorrect Wire Chemistry","0019 Incorrect Wire Chemistry",null,null,null,null,null,"Q0001032_FMC_Test"]
["Causes","Cause","ZB;ZC,ZD.ZF","Q1005050","Welding Structural","0020","Insufficient Purge","0020 Insufficient Purge",null,null," ",null,null,"Q0001032_FMC_Test"]
["Causes","Cause","ZB;ZC,ZD.ZF","Q1005050","Welding Structural","0021","Insufficient Dwell At Edge of Weld Bead","0021 Insufficient Dwell At Edge of Weld Bead",null,null,null,null,null,"Q0001032_FMC_Test"]
["Causes","Cause","ZB;ZC,ZD.ZF","Q1005050","Welding Structural","0022","Insufficient Preheat","0022 Insufficient Preheat",null,null,null,null,null,"Q0001032_FMC_Test"]
["Causes","Cause","ZB;ZC,ZD.ZF","Q1005050","Welding Structural","0024","Insufficient Shielding Gas Flow","0024 Insufficient Shielding Gas Flow",null,null,null,null,null,"Q0001032_FMC_Test"]
["Causes","Cause","ZB;ZC,ZD.ZF","Q1005050","Welding Structural","0025","Insufficient Weld Passes",{"$f":"F410&\" \"&G410","v":"0025 Insufficient Weld Passes"},null,null,null,null,null,"Q0001032_FMC_Test"]
["Causes","Cause","ZB;ZC,ZD.ZF","Q1005050","Welding Structural","0026","Insufficient Wire Feed","0026 Insufficient Wire Feed",null,null,null,null,null,"Q0001032_FMC_Test"]
["Causes","Cause","ZB;ZC,ZD.ZF","Q1005050","Welding Structural","0027","Interpass","0027 Interpass",null,null," ",null,null,"Q0001032_FMC_Test"]
["Causes","Cause","ZB;ZC,ZD.ZF","Q1005050","Welding Structural","0028","Low Hardness","0028 Low Hardness",null,null,null,null,null,"Q0001032_FMC_Test"]
["Causes","Cause","ZB;ZC,ZD.ZF","Q1005050","Welding Structural","0029","Oil, Heavy Rust, Scale, etc. On Plate","0029 Oil, Heavy Rust, Scale, etc. On Plate",null,null,null,null,null,"Q0001032_FMC_Test"]
["Causes","Cause","ZB;ZC,ZD.ZF","Q1005050","Welding Structural","0030","Operator Error","0030 Operator Error",null,null,null,null,null,"Q0001032_FMC_Test"]
["Causes","Cause","ZB;ZC,ZD.ZF","Q1005050","Welding Structural","0031","Out of Tolerance","0031 Out of Tolerance",null,null,null,null,null,"Q0001032_FMC_Test"]
["Causes","Cause","ZB;ZC,ZD.ZF","Q1005050","Welding Structural","0032","Poor Filler Metal Control (ex. Hic)","0032 Poor Filler Metal Control (ex. Hic)",null,null,null,null,null,"Q0001032_FMC_Test"]
["Causes","Cause","ZB;ZC,ZD.ZF","Q1005050","Welding Structural","0033","Pre Heat","0033 Pre Heat",null,null,null,null,null,"Q0001032_FMC_Test"]
["Causes","Cause","ZB;ZC,ZD.ZF","Q1005050","Welding Structural","0034","PWHT Error","0034 PWHT Error",null,null,null,null,null,"Q0001032_FMC_Test"]
["Causes","Cause","ZB;ZC,ZD.ZF","Q1005050","Welding Structural","0035","Shielding Problem; Wind, Clogged Or Small Nozzle, Damaged Gas Hose, Excessive Gasflow, etc. ","0035 Shielding Problem; Wind, Clogged Or Small Nozzle, Damaged Gas Hose, Excessive Gasflow, etc. ",null,null,null,null,null,"Q0001032_FMC_Test"]
["Causes","Cause","ZB;ZC,ZD.ZF","Q1005050","Welding Structural","0036","Too Fast Travel Speed","0036 Too Fast Travel Speed",null,null,null,null,null,"Q0001032_FMC_Test"]
["Causes","Cause","ZB;ZC,ZD.ZF","Q1005050","Welding Structural","0037","Too Much Wire Feed","0037 Too Much Wire Feed",null,null,null,null,null,"Q0001032_FMC_Test"]
["Causes","Cause","ZB;ZC,ZD.ZF","Q1005050","Welding Structural","0038","Torch Oscillation Too Wide Or Too Narrow","0038 Torch Oscillation Too Wide Or Too Narrow",null,null,null,null,null,"Q0001032_FMC_Test"]
["Causes","Cause","ZB;ZC,ZD.ZF","Q1005050","Welding Structural","0039","Travel Speed","0039 Travel Speed",null,null,null,null,null,"Q0001032_FMC_Test"]
["Causes","Cause","ZB;ZC,ZD.ZF","Q1005050","Welding Structural","0040","Travel Speed Too High","0040 Travel Speed Too High",null,null,null,null,null,"Q0001032_FMC_Test"]
["Causes","Cause","ZB;ZC,ZD.ZF","Q1005050","Welding Structural","0041","Travel Speed Too Low","0041 Travel Speed Too Low",null,null,null,null,null,"Q0001032_FMC_Test"]
["Causes","Cause","ZB;ZC,ZD.ZF","Q1005050","Welding Structural","0042","Volts","0042 Volts",null,null,null,null,null,"Q0001032_FMC_Test"]
["Causes","Cause","ZB;ZC,ZD.ZF","Q1005050","Welding Structural","0043","Weld Bead Too Small","0043 Weld Bead Too Small",null,null," ",null,null,"Q0001032_FMC_Test"]
["Causes","Cause","ZB;ZC,ZD.ZF","Q1005050","Welding Structural","0044","Weld joint Too Narrow","0044 Weld joint Too Narrow",null," ",null,null,null,"Q0001032_FMC_Test"]
["Causes","Cause","ZB;ZC,ZD.ZF","Q1005050","Welding Structural","0045","Welding Current Too Low; Too Much","0045 Welding Current Too Low; Too Much",null,null,null,null,null,"Q0001032_FMC_Test"]
["Causes","Cause","ZB;ZC,ZD.ZF","Q1005050","Welding Structural","0046","Welding Over Convex Bead","0046 Welding Over Convex Bead",null,null,null,null,null,"Q0001032_FMC_Test"]
["Causes","Cause","ZB;ZC,ZD.ZF","Q1005050","Welding Structural","0047","Welding Over Slag From Covered Electrode","0047 Welding Over Slag From Covered Electrode",null,null,null,null,null,"Q0001032_FMC_Test"]
["Causes","Cause","ZB;ZC,ZD.ZF","Q1005050","Welding Structural","0048","Welding Voltage and / Or Current Too Low","0048 Welding Voltage and / Or Current Too Low",null,null,null,null,null,"Q0001032_FMC_Test"]
["Causes","Cause","ZB;ZC,ZD.ZF","Q1005050","Welding Structural","0049","Welding Voltage Too High","0049 Welding Voltage Too High",null,null,null,null,null,"Q0001032_FMC_Test"]
["Causes","Cause","ZB;ZC,ZD.ZF","Q1005050","Welding Structural","0050","Wire – May Need Wire Higher in Mn and Si","0050 Wire – May Need Wire Higher in Mn and Si",null,null,null,null,null,"Q0001032_FMC_Test"]
["Causes","Cause","ZB;ZC,ZD.ZF","Q1005050","Welding Structural","0051","Wire Feed Speed","0051 Wire Feed Speed",null,null,null,null,null,"Q0001032_FMC_Test"]
["Causes","Cause","ZB;ZC,ZD.ZF","Q1005050","Welding Structural","0052","Wire Feed Too Low","0052 Wire Feed Too Low",null,null,null,null,null,"Q0001032_FMC_Test"]
["Causes","Cause","ZB;ZC,ZD.ZF","Q1005050","Welding Structural","0053","Wrong Filler / Base Metal Combination","0053 Wrong Filler / Base Metal Combination",null,null,null,null,null,"Q0001032_FMC_Test"]
["Causes","Cause","ZB;ZC,ZD.ZF","Q1005050","Welding Structural","0054","Wrong Gas","0054 Wrong Gas",null,null,null,null,null,"Q0001032_FMC_Test"]
["Causes","Cause","ZB;ZC,ZD.ZF","Q1005050","Welding Structural","0055","Incorrect Heat Treatment","0055 Incorrect Heat Treatment",null,null,null,null,null,"Q0001032_FMC_Test"]
["Causes","Cause","ZB;ZC,ZD.ZF","Q1005050","Welding Structural","0056","Material Incorrect","0056 Material Incorrect",null,null,null,null,null,"Q0001032_FMC_Test"]
[null,null,null,null,null,null,null," ",null," ",null,null,null,"Q0001030_FMC_Assembly"]
["Causes","Cause","ZB;ZC,ZD.ZF","Q1005051","Welding_Cladding",null,null," ",null,null,null,null,null,"Q0001032_FMC_Test"]
["Causes","Cause","ZB;ZC,ZD.ZF","Q1005051","Welding Cladding","0001","Amps","0001 Amps",null,null,null,null,null,"Q0001032_FMC_Test"]
["Causes","Cause","ZB;ZC,ZD.ZF","Q1005051","Welding Cladding","0002","Arc Voltage Too High","0002 Arc Voltage Too High",null,null,null,null,null,"Q0001032_FMC_Test"]
["Causes","Cause","ZB;ZC,ZD.ZF","Q1005051","Welding Cladding","0003","Arc Voltage Too Low","0003 Arc Voltage Too Low",null,null,null,null,null,"Q0001032_FMC_Test"]
["Causes","Cause","ZB;ZC,ZD.ZF","Q1005051","Welding Cladding","0004","Contaminated Filler Metal","0004 Contaminated Filler Metal",null,null,null,null,null,"Q0001032_FMC_Test"]
["Causes","Cause","ZB;ZC,ZD.ZF","Q1005051","Welding Cladding","0005","Contaminated Gas (From Supplier)","0005 Contaminated Gas (From Supplier)",null,null,null,null,null,"Q0001032_FMC_Test"]
["Causes","Cause","ZB;ZC,ZD.ZF","Q1005051","Welding Cladding","0006","Electrode Stickout Weld Puddle Rolling In Front of the Arc","0006 Electrode Stickout Weld Puddle Rolling In Front of the Arc",null," ",null,null,null,"Q0001032_FMC_Test"]
["Causes","Cause","ZB;ZC,ZD.ZF","Q1005051","Welding Cladding","0007","Excessive Joint Restraint","0007 Excessive Joint Restraint",null,null,null,null,null,"Q0001032_FMC_Test"]
["Causes","Cause","ZB;ZC,ZD.ZF","Q1005051","Welding Cladding","0008","Excessive Oxide On Plate","0008 Excessive Oxide On Plate",null,null,null,null,null,"Q0001032_FMC_Test"]
["Causes","Cause","ZB;ZC,ZD.ZF","Q1005051","Welding Cladding","0009","Excessive Welding Currents","0009 Excessive Welding Currents",null,null,null,null,null,"Q0001032_FMC_Test"]
["Causes","Cause","ZB;ZC,ZD.ZF","Q1005051","Welding Cladding","0010","Excessive Wire Feed","0010 Excessive Wire Feed",null,null,null,null,null,"Q0001032_FMC_Test"]
["Causes","Cause","ZB;ZC,ZD.ZF","Q1005051","Welding Cladding","0011","Excessive Wire / Electrode Feed Speed","0011 Excessive Wire / Electrode Feed Speed",null,null,null,null,null,"Q0001032_FMC_Test"]
["Causes","Cause","ZB;ZC,ZD.ZF","Q1005051","Welding Cladding","0012","Failure To Remove Slag / Oxides Between Weld Passes","0012 Failure To Remove Slag / Oxides Between Weld Passes",null,null,null,null,null,"Q0001032_FMC_Test"]
["Causes","Cause","ZB;ZC,ZD.ZF","Q1005051","Welding Cladding","0013","Heat Input","0013 Heat Input",null,null,null,null,null,"Q0001032_FMC_Test"]
["Causes","Cause","ZB;ZC,ZD.ZF","Q1005051","Welding Cladding","0014","High Hardness","0014 High Hardness",null,null,null,null,null,"Q0001032_FMC_Test"]
["Causes","Cause","ZB;ZC,ZD.ZF","Q1005051","Welding Cladding","0015","Hole / Leak In Hose Or Manifold System","0015 Hole / Leak In Hose Or Manifold System",null,null,null,null,null,"Q0001032_FMC_Test"]
["Causes","Cause","ZB;ZC,ZD.ZF","Q1005051","Welding Cladding","0016","Improper Cleaning","0016 Improper Cleaning",null,null,null,null,null,"Q0001032_FMC_Test"]
["Causes","Cause","ZB;ZC,ZD.ZF","Q1005051","Welding Cladding","0017","Incorrect Base Metal Chemistry","0017 Incorrect Base Metal Chemistry",null,null,null,null,null,"Q0001032_FMC_Test"]
["Causes","Cause","ZB;ZC,ZD.ZF","Q1005051","Welding Cladding","0018","Incorrect Bead Placement","0018 Incorrect Bead Placement",null,null,null,null,null,"Q0001032_FMC_Test"]
["Causes","Cause","ZB;ZC,ZD.ZF","Q1005051","Welding Cladding","0019","Incorrect Wire Chemistry","0019 Incorrect Wire Chemistry",null,null,null,null,null,"Q0001032_FMC_Test"]
["Causes","Cause","ZB;ZC,ZD.ZF","Q1005051","Welding Cladding","0020","Insufficient Purge","0020 Insufficient Purge",null,null," ",null,null,"Q0001032_FMC_Test"]
["Causes","Cause","ZB;ZC,ZD.ZF","Q1005051","Welding Cladding","0021","Insufficient Dwell At Edge of Weld Bead","0021 Insufficient Dwell At Edge of Weld Bead",null,null,null,null,null,"Q0001032_FMC_Test"]
["Causes","Cause","ZB;ZC,ZD.ZF","Q1005051","Welding Cladding","0022","Insufficient Preheat","0022 Insufficient Preheat",null,null,null,null,null,"Q0001032_FMC_Test"]
["Causes","Cause","ZB;ZC,ZD.ZF","Q1005051","Welding Cladding","0024","Insufficient Shielding Gas Flow","0024 Insufficient Shielding Gas Flow",null,null,null,null,null,"Q0001032_FMC_Test"]
["Causes","Cause","ZB;ZC,ZD.ZF","Q1005051","Welding Cladding","0025","Insufficient Weld Passes","0025 Insufficient Weld Passes",null,null,null,null,null,"Q0001032_FMC_Test"]
["Causes","Cause","ZB;ZC,ZD.ZF","Q1005051","Welding Cladding","0026","Insufficient Wire Feed","0026 Insufficient Wire Feed",null,null,null,null,null,"Q0001032_FMC_Test"]
["Causes","Cause","ZB;ZC,ZD.ZF","Q1005051","Welding Cladding","0027","Interpass","0027 Interpass",null,null," ",null,null,"Q0001032_FMC_Test"]
["Causes","Cause","ZB;ZC,ZD.ZF","Q1005051","Welding Cladding","0028","Low Hardness","0028 Low Hardness",null,null,null,null,null,"Q0001032_FMC_Test"]
["Causes","Cause","ZB;ZC,ZD.ZF","Q1005051","Welding Cladding","0029","Oil, Heavy Rust, Scale, etc. On Plate","0029 Oil, Heavy Rust, Scale, etc. On Plate",null,null,null,null,null,"Q0001032_FMC_Test"]
["Causes","Cause","ZB;ZC,ZD.ZF","Q1005051","Welding Cladding","0030","Operator Error","0030 Operator Error",null,null,null,null,null,"Q0001032_FMC_Test"]
["Causes","Cause","ZB;ZC,ZD.ZF","Q1005051","Welding Cladding","0031","Out of Tolerance","0031 Out of Tolerance",null,null,null,null,null,"Q0001032_FMC_Test"]
["Causes","Cause","ZB;ZC,ZD.ZF","Q1005051","Welding Cladding","0032","Poor Filler Metal Control (ex. Hic)",{"$f":"F474&\" \"&G474","v":"0032 Poor Filler Metal Control (ex. Hic)"},null,null,null,null,null,"Q0001032_FMC_Test"]
["Causes","Cause","ZB;ZC,ZD.ZF","Q1005051","Welding Cladding","0033","Pre Heat","0033 Pre Heat",null,null,null,null,null,"Q0001032_FMC_Test"]
["Causes","Cause","ZB;ZC,ZD.ZF","Q1005051","Welding Cladding","0034","PWHT Error","0034 PWHT Error",null,null,null,null,null,"Q0001032_FMC_Test"]
["Causes","Cause","ZB;ZC,ZD.ZF","Q1005051","Welding Cladding","0035","Shielding Problem; Wind, Clogged Or Small Nozzle, Damaged Gas Hose, Excessive Gasflow, etc. ","0035 Shielding Problem; Wind, Clogged Or Small Nozzle, Damaged Gas Hose, Excessive Gasflow, etc. ",null,null,null,null,null,"Q0001032_FMC_Test"]
["Causes","Cause","ZB;ZC,ZD.ZF","Q1005051","Welding Cladding","0036","Too Fast Travel Speed","0036 Too Fast Travel Speed",null,null,null,null,null,"Q0001032_FMC_Test"]
["Causes","Cause","ZB;ZC,ZD.ZF","Q1005051","Welding Cladding","0037","Too Much Wire Feed","0037 Too Much Wire Feed",null,null,null,null,null,"Q0001032_FMC_Test"]
["Causes","Cause","ZB;ZC,ZD.ZF","Q1005051","Welding Cladding","0038","Torch Oscillation Too Wide Or Too Narrow","0038 Torch Oscillation Too Wide Or Too Narrow",null,null,null,null,null,"Q0001032_FMC_Test"]
["Causes","Cause","ZB;ZC,ZD.ZF","Q1005051","Welding Cladding","0039","Travel Speed","0039 Travel Speed",null,null,null,null,null,"Q0001032_FMC_Test"]
["Causes","Cause","ZB;ZC,ZD.ZF","Q1005051","Welding Cladding","0040","Travel Speed Too High","0040 Travel Speed Too High",null,null,null,null,null,"Q0001032_FMC_Test"]
["Causes","Cause","ZB;ZC,ZD.ZF","Q1005051","Welding Cladding","0041","Travel Speed Too Low","0041 Travel Speed Too Low",null,null,null,null,null,"Q0001032_FMC_Test"]
["Causes","Cause","ZB;ZC,ZD.ZF","Q1005051","Welding Cladding","0042","Volts","0042 Volts",null,null,null,null,null,"Q0001032_FMC_Test"]
["Causes","Cause","ZB;ZC,ZD.ZF","Q1005051","Welding Cladding","0043","Weld Bead Too Small","0043 Weld Bead Too Small",null,null," ",null,null,"Q0001032_FMC_Test"]
["Causes","Cause","ZB;ZC,ZD.ZF","Q1005051","Welding Cladding","0044","Weld joint Too Narrow","0044 Weld joint Too Narrow",null," ",null,null,null,"Q0001032_FMC_Test"]
["Causes","Cause","ZB;ZC,ZD.ZF","Q1005051","Welding Cladding","0045","Welding Current Too Low; Too Much","0045 Welding Current Too Low; Too Much",null,null,null,null,null,"Q0001032_FMC_Test"]
["Causes","Cause","ZB;ZC,ZD.ZF","Q1005051","Welding Cladding","0046","Welding Over Convex Bead","0046 Welding Over Convex Bead",null,null,null,null,null,"Q0001032_FMC_Test"]
["Causes","Cause","ZB;ZC,ZD.ZF","Q1005051","Welding Cladding","0047","Welding Over Slag From Covered Electrode","0047 Welding Over Slag From Covered Electrode",null,null,null,null,null,"Q0001032_FMC_Test"]
["Causes","Cause","ZB;ZC,ZD.ZF","Q1005051","Welding Cladding","0048","Welding Voltage and / Or Current Too Low","0048 Welding Voltage and / Or Current Too Low",null,null,null,null,null,"Q0001032_FMC_Test"]
["Causes","Cause","ZB;ZC,ZD.ZF","Q1005051","Welding Cladding","0049","Welding Voltage Too High","0049 Welding Voltage Too High",null,null,null,null,null,"Q0001032_FMC_Test"]
["Causes","Cause","ZB;ZC,ZD.ZF","Q1005051","Welding Cladding","0050","Wire – May Need Wire Higher in Mn and Si","0050 Wire – May Need Wire Higher in Mn and Si",null,null,null,null,null,"Q0001032_FMC_Test"]
["Causes","Cause","ZB;ZC,ZD.ZF","Q1005051","Welding Cladding","0051","Wire Feed Speed","0051 Wire Feed Speed",null,null,null,null,null,"Q0001032_FMC_Test"]
["Causes","Cause","ZB;ZC,ZD.ZF","Q1005051","Welding Cladding","0052","Wire Feed Too Low","0052 Wire Feed Too Low",null,null,null,null,null,"Q0001032_FMC_Test"]
["Causes","Cause","ZB;ZC,ZD.ZF","Q1005051","Welding Cladding","0053","Wrong Filler / Base Metal Combination","0053 Wrong Filler / Base Metal Combination",null,null,null,null,null,"Q0001032_FMC_Test"]
["Causes","Cause","ZB;ZC,ZD.ZF","Q1005051","Welding Cladding","0054","Wrong Gas","0054 Wrong Gas",null,null,null,null,null,"Q0001032_FMC_Test"]
["Causes","Cause","ZB;ZC,ZD.ZF","Q1005051","Welding Cladding","0055","Incorrect Heat Treatment","0055 Incorrect Heat Treatment",null,null,null,null,null,"Q0001032_FMC_Test"]
["Causes","Cause","ZB;ZC,ZD.ZF","Q1005051","Welding Cladding","0056","Material Incorrect","0056 Material Incorrect",null,null,null,null,null,"Q0001032_FMC_Test"]
[null,null,null,null,null,null,null," ",null," ",null,null,null,"Q0001030_FMC_Assembly"]
["Causes","Cause","ZB;ZC,ZD.ZF","Q1005052","Welding_Butter",null,null," ",null,null,null,null,null,"Q0001032_FMC_Test"]
["Causes","Cause","ZB;ZC,ZD.ZF","Q1005052","Welding Butter","0001","Amps","0001 Amps",null,null,null,null,null,"Q0001032_FMC_Test"]
["Causes","Cause","ZB;ZC,ZD.ZF","Q1005052","Welding Butter","0002","Arc Voltage Too High","0002 Arc Voltage Too High",null,null,null,null,null,"Q0001032_FMC_Test"]
["Causes","Cause","ZB;ZC,ZD.ZF","Q1005052","Welding Butter","0003","Arc Voltage Too Low","0003 Arc Voltage Too Low",null,null,null,null,null,"Q0001032_FMC_Test"]
["Causes","Cause","ZB;ZC,ZD.ZF","Q1005052","Welding Butter","0004","Contaminated Filler Metal","0004 Contaminated Filler Metal",null,null,null,null,null,"Q0001032_FMC_Test"]
["Causes","Cause","ZB;ZC,ZD.ZF","Q1005052","Welding Butter","0005","Contaminated Gas (From Supplier)","0005 Contaminated Gas (From Supplier)",null,null,null,null,null,"Q0001032_FMC_Test"]
["Causes","Cause","ZB;ZC,ZD.ZF","Q1005052","Welding Butter","0006","Electrode Stickout Weld Puddle Rolling In Front of the Arc","0006 Electrode Stickout Weld Puddle Rolling In Front of the Arc",null," ",null,null,null,"Q0001032_FMC_Test"]
["Causes","Cause","ZB;ZC,ZD.ZF","Q1005052","Welding Butter","0007","Excessive Joint Restraint","0007 Excessive Joint Restraint",null,null,null,null,null,"Q0001032_FMC_Test"]
["Causes","Cause","ZB;ZC,ZD.ZF","Q1005052","Welding Butter","0008","Excessive Oxide On Plate","0008 Excessive Oxide On Plate",null,null,null,null,null,"Q0001032_FMC_Test"]
["Causes","Cause","ZB;ZC,ZD.ZF","Q1005052","Welding Butter","0009","Excessive Welding Currents","0009 Excessive Welding Currents",null,null,null,null,null,"Q0001032_FMC_Test"]
["Causes","Cause","ZB;ZC,ZD.ZF","Q1005052","Welding Butter","0010","Excessive Wire Feed","0010 Excessive Wire Feed",null,null,null,null,null,"Q0001032_FMC_Test"]
["Causes","Cause","ZB;ZC,ZD.ZF","Q1005052","Welding Butter","0011","Excessive Wire / Electrode Feed Speed","0011 Excessive Wire / Electrode Feed Speed",null,null,null,null,null,"Q0001032_FMC_Test"]
["Causes","Cause","ZB;ZC,ZD.ZF","Q1005052","Welding Butter","0012","Failure To Remove Slag / Oxides Between Weld Passes","0012 Failure To Remove Slag / Oxides Between Weld Passes",null,null,null,null,null,"Q0001032_FMC_Test"]
["Causes","Cause","ZB;ZC,ZD.ZF","Q1005052","Welding Butter","0013","Heat Input","0013 Heat Input",null,null,null,null,null,"Q0001032_FMC_Test"]
["Causes","Cause","ZB;ZC,ZD.ZF","Q1005052","Welding Butter","0014","High Hardness","0014 High Hardness",null,null,null,null,null,"Q0001032_FMC_Test"]
["Causes","Cause","ZB;ZC,ZD.ZF","Q1005052","Welding Butter","0015","Hole / Leak In Hose Or Manifold System","0015 Hole / Leak In Hose Or Manifold System",null,null,null,null,null,"Q0001032_FMC_Test"]
["Causes","Cause","ZB;ZC,ZD.ZF","Q1005052","Welding Butter","0016","Improper Cleaning","0016 Improper Cleaning",null,null,null,null,null,"Q0001032_FMC_Test"]
["Causes","Cause","ZB;ZC,ZD.ZF","Q1005052","Welding Butter","0017","Incorrect Base Metal Chemistry","0017 Incorrect Base Metal Chemistry",null,null,null,null,null,"Q0001032_FMC_Test"]
["Causes","Cause","ZB;ZC,ZD.ZF","Q1005052","Welding Butter","0018","Incorrect Bead Placement","0018 Incorrect Bead Placement",null,null,null,null,null,"Q0001032_FMC_Test"]
["Causes","Cause","ZB;ZC,ZD.ZF","Q1005052","Welding Butter","0019","Incorrect Wire Chemistry","0019 Incorrect Wire Chemistry",null,null,null,null,null,"Q0001032_FMC_Test"]
["Causes","Cause","ZB;ZC,ZD.ZF","Q1005052","Welding Butter","0020","Insufficient Purge","0020 Insufficient Purge",null,null," ",null,null,"Q0001032_FMC_Test"]
["Causes","Cause","ZB;ZC,ZD.ZF","Q1005052","Welding Butter","0021","Insufficient Dwell At Edge of Weld Bead","0021 Insufficient Dwell At Edge of Weld Bead",null,null,null,null,null,"Q0001032_FMC_Test"]
["Causes","Cause","ZB;ZC,ZD.ZF","Q1005052","Welding Butter","0022","Insufficient Preheat","0022 Insufficient Preheat",null,null,null,null,null,"Q0001032_FMC_Test"]
["Causes","Cause","ZB;ZC,ZD.ZF","Q1005052","Welding Butter","0024","Insufficient Shielding Gas Flow","0024 Insufficient Shielding Gas Flow",null,null,null,null,null,"Q0001032_FMC_Test"]
["Causes","Cause","ZB;ZC,ZD.ZF","Q1005052","Welding Butter","0025","Insufficient Weld Passes","0025 Insufficient Weld Passes",null,null,null,null,null,"Q0001032_FMC_Test"]
["Causes","Cause","ZB;ZC,ZD.ZF","Q1005052","Welding Butter","0026","Insufficient Wire Feed","0026 Insufficient Wire Feed",null,null,null,null,null,"Q0001032_FMC_Test"]
["Causes","Cause","ZB;ZC,ZD.ZF","Q1005052","Welding Butter","0027","Interpass","0027 Interpass",null,null," ",null,null,"Q0001032_FMC_Test"]
["Causes","Cause","ZB;ZC,ZD.ZF","Q1005052","Welding Butter","0028","Low Hardness","0028 Low Hardness",null,null,null,null,null,"Q0001032_FMC_Test"]
["Causes","Cause","ZB;ZC,ZD.ZF","Q1005052","Welding Butter","0029","Oil, Heavy Rust, Scale, etc. On Plate","0029 Oil, Heavy Rust, Scale, etc. On Plate",null,null,null,null,null,"Q0001032_FMC_Test"]
["Causes","Cause","ZB;ZC,ZD.ZF","Q1005052","Welding Butter","0030","Operator Error","0030 Operator Error",null,null,null,null,null,"Q0001032_FMC_Test"]
["Causes","Cause","ZB;ZC,ZD.ZF","Q1005052","Welding Butter","0031","Out of Tolerance","0031 Out of Tolerance",null,null,null,null,null,"Q0001032_FMC_Test"]
["Causes","Cause","ZB;ZC,ZD.ZF","Q1005052","Welding Butter","0032","Poor Filler Metal Control (ex. Hic)","0032 Poor Filler Metal Control (ex. Hic)",null,null,null,null,null,"Q0001032_FMC_Test"]
["Causes","Cause","ZB;ZC,ZD.ZF","Q1005052","Welding Butter","0033","Pre Heat","0033 Pre Heat",null,null,null,null,null,"Q0001032_FMC_Test"]
["Causes","Cause","ZB;ZC,ZD.ZF","Q1005052","Welding Butter","0034","PWHT Error","0034 PWHT Error",null,null,null,null,null,"Q0001032_FMC_Test"]
["Causes","Cause","ZB;ZC,ZD.ZF","Q1005052","Welding Butter","0035","Shielding Problem; Wind, Clogged Or Small Nozzle, Damaged Gas Hose, Excessive Gasflow, etc. ","0035 Shielding Problem; Wind, Clogged Or Small Nozzle, Damaged Gas Hose, Excessive Gasflow, etc. ",null,null,null,null,null,"Q0001032_FMC_Test"]
["Causes","Cause","ZB;ZC,ZD.ZF","Q1005052","Welding Butter","0036","Too Fast Travel Speed","0036 Too Fast Travel Speed",null,null,null,null,null,"Q0001032_FMC_Test"]
["Causes","Cause","ZB;ZC,ZD.ZF","Q1005052","Welding Butter","0037","Too Much Wire Feed","0037 Too Much Wire Feed",null,null,null,null,null,"Q0001032_FMC_Test"]
["Causes","Cause","ZB;ZC,ZD.ZF","Q1005052","Welding Butter","0038","Torch Oscillation Too Wide Or Too Narrow","0038 Torch Oscillation Too Wide Or Too Narrow",null,null,null,null,null,"Q0001032_FMC_Test"]
["Causes","Cause","ZB;ZC,ZD.ZF","Q1005052","Welding Butter","0039","Travel Speed",{"$f":"F538&\" \"&G538","v":"0039 Travel Speed"},null,null,null,null,null,"Q0001032_FMC_Test"]
["Causes","Cause","ZB;ZC,ZD.ZF","Q1005052","Welding Butter","0040","Travel Speed Too High","0040 Travel Speed Too High",null,null,null,null,null,"Q0001032_FMC_Test"]
["Causes","Cause","ZB;ZC,ZD.ZF","Q1005052","Welding Butter","0041","Travel Speed Too Low","0041 Travel Speed Too Low",null,null,null,null,null,"Q0001032_FMC_Test"]
["Causes","Cause","ZB;ZC,ZD.ZF","Q1005052","Welding Butter","0042","Volts","0042 Volts",null,null,null,null,null,"Q0001032_FMC_Test"]
["Causes","Cause","ZB;ZC,ZD.ZF","Q1005052","Welding Butter","0043","Weld Bead Too Small","0043 Weld Bead Too Small",null,null," ",null,null,"Q0001032_FMC_Test"]
["Causes","Cause","ZB;ZC,ZD.ZF","Q1005052","Welding Butter","0044","Weld joint Too Narrow","0044 Weld joint Too Narrow",null," ",null,null,null,"Q0001032_FMC_Test"]
["Causes","Cause","ZB;ZC,ZD.ZF","Q1005052","Welding Butter","0045","Welding Current Too Low; Too Much","0045 Welding Current Too Low; Too Much",null,null,null,null,null,"Q0001032_FMC_Test"]
["Causes","Cause","ZB;ZC,ZD.ZF","Q1005052","Welding Butter","0046","Welding Over Convex Bead","0046 Welding Over Convex Bead",null,null,null,null,null,"Q0001032_FMC_Test"]
["Causes","Cause","ZB;ZC,ZD.ZF","Q1005052","Welding Butter","0047","Welding Over Slag From Covered Electrode","0047 Welding Over Slag From Covered Electrode",null,null,null,null,null,"Q0001032_FMC_Test"]
["Causes","Cause","ZB;ZC,ZD.ZF","Q1005052","Welding Butter","0048","Welding Voltage and / Or Current Too Low","0048 Welding Voltage and / Or Current Too Low",null,null,null,null,null,"Q0001032_FMC_Test"]
["Causes","Cause","ZB;ZC,ZD.ZF","Q1005052","Welding Butter","0049","Welding Voltage Too High","0049 Welding Voltage Too High",null,null,null,null,null,"Q0001032_FMC_Test"]
["Causes","Cause","ZB;ZC,ZD.ZF","Q1005052","Welding Butter","0050","Wire – May Need Wire Higher in Mn and Si","0050 Wire – May Need Wire Higher in Mn and Si",null,null,null,null,null,"Q0001032_FMC_Test"]
["Causes","Cause","ZB;ZC,ZD.ZF","Q1005052","Welding Butter","0051","Wire Feed Speed","0051 Wire Feed Speed",null,null,null,null,null,"Q0001032_FMC_Test"]
["Causes","Cause","ZB;ZC,ZD.ZF","Q1005052","Welding Butter","0052","Wire Feed Too Low","0052 Wire Feed Too Low",null,null,null,null,null,"Q0001032_FMC_Test"]
["Causes","Cause","ZB;ZC,ZD.ZF","Q1005052","Welding Butter","0053","Wrong Filler / Base Metal Combination","0053 Wrong Filler / Base Metal Combination",null,null,null,null,null,"Q0001032_FMC_Test"]
["Causes","Cause","ZB;ZC,ZD.ZF","Q1005052","Welding Butter","0054","Wrong Gas","0054 Wrong Gas",null,null,null,null,null,"Q0001032_FMC_Test"]
["Causes","Cause","ZB;ZC,ZD.ZF","Q1005052","Welding Butter","0055","Incorrect Heat Treatment","0055 Incorrect Heat Treatment",null,null,null,null,null,"Q0001032_FMC_Test"]
["Causes","Cause","ZB;ZC,ZD.ZF","Q1005052","Welding Butter","0056","Material Incorrect","0056 Material Incorrect",null,null,null,null,null,"Q0001032_FMC_Test"]
[null,null,null,null,null,null,null," ",null," ",null,null,null,"Q0001030_FMC_Assembly"]
["Causes","Cause","ZB;ZC,ZD.ZF","Q1005053","Welding_Manual_Closure",null,null," "]
["Causes","Cause","ZB;ZC,ZD.ZF","Q1005053","Welding Manual Closure","0001","Amps","0001 Amps"]
["Causes","Cause","ZB;ZC,ZD.ZF","Q1005053","Welding Manual Closure","0002","Arc Voltage Too High","0002 Arc Voltage Too High"]
["Causes","Cause","ZB;ZC,ZD.ZF","Q1005053","Welding Manual Closure","0003","Arc Voltage Too Low","0003 Arc Voltage Too Low"]
["Causes","Cause","ZB;ZC,ZD.ZF","Q1005053","Welding Manual Closure","0004","Contaminated Filler Metal","0004 Contaminated Filler Metal"]
["Causes","Cause","ZB;ZC,ZD.ZF","Q1005053","Welding Manual Closure","0005","Contaminated Gas (From Supplier)","0005 Contaminated Gas (From Supplier)"]
["Causes","Cause","ZB;ZC,ZD.ZF","Q1005053","Welding Manual Closure","0006","Electrode Stickout Weld Puddle Rolling In Front of the Arc","0006 Electrode Stickout Weld Puddle Rolling In Front of the Arc"]
["Causes","Cause","ZB;ZC,ZD.ZF","Q1005053","Welding Manual Closure","0007","Excessive Joint Restraint","0007 Excessive Joint Restraint",null,null," "]
["Causes","Cause","ZB;ZC,ZD.ZF","Q1005053","Welding Manual Closure","0008","Excessive Oxide On Plate","0008 Excessive Oxide On Plate"]
["Causes","Cause","ZB;ZC,ZD.ZF","Q1005053","Welding Manual Closure","0009","Excessive Welding Currents","0009 Excessive Welding Currents"]
["Causes","Cause","ZB;ZC,ZD.ZF","Q1005053","Welding Manual Closure","0010","Excessive Wire Feed","0010 Excessive Wire Feed"]
["Causes","Cause","ZB;ZC,ZD.ZF","Q1005053","Welding Manual Closure","0011","Excessive Wire / Electrode Feed Speed","0011 Excessive Wire / Electrode Feed Speed"]
["Causes","Cause","ZB;ZC,ZD.ZF","Q1005053","Welding Manual Closure","0012","Failure To Remove Slag / Oxides Between Weld Passes","0012 Failure To Remove Slag / Oxides Between Weld Passes"]
["Causes","Cause","ZB;ZC,ZD.ZF","Q1005053","Welding Manual Closure","0013","Heat Input","0013 Heat Input"]
["Causes","Cause","ZB;ZC,ZD.ZF","Q1005053","Welding Manual Closure","0014","High Hardness","0014 High Hardness"]
["Causes","Cause","ZB;ZC,ZD.ZF","Q1005053","Welding Manual Closure","0015","Hole / Leak In Hose Or Manifold System","0015 Hole / Leak In Hose Or Manifold System"]
["Causes","Cause","ZB;ZC,ZD.ZF","Q1005053","Welding Manual Closure","0016","Improper Cleaning","0016 Improper Cleaning"]
["Causes","Cause","ZB;ZC,ZD.ZF","Q1005053","Welding Manual Closure","0017","Incorrect Base Metal Chemistry","0017 Incorrect Base Metal Chemistry"]
["Causes","Cause","ZB;ZC,ZD.ZF","Q1005053","Welding Manual Closure","0018","Incorrect Bead Placement","0018 Incorrect Bead Placement"]
["Causes","Cause","ZB;ZC,ZD.ZF","Q1005053","Welding Manual Closure","0019","Incorrect Wire Chemistry","0019 Incorrect Wire Chemistry"]
["Causes","Cause","ZB;ZC,ZD.ZF","Q1005053","Welding Manual Closure","0020","Insufficient Purge","0020 Insufficient Purge"]
["Causes","Cause","ZB;ZC,ZD.ZF","Q1005053","Welding Manual Closure","0021","Insufficient Dwell At Edge of Weld Bead","0021 Insufficient Dwell At Edge of Weld Bead"]
["Causes","Cause","ZB;ZC,ZD.ZF","Q1005053","Welding Manual Closure","0022","Insufficient Preheat","0022 Insufficient Preheat"]
["Causes","Cause","ZB;ZC,ZD.ZF","Q1005053","Welding Manual Closure","0024","Insufficient Shielding Gas Flow","0024 Insufficient Shielding Gas Flow"]
["Causes","Cause","ZB;ZC,ZD.ZF","Q1005053","Welding Manual Closure","0025","Insufficient Weld Passes","0025 Insufficient Weld Passes"]
["Causes","Cause","ZB;ZC,ZD.ZF","Q1005053","Welding Manual Closure","0026","Insufficient Wire Feed","0026 Insufficient Wire Feed"]
["Causes","Cause","ZB;ZC,ZD.ZF","Q1005053","Welding Manual Closure","0027","Interpass","0027 Interpass"]
["Causes","Cause","ZB;ZC,ZD.ZF","Q1005053","Welding Manual Closure","0028","Low Hardness","0028 Low Hardness"]
["Causes","Cause","ZB;ZC,ZD.ZF","Q1005053","Welding Manual Closure","0029","Oil, Heavy Rust, Scale, etc. On Plate","0029 Oil, Heavy Rust, Scale, etc. On Plate"]
["Causes","Cause","ZB;ZC,ZD.ZF","Q1005053","Welding Manual Closure","0030","Operator Error","0030 Operator Error"]
["Causes","Cause","ZB;ZC,ZD.ZF","Q1005053","Welding Manual Closure","0031","Out of Tolerance","0031 Out of Tolerance"]
["Causes","Cause","ZB;ZC,ZD.ZF","Q1005053","Welding Manual Closure","0032","Poor Filler Metal Control (ex. Hic)","0032 Poor Filler Metal Control (ex. Hic)"]
["Causes","Cause","ZB;ZC,ZD.ZF","Q1005053","Welding Manual Closure","0033","Pre Heat","0033 Pre Heat"]
["Causes","Cause","ZB;ZC,ZD.ZF","Q1005053","Welding Manual Closure","0034","PWHT Error","0034 PWHT Error"]
["Causes","Cause","ZB;ZC,ZD.ZF","Q1005053","Welding Manual Closure","0035","Shielding Problem; Wind, Clogged Or Small Nozzle, Damaged Gas Hose, Excessive Gasflow, etc. ","0035 Shielding Problem; Wind, Clogged Or Small Nozzle, Damaged Gas Hose, Excessive Gasflow, etc. "]
["Causes","Cause","ZB;ZC,ZD.ZF","Q1005053","Welding Manual Closure","0036","Too Fast Travel Speed","0036 Too Fast Travel Speed"]
["Causes","Cause","ZB;ZC,ZD.ZF","Q1005053","Welding Manual Closure","0037","Too Much Wire Feed","0037 Too Much Wire Feed"]
["Causes","Cause","ZB;ZC,ZD.ZF","Q1005053","Welding Manual Closure","0038","Torch Oscillation Too Wide Or Too Narrow","0038 Torch Oscillation Too Wide Or Too Narrow"]
["Causes","Cause","ZB;ZC,ZD.ZF","Q1005053","Welding Manual Closure","0039","Travel Speed","0039 Travel Speed"]
["Causes","Cause","ZB;ZC,ZD.ZF","Q1005053","Welding Manual Closure","0040","Travel Speed Too High","0040 Travel Speed Too High"]
["Causes","Cause","ZB;ZC,ZD.ZF","Q1005053","Welding Manual Closure","0041","Travel Speed Too Low","0041 Travel Speed Too Low"]
["Causes","Cause","ZB;ZC,ZD.ZF","Q1005053","Welding Manual Closure","0042","Volts","0042 Volts"]
["Causes","Cause","ZB;ZC,ZD.ZF","Q1005053","Welding Manual Closure","0043","Weld Bead Too Small","0043 Weld Bead Too Small"]
["Causes","Cause","ZB;ZC,ZD.ZF","Q1005053","Welding Manual Closure","0044","Weld joint Too Narrow","0044 Weld joint Too Narrow"]
["Causes","Cause","ZB;ZC,ZD.ZF","Q1005053","Welding Manual Closure","0045","Welding Current Too Low; Too Much","0045 Welding Current Too Low; Too Much"]
["Causes","Cause","ZB;ZC,ZD.ZF","Q1005053","Welding Manual Closure","0046","Welding Over Convex Bead",{"$f":"F602&\" \"&G602","v":"0046 Welding Over Convex Bead"}]
["Causes","Cause","ZB;ZC,ZD.ZF","Q1005053","Welding Manual Closure","0047","Welding Over Slag From Covered Electrode","0047 Welding Over Slag From Covered Electrode"]
["Causes","Cause","ZB;ZC,ZD.ZF","Q1005053","Welding Manual Closure","0048","Welding Voltage and / Or Current Too Low","0048 Welding Voltage and / Or Current Too Low"]
["Causes","Cause","ZB;ZC,ZD.ZF","Q1005053","Welding Manual Closure","0049","Welding Voltage Too High","0049 Welding Voltage Too High"]
["Causes","Cause","ZB;ZC,ZD.ZF","Q1005053","Welding Manual Closure","0050","Wire – May Need Wire Higher in Mn and Si","0050 Wire – May Need Wire Higher in Mn and Si"]
["Causes","Cause","ZB;ZC,ZD.ZF","Q1005053","Welding Manual Closure","0051","Wire Feed Speed","0051 Wire Feed Speed"]
["Causes","Cause","ZB;ZC,ZD.ZF","Q1005053","Welding Manual Closure","0052","Wire Feed Too Low","0052 Wire Feed Too Low"]
["Causes","Cause","ZB;ZC,ZD.ZF","Q1005053","Welding Manual Closure","0053","Wrong Filler / Base Metal Combination","0053 Wrong Filler / Base Metal Combination"]
["Causes","Cause","ZB;ZC,ZD.ZF","Q1005053","Welding Manual Closure","0054","Wrong Gas","0054 Wrong Gas"]
["Causes","Cause","ZB;ZC,ZD.ZF","Q1005053","Welding Manual Closure","0055","Incorrect Heat Treatment","0055 Incorrect Heat Treatment"]
["Causes","Cause","ZB;ZC,ZD.ZF","Q1005053","Welding Manual Closure","0056","Material Incorrect","0056 Material Incorrect"]
[null,null,null,null,null,null,null," ",null," ",null,null,null,"Q0001030_FMC_Assembly"]
["Causes","Cause","ZB;ZC,ZD.ZF","Q1005054","Welding_Machine_Closure",null,null," "]
["Causes","Cause","ZB;ZC,ZD.ZF","Q1005054","Welding Machine Closure","0001","Amps","0001 Amps"]
["Causes","Cause","ZB;ZC,ZD.ZF","Q1005054","Welding Machine Closure","0002","Arc Voltage Too High","0002 Arc Voltage Too High"]
["Causes","Cause","ZB;ZC,ZD.ZF","Q1005054","Welding Machine Closure","0003","Arc Voltage Too Low","0003 Arc Voltage Too Low"]
["Causes","Cause","ZB;ZC,ZD.ZF","Q1005054","Welding Machine Closure","0004","Contaminated Filler Metal","0004 Contaminated Filler Metal"]
["Causes","Cause","ZB;ZC,ZD.ZF","Q1005054","Welding Machine Closure","0005","Contaminated Gas (From Supplier)","0005 Contaminated Gas (From Supplier)"]
["Causes","Cause","ZB;ZC,ZD.ZF","Q1005054","Welding Machine Closure","0006","Electrode Stickout Weld Puddle Rolling In Front of the Arc","0006 Electrode Stickout Weld Puddle Rolling In Front of the Arc"]
["Causes","Cause","ZB;ZC,ZD.ZF","Q1005054","Welding Machine Closure","0007","Excessive Joint Restraint","0007 Excessive Joint Restraint"]
["Causes","Cause","ZB;ZC,ZD.ZF","Q1005054","Welding Machine Closure","0008","Excessive Oxide On Plate","0008 Excessive Oxide On Plate"]
["Causes","Cause","ZB;ZC,ZD.ZF","Q1005054","Welding Machine Closure","0009","Excessive Welding Currents","0009 Excessive Welding Currents"]
["Causes","Cause","ZB;ZC,ZD.ZF","Q1005054","Welding Machine Closure","0010","Excessive Wire Feed","0010 Excessive Wire Feed"]
["Causes","Cause","ZB;ZC,ZD.ZF","Q1005054","Welding Machine Closure","0011","Excessive Wire / Electrode Feed Speed","0011 Excessive Wire / Electrode Feed Speed"]
["Causes","Cause","ZB;ZC,ZD.ZF","Q1005054","Welding Machine Closure","0012","Failure To Remove Slag / Oxides Between Weld Passes","0012 Failure To Remove Slag / Oxides Between Weld Passes"]
["Causes","Cause","ZB;ZC,ZD.ZF","Q1005054","Welding Machine Closure","0013","Heat Input","0013 Heat Input"]
["Causes","Cause","ZB;ZC,ZD.ZF","Q1005054","Welding Machine Closure","0014","High Hardness","0014 High Hardness"]
["Causes","Cause","ZB;ZC,ZD.ZF","Q1005054","Welding Machine Closure","0015","Hole / Leak In Hose Or Manifold System","0015 Hole / Leak In Hose Or Manifold System",null,null," "]
["Causes","Cause","ZB;ZC,ZD.ZF","Q1005054","Welding Machine Closure","0016","Improper Cleaning","0016 Improper Cleaning"]
["Causes","Cause","ZB;ZC,ZD.ZF","Q1005054","Welding Machine Closure","0017","Incorrect Base Metal Chemistry","0017 Incorrect Base Metal Chemistry"]
["Causes","Cause","ZB;ZC,ZD.ZF","Q1005054","Welding Machine Closure","0018","Incorrect Bead Placement","0018 Incorrect Bead Placement"]
["Causes","Cause","ZB;ZC,ZD.ZF","Q1005054","Welding Machine Closure","0019","Incorrect Wire Chemistry","0019 Incorrect Wire Chemistry"]
["Causes","Cause","ZB;ZC,ZD.ZF","Q1005054","Welding Machine Closure","0020","Insufficient Purge","0020 Insufficient Purge"]
["Causes","Cause","ZB;ZC,ZD.ZF","Q1005054","Welding Machine Closure","0021","Insufficient Dwell At Edge of Weld Bead","0021 Insufficient Dwell At Edge of Weld Bead"]
["Causes","Cause","ZB;ZC,ZD.ZF","Q1005054","Welding Machine Closure","0022","Insufficient Preheat","0022 Insufficient Preheat"]
["Causes","Cause","ZB;ZC,ZD.ZF","Q1005054","Welding Machine Closure","0024","Insufficient Shielding Gas Flow","0024 Insufficient Shielding Gas Flow"]
["Causes","Cause","ZB;ZC,ZD.ZF","Q1005054","Welding Machine Closure","0025","Insufficient Weld Passes","0025 Insufficient Weld Passes"]
["Causes","Cause","ZB;ZC,ZD.ZF","Q1005054","Welding Machine Closure","0026","Insufficient Wire Feed","0026 Insufficient Wire Feed"]
["Causes","Cause","ZB;ZC,ZD.ZF","Q1005054","Welding Machine Closure","0027","Interpass","0027 Interpass"]
["Causes","Cause","ZB;ZC,ZD.ZF","Q1005054","Welding Machine Closure","0028","Low Hardness","0028 Low Hardness"]
["Causes","Cause","ZB;ZC,ZD.ZF","Q1005054","Welding Machine Closure","0029","Oil, Heavy Rust, Scale, etc. On Plate","0029 Oil, Heavy Rust, Scale, etc. On Plate"]
["Causes","Cause","ZB;ZC,ZD.ZF","Q1005054","Welding Machine Closure","0030","Operator Error","0030 Operator Error"]
["Causes","Cause","ZB;ZC,ZD.ZF","Q1005054","Welding Machine Closure","0031","Out of Tolerance","0031 Out of Tolerance"]
["Causes","Cause","ZB;ZC,ZD.ZF","Q1005054","Welding Machine Closure","0032","Poor Filler Metal Control (ex. Hic)","0032 Poor Filler Metal Control (ex. Hic)"]
["Causes","Cause","ZB;ZC,ZD.ZF","Q1005054","Welding Machine Closure","0033","Pre Heat","0033 Pre Heat"]
["Causes","Cause","ZB;ZC,ZD.ZF","Q1005054","Welding Machine Closure","0034","PWHT Error","0034 PWHT Error"]
["Causes","Cause","ZB;ZC,ZD.ZF","Q1005054","Welding Machine Closure","0035","Shielding Problem; Wind, Clogged Or Small Nozzle, Damaged Gas Hose, Excessive Gasflow, etc. ","0035 Shielding Problem; Wind, Clogged Or Small Nozzle, Damaged Gas Hose, Excessive Gasflow, etc. "]
["Causes","Cause","ZB;ZC,ZD.ZF","Q1005054","Welding Machine Closure","0036","Too Fast Travel Speed","0036 Too Fast Travel Speed"]
["Causes","Cause","ZB;ZC,ZD.ZF","Q1005054","Welding Machine Closure","0037","Too Much Wire Feed","0037 Too Much Wire Feed"]
["Causes","Cause","ZB;ZC,ZD.ZF","Q1005054","Welding Machine Closure","0038","Torch Oscillation Too Wide Or Too Narrow","0038 Torch Oscillation Too Wide Or Too Narrow"]
["Causes","Cause","ZB;ZC,ZD.ZF","Q1005054","Welding Machine Closure","0039","Travel Speed","0039 Travel Speed"]
["Causes","Cause","ZB;ZC,ZD.ZF","Q1005054","Welding Machine Closure","0040","Travel Speed Too High","0040 Travel Speed Too High"]
["Causes","Cause","ZB;ZC,ZD.ZF","Q1005054","Welding Machine Closure","0041","Travel Speed Too Low","0041 Travel Speed Too Low"]
["Causes","Cause","ZB;ZC,ZD.ZF","Q1005054","Welding Machine Closure","0042","Volts","0042 Volts"]
["Causes","Cause","ZB;ZC,ZD.ZF","Q1005054","Welding Machine Closure","0043","Weld Bead Too Small","0043 Weld Bead Too Small"]
["Causes","Cause","ZB;ZC,ZD.ZF","Q1005054","Welding Machine Closure","0044","Weld joint Too Narrow","0044 Weld joint Too Narrow"]
["Causes","Cause","ZB;ZC,ZD.ZF","Q1005054","Welding Machine Closure","0045","Welding Current Too Low; Too Much","0045 Welding Current Too Low; Too Much"]
["Causes","Cause","ZB;ZC,ZD.ZF","Q1005054","Welding Machine Closure","0046","Welding Over Convex Bead","0046 Welding Over Convex Bead"]
["Causes","Cause","ZB;ZC,ZD.ZF","Q1005054","Welding Machine Closure","0047","Welding Over Slag From Covered Electrode","0047 Welding Over Slag From Covered Electrode"]
["Causes","Cause","ZB;ZC,ZD.ZF","Q1005054","Welding Machine Closure","0048","Welding Voltage and / Or Current Too Low","0048 Welding Voltage and / Or Current Too Low"]
["Causes","Cause","ZB;ZC,ZD.ZF","Q1005054","Welding Machine Closure","0049","Welding Voltage Too High","0049 Welding Voltage Too High"]
["Causes","Cause","ZB;ZC,ZD.ZF","Q1005054","Welding Machine Closure","0050","Wire – May Need Wire Higher in Mn and Si","0050 Wire – May Need Wire Higher in Mn and Si",null," "]
["Causes","Cause","ZB;ZC,ZD.ZF","Q1005054","Welding Machine Closure","0051","Wire Feed Speed","0051 Wire Feed Speed"]
["Causes","Cause","ZB;ZC,ZD.ZF","Q1005054","Welding Machine Closure","0052","Wire Feed Too Low","0052 Wire Feed Too Low"]
["Causes","Cause","ZB;ZC,ZD.ZF","Q1005054","Welding Machine Closure","0053","Wrong Filler / Base Metal Combination",{"$f":"F666&\" \"&G666","v":"0053 Wrong Filler / Base Metal Combination"}]
["Causes","Cause","ZB;ZC,ZD.ZF","Q1005054","Welding Machine Closure","0054","Wrong Gas","0054 Wrong Gas"]
["Causes","Cause","ZB;ZC,ZD.ZF","Q1005054","Welding Machine Closure","0055","Incorrect Heat Treatment","0055 Incorrect Heat Treatment"]
["Causes","Cause","ZB;ZC,ZD.ZF","Q1005054","Welding Machine Closure","0056","Material Incorrect","0056 Material Incorrect"]
[null,null,null,null,null,null,null," ",null," ",null,null,null,"Q0001030_FMC_Assembly"]
["Causes","Cause","ZB;ZC,ZD.ZF","Q1005055","Welding_Manual_Tubing",null,null," "]
["Causes","Cause","ZB;ZC,ZD.ZF","Q1005055","Welding Manual Tubing","0001","Amps","0001 Amps"]
["Causes","Cause","ZB;ZC,ZD.ZF","Q1005055","Welding Manual Tubing","0002","Arc Voltage Too High","0002 Arc Voltage Too High"]
["Causes","Cause","ZB;ZC,ZD.ZF","Q1005055","Welding Manual Tubing","0003","Arc Voltage Too Low","0003 Arc Voltage Too Low"]
["Causes","Cause","ZB;ZC,ZD.ZF","Q1005055","Welding Manual Tubing","0004","Contaminated Filler Metal","0004 Contaminated Filler Metal"]
["Causes","Cause","ZB;ZC,ZD.ZF","Q1005055","Welding Manual Tubing","0005","Contaminated Gas (From Supplier)","0005 Contaminated Gas (From Supplier)"]
["Causes","Cause","ZB;ZC,ZD.ZF","Q1005055","Welding Manual Tubing","0006","Electrode Stickout Weld Puddle Rolling In Front of the Arc","0006 Electrode Stickout Weld Puddle Rolling In Front of the Arc"]
["Causes","Cause","ZB;ZC,ZD.ZF","Q1005055","Welding Manual Tubing","0007","Excessive Joint Restraint","0007 Excessive Joint Restraint"]
["Causes","Cause","ZB;ZC,ZD.ZF","Q1005055","Welding Manual Tubing","0008","Excessive Oxide On Plate","0008 Excessive Oxide On Plate"]
["Causes","Cause","ZB;ZC,ZD.ZF","Q1005055","Welding Manual Tubing","0009","Excessive Welding Currents","0009 Excessive Welding Currents"]
["Causes","Cause","ZB;ZC,ZD.ZF","Q1005055","Welding Manual Tubing","0010","Excessive Wire Feed","0010 Excessive Wire Feed"]
["Causes","Cause","ZB;ZC,ZD.ZF","Q1005055","Welding Manual Tubing","0011","Excessive Wire / Electrode Feed Speed","0011 Excessive Wire / Electrode Feed Speed",null," "]
["Causes","Cause","ZB;ZC,ZD.ZF","Q1005055","Welding Manual Tubing","0012","Failure To Remove Slag / Oxides Between Weld Passes","0012 Failure To Remove Slag / Oxides Between Weld Passes"]
["Causes","Cause","ZB;ZC,ZD.ZF","Q1005055","Welding Manual Tubing","0013","Heat Input","0013 Heat Input"]
["Causes","Cause","ZB;ZC,ZD.ZF","Q1005055","Welding Manual Tubing","0014","High Hardness","0014 High Hardness"]
["Causes","Cause","ZB;ZC,ZD.ZF","Q1005055","Welding Manual Tubing","0015","Hole / Leak In Hose Or Manifold System","0015 Hole / Leak In Hose Or Manifold System",null,null," "]
["Causes","Cause","ZB;ZC,ZD.ZF","Q1005055","Welding Manual Tubing","0016","Improper Cleaning","0016 Improper Cleaning"]
["Causes","Cause","ZB;ZC,ZD.ZF","Q1005055","Welding Manual Tubing","0017","Incorrect Base Metal Chemistry","0017 Incorrect Base Metal Chemistry"]
["Causes","Cause","ZB;ZC,ZD.ZF","Q1005055","Welding Manual Tubing","0018","Incorrect Bead Placement","0018 Incorrect Bead Placement"]
["Causes","Cause","ZB;ZC,ZD.ZF","Q1005055","Welding Manual Tubing","0019","Incorrect Wire Chemistry","0019 Incorrect Wire Chemistry"]
["Causes","Cause","ZB;ZC,ZD.ZF","Q1005055","Welding Manual Tubing","0020","Insufficient Purge","0020 Insufficient Purge"]
["Causes","Cause","ZB;ZC,ZD.ZF","Q1005055","Welding Manual Tubing","0021","Insufficient Dwell At Edge of Weld Bead","0021 Insufficient Dwell At Edge of Weld Bead"]
["Causes","Cause","ZB;ZC,ZD.ZF","Q1005055","Welding Manual Tubing","0022","Insufficient Preheat","0022 Insufficient Preheat"]
["Causes","Cause","ZB;ZC,ZD.ZF","Q1005055","Welding Manual Tubing","0024","Insufficient Shielding Gas Flow","0024 Insufficient Shielding Gas Flow"]
["Causes","Cause","ZB;ZC,ZD.ZF","Q1005055","Welding Manual Tubing","0025","Insufficient Weld Passes","0025 Insufficient Weld Passes"]
["Causes","Cause","ZB;ZC,ZD.ZF","Q1005055","Welding Manual Tubing","0026","Insufficient Wire Feed","0026 Insufficient Wire Feed"]
["Causes","Cause","ZB;ZC,ZD.ZF","Q1005055","Welding Manual Tubing","0027","Interpass","0027 Interpass"]
["Causes","Cause","ZB;ZC,ZD.ZF","Q1005055","Welding Manual Tubing","0028","Low Hardness","0028 Low Hardness"]
["Causes","Cause","ZB;ZC,ZD.ZF","Q1005055","Welding Manual Tubing","0029","Oil, Heavy Rust, Scale, etc. On Plate","0029 Oil, Heavy Rust, Scale, etc. On Plate"]
["Causes","Cause","ZB;ZC,ZD.ZF","Q1005055","Welding Manual Tubing","0030","Operator Error","0030 Operator Error"]
["Causes","Cause","ZB;ZC,ZD.ZF","Q1005055","Welding Manual Tubing","0031","Out of Tolerance","0031 Out of Tolerance"]
["Causes","Cause","ZB;ZC,ZD.ZF","Q1005055","Welding Manual Tubing","0032","Poor Filler Metal Control (ex. Hic)","0032 Poor Filler Metal Control (ex. Hic)"]
["Causes","Cause","ZB;ZC,ZD.ZF","Q1005055","Welding Manual Tubing","0033","Pre Heat","0033 Pre Heat",null," "]
["Causes","Cause","ZB;ZC,ZD.ZF","Q1005055","Welding Manual Tubing","0034","PWHT Error","0034 PWHT Error"]
["Causes","Cause","ZB;ZC,ZD.ZF","Q1005055","Welding Manual Tubing","0035","Shielding Problem; Wind, Clogged Or Small Nozzle, Damaged Gas Hose, Excessive Gasflow, etc. ","0035 Shielding Problem; Wind, Clogged Or Small Nozzle, Damaged Gas Hose, Excessive Gasflow, etc. "]
["Causes","Cause","ZB;ZC,ZD.ZF","Q1005055","Welding Manual Tubing","0036","Too Fast Travel Speed","0036 Too Fast Travel Speed"]
["Causes","Cause","ZB;ZC,ZD.ZF","Q1005055","Welding Manual Tubing","0037","Too Much Wire Feed","0037 Too Much Wire Feed"]
["Causes","Cause","ZB;ZC,ZD.ZF","Q1005055","Welding Manual Tubing","0038","Torch Oscillation Too Wide Or Too Narrow","0038 Torch Oscillation Too Wide Or Too Narrow"]
["Causes","Cause","ZB;ZC,ZD.ZF","Q1005055","Welding Manual Tubing","0039","Travel Speed","0039 Travel Speed"]
["Causes","Cause","ZB;ZC,ZD.ZF","Q1005055","Welding Manual Tubing","0040","Travel Speed Too High","0040 Travel Speed Too High"]
["Causes","Cause","ZB;ZC,ZD.ZF","Q1005055","Welding Manual Tubing","0041","Travel Speed Too Low","0041 Travel Speed Too Low"]
["Causes","Cause","ZB;ZC,ZD.ZF","Q1005055","Welding Manual Tubing","0042","Volts","0042 Volts"]
["Causes","Cause","ZB;ZC,ZD.ZF","Q1005055","Welding Manual Tubing","0043","Weld Bead Too Small","0043 Weld Bead Too Small"]
["Causes","Cause","ZB;ZC,ZD.ZF","Q1005055","Welding Manual Tubing","0044","Weld joint Too Narrow","0044 Weld joint Too Narrow"]
["Causes","Cause","ZB;ZC,ZD.ZF","Q1005055","Welding Manual Tubing","0045","Welding Current Too Low; Too Much","0045 Welding Current Too Low; Too Much"]
["Causes","Cause","ZB;ZC,ZD.ZF","Q1005055","Welding Manual Tubing","0046","Welding Over Convex Bead","0046 Welding Over Convex Bead"]
["Causes","Cause","ZB;ZC,ZD.ZF","Q1005055","Welding Manual Tubing","0047","Welding Over Slag From Covered Electrode","0047 Welding Over Slag From Covered Electrode"]
["Causes","Cause","ZB;ZC,ZD.ZF","Q1005055","Welding Manual Tubing","0048","Welding Voltage and / Or Current Too Low","0048 Welding Voltage and / Or Current Too Low"]
["Causes","Cause","ZB;ZC,ZD.ZF","Q1005055","Welding Manual Tubing","0049","Welding Voltage Too High","0049 Welding Voltage Too High",null," "]
["Causes","Cause","ZB;ZC,ZD.ZF","Q1005055","Welding Manual Tubing","0050","Wire – May Need Wire Higher in Mn and Si","0050 Wire – May Need Wire Higher in Mn and Si"]
["Causes","Cause","ZB;ZC,ZD.ZF","Q1005055","Welding Manual Tubing","0051","Wire Feed Speed","0051 Wire Feed Speed"]
["Causes","Cause","ZB;ZC,ZD.ZF","Q1005055","Welding Manual Tubing","0052","Wire Feed Too Low","0052 Wire Feed Too Low"]
["Causes","Cause","ZB;ZC,ZD.ZF","Q1005055","Welding Manual Tubing","0053","Wrong Filler / Base Metal Combination","0053 Wrong Filler / Base Metal Combination"]
["Causes","Cause","ZB;ZC,ZD.ZF","Q1005055","Welding Manual Tubing","0054","Wrong Gas","0054 Wrong Gas"]
["Causes","Cause","ZB;ZC,ZD.ZF","Q1005055","Welding Manual Tubing","0055","Incorrect Heat Treatment","0055 Incorrect Heat Treatment"]
["Causes","Cause","ZB;ZC,ZD.ZF","Q1005055","Welding Manual Tubing","0056","Material Incorrect","0056 Material Incorrect"]
[null,null,null,null,null,null,null," ",null," ",null,null,null,"Q0001030_FMC_Assembly"]
["Causes","Cause","ZB;ZC,ZD.ZF","Q1005056","Welding_Orbital_Tubing",null,null," "]
["Causes","Cause","ZB;ZC,ZD.ZF","Q1005056","Welding Orbital Tubing","0001","Amps","0001 Amps"]
["Causes","Cause","ZB;ZC,ZD.ZF","Q1005056","Welding Orbital Tubing","0002","Arc Voltage Too High",{"$f":"F730&\" \"&G730","v":"0002 Arc Voltage Too High"}]
["Causes","Cause","ZB;ZC,ZD.ZF","Q1005056","Welding Orbital Tubing","0003","Arc Voltage Too Low","0003 Arc Voltage Too Low"]
["Causes","Cause","ZB;ZC,ZD.ZF","Q1005056","Welding Orbital Tubing","0004","Contaminated Filler Metal","0004 Contaminated Filler Metal"]
["Causes","Cause","ZB;ZC,ZD.ZF","Q1005056","Welding Orbital Tubing","0005","Contaminated Gas (From Supplier)","0005 Contaminated Gas (From Supplier)"]
["Causes","Cause","ZB;ZC,ZD.ZF","Q1005056","Welding Orbital Tubing","0006","Electrode Stickout Weld Puddle Rolling In Front of the Arc","0006 Electrode Stickout Weld Puddle Rolling In Front of the Arc"]
["Causes","Cause","ZB;ZC,ZD.ZF","Q1005056","Welding Orbital Tubing","0007","Excessive Joint Restraint","0007 Excessive Joint Restraint"]
["Causes","Cause","ZB;ZC,ZD.ZF","Q1005056","Welding Orbital Tubing","0008","Excessive Oxide On Plate","0008 Excessive Oxide On Plate"]
["Causes","Cause","ZB;ZC,ZD.ZF","Q1005056","Welding Orbital Tubing","0009","Excessive Welding Currents","0009 Excessive Welding Currents"]
["Causes","Cause","ZB;ZC,ZD.ZF","Q1005056","Welding Orbital Tubing","0010","Excessive Wire Feed","0010 Excessive Wire Feed"]
["Causes","Cause","ZB;ZC,ZD.ZF","Q1005056","Welding Orbital Tubing","0011","Excessive Wire / Electrode Feed Speed","0011 Excessive Wire / Electrode Feed Speed",null," "]
["Causes","Cause","ZB;ZC,ZD.ZF","Q1005056","Welding Orbital Tubing","0012","Failure To Remove Slag / Oxides Between Weld Passes","0012 Failure To Remove Slag / Oxides Between Weld Passes"]
["Causes","Cause","ZB;ZC,ZD.ZF","Q1005056","Welding Orbital Tubing","0013","Heat Input","0013 Heat Input"]
["Causes","Cause","ZB;ZC,ZD.ZF","Q1005056","Welding Orbital Tubing","0014","High Hardness","0014 High Hardness"]
["Causes","Cause","ZB;ZC,ZD.ZF","Q1005056","Welding Orbital Tubing","0015","Hole / Leak In Hose Or Manifold System","0015 Hole / Leak In Hose Or Manifold System",null,null," "]
["Causes","Cause","ZB;ZC,ZD.ZF","Q1005056","Welding Orbital Tubing","0016","Improper Cleaning","0016 Improper Cleaning"]
["Causes","Cause","ZB;ZC,ZD.ZF","Q1005056","Welding Orbital Tubing","0017","Incorrect Base Metal Chemistry","0017 Incorrect Base Metal Chemistry"]
["Causes","Cause","ZB;ZC,ZD.ZF","Q1005056","Welding Orbital Tubing","0018","Incorrect Bead Placement","0018 Incorrect Bead Placement"]
["Causes","Cause","ZB;ZC,ZD.ZF","Q1005056","Welding Orbital Tubing","0019","Incorrect Wire Chemistry","0019 Incorrect Wire Chemistry"]
["Causes","Cause","ZB;ZC,ZD.ZF","Q1005056","Welding Orbital Tubing","0020","Insufficient Purge","0020 Insufficient Purge"]
["Causes","Cause","ZB;ZC,ZD.ZF","Q1005056","Welding Orbital Tubing","0021","Insufficient Dwell At Edge of Weld Bead","0021 Insufficient Dwell At Edge of Weld Bead"]
["Causes","Cause","ZB;ZC,ZD.ZF","Q1005056","Welding Orbital Tubing","0022","Insufficient Preheat","0022 Insufficient Preheat"]
["Causes","Cause","ZB;ZC,ZD.ZF","Q1005056","Welding Orbital Tubing","0024","Insufficient Shielding Gas Flow","0024 Insufficient Shielding Gas Flow"]
["Causes","Cause","ZB;ZC,ZD.ZF","Q1005056","Welding Orbital Tubing","0025","Insufficient Weld Passes","0025 Insufficient Weld Passes"]
["Causes","Cause","ZB;ZC,ZD.ZF","Q1005056","Welding Orbital Tubing","0026","Insufficient Wire Feed","0026 Insufficient Wire Feed"]
["Causes","Cause","ZB;ZC,ZD.ZF","Q1005056","Welding Orbital Tubing","0027","Interpass","0027 Interpass"]
["Causes","Cause","ZB;ZC,ZD.ZF","Q1005056","Welding Orbital Tubing","0028","Low Hardness","0028 Low Hardness"]
["Causes","Cause","ZB;ZC,ZD.ZF","Q1005056","Welding Orbital Tubing","0029","Oil, Heavy Rust, Scale, etc. On Plate","0029 Oil, Heavy Rust, Scale, etc. On Plate"]
["Causes","Cause","ZB;ZC,ZD.ZF","Q1005056","Welding Orbital Tubing","0030","Operator Error","0030 Operator Error"]
["Causes","Cause","ZB;ZC,ZD.ZF","Q1005056","Welding Orbital Tubing","0031","Out of Tolerance","0031 Out of Tolerance"]
["Causes","Cause","ZB;ZC,ZD.ZF","Q1005056","Welding Orbital Tubing","0032","Poor Filler Metal Control (ex. Hic)","0032 Poor Filler Metal Control (ex. Hic)"]
["Causes","Cause","ZB;ZC,ZD.ZF","Q1005056","Welding Orbital Tubing","0033","Pre Heat","0033 Pre Heat",null," "]
["Causes","Cause","ZB;ZC,ZD.ZF","Q1005056","Welding Orbital Tubing","0034","PWHT Error","0034 PWHT Error"]
["Causes","Cause","ZB;ZC,ZD.ZF","Q1005056","Welding Orbital Tubing","0035","Shielding Problem; Wind, Clogged Or Small Nozzle, Damaged Gas Hose, Excessive Gasflow, etc. ","0035 Shielding Problem; Wind, Clogged Or Small Nozzle, Damaged Gas Hose, Excessive Gasflow, etc. "]
["Causes","Cause","ZB;ZC,ZD.ZF","Q1005056","Welding Orbital Tubing","0036","Too Fast Travel Speed","0036 Too Fast Travel Speed"]
["Causes","Cause","ZB;ZC,ZD.ZF","Q1005056","Welding Orbital Tubing","0037","Too Much Wire Feed","0037 Too Much Wire Feed"]
["Causes","Cause","ZB;ZC,ZD.ZF","Q1005056","Welding Orbital Tubing","0038","Torch Oscillation Too Wide Or Too Narrow","0038 Torch Oscillation Too Wide Or Too Narrow"]
["Causes","Cause","ZB;ZC,ZD.ZF","Q1005056","Welding Orbital Tubing","0039","Travel Speed","0039 Travel Speed"]
["Causes","Cause","ZB;ZC,ZD.ZF","Q1005056","Welding Orbital Tubing","0040","Travel Speed Too High","0040 Travel Speed Too High"]
["Causes","Cause","ZB;ZC,ZD.ZF","Q1005056","Welding Orbital Tubing","0041","Travel Speed Too Low","0041 Travel Speed Too Low"]
["Causes","Cause","ZB;ZC,ZD.ZF","Q1005056","Welding Orbital Tubing","0042","Volts","0042 Volts"]
["Causes","Cause","ZB;ZC,ZD.ZF","Q1005056","Welding Orbital Tubing","0043","Weld Bead Too Small","0043 Weld Bead Too Small"]
["Causes","Cause","ZB;ZC,ZD.ZF","Q1005056","Welding Orbital Tubing","0044","Weld joint Too Narrow","0044 Weld joint Too Narrow"]
["Causes","Cause","ZB;ZC,ZD.ZF","Q1005056","Welding Orbital Tubing","0045","Welding Current Too Low; Too Much","0045 Welding Current Too Low; Too Much"]
["Causes","Cause","ZB;ZC,ZD.ZF","Q1005056","Welding Orbital Tubing","0046","Welding Over Convex Bead","0046 Welding Over Convex Bead"]
["Causes","Cause","ZB;ZC,ZD.ZF","Q1005056","Welding Orbital Tubing","0047","Welding Over Slag From Covered Electrode","0047 Welding Over Slag From Covered Electrode",null,null,null," "]
["Causes","Cause","ZB;ZC,ZD.ZF","Q1005056","Welding Orbital Tubing","0048","Welding Voltage and / Or Current Too Low","0048 Welding Voltage and / Or Current Too Low"]
["Causes","Cause","ZB;ZC,ZD.ZF","Q1005056","Welding Orbital Tubing","0049","Welding Voltage Too High","0049 Welding Voltage Too High"]
["Causes","Cause","ZB;ZC,ZD.ZF","Q1005056","Welding Orbital Tubing","0050","Wire – May Need Wire Higher in Mn and Si","0050 Wire – May Need Wire Higher in Mn and Si"]
["Causes","Cause","ZB;ZC,ZD.ZF","Q1005056","Welding Orbital Tubing","0051","Wire Feed Speed","0051 Wire Feed Speed"]
["Causes","Cause","ZB;ZC,ZD.ZF","Q1005056","Welding Orbital Tubing","0052","Wire Feed Too Low","0052 Wire Feed Too Low"]
["Causes","Cause","ZB;ZC,ZD.ZF","Q1005056","Welding Orbital Tubing","0053","Wrong Filler / Base Metal Combination","0053 Wrong Filler / Base Metal Combination"]
["Causes","Cause","ZB;ZC,ZD.ZF","Q1005056","Welding Orbital Tubing","0054","Wrong Gas","0054 Wrong Gas"]
["Causes","Cause","ZB;ZC,ZD.ZF","Q1005056","Welding Orbital Tubing","0055","Incorrect Heat Treatment","0055 Incorrect Heat Treatment"]
["Causes","Cause","ZB;ZC,ZD.ZF","Q1005056","Welding Orbital Tubing","0056","Material Incorrect","0056 Material Incorrect"]
[null,null,null,null,null,null,null," ",null," ",null,null,null,"Q0001030_FMC_Assembly"]
["Causes","Cause","ZB;ZC,ZD.ZF","Q1005057","Welding_Other",null,null," "]
["Causes","Cause","ZB;ZC,ZD.ZF","Q1005057","Welding Other","0001","Amps","0001 Amps"]
["Causes","Cause","ZB;ZC,ZD.ZF","Q1005057","Welding Other","0002","Arc Voltage Too High","0002 Arc Voltage Too High"]
["Causes","Cause","ZB;ZC,ZD.ZF","Q1005057","Welding Other","0003","Arc Voltage Too Low","0003 Arc Voltage Too Low"]
["Causes","Cause","ZB;ZC,ZD.ZF","Q1005057","Welding Other","0004","Contaminated Filler Metal","0004 Contaminated Filler Metal"]
["Causes","Cause","ZB;ZC,ZD.ZF","Q1005057","Welding Other","0005","Contaminated Gas (From Supplier)","0005 Contaminated Gas (From Supplier)"]
["Causes","Cause","ZB;ZC,ZD.ZF","Q1005057","Welding Other","0006","Electrode Stickout Weld Puddle Rolling In Front of the Arc","0006 Electrode Stickout Weld Puddle Rolling In Front of the Arc"]
["Causes","Cause","ZB;ZC,ZD.ZF","Q1005057","Welding Other","0007","Excessive Joint Restraint","0007 Excessive Joint Restraint"]
["Causes","Cause","ZB;ZC,ZD.ZF","Q1005057","Welding Other","0008","Excessive Oxide On Plate","0008 Excessive Oxide On Plate"]
["Causes","Cause","ZB;ZC,ZD.ZF","Q1005057","Welding Other","0009","Excessive Welding Currents",{"$f":"F794&\" \"&G794","v":"0009 Excessive Welding Currents"}]
["Causes","Cause","ZB;ZC,ZD.ZF","Q1005057","Welding Other","0010","Excessive Wire Feed","0010 Excessive Wire Feed"]
["Causes","Cause","ZB;ZC,ZD.ZF","Q1005057","Welding Other","0011","Excessive Wire / Electrode Feed Speed","0011 Excessive Wire / Electrode Feed Speed",null," "]
["Causes","Cause","ZB;ZC,ZD.ZF","Q1005057","Welding Other","0012","Failure To Remove Slag / Oxides Between Weld Passes","0012 Failure To Remove Slag / Oxides Between Weld Passes"]
["Causes","Cause","ZB;ZC,ZD.ZF","Q1005057","Welding Other","0013","Heat Input","0013 Heat Input"]
["Causes","Cause","ZB;ZC,ZD.ZF","Q1005057","Welding Other","0014","High Hardness","0014 High Hardness"]
["Causes","Cause","ZB;ZC,ZD.ZF","Q1005057","Welding Other","0015","Hole / Leak In Hose Or Manifold System","0015 Hole / Leak In Hose Or Manifold System",null,null," "]
["Causes","Cause","ZB;ZC,ZD.ZF","Q1005057","Welding Other","0016","Improper Cleaning","0016 Improper Cleaning"]
["Causes","Cause","ZB;ZC,ZD.ZF","Q1005057","Welding Other","0017","Incorrect Base Metal Chemistry","0017 Incorrect Base Metal Chemistry"]
["Causes","Cause","ZB;ZC,ZD.ZF","Q1005057","Welding Other","0018","Incorrect Bead Placement","0018 Incorrect Bead Placement"]
["Causes","Cause","ZB;ZC,ZD.ZF","Q1005057","Welding Other","0019","Incorrect Wire Chemistry","0019 Incorrect Wire Chemistry"]
["Causes","Cause","ZB;ZC,ZD.ZF","Q1005057","Welding Other","0020","Insufficient Purge","0020 Insufficient Purge"]
["Causes","Cause","ZB;ZC,ZD.ZF","Q1005057","Welding Other","0021","Insufficient Dwell At Edge of Weld Bead","0021 Insufficient Dwell At Edge of Weld Bead"]
["Causes","Cause","ZB;ZC,ZD.ZF","Q1005057","Welding Other","0022","Insufficient Preheat","0022 Insufficient Preheat"]
["Causes","Cause","ZB;ZC,ZD.ZF","Q1005057","Welding Other","0024","Insufficient Shielding Gas Flow","0024 Insufficient Shielding Gas Flow"]
["Causes","Cause","ZB;ZC,ZD.ZF","Q1005057","Welding Other","0025","Insufficient Weld Passes","0025 Insufficient Weld Passes"]
["Causes","Cause","ZB;ZC,ZD.ZF","Q1005057","Welding Other","0026","Insufficient Wire Feed","0026 Insufficient Wire Feed"]
["Causes","Cause","ZB;ZC,ZD.ZF","Q1005057","Welding Other","0027","Interpass","0027 Interpass"]
["Causes","Cause","ZB;ZC,ZD.ZF","Q1005057","Welding Other","0028","Low Hardness","0028 Low Hardness"]
["Causes","Cause","ZB;ZC,ZD.ZF","Q1005057","Welding Other","0029","Oil, Heavy Rust, Scale, etc. On Plate","0029 Oil, Heavy Rust, Scale, etc. On Plate"]
["Causes","Cause","ZB;ZC,ZD.ZF","Q1005057","Welding Other","0030","Operator Error","0030 Operator Error"]
["Causes","Cause","ZB;ZC,ZD.ZF","Q1005057","Welding Other","0031","Out of Tolerance","0031 Out of Tolerance"]
["Causes","Cause","ZB;ZC,ZD.ZF","Q1005057","Welding Other","0032","Poor Filler Metal Control (ex. Hic)","0032 Poor Filler Metal Control (ex. Hic)"]
["Causes","Cause","ZB;ZC,ZD.ZF","Q1005057","Welding Other","0033","Pre Heat","0033 Pre Heat",null," "]
["Causes","Cause","ZB;ZC,ZD.ZF","Q1005057","Welding Other","0034","PWHT Error","0034 PWHT Error",null,null," "]
["Causes","Cause","ZB;ZC,ZD.ZF","Q1005057","Welding Other","0035","Shielding Problem; Wind, Clogged Or Small Nozzle, Damaged Gas Hose, Excessive Gasflow, etc. ","0035 Shielding Problem; Wind, Clogged Or Small Nozzle, Damaged Gas Hose, Excessive Gasflow, etc. "]
["Causes","Cause","ZB;ZC,ZD.ZF","Q1005057","Welding Other","0036","Too Fast Travel Speed","0036 Too Fast Travel Speed"]
["Causes","Cause","ZB;ZC,ZD.ZF","Q1005057","Welding Other","0037","Too Much Wire Feed","0037 Too Much Wire Feed"]
["Causes","Cause","ZB;ZC,ZD.ZF","Q1005057","Welding Other","0038","Torch Oscillation Too Wide Or Too Narrow","0038 Torch Oscillation Too Wide Or Too Narrow"]
["Causes","Cause","ZB;ZC,ZD.ZF","Q1005057","Welding Other","0039","Travel Speed","0039 Travel Speed"]
["Causes","Cause","ZB;ZC,ZD.ZF","Q1005057","Welding Other","0040","Travel Speed Too High","0040 Travel Speed Too High"]
["Causes","Cause","ZB;ZC,ZD.ZF","Q1005057","Welding Other","0041","Travel Speed Too Low","0041 Travel Speed Too Low"]
["Causes","Cause","ZB;ZC,ZD.ZF","Q1005057","Welding Other","0042","Volts","0042 Volts"]
["Causes","Cause","ZB;ZC,ZD.ZF","Q1005057","Welding Other","0043","Weld Bead Too Small","0043 Weld Bead Too Small"]
["Causes","Cause","ZB;ZC,ZD.ZF","Q1005057","Welding Other","0044","Weld joint Too Narrow","0044 Weld joint Too Narrow"]
["Causes","Cause","ZB;ZC,ZD.ZF","Q1005057","Welding Other","0045","Welding Current Too Low; Too Much","0045 Welding Current Too Low; Too Much"]
["Causes","Cause","ZB;ZC,ZD.ZF","Q1005057","Welding Other","0046","Welding Over Convex Bead","0046 Welding Over Convex Bead"]
["Causes","Cause","ZB;ZC,ZD.ZF","Q1005057","Welding Other","0047","Welding Over Slag From Covered Electrode","0047 Welding Over Slag From Covered Electrode"]
["Causes","Cause","ZB;ZC,ZD.ZF","Q1005057","Welding Other","0048","Welding Voltage and / Or Current Too Low","0048 Welding Voltage and / Or Current Too Low"]
["Causes","Cause","ZB;ZC,ZD.ZF","Q1005057","Welding Other","0049","Welding Voltage Too High","0049 Welding Voltage Too High"]
["Causes","Cause","ZB;ZC,ZD.ZF","Q1005057","Welding Other","0050","Wire – May Need Wire Higher in Mn and Si","0050 Wire – May Need Wire Higher in Mn and Si"]
["Causes","Cause","ZB;ZC,ZD.ZF","Q1005057","Welding Other","0051","Wire Feed Speed","0051 Wire Feed Speed"]
["Causes","Cause","ZB;ZC,ZD.ZF","Q1005057","Welding Other","0052","Wire Feed Too Low","0052 Wire Feed Too Low"]
["Causes","Cause","ZB;ZC,ZD.ZF","Q1005057","Welding Other","0053","Wrong Filler / Base Metal Combination","0053 Wrong Filler / Base Metal Combination"]
["Causes","Cause","ZB;ZC,ZD.ZF","Q1005057","Welding Other","0054","Wrong Gas","0054 Wrong Gas"]
["Causes","Cause","ZB;ZC,ZD.ZF","Q1005057","Welding Other","0055","Incorrect Heat Treatment","0055 Incorrect Heat Treatment"]
["Causes","Cause","ZB;ZC,ZD.ZF","Q1005057","Welding Other","0056","Material Incorrect","0056 Material Incorrect"]
[" ",null,null,null,null,null,null," ",null," ",null,null,null,"Q0001030_FMC_Assembly"]
["Causes","Cause","ZB;ZC,ZD.ZF","Q1005060","Coating",null,null," "]
["Causes","Cause","ZB;ZC,ZD.ZF","Q1005060","Coating","0001","Masked Improperly","0001 Masked Improperly"]
["Causes","Cause","ZB;ZC,ZD.ZF","Q1005060","Coating","0002","Coating Too Thick","0002 Coating Too Thick"]
["Causes","Cause","ZB;ZC,ZD.ZF","Q1005060","Coating","0003","Coating Too Thin","0003 Coating Too Thin"]
["Causes","Cause","ZB;ZC,ZD.ZF","Q1005060","Coating","0004","Improper Set Up","0004 Improper Set Up"]
["Causes","Cause","ZB;ZC,ZD.ZF","Q1005060","Coating","0005","Film Thickness Too Thin","0005 Film Thickness Too Thin"]
["Causes","Cause","ZB;ZC,ZD.ZF","Q1005060","Coating","0006","Pinhole / Outgassing","0006 Pinhole / Outgassing"]
["Causes","Cause","ZB;ZC,ZD.ZF","Q1005060","Coating","0007","Contamination","0007 Contamination"]
["Causes","Cause","ZB;ZC,ZD.ZF","Q1005060","Coating","0008","Incorrect Surface Preparation","0008 Incorrect Surface Preparation"]
["Causes","Cause","ZB;ZC,ZD.ZF","Q1005060","Coating","0009","Damage","0009 Damage"]
["Causes","Cause","ZB;ZC,ZD.ZF","Q1005060","Coating","0010","Incorrect Specification Listed","0010 Incorrect Specification Listed"]
["Causes","Cause","ZB;ZC,ZD.ZF","Q1005060","Coating","0011","Requirements Not Followed","0011 Requirements Not Followed"]
["Causes","Cause","ZB;ZC,ZD.ZF","Q1005060","Coating","0012","Incorrect Coating Used","0012 Incorrect Coating Used"]
["Causes","Cause","ZB;ZC,ZD.ZF","Q1005060","Coating","0013","Recoat Time Exceeded","0013 Recoat Time Exceeded"]
["Causes","Cause","ZB;ZC,ZD.ZF","Q1005060","Coating","0014","Environmental Conditions Incorrect","0014 Environmental Conditions Incorrect"]
["Causes","Cause","ZB;ZC,ZD.ZF","Q1005060","Coating","0015","Handled Incorrectly","0015 Handled Incorrectly"]
["Causes","Cause","ZB;ZC,ZD.ZF","Q1005060","Coating","0016","Incorrect Packaging",{"$f":"F858&\" \"&G858","v":"0016 Incorrect Packaging"}]
["Causes","Cause","ZB;ZC,ZD.ZF","Q1005060","Coating","0017","Improper Handling","0017 Improper Handling"]
["Causes","Cause","ZB;ZC,ZD.ZF","Q1005060","Coating","0018","Improper Storage","0018 Improper Storage",null," "]
["Causes","Cause","ZB;ZC,ZD.ZF","Q1005060","Coating","0019","Incorrect Coating","0019 Incorrect Coating"]
["Causes","Cause","ZB;ZC,ZD.ZF","Q1005060","Coating","0020","Incorrect Coating Application","0020 Incorrect Coating Application"]
["Causes","Cause","ZB;ZC,ZD.ZF","Q1005060","Coating","0021","Drawing Is Not Marked Correctly","0021 Drawing Is Not Marked Correctly"]
["Causes","Cause","ZB;ZC,ZD.ZF","Q1005060","Coating","0022","Requirements Not Followed","0022 Requirements Not Followed"]
["Causes","Cause","ZB;ZC,ZD.ZF","Q1005060","Coating","0024","Film Gauge Out of Calibration","0024 Film Gauge Out of Calibration"]
["Causes","Cause","ZB;ZC,ZD.ZF","Q1005060","Coating","0025","Improper Spraying Technique","0025 Improper Spraying Technique"]
["Causes","Cause","ZB;ZC,ZD.ZF","Q1005060","Coating","0026","Requirements Not Known","0026 Requirements Not Known"]
["Causes","Cause","ZB;ZC,ZD.ZF","Q1005060","Coating","0027","Requirements Not Communicated","0027 Requirements Not Communicated"]
["Causes","Cause","ZB;ZC,ZD.ZF","Q1005060","Coating","0028","Incorrect Revision","0028 Incorrect Revision"]
["Causes","Cause","ZB;ZC,ZD.ZF","Q1005060","Coating","0029","Requirements Not Understood","0029 Requirements Not Understood"]
["Causes","Cause","ZB;ZC,ZD.ZF","Q1005060","Coating","0031","PSM Not Followed","0031 PSM Not Followed"]
["Causes","Cause","ZB;ZC,ZD.ZF","Q1005060","Coating","0032","Incorrect Coating Used","0032 Incorrect Coating Used"]
["Causes","Cause","ZB;ZC,ZD.ZF","Q1005060","Coating","0033","Incorrect Coating Specified","0033 Incorrect Coating Specified",null,null,null," "]
["Causes","Cause","ZB;ZC,ZD.ZF","Q1005060","Coating","0036","Requirements Not Understood","0036 Requirements Not Understood"]
["Causes","Cause","ZB;ZC,ZD.ZF","Q1005060","Coating","0037","PSM Not Communicated","0037 PSM Not Communicated"]
["Causes","Cause","ZB;ZC,ZD.ZF","Q1005060","Coating","0038","PSM Not Provided","0038 PSM Not Provided"]
["Causes","Cause","ZB;ZC,ZD.ZF","Q1005060","Coating","0039","PSM Not Understood","0039 PSM Not Understood"]
["Causes","Cause","ZB;ZC,ZD.ZF","Q1005060","Coating","0040","Other - Specify in Comments","0040 Other - Specify in Comments",null," "]
[" ",null,null,null,null,null,null," ",null," ",null,null,null,"Q0001030_FMC_Assembly"]
["Causes","Cause","ZB;ZC,ZD.ZF","Q1005070","Marking",null,null," "]
["Causes","Cause","ZB;ZC,ZD.ZF","Q1005070","Marking","0001","Execution","0001 Execution"]
["Causes","Cause","ZB;ZC,ZD.ZF","Q1005070","Marking","0002","FMC Engineering Error","0002 FMC Engineering Error"]
["Causes","Cause","ZB;ZC,ZD.ZF","Q1005070","Marking","0003","FMC Warehouse / Logistics","0003 FMC Warehouse / Logistics"]
["Causes","Cause","ZB;ZC,ZD.ZF","Q1005070","Marking","0004","Operator","0004 Operator"]
["Causes","Cause","ZB;ZC,ZD.ZF","Q1005070","Marking","0005","Equipment Malfunction","0005 Equipment Malfunction"]
["Causes","Cause","ZB;ZC,ZD.ZF","Q1005070","Marking","0006","Programming / Configuration","0006 Programming / Configuration"]
["Causes","Cause","ZB;ZC,ZD.ZF","Q1005070","Marking","0007","Tooling / Fixture Error","0007 Tooling / Fixture Error",null," "]
["Causes","Cause","ZB;ZC,ZD.ZF","Q1005070","Marking","0008","Second Tier Supplier","0008 Second Tier Supplier"]
["Causes","Cause","ZB;ZC,ZD.ZF","Q1005070","Marking","0009","Handling / Packaging / Preservation Error","0009 Handling / Packaging / Preservation Error"]
["Causes","Cause","ZB;ZC,ZD.ZF","Q1005070","Marking","0010","Damaged During Transport","0010 Damaged During Transport"]
["Causes","Cause","ZB;ZC,ZD.ZF","Q1005070","Marking","0011","DWG / DBI error","0011 DWG / DBI error"]
["Causes","Cause","ZB;ZC,ZD.ZF","Q1005070","Marking","0012","Inadequate Knowledge of Working Process","0012 Inadequate Knowledge of Working Process"]
["Causes","Cause","ZB;ZC,ZD.ZF","Q1005070","Marking","0013","Lack of Maintenance","0013 Lack of Maintenance"]
["Causes","Cause","ZB;ZC,ZD.ZF","Q1005070","Marking","0014","Equipment Modification Not Verified Against the System","0014 Equipment Modification Not Verified Against the System"]
["Causes","Cause","ZB;ZC,ZD.ZF","Q1005070","Marking","0015","Equipment In Use Is Obsolete","0015 Equipment In Use Is Obsolete"]
["Causes","Cause","ZB;ZC,ZD.ZF","Q1005070","Marking","0016","Incorrect Set Up","0016 Incorrect Set Up"]
["Causes","Cause","ZB;ZC,ZD.ZF","Q1005070","Marking","0017","Deterioration / Corrosion","0017 Deterioration / Corrosion"]
["Causes","Cause","ZB;ZC,ZD.ZF","Q1005070","Marking","0018","Missing Marking","0018 Missing Marking"]
["Causes","Cause","ZB;ZC,ZD.ZF","Q1005070","Marking","0019","Incorrect Marking","0019 Incorrect Marking"]
["Causes","Cause","ZB;ZC,ZD.ZF","Q1005070","Marking","0020","Lack of Training / Certification","0020 Lack of Training / Certification",null,null," "]
["Causes","Cause","ZB;ZC,ZD.ZF","Q1005070","Marking","0021","Lack of Experience","0021 Lack of Experience"]
["Causes","Cause","ZB;ZC,ZD.ZF","Q1005070","Marking","0022","Use of Unapproved Procedure","0022 Use of Unapproved Procedure"]
["Causes","Cause","ZB;ZC,ZD.ZF","Q1005070","Marking","0023","Specification Not followed","0023 Specification Not followed"]
["Causes","Cause","ZB;ZC,ZD.ZF","Q1005070","Marking","0024","Misunderstanding","0024 Misunderstanding"]
["Causes","Cause","ZB;ZC,ZD.ZF","Q1005070","Marking","0025","Inadequate Protection","0025 Inadequate Protection"]
["Causes","Cause","ZB;ZC,ZD.ZF","Q1005070","Marking","0026","Missing Spec","0026 Missing Spec"]
["Causes","Cause","ZB;ZC,ZD.ZF","Q1005070","Marking","0027","Missing Quality Matrix","0027 Missing Quality Matrix",null," "]
["Causes","Cause","ZB;ZC,ZD.ZF","Q1005070","Marking","0028","Missing Marking Location on Drawing","0028 Missing Marking Location on Drawing"]
["Causes","Cause","ZB;ZC,ZD.ZF","Q1005070","Marking","0029","Incorrect Spec","0029 Incorrect Spec"]
["Causes","Cause","ZB;ZC,ZD.ZF","Q1005070","Marking","0030","Incorrect Quality Matrix","0030 Incorrect Quality Matrix"]
["Causes","Cause","ZB;ZC,ZD.ZF","Q1005070","Marking","0031","Other - Specify in Comments","0031 Other - Specify in Comments"]
[" ",null,null,null,null,null,null," ",null," ",null,null,null,"Q0001030_FMC_Assembly"]
["Causes","Cause","ZB;ZC,ZD.ZF","Q1005080","Certification",null,null," "]
["Causes","Cause","ZB;ZC,ZD.ZF","Q1005080","Certification","0001","Not Submitted","0001 Not Submitted"]
["Causes","Cause","ZB;ZC,ZD.ZF","Q1005080","Certification","0002","Lost","0002 Lost",null," "]
["Causes","Cause","ZB;ZC,ZD.ZF","Q1005080","Certification","0003","Not Certified","0003 Not Certified",null,null,null," "]
["Causes","Cause","ZB;ZC,ZD.ZF","Q1005080","Certification","0004","Requirements Not Communicated","0004 Requirements Not Communicated"]
["Causes","Cause","ZB;ZC,ZD.ZF","Q1005080","Certification","0005","Requirements Not Followed","0005 Requirements Not Followed"]
["Causes","Cause","ZB;ZC,ZD.ZF","Q1005080","Certification","0006","Requirements Not Known","0006 Requirements Not Known",null,null," "]
["Causes","Cause","ZB;ZC,ZD.ZF","Q1005080","Certification","0007","Exceeded Shelf Life","0007 Exceeded Shelf Life"]
["Causes","Cause","ZB;ZC,ZD.ZF","Q1005080","Certification","0008","Other - Specify in Comments","0008 Other - Specify in Comments"]
[" ",null,null,null,null,null,null,{"$f":"F922&\" \"&G922","v":" "},null," ",null,null,null,"Q0001030_FMC_Assembly"]
["Causes","Cause","ZB;ZC,ZD.ZF","Q1005090","Documentation_Requirement",null,null," "]
["Causes","Cause","ZB;ZC,ZD.ZF","Q1005090","Documentation Requirement","0001","Missing","0001 Missing"]
["Causes","Cause","ZB;ZC,ZD.ZF","Q1005090","Documentation Requirement","0002","Wrong Document / Spec","0002 Wrong Document / Spec"]
["Causes","Cause","ZB;ZC,ZD.ZF","Q1005090","Documentation Requirement","0003","Error In Document / Spec","0003 Error In Document / Spec"]
["Causes","Cause","ZB;ZC,ZD.ZF","Q1005090","Documentation Requirement","0004","Error In Quantity","0004 Error In Quantity"]
["Causes","Cause","ZB;ZC,ZD.ZF","Q1005090","Documentation Requirement","0005","Ambiguous / Unclear","0005 Ambiguous / Unclear"]
["Causes","Cause","ZB;ZC,ZD.ZF","Q1005090","Documentation Requirement","0006","Unqualified Supplier","0006 Unqualified Supplier"]
["Causes","Cause","ZB;ZC,ZD.ZF","Q1005090","Documentation Requirement","0007","Input Requirements Missing","0007 Input Requirements Missing"]
["Causes","Cause","ZB;ZC,ZD.ZF","Q1005090","Documentation Requirement","0008","Input Requirements Incorrect / Ambiguous","0008 Input Requirements Incorrect / Ambiguous"]
["Causes","Cause","ZB;ZC,ZD.ZF","Q1005090","Documentation Requirement","0009","Inputs Not Followed / Detected","0009 Inputs Not Followed / Detected"]
["Causes","Cause","ZB;ZC,ZD.ZF","Q1005090","Documentation Requirement","0010","Process Step Missing","0010 Process Step Missing"]
["Causes","Cause","ZB;ZC,ZD.ZF","Q1005090","Documentation Requirement","0011","Process Step Incorrect / Ambiguous","0011 Process Step Incorrect / Ambiguous"]
["Causes","Cause","ZB;ZC,ZD.ZF","Q1005090","Documentation Requirement","0012","Process Step Not Followed / Detected","0012 Process Step Not Followed / Detected"]
["Causes","Cause","ZB;ZC,ZD.ZF","Q1005090","Documentation Requirement","0013","Not Communicated","0013 Not Communicated"]
["Causes","Cause","ZB;ZC,ZD.ZF","Q1005090","Documentation Requirement","0014","Training Issue","0014 Training Issue"]
["Causes","Cause","ZB;ZC,ZD.ZF","Q1005090","Documentation Requirement","0015","Competence Gap","0015 Competence Gap"]
["Causes","Cause","ZB;ZC,ZD.ZF","Q1005090","Documentation Requirement","0016","Other - Specify in Comments","0016 Other - Specify in Comments"]
[" ",null,null,null,null,null,null," ",null," ",null,null,null,"Q0001030_FMC_Assembly"]
["Causes","Cause","ZB;ZC,ZD.ZF","Q1005100","Electrical",null,null," "]
["Causes","Cause","ZB;ZC,ZD.ZF","Q1005100","Electrical","0001","Specification Not followed","0001 Specification Not followed"]
["Causes","Cause","ZB;ZC,ZD.ZF","Q1005100","Electrical","0002  ","Loose Connections","0002   Loose Connections",null,null," "]
["Causes","Cause","ZB;ZC,ZD.ZF","Q1005100","Electrical","0003","Configuration Error","0003 Configuration Error"]
["Causes","Cause","ZB;ZC,ZD.ZF","Q1005100","Electrical","0004","Component Substitution","0004 Component Substitution"]
["Causes","Cause","ZB;ZC,ZD.ZF","Q1005100","Electrical","0005","Mis-Wired Internally","0005 Mis-Wired Internally"]
["Causes","Cause","ZB;ZC,ZD.ZF","Q1005100","Electrical","0006","Loose on Board","0006 Loose on Board",null," "]
["Causes","Cause","ZB;ZC,ZD.ZF","Q1005100","Electrical","0007","Wrong Part Used","0007 Wrong Part Used"]
["Causes","Cause","ZB;ZC,ZD.ZF","Q1005100","Electrical","0008","Scratched Flamepath","0008 Scratched Flamepath"]
["Causes","Cause","ZB;ZC,ZD.ZF","Q1005100","Electrical","0009","Missing Ground Lug","0009 Missing Ground Lug"]
["Causes","Cause","ZB;ZC,ZD.ZF","Q1005100","Electrical","0010","Shaft Rotation","0010 Shaft Rotation"]
["Causes","Cause","ZB;ZC,ZD.ZF","Q1005100","Electrical","0011","Unmade Connection","0011 Unmade Connection",null," "]
["Causes","Cause","ZB;ZC,ZD.ZF","Q1005100","Electrical","0012","Loose Wire","0012 Loose Wire"]
["Causes","Cause","ZB;ZC,ZD.ZF","Q1005100","Electrical","0013","Drawing Error","0013 Drawing Error"]
["Causes","Cause","ZB;ZC,ZD.ZF","Q1005100","Electrical","0014","Design Error","0014 Design Error",null,null," "]
["Causes","Cause","ZB;ZC,ZD.ZF","Q1005100","Electrical","0015","Obsolete Components","0015 Obsolete Components"]
["Causes","Cause","ZB;ZC,ZD.ZF","Q1005100","Electrical","0016","End of Life","0016 End of Life"]
["Causes","Cause","ZB;ZC,ZD.ZF","Q1005100","Electrical","0017","BOM Error","0017 BOM Error"]
["Causes","Cause","ZB;ZC,ZD.ZF","Q1005100","Electrical","0018","Wrong Source File in Build","0018 Wrong Source File in Build"]
["Causes","Cause","ZB;ZC,ZD.ZF","Q1005100","Electrical","0019","Wrong .exe File","0019 Wrong .exe File"]
["Causes","Cause","ZB;ZC,ZD.ZF","Q1005100","Electrical","0020","Operator Error","0020 Operator Error",null,null," "]
["Causes","Cause","ZB;ZC,ZD.ZF","Q1005100","Electrical","0021","Incorrect Menu Choice","0021 Incorrect Menu Choice"]
["Causes","Cause","ZB;ZC,ZD.ZF","Q1005100","Electrical","0022","Wrong Version Identifier","0022 Wrong Version Identifier"]
["Causes","Cause","ZB;ZC,ZD.ZF","Q1005100","Electrical","0023","Training","0023 Training"]
["Causes","Cause","ZB;ZC,ZD.ZF","Q1005100","Electrical","0024","Ambiguous Specification","0024 Ambiguous Specification"]
["Causes","Cause","ZB;ZC,ZD.ZF","Q1005100","Electrical","0025","Revision Error","0025 Revision Error"]
["Causes","Cause","ZB;ZC,ZD.ZF","Q1005100","Electrical","0026","Insufficient Testing","0026 Insufficient Testing"]
["Causes","Cause","ZB;ZC,ZD.ZF","Q1005100","Electrical","0027","Insufficient Packaging","0027 Insufficient Packaging"]
["Causes","Cause","ZB;ZC,ZD.ZF","Q1005100","Electrical","0028","Undocumented Request","0028 Undocumented Request"]
["Causes","Cause","ZB;ZC,ZD.ZF","Q1005100","Electrical","0029","Documentation Error","0029 Documentation Error",null," "]
["Causes","Cause","ZB;ZC,ZD.ZF","Q1005100","Electrical","0030","Machine Malfunction","0030 Machine Malfunction"]
["Causes","Cause","ZB;ZC,ZD.ZF","Q1005100","Electrical","0031","Bad Part","0031 Bad Part"]
["Causes","Cause","ZB;ZC,ZD.ZF","Q1005100","Electrical","0032","Engineering Change","0032 Engineering Change"]
["Causes","Cause","ZB;ZC,ZD.ZF","Q1005100","Electrical","0033","Source Inspection Error","0033 Source Inspection Error"]
["Causes","Cause","ZB;ZC,ZD.ZF","Q1005100","Electrical","0034","Part Unavailable","0034 Part Unavailable"]
["Causes","Cause","ZB;ZC,ZD.ZF","Q1005100","Electrical","0035","Inadequate Inspection Checklist","0035 Inadequate Inspection Checklist"]
["Causes","Cause","ZB;ZC,ZD.ZF","Q1005100","Electrical","0036","Poor Lubrication","0036 Poor Lubrication"]
["Causes","Cause","ZB;ZC,ZD.ZF","Q1005100","Electrical","0037","Part Dimension","0037 Part Dimension"]
["Causes","Cause","ZB;ZC,ZD.ZF","Q1005100","Electrical","0038","Revision not Communicated","0038 Revision not Communicated",null," "]
["Causes","Cause","ZB;ZC,ZD.ZF","Q1005100","Electrical","0039","Unprocessed ECN","0039 Unprocessed ECN"]
["Causes","Cause","ZB;ZC,ZD.ZF","Q1005100","Electrical","0040","Coding Issue","0040 Coding Issue"]
["Causes","Cause","ZB;ZC,ZD.ZF","Q1005100","Electrical","0041","Other - Specify in Comments","0041 Other - Specify in Comments"]
[" ",null,null,null,null,null,null," ",null," ",null,null,null,"Q0001030_FMC_Assembly"]
["Causes","Cause","ZB;ZC,ZD.ZF","Q1005101","Software",null,null," "]
["Causes","Cause","ZB;ZC,ZD.ZF","Q1005101","Software","0001","Specification Not followed","0001 Specification Not followed"]
["Causes","Cause","ZB;ZC,ZD.ZF","Q1005101","Software","0002  ","Loose Connections",{"$f":"F986&\" \"&G986","v":"0002   Loose Connections"},null,null," "]
["Causes","Cause","ZB;ZC,ZD.ZF","Q1005101","Software","0003","Configuration Error","0003 Configuration Error"]
["Causes","Cause","ZB;ZC,ZD.ZF","Q1005101","Software","0004","Component Substitution","0004 Component Substitution"]
["Causes","Cause","ZB;ZC,ZD.ZF","Q1005101","Software","0005","Mis-Wired Internally","0005 Mis-Wired Internally"]
["Causes","Cause","ZB;ZC,ZD.ZF","Q1005101","Software","0006","Loose on Board","0006 Loose on Board",null," "]
["Causes","Cause","ZB;ZC,ZD.ZF","Q1005101","Software","0007","Wrong Part Used","0007 Wrong Part Used"]
["Causes","Cause","ZB;ZC,ZD.ZF","Q1005101","Software","0008","Scratched Flamepath","0008 Scratched Flamepath"]
["Causes","Cause","ZB;ZC,ZD.ZF","Q1005101","Software","0009","Missing Ground Lug","0009 Missing Ground Lug"]
["Causes","Cause","ZB;ZC,ZD.ZF","Q1005101","Software","0010","Shaft Rotation","0010 Shaft Rotation"]
["Causes","Cause","ZB;ZC,ZD.ZF","Q1005101","Software","0011","Unmade Connection","0011 Unmade Connection",null," "]
["Causes","Cause","ZB;ZC,ZD.ZF","Q1005101","Software","0012","Loose Wire","0012 Loose Wire"]
["Causes","Cause","ZB;ZC,ZD.ZF","Q1005101","Software","0013","Drawing Error","0013 Drawing Error"]
["Causes","Cause","ZB;ZC,ZD.ZF","Q1005101","Software","0014","Design Error","0014 Design Error",null,null," "]
["Causes","Cause","ZB;ZC,ZD.ZF","Q1005101","Software","0015","Obsolete Components","0015 Obsolete Components"]
["Causes","Cause","ZB;ZC,ZD.ZF","Q1005101","Software","0016","End of Life","0016 End of Life"]
["Causes","Cause","ZB;ZC,ZD.ZF","Q1005101","Software","0017","BOM Error","0017 BOM Error"]
["Causes","Cause","ZB;ZC,ZD.ZF","Q1005101","Software","0018","Wrong Source File in Build","0018 Wrong Source File in Build"]
["Causes","Cause","ZB;ZC,ZD.ZF","Q1005101","Software","0019","Wrong .exe File","0019 Wrong .exe File"]
["Causes","Cause","ZB;ZC,ZD.ZF","Q1005101","Software","0020","Operator Error","0020 Operator Error",null,null," "]
["Causes","Cause","ZB;ZC,ZD.ZF","Q1005101","Software","0021","Incorrect Menu Choice","0021 Incorrect Menu Choice"]
["Causes","Cause","ZB;ZC,ZD.ZF","Q1005101","Software","0022","Wrong Version Identifier","0022 Wrong Version Identifier"]
["Causes","Cause","ZB;ZC,ZD.ZF","Q1005101","Software","0023","Training","0023 Training"]
["Causes","Cause","ZB;ZC,ZD.ZF","Q1005101","Software","0024","Ambiguous Specification","0024 Ambiguous Specification"]
["Causes","Cause","ZB;ZC,ZD.ZF","Q1005101","Software","0025","Revision Error","0025 Revision Error"]
["Causes","Cause","ZB;ZC,ZD.ZF","Q1005101","Software","0026","Insufficient Testing","0026 Insufficient Testing"]
["Causes","Cause","ZB;ZC,ZD.ZF","Q1005101","Software","0027","Insufficient Packaging","0027 Insufficient Packaging"]
["Causes","Cause","ZB;ZC,ZD.ZF","Q1005101","Software","0028","Undocumented Request","0028 Undocumented Request"]
["Causes","Cause","ZB;ZC,ZD.ZF","Q1005101","Software","0029","Documentation Error","0029 Documentation Error",null," "]
["Causes","Cause","ZB;ZC,ZD.ZF","Q1005101","Software","0030","Machine Malfunction","0030 Machine Malfunction"]
["Causes","Cause","ZB;ZC,ZD.ZF","Q1005101","Software","0031","Bad Part","0031 Bad Part"]
["Causes","Cause","ZB;ZC,ZD.ZF","Q1005101","Software","0032","Engineering Change","0032 Engineering Change"]
["Causes","Cause","ZB;ZC,ZD.ZF","Q1005101","Software","0033","Source Inspection Error","0033 Source Inspection Error"]
["Causes","Cause","ZB;ZC,ZD.ZF","Q1005101","Software","0034","Part Unavailable","0034 Part Unavailable"]
["Causes","Cause","ZB;ZC,ZD.ZF","Q1005101","Software","0035","Inadequate Inspection Checklist","0035 Inadequate Inspection Checklist"]
["Causes","Cause","ZB;ZC,ZD.ZF","Q1005101","Software","0036","Poor Lubrication","0036 Poor Lubrication"]
["Causes","Cause","ZB;ZC,ZD.ZF","Q1005101","Software","0037","Part Dimension","0037 Part Dimension"]
["Causes","Cause","ZB;ZC,ZD.ZF","Q1005101","Software","0038","Revision not Communicated","0038 Revision not Communicated"]
["Causes","Cause","ZB;ZC,ZD.ZF","Q1005101","Software","0039","Unprocessed ECN","0039 Unprocessed ECN"]
["Causes","Cause","ZB;ZC,ZD.ZF","Q1005101","Software","0040","Coding Issue","0040 Coding Issue"]
["Causes","Cause","ZB;ZC,ZD.ZF","Q1005101","Software","0041","Other - Specify in Comments","0041 Other - Specify in Comments"]

{"sheet":"Main & Sub Causes","index":9,"n_rows":949,"n_cols":7,"rows_kept":949,"cut":false,"hidden":true,"merged":[]}
["Code group","Code"]
["Q0001010 (FMC Engineering Related)",{"$f":"Causes!H4","v":"0010 Engineering Error"}]
["Q0001010 (FMC Engineering Related)",{"$f":"Causes!H5","v":"0015 Welding Engineer Error"}]
["Q0001010 (FMC Engineering Related)",{"$f":"Causes!H6","v":"0020 Lack of Training"}]
["Q0001010 (FMC Engineering Related)",{"$f":"Causes!H7","v":"0030 DWG Error"},null,null," "]
["Q0001010 (FMC Engineering Related)",{"$f":"Causes!H8","v":"0040 DBI Error"}]
["Q0001010 (FMC Engineering Related)",{"$f":"Causes!H9","v":"0050 Procedure Error"}]
["Q0001010 (FMC Engineering Related)",{"$f":"Causes!H10","v":"0060 Specification Error"}]
["Q0001010 (FMC Engineering Related)",{"$f":"Causes!H11","v":"0080 ECN Change"}]
["Q0001010 (FMC Engineering Related)",{"$f":"Causes!H12","v":"0090 ECN Error"}]
["Q0001010 (FMC Engineering Related)",{"$f":"Causes!H13","v":"0100 Continuous Improvement"}]
["Q0001020 (FMC Purchasing Related)",{"$f":"Causes!H16","v":"0010 Purchasing Error"}]
["Q0001020 (FMC Purchasing Related)",{"$f":"Causes!H17","v":"0020 Lack of Training"}]
["Q0001020 (FMC Purchasing Related)",{"$f":"Causes!H18","v":"0030 Unqualified Vendor used"}]
["Q0001020 (FMC Purchasing Related)",{"$f":"Causes!H19","v":"0040 Free Issue Delivery"}]
["Q0001022 (FMC Materials / Stores Related)",{"$f":"Causes!H22","v":"1010 Improper Packaging & Storage"}]
["Q0001022 (FMC Materials / Stores Related)",{"$f":"Causes!H23","v":"1020 Operator Error"}]
["Q0001022 (FMC Materials / Stores Related)",{"$f":"Causes!H24","v":"1030 Lack of Training"},null,null,null," "]
["Q0001022 (FMC Materials / Stores Related)",{"$f":"Causes!H25","v":"1040 Improper Handling"},null,null,null,null," "]
["Q0001022 (FMC Materials / Stores Related)",{"$f":"Causes!H26","v":"1050 Damaged During Transport"}]
["Q0001022 (FMC Materials / Stores Related)",{"$f":"Causes!H27","v":"1060 Damage Due to Corrosion"},null,null,null," "]
["Q0001023 (FMC Weld Shop Equipment)",{"$f":"Causes!H30","v":"0010 Machine Malfunction"},null,"Q0001010_FMC_Engineering_Related"]
["Q0001023 (FMC Weld Shop Equipment)",{"$f":"Causes!H31","v":"0020 Gas Issues"},null,"Q0001020_FMC_Purchasing_Related"]
["Q0001023 (FMC Weld Shop Equipment)",{"$f":"Causes!H32","v":"0030 Filler Material"},null,"Q0001022_FMC_Materials_Stores_Related_."]
["Q0001023 (FMC Weld Shop Equipment)",{"$f":"Causes!H33","v":"0040 Lack of Maintenance"},null,"Q0001023_FMC_Weld_Shop_Equipment"]
["Q0001025 (FMC Weld Shop Personnel)",{"$f":"Causes!H36","v":"0010 Operator error"},null,"Q0001025_FMC_Weld_Shop_Personnel"]
["Q0001025 (FMC Weld Shop Personnel)",{"$f":"Causes!H37","v":"0020 Welding Engineer"},null,"Q00010257_FMC_Machine_Shop_Equipment"]
["Q0001025 (FMC Weld Shop Personnel)",{"$f":"Causes!H38","v":"0030 Lack of Training"},null,"Q0001029_FMC_Machine_Shop_Personnel"]
["Q0001025 (FMC Weld Shop Personnel)",{"$f":"Causes!H39","v":"0040 Improper Handling"},null,"Q0001030_FMC_Assy"]
["Q00010257 (FMC Machine Shop Equipment)",{"$f":"Causes!H42","v":"0010 Lack of Maintenance"},null,"Q0001032_FMC_Test"]
["Q00010257 (FMC Machine Shop Equipment)",{"$f":"Causes!H43","v":"0020 Tooling"},null,"Q0001033_FMC_Fabrication_Shop_Equipment"]
["Q00010257 (FMC Machine Shop Equipment)",{"$f":"Causes!H44","v":"0030 Machine Malfunction"},null,"Q0001034_FMC_Fabrication_Shop_Personnel"]
["Q0001029 (FMC Machine Shop Personnel)",{"$f":"Causes!H47","v":"0010 Lack of Training"},null,"Q0001036_FMC_Service_Related"]
["Q0001029 (FMC Machine Shop Personnel)",{"$f":"Causes!H48","v":"0020 Operator Error"},null,"Q0001045_Vendor_Related_."]
["Q0001029 (FMC Machine Shop Personnel)",{"$f":"Causes!H49","v":"0030 ME Routing"},null,"Q0001065_FMC_Other_Causes_Damages"]
["Q0001029 (FMC Machine Shop Personnel)",{"$f":"Causes!H50","v":"0040 ME Programming"},null,"Q0001070_Other_External_Causes"]
["Q0001029 (FMC Machine Shop Personnel)",{"$f":"Causes!H51","v":"0050 Handling Damage"},null,"Q1002030_Projects_Related"]
["Q0001030 (FMC Assy)",{"$f":"Causes!H54","v":"1010 Operator Error"},null,"Q1002040_QA_QS_QI_Related"]
["Q0001030 (FMC Assy)",{"$f":"Causes!H55","v":"1020 Lack of Training"},null,"Q1002050_Paintshop_Related"]
["Q0001030 (FMC Assy)",{"$f":"Causes!H56","v":"1030 Manufacturing Engineer Error"},null,"Q1002060_Manufacturing_Engineering"]
["Q0001030 (FMC Assy)",{"$f":"Causes!H57","v":"1040 Missing Operation"},null,"Q1002070_Intercompany_."]
["Q0001030 (FMC Assy)",{"$f":"Causes!H58","v":"1050 Improper Handling"},null,"Q1005010_Assembly"]
["Q0001030 (FMC Assy)",{"$f":"Causes!H59","v":"1060 Damaged During Assembly"},null,"Q1005020_Test"]
["Q0001030 (FMC Assy)",{"$f":"Causes!H60","v":"1070 Lack of Maintenance"},null,"Q1005030_Raw_Material_."]
["Q0001030 (FMC Assy)",{"$f":"Causes!H61","v":"1080 Missing Parts"},null,"Q1005040_Machining"]
["Q0001032 (FMC Test)",{"$f":"Causes!H64","v":"0010 Incorrect Set Up / Testing"},null,"Q1005050_Welding_Structural_."]
["Q0001032 (FMC Test)",{"$f":"Causes!H65","v":"0020 Tooling"},null,"Q1005051_Welding_Cladding_."]
["Q0001032 (FMC Test)",{"$f":"Causes!H66","v":"0030 Missed Operation"},null,"Q1005052_Welding_Butter_."]
["Q0001032 (FMC Test)",{"$f":"Causes!H67","v":"0040 Operator Error"},null,"Q1005053_Welding_Manual_Closure_."]
["Q0001032 (FMC Test)",{"$f":"Causes!H68","v":"0050 Damaged During Testing"},null,"Q1005054_Welding_Machine_Closure_."]
["Q0001032 (FMC Test)",{"$f":"Causes!H69","v":"0060 Improper Handling"},null,"Q1005055_Welding_Manual_Tubing_."]
["Q0001032 (FMC Test)",{"$f":"Causes!H70","v":"0070 Missing Parts"},null,"Q1005056_Welding_Orbital_Tubing_."]
["Q0001033 (FMC Fabrication Shop Equipment)",{"$f":"Causes!H73","v":"0010 Machine Malfunction"},null,"Q1005057_Welding_Other_."]
["Q0001033 (FMC Fabrication Shop Equipment)",{"$f":"Causes!H74","v":"0020 Gas Issues"},null,"Q1005060_Coating_."]
["Q0001033 (FMC Fabrication Shop Equipment)",{"$f":"Causes!H75","v":"0030 Filler Material"},null,"Q1005070_Marking_."]
["Q0001033 (FMC Fabrication Shop Equipment)",{"$f":"Causes!H76","v":"0040 Lack of Maintenance"},null,"Q1005080_Certification_."]
["Q0001034 (FMC Fabrication Shop Personnel)",{"$f":"Causes!H79","v":"0010 Operator error"},null,"Q1005090_Documentation_Requirement_."]
["Q0001034 (FMC Fabrication Shop Personnel)",{"$f":"Causes!H80","v":"0020 Welding Engineer"},null,"Q1005100_Electrical_."]
["Q0001034 (FMC Fabrication Shop Personnel)",{"$f":"Causes!H81","v":"0030 Lack of Training"},null,"Q1005101_Software_."]
["Q0001034 (FMC Fabrication Shop Personnel)",{"$f":"Causes!H82","v":"0040 Improper Handling"}]
["Q0001036 (FMC Service Related)",{"$f":"Causes!H85","v":"0010 Damage During Installation"}]
["Q0001036 (FMC Service Related)",{"$f":"Causes!H86","v":"0020 Lack of Training"}]
["Q0001036 (FMC Service Related)",{"$f":"Causes!H87","v":"0030 Improper Job Preparation"}]
["Q0001045 (Vendor Related)",{"$f":"Causes!H90","v":"0010 Design Error"}]
["Q0001045 (Vendor Related)",{"$f":"Causes!H91","v":"0020 Specification Not Followed"}]
["Q0001045 (Vendor Related)",{"$f":"Causes!H92","v":"0030 MPQP/WPS/Routing Not Followed"}]
["Q0001045 (Vendor Related)",{"$f":"Causes!H93","v":"0040 Programmer Error"}]
["Q0001045 (Vendor Related)",{"$f":"Causes!H94","v":"0050 Operator Error"}]
["Q0001045 (Vendor Related)",{"$f":"Causes!H95","v":"0060 Incorrect Set Up"}]
["Q0001045 (Vendor Related)",{"$f":"Causes!H96","v":"0070 Assembly Error"}]
["Q0001045 (Vendor Related)",{"$f":"Causes!H97","v":"0080 Material Error"}]
["Q0001045 (Vendor Related)",{"$f":"Causes!H98","v":"0090 Tooling"}]
["Q0001045 (Vendor Related)",{"$f":"Causes!H99","v":"0100 Equipment Malfunction"}]
["Q0001045 (Vendor Related)",{"$f":"Causes!H100","v":"0110 Second Tier Supplier Issue"}]
["Q0001045 (Vendor Related)",{"$f":"Causes!H101","v":"0120 Maintenance"}]
["Q0001045 (Vendor Related)",{"$f":"Causes!H102","v":"0130 HSE/Environmental"}]
["Q0001045 (Vendor Related)",{"$f":"Causes!H103","v":"0140 Packaging/Handling"}]
["Q0001045 (Vendor Related)",{"$f":"Causes!H104","v":"0150 Damage During Transport"}]
["Q0001045 (Vendor Related)",{"$f":"Causes!H105","v":"0180 Wrong Part Delivered"}]
["Q0001045 (Vendor Related)",{"$f":"Causes!H106","v":"0190 Mixed Parts Delivered"}]
["Q0001045 (Vendor Related)",{"$f":"Causes!H107","v":"0200 Final Inspection Error"}]
["Q0001045 (Vendor Related)",{"$f":"Causes!H108","v":"0210 Clarification"}]
["Q0001045 (Vendor Related)",{"$f":"Causes!H109","v":"0220 Missing Parts"}]
["Q0001045 (Vendor Related)",{"$f":"Causes!H110","v":"0230 Coating Defect"}]
["Q0001045 (Vendor Related)",{"$f":"Causes!H111","v":"0240 Documentation"}]
["Q0001065 (FMC Other Causes / Damages)",{"$f":"Causes!H114","v":"0040 Damage During Transport"}]
["Q0001065 (FMC Other Causes / Damages)",{"$f":"Causes!H115","v":"0050 Damage From Wear and Tear"}]
["Q0001065 (FMC Other Causes / Damages)",{"$f":"Causes!H116","v":"0070 Planning Error"}]
["Q0001065 (FMC Other Causes / Damages)",{"$f":"Causes!H117","v":"0100 No Non-Compliance"}]
["Q0001065 (FMC Other Causes / Damages)",{"$f":"Causes!H118","v":"0110 QN Cancelled"}]
["Q0001065 (FMC Other Causes / Damages)",{"$f":"Causes!H119","v":"0120 Cause Not Found"}]
["Q0001065 (FMC Other Causes / Damages)",{"$f":"Causes!H120","v":"0130 Shelf Life Expiry"}]
["Q0001070 (Other External Causes)",{"$f":"Causes!H123","v":"1010 Customer Error/Responsibility"}]
["Q1002030 (Projects Related)",{"$f":"Causes!H126","v":"0010 Free Issue Delivery"}]
["Q1002030 (Projects Related)",{"$f":"Causes!H127","v":"0020 Customer Error"}]
["Q1002030 (Projects Related)",{"$f":"Causes!H128","v":"0030 Material Error"}]
["Q1002030 (Projects Related)",{"$f":"Causes!H129","v":"0040 Documentation Error"}]
["Q1002040 (QA / QS / QI Related)",{"$f":"Causes!H132","v":"0010 Documentation Error"}]
["Q1002040 (QA / QS / QI Related)",{"$f":"Causes!H133","v":"0020 Final Inspection Error"}]
["Q1002040 (QA / QS / QI Related)",{"$f":"Causes!H134","v":"0030 Goods Receiving Inspection Error"}]
["Q1002040 (QA / QS / QI Related)",{"$f":"Causes!H135","v":"0040 Operator Error"}]
["Q1002050 (Paintshop Related)",{"$f":"Causes!H138","v":"0010 Missing Parts"}]
["Q1002050 (Paintshop Related)",{"$f":"Causes!H139","v":"0020 Paint Defect"}]
["Q1002050 (Paintshop Related)",{"$f":"Causes!H140","v":"0030 Operator Error"}]
["Q1002060 (Manufacturing Engineering)",{"$f":"Causes!H143","v":"0010 ME Routing"}]
["Q1002060 (Manufacturing Engineering)",{"$f":"Causes!H144","v":"0020 ME Programming"}]
["Q1002070 (Intercompany)",{"$f":"Causes!H147","v":"0010 FMC Dunfermline"}]
["Q1002070 (Intercompany)",{"$f":"Causes!H148","v":"0020 FMC Kongsberg"}]
["Q1002070 (Intercompany)",{"$f":"Causes!H149","v":"0030 FMC Houston"}]
["Q1002070 (Intercompany)",{"$f":"Causes!H150","v":"0035 FMC Houston Subsea"}]
["Q1002070 (Intercompany)",{"$f":"Causes!H151","v":"0040 FMC Brazil"}]
["Q1002070 (Intercompany)",{"$f":"Causes!H152","v":"0050 FMC Malaysia"}]
["Q1002070 (Intercompany)",{"$f":"Causes!H153","v":"0060 FMC Sens"}]
["Q1002070 (Intercompany)",{"$f":"Causes!H154","v":"0070 FMC Singapore"}]
["Q1002070 (Intercompany)",{"$f":"Causes!H155","v":"0080 FMC Stephenville"}]
["Q1002070 (Intercompany)",{"$f":"Causes!H156","v":"0090 FMC Erie"}]
["Q1002070 (Intercompany)",{"$f":"Causes!H157","v":"0100 FMC Ellerbek"}]
["Q1002070 (Intercompany)",{"$f":"Causes!H158","v":"0110 FMC The Netherlands"}]
["Q1002070 (Intercompany)",{"$f":"Causes!H159","v":"0120 FMC Edmonton"}]
["Q1002070 (Intercompany)",{"$f":"Causes!H160","v":"0130 FMC Oklahoma"}]
["Q1002070 (Intercompany)",{"$f":"Causes!H161","v":"0140 FMC Indonesia"}]
["Q1002070 (Intercompany)",{"$f":"Causes!H162","v":"0150 FMC Dubai"}]
["Q1002070 (Intercompany)",{"$f":"Causes!H163","v":"0160 FMC Angola"}]
["Q1002070 (Intercompany)",{"$f":"Causes!H164","v":"0170 FMC Nigeria"}]
["Q1002070 (Intercompany)",{"$f":"Causes!H165","v":"0180 FMC Ghana"}]
["Q1005010 (Assembly)",{"$f":"Causes!H168","v":"0001 Damage During Manufacturing"}]
["Q1005010 (Assembly)",{"$f":"Causes!H169","v":"0002 Damage After Manufacturing"}]
["Q1005010 (Assembly)",{"$f":"Causes!H170","v":"0003 Damaged During Assembly"}]
["Q1005010 (Assembly)",{"$f":"Causes!H171","v":"0004 Damaged During Lifting"}]
["Q1005010 (Assembly)",{"$f":"Causes!H172","v":"0005 Struck With Object"}]
["Q1005010 (Assembly)",{"$f":"Causes!H173","v":"0006 Weather"}]
["Q1005010 (Assembly)",{"$f":"Causes!H174","v":"0007 Improperly Protected"}]
["Q1005010 (Assembly)",{"$f":"Causes!H175","v":"0008 Not Properly Strapped Down"}]
["Q1005010 (Assembly)",{"$f":"Causes!H176","v":"0009 Improperly Handled"}]
["Q1005010 (Assembly)",{"$f":"Causes!H177","v":"0010 Improperly Installed"}]
["Q1005010 (Assembly)",{"$f":"Causes!H178","v":"0011 Damaged Component"}]
["Q1005010 (Assembly)",{"$f":"Causes!H179","v":"0012 Incorrect Component"}]
["Q1005010 (Assembly)",{"$f":"Causes!H180","v":"0013 Does Not Fit Properly"}]
["Q1005010 (Assembly)",{"$f":"Causes!H181","v":"0014 Trash / Burr / Contamination"}]
["Q1005010 (Assembly)",{"$f":"Causes!H182","v":"0015 Missing Component"}]
["Q1005010 (Assembly)",{"$f":"Causes!H183","v":"0016 Shelf Life Expiration"}]
["Q1005010 (Assembly)",{"$f":"Causes!H184","v":"0017 Wear and Tear"}]
["Q1005010 (Assembly)",{"$f":"Causes!H185","v":"0018 Machine Malfunction"}]
["Q1005010 (Assembly)",{"$f":"Causes!H186","v":"0019 Program Error"}]
["Q1005010 (Assembly)",{"$f":"Causes!H187","v":"0020 DWG Incorrect"}]
["Q1005010 (Assembly)",{"$f":"Causes!H188","v":"0021 Lack of Accessibility"}]
["Q1005010 (Assembly)",{"$f":"Causes!H189","v":"0022 Specification Not Followed"}]
["Q1005010 (Assembly)",{"$f":"Causes!H190","v":"0023 Incorrect Set Up"}]
["Q1005010 (Assembly)",{"$f":"Causes!H191","v":"0024 Incorrect Tool"}]
["Q1005010 (Assembly)",{"$f":"Causes!H192","v":"0025 Dull Tooling"}]
["Q1005010 (Assembly)",{"$f":"Causes!H193","v":"0026 Incorrect Program"}]
["Q1005010 (Assembly)",{"$f":"Causes!H194","v":"0027 DWG Not Followed"}]
["Q1005010 (Assembly)",{"$f":"Causes!H195","v":"0028 Procedures Not Given"}]
["Q1005010 (Assembly)",{"$f":"Causes!H196","v":"0029 Procedures Not Followed"}]
["Q1005010 (Assembly)",{"$f":"Causes!H197","v":"0030 Procedure Incorrect"}]
["Q1005010 (Assembly)",{"$f":"Causes!H198","v":"0031 Procedure Does Not Exist"}]
["Q1005010 (Assembly)",{"$f":"Causes!H199","v":"0032 Not Properly Trained"}]
["Q1005010 (Assembly)",{"$f":"Causes!H200","v":"0033 Damaged Tooling"}]
["Q1005010 (Assembly)",{"$f":"Causes!H201","v":"0034 Incorrect Tooling"}]
["Q1005010 (Assembly)",{"$f":"Causes!H202","v":"0035 5S Not Maintained"}]
["Q1005010 (Assembly)",{"$f":"Causes!H203","v":"0036 Lack of Awareness"}]
["Q1005010 (Assembly)",{"$f":"Causes!H204","v":"0037 Over Torqued"}]
["Q1005010 (Assembly)",{"$f":"Causes!H205","v":"0038 Tooling Malfunction"}]
["Q1005010 (Assembly)",{"$f":"Causes!H206","v":"0039 Tool Out of Calibration"}]
["Q1005010 (Assembly)",{"$f":"Causes!H207","v":"0040 No Other Component Available"}]
["Q1005010 (Assembly)",{"$f":"Causes!H208","v":"0041 Incorrect Component Kitted"}]
["Q1005010 (Assembly)",{"$f":"Causes!H209","v":"0042 Machined Incorrectly"}]
["Q1005010 (Assembly)",{"$f":"Causes!H210","v":"0043 Welded Incorrectly"}]
["Q1005010 (Assembly)",{"$f":"Causes!H211","v":"0044 Force To Fit"}]
["Q1005010 (Assembly)",{"$f":"Causes!H212","v":"0045 Too Much Coating Applied"}]
["Q1005010 (Assembly)",{"$f":"Causes!H213","v":"0046 Design Error"}]
["Q1005010 (Assembly)",{"$f":"Causes!H214","v":"0047 Under Torqued"}]
["Q1005010 (Assembly)",{"$f":"Causes!H215","v":"0048 Component Not Kitted"}]
["Q1005010 (Assembly)",{"$f":"Causes!H216","v":"0049 Part Lost"}]
["Q1005010 (Assembly)",{"$f":"Causes!H217","v":"0050 Improper Set Up"}]
["Q1005010 (Assembly)",{"$f":"Causes!H218","v":"0051 Design Incorrect"}]
["Q1005010 (Assembly)",{"$f":"Causes!H219","v":"0052 No Other Tooling Available"}]
["Q1005010 (Assembly)",{"$f":"Causes!H220","v":"0053 Incorrect Part Report"}]
["Q1005010 (Assembly)",{"$f":"Causes!H221","v":"0054 Part Report Not Followed"}]
["Q1005010 (Assembly)",{"$f":"Causes!H222","v":"0055 ECN Change"}]
["Q1005010 (Assembly)",{"$f":"Causes!H223","v":"0056 Improperly Stamped / Labeled"}]
["Q1005010 (Assembly)",{"$f":"Causes!H224","v":"0057 Part Report Incorrect"}]
["Q1005010 (Assembly)",{"$f":"Causes!H225","v":"0058 Other - Specify in Comments"}]
["Q1005020 (Test)",{"$f":"Causes!H228","v":"0001 Over Torqued"}]
["Q1005020 (Test)",{"$f":"Causes!H229","v":"0002  Under Torqued"}]
["Q1005020 (Test)",{"$f":"Causes!H230","v":"0003 Tooling Malfunction"}]
["Q1005020 (Test)",{"$f":"Causes!H231","v":"0004 Damaged Tooling Used"}]
["Q1005020 (Test)",{"$f":"Causes!H232","v":"0005 Incorrect Tooling Used"}]
["Q1005020 (Test)",{"$f":"Causes!H233","v":"0006 Tool Out of Calibration"}]
["Q1005020 (Test)",{"$f":"Causes!H234","v":"0007 Procedures Not Given"}]
["Q1005020 (Test)",{"$f":"Causes!H235","v":"0008 Procedures Not Followed"}]
["Q1005020 (Test)",{"$f":"Causes!H236","v":"0009 Procedure Incorrect"}]
["Q1005020 (Test)",{"$f":"Causes!H237","v":"0010 Procedure Does Not Exist"}]
["Q1005020 (Test)",{"$f":"Causes!H238","v":"0011 Not Properly Trained"}]
["Q1005020 (Test)",{"$f":"Causes!H239","v":"0012 Incorrect Component Used"}]
["Q1005020 (Test)",{"$f":"Causes!H240","v":"0013 Improperly Installed"}]
["Q1005020 (Test)",{"$f":"Causes!H241","v":"0014 Over Pressured"}]
["Q1005020 (Test)",{"$f":"Causes!H242","v":"0015 Uncontrolled Pressure Release"}]
["Q1005020 (Test)",{"$f":"Causes!H243","v":"0016 Design Error"}]
["Q1005020 (Test)",{"$f":"Causes!H244","v":"0017 Faulty Equipment Used"}]
["Q1005020 (Test)",{"$f":"Causes!H245","v":"0018 No Other Component Available"}]
["Q1005020 (Test)",{"$f":"Causes!H246","v":"0019 Lack of Awareness"}]
["Q1005020 (Test)",{"$f":"Causes!H247","v":"0020 Wear and Tear"}]
["Q1005020 (Test)",{"$f":"Causes!H248","v":"0021 Improperly Protected"}]
["Q1005020 (Test)",{"$f":"Causes!H249","v":"0022 Not Properly Strapped Down"}]
["Q1005020 (Test)",{"$f":"Causes!H250","v":"0023 5S Not Maintained"}]
["Q1005020 (Test)",{"$f":"Causes!H251","v":"0024 Lack of Accessibility"}]
["Q1005020 (Test)",{"$f":"Causes!H252","v":"0025 Incorrect Component Kitted"}]
["Q1005020 (Test)",{"$f":"Causes!H253","v":"0026 Machined Incorrectly"}]
["Q1005020 (Test)",{"$f":"Causes!H254","v":"0027 Welded Incorrectly"}]
["Q1005020 (Test)",{"$f":"Causes!H255","v":"0028 Forced To Fit"}]
["Q1005020 (Test)",{"$f":"Causes!H256","v":"0029 Too Much Coating Applied"}]
["Q1005020 (Test)",{"$f":"Causes!H257","v":"0030 No Other Tooling Available"}]
["Q1005020 (Test)",{"$f":"Causes!H258","v":"0031 Improper Set Up"}]
["Q1005020 (Test)",{"$f":"Causes!H259","v":"0032 Design Incorrect"}]
["Q1005020 (Test)",{"$f":"Causes!H260","v":"0033 Incorrect Part Report"}]
["Q1005020 (Test)",{"$f":"Causes!H261","v":"0034 Part Report Not Followed"}]
["Q1005020 (Test)",{"$f":"Causes!H262","v":"0035 ECN Change"}]
["Q1005020 (Test)",{"$f":"Causes!H263","v":"0036 Improperly Stamped / Labeled"}]
["Q1005020 (Test)",{"$f":"Causes!H264","v":"0037 Machine Malfunction"}]
["Q1005020 (Test)",{"$f":"Causes!H265","v":"0038 Program Error"}]
["Q1005020 (Test)",{"$f":"Causes!H266","v":"0039 DWG Incorrect"}]
["Q1005020 (Test)",{"$f":"Causes!H267","v":"0040 Specification Not Followed"}]
["Q1005020 (Test)",{"$f":"Causes!H268","v":"0041 Incorrect Setup"}]
["Q1005020 (Test)",{"$f":"Causes!H269","v":"0042 Incorrect Tool Used"}]
["Q1005020 (Test)",{"$f":"Causes!H270","v":"0043 Dull Tooling Used"}]
["Q1005020 (Test)",{"$f":"Causes!H271","v":"0044 Incorrect Program Used"}]
["Q1005020 (Test)",{"$f":"Causes!H272","v":"0045 DWG Not Followed"}]
["Q1005020 (Test)",{"$f":"Causes!H273","v":"0046 Part Report Incorrect"}]
["Q1005020 (Test)",{"$f":"Causes!H274","v":"0047 Trash / Burr / Contamination"}]
["Q1005020 (Test)",{"$f":"Causes!H275","v":"0048 Other - Specify in Comments"}]
["Q1005020 (Test)",{"$f":"Causes!H276","v":"0049 Improperly Installed"}]
["Q1005020 (Test)",{"$f":"Causes!H277","v":"0050 Component Malfunction"}]
["Q1005020 (Test)",{"$f":"Causes!H278","v":"0051 Damaged Component Used"}]
["Q1005020 (Test)",{"$f":"Causes!H279","v":"0052 Shelf Life Expiration"}]
["Q1005020 (Test)",{"$f":"Causes!H280","v":"0053 Wear and Tear"}]
["Q1005020 (Test)",{"$f":"Causes!H281","v":"0054 Damaged During Lifting"}]
["Q1005020 (Test)",{"$f":"Causes!H282","v":"0055 Struck With Object"}]
["Q1005020 (Test)",{"$f":"Causes!H283","v":"0056 Improperly Handled"}]
["Q1005020 (Test)",{"$f":"Causes!H284","v":"0057 Incorrect Component Used"}]
["Q1005020 (Test)",{"$f":"Causes!H285","v":"0058 Does Not Fit Properly"}]
["Q1005020 (Test)",{"$f":"Causes!H286","v":"0060 Other - Specify in Comments"}]
["Q1005030 (Raw Material)",{"$f":"Causes!H289","v":"0001 Programming"}]
["Q1005030 (Raw Material)",{"$f":"Causes!H290","v":"0002 Operator"}]
["Q1005030 (Raw Material)",{"$f":"Causes!H291","v":"0003 Inadequate Management / Control"}]
["Q1005030 (Raw Material)",{"$f":"Causes!H292","v":"0004 Equipment Malfunction"}]
["Q1005030 (Raw Material)",{"$f":"Causes!H293","v":"0005 Second Tier Supplier"}]
["Q1005030 (Raw Material)",{"$f":"Causes!H294","v":"0006 Clarification"}]
["Q1005030 (Raw Material)",{"$f":"Causes!H295","v":"0007 Planning / Procurement"}]
["Q1005030 (Raw Material)",{"$f":"Causes!H296","v":"0008 Recommended Improvement"}]
["Q1005030 (Raw Material)",{"$f":"Causes!H297","v":"0009 Handling / Packaging / Preservation Error"}]
["Q1005030 (Raw Material)",{"$f":"Causes!H298","v":"0010 Tooling / Fixture Error"}]
["Q1005030 (Raw Material)",{"$f":"Causes!H299","v":"0011 Weather / Natural Disaster"}]
["Q1005030 (Raw Material)",{"$f":"Causes!H300","v":"0012 Purchasing Error"}]
["Q1005030 (Raw Material)",{"$f":"Causes!H301","v":"0013 Planning Error"}]
["Q1005030 (Raw Material)",{"$f":"Causes!H302","v":"0014 Free Issue Delivery"}]
["Q1005030 (Raw Material)",{"$f":"Causes!H303","v":"0015 Customer Request"}]
["Q1005030 (Raw Material)",{"$f":"Causes!H304","v":"0016 Unfinished Shipment"}]
["Q1005030 (Raw Material)",{"$f":"Causes!H305","v":"0017 Free Issued Delivery"}]
["Q1005030 (Raw Material)",{"$f":"Causes!H306","v":"0018 Unclear Requirements"}]
["Q1005030 (Raw Material)",{"$f":"Causes!H307","v":"0019 Incorrect Material"}]
["Q1005030 (Raw Material)",{"$f":"Causes!H308","v":"0020 Material Spec Error"}]
["Q1005030 (Raw Material)",{"$f":"Causes!H309","v":"0021 Supplier Error"}]
["Q1005030 (Raw Material)",{"$f":"Causes!H310","v":"0022 FMC Purchasing Error"}]
["Q1005030 (Raw Material)",{"$f":"Causes!H311","v":"0025 Lack of Training / Certification"}]
["Q1005030 (Raw Material)",{"$f":"Causes!H312","v":"0026 Lack of Experience"}]
["Q1005030 (Raw Material)",{"$f":"Causes!H313","v":"0027 Use of Unapproved Procedure"}]
["Q1005030 (Raw Material)",{"$f":"Causes!H314","v":"0028 Specification Not Followed"}]
["Q1005030 (Raw Material)",{"$f":"Causes!H315","v":"0029 Misunderstanding"}]
["Q1005030 (Raw Material)",{"$f":"Causes!H316","v":"0030 Incorrect Parts Ordered"}]
["Q1005030 (Raw Material)",{"$f":"Causes!H317","v":"0031 Incorrect QTY Ordered"}]
["Q1005030 (Raw Material)",{"$f":"Causes!H318","v":"0032 Lack of Training"}]
["Q1005030 (Raw Material)",{"$f":"Causes!H319","v":"0033 Missing Information"}]
["Q1005030 (Raw Material)",{"$f":"Causes!H320","v":"0034 Incorrect Information"}]
["Q1005030 (Raw Material)",{"$f":"Causes!H321","v":"0035 Conflicting Information"}]
["Q1005030 (Raw Material)",{"$f":"Causes!H322","v":"0036 ECN Change"}]
["Q1005030 (Raw Material)",{"$f":"Causes!H323","v":"0037 Continuous Improvement"}]
["Q1005030 (Raw Material)",{"$f":"Causes!H324","v":"0038 Incorrect Set Up"}]
["Q1005030 (Raw Material)",{"$f":"Causes!H325","v":"0039 Inadequate Knowledge of Working Process"}]
["Q1005030 (Raw Material)",{"$f":"Causes!H326","v":"0040 Unclear Communication Lines"}]
["Q1005030 (Raw Material)",{"$f":"Causes!H327","v":"0041 Unclear Guidance For Responsibility"}]
["Q1005030 (Raw Material)",{"$f":"Causes!H328","v":"0042 Unclear Goals For Execution"}]
["Q1005030 (Raw Material)",{"$f":"Causes!H329","v":"0043 Lack of Instructions / Procedures / Ref. Doc"}]
["Q1005030 (Raw Material)",{"$f":"Causes!H330","v":"0044 Lack of Focus On Damages / Loses"}]
["Q1005030 (Raw Material)",{"$f":"Causes!H331","v":"0045 Managers Lack of Knowledge About Execution"}]
["Q1005030 (Raw Material)",{"$f":"Causes!H332","v":"0046 Lack of Maintenance"}]
["Q1005030 (Raw Material)",{"$f":"Causes!H333","v":"0047 Equipment Modification Not Verified Against the System"}]
["Q1005030 (Raw Material)",{"$f":"Causes!H334","v":"0048 Equipment In Use Is Obsolete"}]
["Q1005030 (Raw Material)",{"$f":"Causes!H335","v":"0049 Material Not Available"}]
["Q1005030 (Raw Material)",{"$f":"Causes!H336","v":"0050 Supplier Suggestion For Permanent Change"}]
["Q1005030 (Raw Material)",{"$f":"Causes!H337","v":"0051 Bad Weather Conditions"}]
["Q1005030 (Raw Material)",{"$f":"Causes!H338","v":"0052 PO Inconsistent"}]
["Q1005030 (Raw Material)",{"$f":"Causes!H339","v":"0053 Unqualified Vendor Used"}]
["Q1005030 (Raw Material)",{"$f":"Causes!H340","v":"0054 Scheduling Error / Data Entry Error"}]
["Q1005030 (Raw Material)",{"$f":"Causes!H341","v":"0055 DBI"}]
["Q1005030 (Raw Material)",{"$f":"Causes!H342","v":"0057 Supplier Error"}]
["Q1005030 (Raw Material)",{"$f":"Causes!H343","v":"0058 FMC Planning / Procurement"}]
["Q1005030 (Raw Material)",{"$f":"Causes!H344","v":"0059 FMC Projects"}]
["Q1005030 (Raw Material)",{"$f":"Causes!H345","v":"0060 FMC Intercompany Error"}]
["Q1005030 (Raw Material)",{"$f":"Causes!H346","v":"0061 Existing Stock"}]
["Q1005030 (Raw Material)",{"$f":"Causes!H347","v":"0062 Unavailability of Material"}]
["Q1005030 (Raw Material)",{"$f":"Causes!H348","v":"0063 Cheaper Material"}]
["Q1005030 (Raw Material)",{"$f":"Causes!H349","v":"0064 Exceeds Hardness"}]
["Q1005030 (Raw Material)",{"$f":"Causes!H350","v":"0065 Below Hardness"}]
["Q1005030 (Raw Material)",{"$f":"Causes!H351","v":"0066 Exceeds MSPEC Requirement"}]
["Q1005030 (Raw Material)",{"$f":"Causes!H352","v":"0067 Below MSPEC Requirement"}]
["Q1005030 (Raw Material)",{"$f":"Causes!H353","v":"0068 Wrong Material"}]
["Q1005030 (Raw Material)",{"$f":"Causes!H354","v":"0069 Exceeds Elongation"}]
["Q1005030 (Raw Material)",{"$f":"Causes!H355","v":"0070 Other - Specify in Comments"}]
["Q1005040 (Machining)",{"$f":"Causes!H358","v":"0001 Inside Diameter Error"}]
["Q1005040 (Machining)",{"$f":"Causes!H359","v":"0002 Outside Diameter Error"}]
["Q1005040 (Machining)",{"$f":"Causes!H360","v":"0003 Length / Depth Error"}]
["Q1005040 (Machining)",{"$f":"Causes!H361","v":"0004 Angle Error"}]
["Q1005040 (Machining)",{"$f":"Causes!H362","v":"0005 Hole Size Error"}]
["Q1005040 (Machining)",{"$f":"Causes!H363","v":"0006 Seat Pocket Error"}]
["Q1005040 (Machining)",{"$f":"Causes!H364","v":"0007 Contamination Within Intersection Holes"}]
["Q1005040 (Machining)",{"$f":"Causes!H365","v":"0008 Position Error"}]
["Q1005040 (Machining)",{"$f":"Causes!H366","v":"0009 Hole Or Groove Not Circular"}]
["Q1005040 (Machining)",{"$f":"Causes!H367","v":"0010 Machining Error"}]
["Q1005040 (Machining)",{"$f":"Causes!H368","v":"0011 Go Gauge Does Not Go Through"}]
["Q1005040 (Machining)",{"$f":"Causes!H369","v":"0012 Nogo Gauge Goes Through"}]
["Q1005040 (Machining)",{"$f":"Causes!H370","v":"0013 Burr / Chips"}]
["Q1005040 (Machining)",{"$f":"Causes!H371","v":"0014 DBI / Drawing error"}]
["Q1005040 (Machining)",{"$f":"Causes!H372","v":"0015 Program Error"}]
["Q1005040 (Machining)",{"$f":"Causes!H373","v":"0016 Worn / Broken Tool"}]
["Q1005040 (Machining)",{"$f":"Causes!H374","v":"0017 Incorrect Set Up"}]
["Q1005040 (Machining)",{"$f":"Causes!H375","v":"0018 Machine Malfuction"}]
["Q1005040 (Machining)",{"$f":"Causes!H376","v":"0019 Incorrect Tool"}]
["Q1005040 (Machining)",{"$f":"Causes!H377","v":"0020 Coating Defect"}]
["Q1005040 (Machining)",{"$f":"Causes!H378","v":"0021 Requirement Not Known"}]
["Q1005040 (Machining)",{"$f":"Causes!H379","v":"0022 FMC Engineering Error"}]
["Q1005040 (Machining)",{"$f":"Causes!H380","v":"0023 Unclear DBI"}]
["Q1005040 (Machining)",{"$f":"Causes!H381","v":"0024 Final Inspection"}]
["Q1005040 (Machining)",{"$f":"Causes!H382","v":"0025 Miscommunication"}]
["Q1005040 (Machining)",{"$f":"Causes!H383","v":"0026 Lack of Training"}]
["Q1005040 (Machining)",{"$f":"Causes!H384","v":"0027 Other - Specify in Comments"}]
["Q1005050 (Welding - Structural)",{"$f":"Causes!H387","v":"0001 Amps"}]
["Q1005050 (Welding - Structural)",{"$f":"Causes!H388","v":"0002 Arc Voltage Too High"}]
["Q1005050 (Welding - Structural)",{"$f":"Causes!H389","v":"0003 Arc Voltage Too Low"}]
["Q1005050 (Welding - Structural)",{"$f":"Causes!H390","v":"0004 Contaminated Filler Metal"}]
["Q1005050 (Welding - Structural)",{"$f":"Causes!H391","v":"0005 Contaminated Gas (From Supplier)"}]
["Q1005050 (Welding - Structural)",{"$f":"Causes!H392","v":"0006 Electrode Stickout Weld Puddle Rolling In Front of the Arc"}]
["Q1005050 (Welding - Structural)",{"$f":"Causes!H393","v":"0007 Excessive Joint Restraint"}]
["Q1005050 (Welding - Structural)",{"$f":"Causes!H394","v":"0008 Excessive Oxide On Plate"}]
["Q1005050 (Welding - Structural)",{"$f":"Causes!H395","v":"0009 Excessive Welding Currents"}]
["Q1005050 (Welding - Structural)",{"$f":"Causes!H396","v":"0010 Excessive Wire Feed"}]
["Q1005050 (Welding - Structural)",{"$f":"Causes!H397","v":"0011 Excessive Wire / Electrode Feed Speed"}]
["Q1005050 (Welding - Structural)",{"$f":"Causes!H398","v":"0012 Failure To Remove Slag / Oxides Between Weld Passes"}]
["Q1005050 (Welding - Structural)",{"$f":"Causes!H399","v":"0013 Heat Input"}]
["Q1005050 (Welding - Structural)",{"$f":"Causes!H400","v":"0014 High Hardness"}]
["Q1005050 (Welding - Structural)",{"$f":"Causes!H401","v":"0015 Hole / Leak In Hose Or Manifold System"}]
["Q1005050 (Welding - Structural)",{"$f":"Causes!H402","v":"0016 Improper Cleaning"}]
["Q1005050 (Welding - Structural)",{"$f":"Causes!H403","v":"0017 Incorrect Base Metal Chemistry"}]
["Q1005050 (Welding - Structural)",{"$f":"Causes!H404","v":"0018 Incorrect Bead Placement"}]
["Q1005050 (Welding - Structural)",{"$f":"Causes!H405","v":"0019 Incorrect Wire Chemistry"}]
["Q1005050 (Welding - Structural)",{"$f":"Causes!H406","v":"0020 Insufficient Purge"}]
["Q1005050 (Welding - Structural)",{"$f":"Causes!H407","v":"0021 Insufficient Dwell At Edge of Weld Bead"}]
["Q1005050 (Welding - Structural)",{"$f":"Causes!H408","v":"0022 Insufficient Preheat"}]
["Q1005050 (Welding - Structural)",{"$f":"Causes!H409","v":"0024 Insufficient Shielding Gas Flow"}]
["Q1005050 (Welding - Structural)",{"$f":"Causes!H410","v":"0025 Insufficient Weld Passes"}]
["Q1005050 (Welding - Structural)",{"$f":"Causes!H411","v":"0026 Insufficient Wire Feed"}]
["Q1005050 (Welding - Structural)",{"$f":"Causes!H412","v":"0027 Interpass"}]
["Q1005050 (Welding - Structural)",{"$f":"Causes!H413","v":"0028 Low Hardness"}]
["Q1005050 (Welding - Structural)",{"$f":"Causes!H414","v":"0029 Oil, Heavy Rust, Scale, etc. On Plate"}]
["Q1005050 (Welding - Structural)",{"$f":"Causes!H415","v":"0030 Operator Error"}]
["Q1005050 (Welding - Structural)",{"$f":"Causes!H416","v":"0031 Out of Tolerance"}]
["Q1005050 (Welding - Structural)",{"$f":"Causes!H417","v":"0032 Poor Filler Metal Control (ex. Hic)"}]
["Q1005050 (Welding - Structural)",{"$f":"Causes!H418","v":"0033 Pre Heat"}]
["Q1005050 (Welding - Structural)",{"$f":"Causes!H419","v":"0034 PWHT Error"}]
["Q1005050 (Welding - Structural)",{"$f":"Causes!H420","v":"0035 Shielding Problem; Wind, Clogged Or Small Nozzle, Damaged Gas Hose, Excessive Gasflow, etc. "}]
["Q1005050 (Welding - Structural)",{"$f":"Causes!H421","v":"0036 Too Fast Travel Speed"}]
["Q1005050 (Welding - Structural)",{"$f":"Causes!H422","v":"0037 Too Much Wire Feed"}]
["Q1005050 (Welding - Structural)",{"$f":"Causes!H423","v":"0038 Torch Oscillation Too Wide Or Too Narrow"}]
["Q1005050 (Welding - Structural)",{"$f":"Causes!H424","v":"0039 Travel Speed"}]
["Q1005050 (Welding - Structural)",{"$f":"Causes!H425","v":"0040 Travel Speed Too High"}]
["Q1005050 (Welding - Structural)",{"$f":"Causes!H426","v":"0041 Travel Speed Too Low"}]
["Q1005050 (Welding - Structural)",{"$f":"Causes!H427","v":"0042 Volts"}]
["Q1005050 (Welding - Structural)",{"$f":"Causes!H428","v":"0043 Weld Bead Too Small"}]
["Q1005050 (Welding - Structural)",{"$f":"Causes!H429","v":"0044 Weld joint Too Narrow"}]
["Q1005050 (Welding - Structural)",{"$f":"Causes!H430","v":"0045 Welding Current Too Low; Too Much"}]
["Q1005050 (Welding - Structural)",{"$f":"Causes!H431","v":"0046 Welding Over Convex Bead"}]
["Q1005050 (Welding - Structural)",{"$f":"Causes!H432","v":"0047 Welding Over Slag From Covered Electrode"}]
["Q1005050 (Welding - Structural)",{"$f":"Causes!H433","v":"0048 Welding Voltage and / Or Current Too Low"}]
["Q1005050 (Welding - Structural)",{"$f":"Causes!H434","v":"0049 Welding Voltage Too High"}]
["Q1005050 (Welding - Structural)",{"$f":"Causes!H435","v":"0050 Wire – May Need Wire Higher in Mn and Si"}]
["Q1005050 (Welding - Structural)",{"$f":"Causes!H436","v":"0051 Wire Feed Speed"}]
["Q1005050 (Welding - Structural)",{"$f":"Causes!H437","v":"0052 Wire Feed Too Low"}]
["Q1005050 (Welding - Structural)",{"$f":"Causes!H438","v":"0053 Wrong Filler / Base Metal Combination"}]
["Q1005050 (Welding - Structural)",{"$f":"Causes!H439","v":"0054 Wrong Gas"}]
["Q1005050 (Welding - Structural)",{"$f":"Causes!H440","v":"0055 Incorrect Heat Treatment"}]
["Q1005050 (Welding - Structural)",{"$f":"Causes!H441","v":"0056 Material Incorrect"}]
["Q1005051 (Welding - Cladding)",{"$f":"Causes!H444","v":"0001 Amps"}]
["Q1005051 (Welding - Cladding)",{"$f":"Causes!H445","v":"0002 Arc Voltage Too High"}]
["Q1005051 (Welding - Cladding)",{"$f":"Causes!H446","v":"0003 Arc Voltage Too Low"}]
["Q1005051 (Welding - Cladding)",{"$f":"Causes!H447","v":"0004 Contaminated Filler Metal"}]
["Q1005051 (Welding - Cladding)",{"$f":"Causes!H448","v":"0005 Contaminated Gas (From Supplier)"}]
["Q1005051 (Welding - Cladding)",{"$f":"Causes!H449","v":"0006 Electrode Stickout Weld Puddle Rolling In Front of the Arc"}]
["Q1005051 (Welding - Cladding)",{"$f":"Causes!H450","v":"0007 Excessive Joint Restraint"}]
["Q1005051 (Welding - Cladding)",{"$f":"Causes!H451","v":"0008 Excessive Oxide On Plate"}]
["Q1005051 (Welding - Cladding)",{"$f":"Causes!H452","v":"0009 Excessive Welding Currents"}]
["Q1005051 (Welding - Cladding)",{"$f":"Causes!H453","v":"0010 Excessive Wire Feed"}]
["Q1005051 (Welding - Cladding)",{"$f":"Causes!H454","v":"0011 Excessive Wire / Electrode Feed Speed"}]
["Q1005051 (Welding - Cladding)",{"$f":"Causes!H455","v":"0012 Failure To Remove Slag / Oxides Between Weld Passes"}]
["Q1005051 (Welding - Cladding)",{"$f":"Causes!H456","v":"0013 Heat Input"}]
["Q1005051 (Welding - Cladding)",{"$f":"Causes!H457","v":"0014 High Hardness"}]
["Q1005051 (Welding - Cladding)",{"$f":"Causes!H458","v":"0015 Hole / Leak In Hose Or Manifold System"}]
["Q1005051 (Welding - Cladding)",{"$f":"Causes!H459","v":"0016 Improper Cleaning"}]
["Q1005051 (Welding - Cladding)",{"$f":"Causes!H460","v":"0017 Incorrect Base Metal Chemistry"}]
["Q1005051 (Welding - Cladding)",{"$f":"Causes!H461","v":"0018 Incorrect Bead Placement"}]
["Q1005051 (Welding - Cladding)",{"$f":"Causes!H462","v":"0019 Incorrect Wire Chemistry"}]
["Q1005051 (Welding - Cladding)",{"$f":"Causes!H463","v":"0020 Insufficient Purge"}]
["Q1005051 (Welding - Cladding)",{"$f":"Causes!H464","v":"0021 Insufficient Dwell At Edge of Weld Bead"}]
["Q1005051 (Welding - Cladding)",{"$f":"Causes!H465","v":"0022 Insufficient Preheat"}]
["Q1005051 (Welding - Cladding)",{"$f":"Causes!H466","v":"0024 Insufficient Shielding Gas Flow"}]
["Q1005051 (Welding - Cladding)",{"$f":"Causes!H467","v":"0025 Insufficient Weld Passes"}]
["Q1005051 (Welding - Cladding)",{"$f":"Causes!H468","v":"0026 Insufficient Wire Feed"}]
["Q1005051 (Welding - Cladding)",{"$f":"Causes!H469","v":"0027 Interpass"}]
["Q1005051 (Welding - Cladding)",{"$f":"Causes!H470","v":"0028 Low Hardness"}]
["Q1005051 (Welding - Cladding)",{"$f":"Causes!H471","v":"0029 Oil, Heavy Rust, Scale, etc. On Plate"}]
["Q1005051 (Welding - Cladding)",{"$f":"Causes!H472","v":"0030 Operator Error"}]
["Q1005051 (Welding - Cladding)",{"$f":"Causes!H473","v":"0031 Out of Tolerance"}]
["Q1005051 (Welding - Cladding)",{"$f":"Causes!H474","v":"0032 Poor Filler Metal Control (ex. Hic)"}]
["Q1005051 (Welding - Cladding)",{"$f":"Causes!H475","v":"0033 Pre Heat"}]
["Q1005051 (Welding - Cladding)",{"$f":"Causes!H476","v":"0034 PWHT Error"}]
["Q1005051 (Welding - Cladding)",{"$f":"Causes!H477","v":"0035 Shielding Problem; Wind, Clogged Or Small Nozzle, Damaged Gas Hose, Excessive Gasflow, etc. "}]
["Q1005051 (Welding - Cladding)",{"$f":"Causes!H478","v":"0036 Too Fast Travel Speed"}]
["Q1005051 (Welding - Cladding)",{"$f":"Causes!H479","v":"0037 Too Much Wire Feed"}]
["Q1005051 (Welding - Cladding)",{"$f":"Causes!H480","v":"0038 Torch Oscillation Too Wide Or Too Narrow"}]
["Q1005051 (Welding - Cladding)",{"$f":"Causes!H481","v":"0039 Travel Speed"}]
["Q1005051 (Welding - Cladding)",{"$f":"Causes!H482","v":"0040 Travel Speed Too High"}]
["Q1005051 (Welding - Cladding)",{"$f":"Causes!H483","v":"0041 Travel Speed Too Low"}]
["Q1005051 (Welding - Cladding)",{"$f":"Causes!H484","v":"0042 Volts"}]
["Q1005051 (Welding - Cladding)",{"$f":"Causes!H485","v":"0043 Weld Bead Too Small"}]
["Q1005051 (Welding - Cladding)",{"$f":"Causes!H486","v":"0044 Weld joint Too Narrow"}]
["Q1005051 (Welding - Cladding)",{"$f":"Causes!H487","v":"0045 Welding Current Too Low; Too Much"}]
["Q1005051 (Welding - Cladding)",{"$f":"Causes!H488","v":"0046 Welding Over Convex Bead"}]
["Q1005051 (Welding - Cladding)",{"$f":"Causes!H489","v":"0047 Welding Over Slag From Covered Electrode"}]
["Q1005051 (Welding - Cladding)",{"$f":"Causes!H490","v":"0048 Welding Voltage and / Or Current Too Low"}]
["Q1005051 (Welding - Cladding)",{"$f":"Causes!H491","v":"0049 Welding Voltage Too High"}]
["Q1005051 (Welding - Cladding)",{"$f":"Causes!H492","v":"0050 Wire – May Need Wire Higher in Mn and Si"}]
["Q1005051 (Welding - Cladding)",{"$f":"Causes!H493","v":"0051 Wire Feed Speed"}]
["Q1005051 (Welding - Cladding)",{"$f":"Causes!H494","v":"0052 Wire Feed Too Low"}]
["Q1005051 (Welding - Cladding)",{"$f":"Causes!H495","v":"0053 Wrong Filler / Base Metal Combination"}]
["Q1005051 (Welding - Cladding)",{"$f":"Causes!H496","v":"0054 Wrong Gas"}]
["Q1005051 (Welding - Cladding)",{"$f":"Causes!H497","v":"0055 Incorrect Heat Treatment"}]
["Q1005051 (Welding - Cladding)",{"$f":"Causes!H498","v":"0056 Material Incorrect"}]
["Q1005052 (Welding - Butter)",{"$f":"Causes!H501","v":"0001 Amps"}]
["Q1005052 (Welding - Butter)",{"$f":"Causes!H502","v":"0002 Arc Voltage Too High"}]
["Q1005052 (Welding - Butter)",{"$f":"Causes!H503","v":"0003 Arc Voltage Too Low"}]
["Q1005052 (Welding - Butter)",{"$f":"Causes!H504","v":"0004 Contaminated Filler Metal"}]
["Q1005052 (Welding - Butter)",{"$f":"Causes!H505","v":"0005 Contaminated Gas (From Supplier)"}]
["Q1005052 (Welding - Butter)",{"$f":"Causes!H506","v":"0006 Electrode Stickout Weld Puddle Rolling In Front of the Arc"}]
["Q1005052 (Welding - Butter)",{"$f":"Causes!H507","v":"0007 Excessive Joint Restraint"}]
["Q1005052 (Welding - Butter)",{"$f":"Causes!H508","v":"0008 Excessive Oxide On Plate"}]
["Q1005052 (Welding - Butter)",{"$f":"Causes!H509","v":"0009 Excessive Welding Currents"}]
["Q1005052 (Welding - Butter)",{"$f":"Causes!H510","v":"0010 Excessive Wire Feed"}]
["Q1005052 (Welding - Butter)",{"$f":"Causes!H511","v":"0011 Excessive Wire / Electrode Feed Speed"}]
["Q1005052 (Welding - Butter)",{"$f":"Causes!H512","v":"0012 Failure To Remove Slag / Oxides Between Weld Passes"}]
["Q1005052 (Welding - Butter)",{"$f":"Causes!H513","v":"0013 Heat Input"}]
["Q1005052 (Welding - Butter)",{"$f":"Causes!H514","v":"0014 High Hardness"}]
["Q1005052 (Welding - Butter)",{"$f":"Causes!H515","v":"0015 Hole / Leak In Hose Or Manifold System"}]
["Q1005052 (Welding - Butter)",{"$f":"Causes!H516","v":"0016 Improper Cleaning"}]
["Q1005052 (Welding - Butter)",{"$f":"Causes!H517","v":"0017 Incorrect Base Metal Chemistry"}]
["Q1005052 (Welding - Butter)",{"$f":"Causes!H518","v":"0018 Incorrect Bead Placement"}]
["Q1005052 (Welding - Butter)",{"$f":"Causes!H519","v":"0019 Incorrect Wire Chemistry"}]
["Q1005052 (Welding - Butter)",{"$f":"Causes!H520","v":"0020 Insufficient Purge"}]
["Q1005052 (Welding - Butter)",{"$f":"Causes!H521","v":"0021 Insufficient Dwell At Edge of Weld Bead"}]
["Q1005052 (Welding - Butter)",{"$f":"Causes!H522","v":"0022 Insufficient Preheat"}]
["Q1005052 (Welding - Butter)",{"$f":"Causes!H523","v":"0024 Insufficient Shielding Gas Flow"}]
["Q1005052 (Welding - Butter)",{"$f":"Causes!H524","v":"0025 Insufficient Weld Passes"}]
["Q1005052 (Welding - Butter)",{"$f":"Causes!H525","v":"0026 Insufficient Wire Feed"}]
["Q1005052 (Welding - Butter)",{"$f":"Causes!H526","v":"0027 Interpass"}]
["Q1005052 (Welding - Butter)",{"$f":"Causes!H527","v":"0028 Low Hardness"}]
["Q1005052 (Welding - Butter)",{"$f":"Causes!H528","v":"0029 Oil, Heavy Rust, Scale, etc. On Plate"}]
["Q1005052 (Welding - Butter)",{"$f":"Causes!H529","v":"0030 Operator Error"}]
["Q1005052 (Welding - Butter)",{"$f":"Causes!H530","v":"0031 Out of Tolerance"}]
["Q1005052 (Welding - Butter)",{"$f":"Causes!H531","v":"0032 Poor Filler Metal Control (ex. Hic)"}]
["Q1005052 (Welding - Butter)",{"$f":"Causes!H532","v":"0033 Pre Heat"}]
["Q1005052 (Welding - Butter)",{"$f":"Causes!H533","v":"0034 PWHT Error"}]
["Q1005052 (Welding - Butter)",{"$f":"Causes!H534","v":"0035 Shielding Problem; Wind, Clogged Or Small Nozzle, Damaged Gas Hose, Excessive Gasflow, etc. "}]
["Q1005052 (Welding - Butter)",{"$f":"Causes!H535","v":"0036 Too Fast Travel Speed"}]
["Q1005052 (Welding - Butter)",{"$f":"Causes!H536","v":"0037 Too Much Wire Feed"}]
["Q1005052 (Welding - Butter)",{"$f":"Causes!H537","v":"0038 Torch Oscillation Too Wide Or Too Narrow"}]
["Q1005052 (Welding - Butter)",{"$f":"Causes!H538","v":"0039 Travel Speed"}]
["Q1005052 (Welding - Butter)",{"$f":"Causes!H539","v":"0040 Travel Speed Too High"}]
["Q1005052 (Welding - Butter)",{"$f":"Causes!H540","v":"0041 Travel Speed Too Low"}]
["Q1005052 (Welding - Butter)",{"$f":"Causes!H541","v":"0042 Volts"}]
["Q1005052 (Welding - Butter)",{"$f":"Causes!H542","v":"0043 Weld Bead Too Small"}]
["Q1005052 (Welding - Butter)",{"$f":"Causes!H543","v":"0044 Weld joint Too Narrow"}]
["Q1005052 (Welding - Butter)",{"$f":"Causes!H544","v":"0045 Welding Current Too Low; Too Much"}]
["Q1005052 (Welding - Butter)",{"$f":"Causes!H545","v":"0046 Welding Over Convex Bead"}]
["Q1005052 (Welding - Butter)",{"$f":"Causes!H546","v":"0047 Welding Over Slag From Covered Electrode"}]
["Q1005052 (Welding - Butter)",{"$f":"Causes!H547","v":"0048 Welding Voltage and / Or Current Too Low"}]
["Q1005052 (Welding - Butter)",{"$f":"Causes!H548","v":"0049 Welding Voltage Too High"}]
["Q1005052 (Welding - Butter)",{"$f":"Causes!H549","v":"0050 Wire – May Need Wire Higher in Mn and Si"}]
["Q1005052 (Welding - Butter)",{"$f":"Causes!H550","v":"0051 Wire Feed Speed"}]
["Q1005052 (Welding - Butter)",{"$f":"Causes!H551","v":"0052 Wire Feed Too Low"}]
["Q1005052 (Welding - Butter)",{"$f":"Causes!H552","v":"0053 Wrong Filler / Base Metal Combination"}]
["Q1005052 (Welding - Butter)",{"$f":"Causes!H553","v":"0054 Wrong Gas"}]
["Q1005052 (Welding - Butter)",{"$f":"Causes!H554","v":"0055 Incorrect Heat Treatment"}]
["Q1005052 (Welding - Butter)",{"$f":"Causes!H555","v":"0056 Material Incorrect"}]
["Q1005053 (Welding - Manual Closure)",{"$f":"Causes!H558","v":"0001 Amps"}]
["Q1005053 (Welding - Manual Closure)",{"$f":"Causes!H559","v":"0002 Arc Voltage Too High"}]
["Q1005053 (Welding - Manual Closure)",{"$f":"Causes!H560","v":"0003 Arc Voltage Too Low"}]
["Q1005053 (Welding - Manual Closure)",{"$f":"Causes!H561","v":"0004 Contaminated Filler Metal"}]
["Q1005053 (Welding - Manual Closure)",{"$f":"Causes!H562","v":"0005 Contaminated Gas (From Supplier)"}]
["Q1005053 (Welding - Manual Closure)",{"$f":"Causes!H563","v":"0006 Electrode Stickout Weld Puddle Rolling In Front of the Arc"}]
["Q1005053 (Welding - Manual Closure)",{"$f":"Causes!H564","v":"0007 Excessive Joint Restraint"}]
["Q1005053 (Welding - Manual Closure)",{"$f":"Causes!H565","v":"0008 Excessive Oxide On Plate"}]
["Q1005053 (Welding - Manual Closure)",{"$f":"Causes!H566","v":"0009 Excessive Welding Currents"}]
["Q1005053 (Welding - Manual Closure)",{"$f":"Causes!H567","v":"0010 Excessive Wire Feed"}]
["Q1005053 (Welding - Manual Closure)",{"$f":"Causes!H568","v":"0011 Excessive Wire / Electrode Feed Speed"}]
["Q1005053 (Welding - Manual Closure)",{"$f":"Causes!H569","v":"0012 Failure To Remove Slag / Oxides Between Weld Passes"}]
["Q1005053 (Welding - Manual Closure)",{"$f":"Causes!H570","v":"0013 Heat Input"}]
["Q1005053 (Welding - Manual Closure)",{"$f":"Causes!H571","v":"0014 High Hardness"}]
["Q1005053 (Welding - Manual Closure)",{"$f":"Causes!H572","v":"0015 Hole / Leak In Hose Or Manifold System"}]
["Q1005053 (Welding - Manual Closure)",{"$f":"Causes!H573","v":"0016 Improper Cleaning"}]
["Q1005053 (Welding - Manual Closure)",{"$f":"Causes!H574","v":"0017 Incorrect Base Metal Chemistry"}]
["Q1005053 (Welding - Manual Closure)",{"$f":"Causes!H575","v":"0018 Incorrect Bead Placement"}]
["Q1005053 (Welding - Manual Closure)",{"$f":"Causes!H576","v":"0019 Incorrect Wire Chemistry"}]
["Q1005053 (Welding - Manual Closure)",{"$f":"Causes!H577","v":"0020 Insufficient Purge"}]
["Q1005053 (Welding - Manual Closure)",{"$f":"Causes!H578","v":"0021 Insufficient Dwell At Edge of Weld Bead"}]
["Q1005053 (Welding - Manual Closure)",{"$f":"Causes!H579","v":"0022 Insufficient Preheat"}]
["Q1005053 (Welding - Manual Closure)",{"$f":"Causes!H580","v":"0024 Insufficient Shielding Gas Flow"}]
["Q1005053 (Welding - Manual Closure)",{"$f":"Causes!H581","v":"0025 Insufficient Weld Passes"}]
["Q1005053 (Welding - Manual Closure)",{"$f":"Causes!H582","v":"0026 Insufficient Wire Feed"}]
["Q1005053 (Welding - Manual Closure)",{"$f":"Causes!H583","v":"0027 Interpass"}]
["Q1005053 (Welding - Manual Closure)",{"$f":"Causes!H584","v":"0028 Low Hardness"}]
["Q1005053 (Welding - Manual Closure)",{"$f":"Causes!H585","v":"0029 Oil, Heavy Rust, Scale, etc. On Plate"}]
["Q1005053 (Welding - Manual Closure)",{"$f":"Causes!H586","v":"0030 Operator Error"}]
["Q1005053 (Welding - Manual Closure)",{"$f":"Causes!H587","v":"0031 Out of Tolerance"}]
["Q1005053 (Welding - Manual Closure)",{"$f":"Causes!H588","v":"0032 Poor Filler Metal Control (ex. Hic)"}]
["Q1005053 (Welding - Manual Closure)",{"$f":"Causes!H589","v":"0033 Pre Heat"}]
["Q1005053 (Welding - Manual Closure)",{"$f":"Causes!H590","v":"0034 PWHT Error"}]
["Q1005053 (Welding - Manual Closure)",{"$f":"Causes!H591","v":"0035 Shielding Problem; Wind, Clogged Or Small Nozzle, Damaged Gas Hose, Excessive Gasflow, etc. "}]
["Q1005053 (Welding - Manual Closure)",{"$f":"Causes!H592","v":"0036 Too Fast Travel Speed"}]
["Q1005053 (Welding - Manual Closure)",{"$f":"Causes!H593","v":"0037 Too Much Wire Feed"}]
["Q1005053 (Welding - Manual Closure)",{"$f":"Causes!H594","v":"0038 Torch Oscillation Too Wide Or Too Narrow"}]
["Q1005053 (Welding - Manual Closure)",{"$f":"Causes!H595","v":"0039 Travel Speed"}]
["Q1005053 (Welding - Manual Closure)",{"$f":"Causes!H596","v":"0040 Travel Speed Too High"}]
["Q1005053 (Welding - Manual Closure)",{"$f":"Causes!H597","v":"0041 Travel Speed Too Low"}]
["Q1005053 (Welding - Manual Closure)",{"$f":"Causes!H598","v":"0042 Volts"}]
["Q1005053 (Welding - Manual Closure)",{"$f":"Causes!H599","v":"0043 Weld Bead Too Small"}]
["Q1005053 (Welding - Manual Closure)",{"$f":"Causes!H600","v":"0044 Weld joint Too Narrow"}]
["Q1005053 (Welding - Manual Closure)",{"$f":"Causes!H601","v":"0045 Welding Current Too Low; Too Much"}]
["Q1005053 (Welding - Manual Closure)",{"$f":"Causes!H602","v":"0046 Welding Over Convex Bead"}]
["Q1005053 (Welding - Manual Closure)",{"$f":"Causes!H603","v":"0047 Welding Over Slag From Covered Electrode"}]
["Q1005053 (Welding - Manual Closure)",{"$f":"Causes!H604","v":"0048 Welding Voltage and / Or Current Too Low"}]
["Q1005053 (Welding - Manual Closure)",{"$f":"Causes!H605","v":"0049 Welding Voltage Too High"}]
["Q1005053 (Welding - Manual Closure)",{"$f":"Causes!H606","v":"0050 Wire – May Need Wire Higher in Mn and Si"}]
["Q1005053 (Welding - Manual Closure)",{"$f":"Causes!H607","v":"0051 Wire Feed Speed"}]
["Q1005053 (Welding - Manual Closure)",{"$f":"Causes!H608","v":"0052 Wire Feed Too Low"}]
["Q1005053 (Welding - Manual Closure)",{"$f":"Causes!H609","v":"0053 Wrong Filler / Base Metal Combination"}]
["Q1005053 (Welding - Manual Closure)",{"$f":"Causes!H610","v":"0054 Wrong Gas"}]
["Q1005053 (Welding - Manual Closure)",{"$f":"Causes!H611","v":"0055 Incorrect Heat Treatment"}]
["Q1005053 (Welding - Manual Closure)",{"$f":"Causes!H612","v":"0056 Material Incorrect"}]
["Q1005054 (Welding - Machine Closure)",{"$f":"Causes!H615","v":"0001 Amps"}]
["Q1005054 (Welding - Machine Closure)",{"$f":"Causes!H616","v":"0002 Arc Voltage Too High"}]
["Q1005054 (Welding - Machine Closure)",{"$f":"Causes!H617","v":"0003 Arc Voltage Too Low"}]
["Q1005054 (Welding - Machine Closure)",{"$f":"Causes!H618","v":"0004 Contaminated Filler Metal"}]
["Q1005054 (Welding - Machine Closure)",{"$f":"Causes!H619","v":"0005 Contaminated Gas (From Supplier)"}]
["Q1005054 (Welding - Machine Closure)",{"$f":"Causes!H620","v":"0006 Electrode Stickout Weld Puddle Rolling In Front of the Arc"}]
["Q1005054 (Welding - Machine Closure)",{"$f":"Causes!H621","v":"0007 Excessive Joint Restraint"}]
["Q1005054 (Welding - Machine Closure)",{"$f":"Causes!H622","v":"0008 Excessive Oxide On Plate"}]
["Q1005054 (Welding - Machine Closure)",{"$f":"Causes!H623","v":"0009 Excessive Welding Currents"}]
["Q1005054 (Welding - Machine Closure)",{"$f":"Causes!H624","v":"0010 Excessive Wire Feed"}]
["Q1005054 (Welding - Machine Closure)",{"$f":"Causes!H625","v":"0011 Excessive Wire / Electrode Feed Speed"}]
["Q1005054 (Welding - Machine Closure)",{"$f":"Causes!H626","v":"0012 Failure To Remove Slag / Oxides Between Weld Passes"}]
["Q1005054 (Welding - Machine Closure)",{"$f":"Causes!H627","v":"0013 Heat Input"}]
["Q1005054 (Welding - Machine Closure)",{"$f":"Causes!H628","v":"0014 High Hardness"}]
["Q1005054 (Welding - Machine Closure)",{"$f":"Causes!H629","v":"0015 Hole / Leak In Hose Or Manifold System"}]
["Q1005054 (Welding - Machine Closure)",{"$f":"Causes!H630","v":"0016 Improper Cleaning"}]
["Q1005054 (Welding - Machine Closure)",{"$f":"Causes!H631","v":"0017 Incorrect Base Metal Chemistry"}]
["Q1005054 (Welding - Machine Closure)",{"$f":"Causes!H632","v":"0018 Incorrect Bead Placement"}]
["Q1005054 (Welding - Machine Closure)",{"$f":"Causes!H633","v":"0019 Incorrect Wire Chemistry"}]
["Q1005054 (Welding - Machine Closure)",{"$f":"Causes!H634","v":"0020 Insufficient Purge"}]
["Q1005054 (Welding - Machine Closure)",{"$f":"Causes!H635","v":"0021 Insufficient Dwell At Edge of Weld Bead"}]
["Q1005054 (Welding - Machine Closure)",{"$f":"Causes!H636","v":"0022 Insufficient Preheat"}]
["Q1005054 (Welding - Machine Closure)",{"$f":"Causes!H637","v":"0024 Insufficient Shielding Gas Flow"}]
["Q1005054 (Welding - Machine Closure)",{"$f":"Causes!H638","v":"0025 Insufficient Weld Passes"}]
["Q1005054 (Welding - Machine Closure)",{"$f":"Causes!H639","v":"0026 Insufficient Wire Feed"}]
["Q1005054 (Welding - Machine Closure)",{"$f":"Causes!H640","v":"0027 Interpass"}]
["Q1005054 (Welding - Machine Closure)",{"$f":"Causes!H641","v":"0028 Low Hardness"}]
["Q1005054 (Welding - Machine Closure)",{"$f":"Causes!H642","v":"0029 Oil, Heavy Rust, Scale, etc. On Plate"}]
["Q1005054 (Welding - Machine Closure)",{"$f":"Causes!H643","v":"0030 Operator Error"}]
["Q1005054 (Welding - Machine Closure)",{"$f":"Causes!H644","v":"0031 Out of Tolerance"}]
["Q1005054 (Welding - Machine Closure)",{"$f":"Causes!H645","v":"0032 Poor Filler Metal Control (ex. Hic)"}]
["Q1005054 (Welding - Machine Closure)",{"$f":"Causes!H646","v":"0033 Pre Heat"}]
["Q1005054 (Welding - Machine Closure)",{"$f":"Causes!H647","v":"0034 PWHT Error"}]
["Q1005054 (Welding - Machine Closure)",{"$f":"Causes!H648","v":"0035 Shielding Problem; Wind, Clogged Or Small Nozzle, Damaged Gas Hose, Excessive Gasflow, etc. "}]
["Q1005054 (Welding - Machine Closure)",{"$f":"Causes!H649","v":"0036 Too Fast Travel Speed"}]
["Q1005054 (Welding - Machine Closure)",{"$f":"Causes!H650","v":"0037 Too Much Wire Feed"}]
["Q1005054 (Welding - Machine Closure)",{"$f":"Causes!H651","v":"0038 Torch Oscillation Too Wide Or Too Narrow"}]
["Q1005054 (Welding - Machine Closure)",{"$f":"Causes!H652","v":"0039 Travel Speed"}]
["Q1005054 (Welding - Machine Closure)",{"$f":"Causes!H653","v":"0040 Travel Speed Too High"}]
["Q1005054 (Welding - Machine Closure)",{"$f":"Causes!H654","v":"0041 Travel Speed Too Low"}]
["Q1005054 (Welding - Machine Closure)",{"$f":"Causes!H655","v":"0042 Volts"}]
["Q1005054 (Welding - Machine Closure)",{"$f":"Causes!H656","v":"0043 Weld Bead Too Small"}]
["Q1005054 (Welding - Machine Closure)",{"$f":"Causes!H657","v":"0044 Weld joint Too Narrow"}]
["Q1005054 (Welding - Machine Closure)",{"$f":"Causes!H658","v":"0045 Welding Current Too Low; Too Much"}]
["Q1005054 (Welding - Machine Closure)",{"$f":"Causes!H659","v":"0046 Welding Over Convex Bead"}]
["Q1005054 (Welding - Machine Closure)",{"$f":"Causes!H660","v":"0047 Welding Over Slag From Covered Electrode"}]
["Q1005054 (Welding - Machine Closure)",{"$f":"Causes!H661","v":"0048 Welding Voltage and / Or Current Too Low"}]
["Q1005054 (Welding - Machine Closure)",{"$f":"Causes!H662","v":"0049 Welding Voltage Too High"}]
["Q1005054 (Welding - Machine Closure)",{"$f":"Causes!H663","v":"0050 Wire – May Need Wire Higher in Mn and Si"}]
["Q1005054 (Welding - Machine Closure)",{"$f":"Causes!H664","v":"0051 Wire Feed Speed"}]
["Q1005054 (Welding - Machine Closure)",{"$f":"Causes!H665","v":"0052 Wire Feed Too Low"}]
["Q1005054 (Welding - Machine Closure)",{"$f":"Causes!H666","v":"0053 Wrong Filler / Base Metal Combination"}]
["Q1005054 (Welding - Machine Closure)",{"$f":"Causes!H667","v":"0054 Wrong Gas"}]
["Q1005054 (Welding - Machine Closure)",{"$f":"Causes!H668","v":"0055 Incorrect Heat Treatment"}]
["Q1005054 (Welding - Machine Closure)",{"$f":"Causes!H669","v":"0056 Material Incorrect"}]
["Q1005055 (Welding - Manual Tubing)",{"$f":"Causes!H672","v":"0001 Amps"}]
["Q1005055 (Welding - Manual Tubing)",{"$f":"Causes!H673","v":"0002 Arc Voltage Too High"}]
["Q1005055 (Welding - Manual Tubing)",{"$f":"Causes!H674","v":"0003 Arc Voltage Too Low"}]
["Q1005055 (Welding - Manual Tubing)",{"$f":"Causes!H675","v":"0004 Contaminated Filler Metal"}]
["Q1005055 (Welding - Manual Tubing)",{"$f":"Causes!H676","v":"0005 Contaminated Gas (From Supplier)"}]
["Q1005055 (Welding - Manual Tubing)",{"$f":"Causes!H677","v":"0006 Electrode Stickout Weld Puddle Rolling In Front of the Arc"}]
["Q1005055 (Welding - Manual Tubing)",{"$f":"Causes!H678","v":"0007 Excessive Joint Restraint"}]
["Q1005055 (Welding - Manual Tubing)",{"$f":"Causes!H679","v":"0008 Excessive Oxide On Plate"}]
["Q1005055 (Welding - Manual Tubing)",{"$f":"Causes!H680","v":"0009 Excessive Welding Currents"}]
["Q1005055 (Welding - Manual Tubing)",{"$f":"Causes!H681","v":"0010 Excessive Wire Feed"}]
["Q1005055 (Welding - Manual Tubing)",{"$f":"Causes!H682","v":"0011 Excessive Wire / Electrode Feed Speed"}]
["Q1005055 (Welding - Manual Tubing)",{"$f":"Causes!H683","v":"0012 Failure To Remove Slag / Oxides Between Weld Passes"}]
["Q1005055 (Welding - Manual Tubing)",{"$f":"Causes!H684","v":"0013 Heat Input"}]
["Q1005055 (Welding - Manual Tubing)",{"$f":"Causes!H685","v":"0014 High Hardness"}]
["Q1005055 (Welding - Manual Tubing)",{"$f":"Causes!H686","v":"0015 Hole / Leak In Hose Or Manifold System"}]
["Q1005055 (Welding - Manual Tubing)",{"$f":"Causes!H687","v":"0016 Improper Cleaning"}]
["Q1005055 (Welding - Manual Tubing)",{"$f":"Causes!H688","v":"0017 Incorrect Base Metal Chemistry"}]
["Q1005055 (Welding - Manual Tubing)",{"$f":"Causes!H689","v":"0018 Incorrect Bead Placement"}]
["Q1005055 (Welding - Manual Tubing)",{"$f":"Causes!H690","v":"0019 Incorrect Wire Chemistry"}]
["Q1005055 (Welding - Manual Tubing)",{"$f":"Causes!H691","v":"0020 Insufficient Purge"}]
["Q1005055 (Welding - Manual Tubing)",{"$f":"Causes!H692","v":"0021 Insufficient Dwell At Edge of Weld Bead"}]
["Q1005055 (Welding - Manual Tubing)",{"$f":"Causes!H693","v":"0022 Insufficient Preheat"}]
["Q1005055 (Welding - Manual Tubing)",{"$f":"Causes!H694","v":"0024 Insufficient Shielding Gas Flow"}]
["Q1005055 (Welding - Manual Tubing)",{"$f":"Causes!H695","v":"0025 Insufficient Weld Passes"}]
["Q1005055 (Welding - Manual Tubing)",{"$f":"Causes!H696","v":"0026 Insufficient Wire Feed"}]
["Q1005055 (Welding - Manual Tubing)",{"$f":"Causes!H697","v":"0027 Interpass"}]
["Q1005055 (Welding - Manual Tubing)",{"$f":"Causes!H698","v":"0028 Low Hardness"}]
["Q1005055 (Welding - Manual Tubing)",{"$f":"Causes!H699","v":"0029 Oil, Heavy Rust, Scale, etc. On Plate"}]
["Q1005055 (Welding - Manual Tubing)",{"$f":"Causes!H700","v":"0030 Operator Error"}]
["Q1005055 (Welding - Manual Tubing)",{"$f":"Causes!H701","v":"0031 Out of Tolerance"}]
["Q1005055 (Welding - Manual Tubing)",{"$f":"Causes!H702","v":"0032 Poor Filler Metal Control (ex. Hic)"}]
["Q1005055 (Welding - Manual Tubing)",{"$f":"Causes!H703","v":"0033 Pre Heat"}]
["Q1005055 (Welding - Manual Tubing)",{"$f":"Causes!H704","v":"0034 PWHT Error"}]
["Q1005055 (Welding - Manual Tubing)",{"$f":"Causes!H705","v":"0035 Shielding Problem; Wind, Clogged Or Small Nozzle, Damaged Gas Hose, Excessive Gasflow, etc. "}]
["Q1005055 (Welding - Manual Tubing)",{"$f":"Causes!H706","v":"0036 Too Fast Travel Speed"}]
["Q1005055 (Welding - Manual Tubing)",{"$f":"Causes!H707","v":"0037 Too Much Wire Feed"}]
["Q1005055 (Welding - Manual Tubing)",{"$f":"Causes!H708","v":"0038 Torch Oscillation Too Wide Or Too Narrow"}]
["Q1005055 (Welding - Manual Tubing)",{"$f":"Causes!H709","v":"0039 Travel Speed"}]
["Q1005055 (Welding - Manual Tubing)",{"$f":"Causes!H710","v":"0040 Travel Speed Too High"}]
["Q1005055 (Welding - Manual Tubing)",{"$f":"Causes!H711","v":"0041 Travel Speed Too Low"}]
["Q1005055 (Welding - Manual Tubing)",{"$f":"Causes!H712","v":"0042 Volts"}]
["Q1005055 (Welding - Manual Tubing)",{"$f":"Causes!H713","v":"0043 Weld Bead Too Small"}]
["Q1005055 (Welding - Manual Tubing)",{"$f":"Causes!H714","v":"0044 Weld joint Too Narrow"}]
["Q1005055 (Welding - Manual Tubing)",{"$f":"Causes!H715","v":"0045 Welding Current Too Low; Too Much"}]
["Q1005055 (Welding - Manual Tubing)",{"$f":"Causes!H716","v":"0046 Welding Over Convex Bead"}]
["Q1005055 (Welding - Manual Tubing)",{"$f":"Causes!H717","v":"0047 Welding Over Slag From Covered Electrode"}]
["Q1005055 (Welding - Manual Tubing)",{"$f":"Causes!H718","v":"0048 Welding Voltage and / Or Current Too Low"}]
["Q1005055 (Welding - Manual Tubing)",{"$f":"Causes!H719","v":"0049 Welding Voltage Too High"}]
["Q1005055 (Welding - Manual Tubing)",{"$f":"Causes!H720","v":"0050 Wire – May Need Wire Higher in Mn and Si"}]
["Q1005055 (Welding - Manual Tubing)",{"$f":"Causes!H721","v":"0051 Wire Feed Speed"}]
["Q1005055 (Welding - Manual Tubing)",{"$f":"Causes!H722","v":"0052 Wire Feed Too Low"}]
["Q1005055 (Welding - Manual Tubing)",{"$f":"Causes!H723","v":"0053 Wrong Filler / Base Metal Combination"}]
["Q1005055 (Welding - Manual Tubing)",{"$f":"Causes!H724","v":"0054 Wrong Gas"}]
["Q1005055 (Welding - Manual Tubing)",{"$f":"Causes!H725","v":"0055 Incorrect Heat Treatment"}]
["Q1005055 (Welding - Manual Tubing)",{"$f":"Causes!H726","v":"0056 Material Incorrect"}]
["Q1005056 (Welding - Orbital Tubing)",{"$f":"Causes!H729","v":"0001 Amps"}]
["Q1005056 (Welding - Orbital Tubing)",{"$f":"Causes!H730","v":"0002 Arc Voltage Too High"}]
["Q1005056 (Welding - Orbital Tubing)",{"$f":"Causes!H731","v":"0003 Arc Voltage Too Low"}]
["Q1005056 (Welding - Orbital Tubing)",{"$f":"Causes!H732","v":"0004 Contaminated Filler Metal"}]
["Q1005056 (Welding - Orbital Tubing)",{"$f":"Causes!H733","v":"0005 Contaminated Gas (From Supplier)"}]
["Q1005056 (Welding - Orbital Tubing)",{"$f":"Causes!H734","v":"0006 Electrode Stickout Weld Puddle Rolling In Front of the Arc"}]
["Q1005056 (Welding - Orbital Tubing)",{"$f":"Causes!H735","v":"0007 Excessive Joint Restraint"}]
["Q1005056 (Welding - Orbital Tubing)",{"$f":"Causes!H736","v":"0008 Excessive Oxide On Plate"}]
["Q1005056 (Welding - Orbital Tubing)",{"$f":"Causes!H737","v":"0009 Excessive Welding Currents"}]
["Q1005056 (Welding - Orbital Tubing)",{"$f":"Causes!H738","v":"0010 Excessive Wire Feed"}]
["Q1005056 (Welding - Orbital Tubing)",{"$f":"Causes!H739","v":"0011 Excessive Wire / Electrode Feed Speed"}]
["Q1005056 (Welding - Orbital Tubing)",{"$f":"Causes!H740","v":"0012 Failure To Remove Slag / Oxides Between Weld Passes"}]
["Q1005056 (Welding - Orbital Tubing)",{"$f":"Causes!H741","v":"0013 Heat Input"}]
["Q1005056 (Welding - Orbital Tubing)",{"$f":"Causes!H742","v":"0014 High Hardness"}]
["Q1005056 (Welding - Orbital Tubing)",{"$f":"Causes!H743","v":"0015 Hole / Leak In Hose Or Manifold System"}]
["Q1005056 (Welding - Orbital Tubing)",{"$f":"Causes!H744","v":"0016 Improper Cleaning"}]
["Q1005056 (Welding - Orbital Tubing)",{"$f":"Causes!H745","v":"0017 Incorrect Base Metal Chemistry"}]
["Q1005056 (Welding - Orbital Tubing)",{"$f":"Causes!H746","v":"0018 Incorrect Bead Placement"}]
["Q1005056 (Welding - Orbital Tubing)",{"$f":"Causes!H747","v":"0019 Incorrect Wire Chemistry"}]
["Q1005056 (Welding - Orbital Tubing)",{"$f":"Causes!H748","v":"0020 Insufficient Purge"}]
["Q1005056 (Welding - Orbital Tubing)",{"$f":"Causes!H749","v":"0021 Insufficient Dwell At Edge of Weld Bead"}]
["Q1005056 (Welding - Orbital Tubing)",{"$f":"Causes!H750","v":"0022 Insufficient Preheat"}]
["Q1005056 (Welding - Orbital Tubing)",{"$f":"Causes!H751","v":"0024 Insufficient Shielding Gas Flow"}]
["Q1005056 (Welding - Orbital Tubing)",{"$f":"Causes!H752","v":"0025 Insufficient Weld Passes"}]
["Q1005056 (Welding - Orbital Tubing)",{"$f":"Causes!H753","v":"0026 Insufficient Wire Feed"}]
["Q1005056 (Welding - Orbital Tubing)",{"$f":"Causes!H754","v":"0027 Interpass"}]
["Q1005056 (Welding - Orbital Tubing)",{"$f":"Causes!H755","v":"0028 Low Hardness"}]
["Q1005056 (Welding - Orbital Tubing)",{"$f":"Causes!H756","v":"0029 Oil, Heavy Rust, Scale, etc. On Plate"}]
["Q1005056 (Welding - Orbital Tubing)",{"$f":"Causes!H757","v":"0030 Operator Error"}]
["Q1005056 (Welding - Orbital Tubing)",{"$f":"Causes!H758","v":"0031 Out of Tolerance"}]
["Q1005056 (Welding - Orbital Tubing)",{"$f":"Causes!H759","v":"0032 Poor Filler Metal Control (ex. Hic)"}]
["Q1005056 (Welding - Orbital Tubing)",{"$f":"Causes!H760","v":"0033 Pre Heat"}]
["Q1005056 (Welding - Orbital Tubing)",{"$f":"Causes!H761","v":"0034 PWHT Error"}]
["Q1005056 (Welding - Orbital Tubing)",{"$f":"Causes!H762","v":"0035 Shielding Problem; Wind, Clogged Or Small Nozzle, Damaged Gas Hose, Excessive Gasflow, etc. "}]
["Q1005056 (Welding - Orbital Tubing)",{"$f":"Causes!H763","v":"0036 Too Fast Travel Speed"}]
["Q1005056 (Welding - Orbital Tubing)",{"$f":"Causes!H764","v":"0037 Too Much Wire Feed"}]
["Q1005056 (Welding - Orbital Tubing)",{"$f":"Causes!H765","v":"0038 Torch Oscillation Too Wide Or Too Narrow"}]
["Q1005056 (Welding - Orbital Tubing)",{"$f":"Causes!H766","v":"0039 Travel Speed"}]
["Q1005056 (Welding - Orbital Tubing)",{"$f":"Causes!H767","v":"0040 Travel Speed Too High"}]
["Q1005056 (Welding - Orbital Tubing)",{"$f":"Causes!H768","v":"0041 Travel Speed Too Low"}]
["Q1005056 (Welding - Orbital Tubing)",{"$f":"Causes!H769","v":"0042 Volts"}]
["Q1005056 (Welding - Orbital Tubing)",{"$f":"Causes!H770","v":"0043 Weld Bead Too Small"}]
["Q1005056 (Welding - Orbital Tubing)",{"$f":"Causes!H771","v":"0044 Weld joint Too Narrow"}]
["Q1005056 (Welding - Orbital Tubing)",{"$f":"Causes!H772","v":"0045 Welding Current Too Low; Too Much"}]
["Q1005056 (Welding - Orbital Tubing)",{"$f":"Causes!H773","v":"0046 Welding Over Convex Bead"}]
["Q1005056 (Welding - Orbital Tubing)",{"$f":"Causes!H774","v":"0047 Welding Over Slag From Covered Electrode"}]
["Q1005056 (Welding - Orbital Tubing)",{"$f":"Causes!H775","v":"0048 Welding Voltage and / Or Current Too Low"}]
["Q1005056 (Welding - Orbital Tubing)",{"$f":"Causes!H776","v":"0049 Welding Voltage Too High"}]
["Q1005056 (Welding - Orbital Tubing)",{"$f":"Causes!H777","v":"0050 Wire – May Need Wire Higher in Mn and Si"}]
["Q1005056 (Welding - Orbital Tubing)",{"$f":"Causes!H778","v":"0051 Wire Feed Speed"}]
["Q1005056 (Welding - Orbital Tubing)",{"$f":"Causes!H779","v":"0052 Wire Feed Too Low"}]
["Q1005056 (Welding - Orbital Tubing)",{"$f":"Causes!H780","v":"0053 Wrong Filler / Base Metal Combination"}]
["Q1005056 (Welding - Orbital Tubing)",{"$f":"Causes!H781","v":"0054 Wrong Gas"}]
["Q1005056 (Welding - Orbital Tubing)",{"$f":"Causes!H782","v":"0055 Incorrect Heat Treatment"}]
["Q1005056 (Welding - Orbital Tubing)",{"$f":"Causes!H783","v":"0056 Material Incorrect"}]
["Q1005057 (Welding - Other)",{"$f":"Causes!H786","v":"0001 Amps"}]
["Q1005057 (Welding - Other)",{"$f":"Causes!H787","v":"0002 Arc Voltage Too High"}]
["Q1005057 (Welding - Other)",{"$f":"Causes!H788","v":"0003 Arc Voltage Too Low"}]
["Q1005057 (Welding - Other)",{"$f":"Causes!H789","v":"0004 Contaminated Filler Metal"}]
["Q1005057 (Welding - Other)",{"$f":"Causes!H790","v":"0005 Contaminated Gas (From Supplier)"}]
["Q1005057 (Welding - Other)",{"$f":"Causes!H791","v":"0006 Electrode Stickout Weld Puddle Rolling In Front of the Arc"}]
["Q1005057 (Welding - Other)",{"$f":"Causes!H792","v":"0007 Excessive Joint Restraint"}]
["Q1005057 (Welding - Other)",{"$f":"Causes!H793","v":"0008 Excessive Oxide On Plate"}]
["Q1005057 (Welding - Other)",{"$f":"Causes!H794","v":"0009 Excessive Welding Currents"}]
["Q1005057 (Welding - Other)",{"$f":"Causes!H795","v":"0010 Excessive Wire Feed"}]
["Q1005057 (Welding - Other)",{"$f":"Causes!H796","v":"0011 Excessive Wire / Electrode Feed Speed"}]
["Q1005057 (Welding - Other)",{"$f":"Causes!H797","v":"0012 Failure To Remove Slag / Oxides Between Weld Passes"}]
["Q1005057 (Welding - Other)",{"$f":"Causes!H798","v":"0013 Heat Input"}]
["Q1005057 (Welding - Other)",{"$f":"Causes!H799","v":"0014 High Hardness"}]
["Q1005057 (Welding - Other)",{"$f":"Causes!H800","v":"0015 Hole / Leak In Hose Or Manifold System"}]
["Q1005057 (Welding - Other)",{"$f":"Causes!H801","v":"0016 Improper Cleaning"}]
["Q1005057 (Welding - Other)",{"$f":"Causes!H802","v":"0017 Incorrect Base Metal Chemistry"}]
["Q1005057 (Welding - Other)",{"$f":"Causes!H803","v":"0018 Incorrect Bead Placement"}]
["Q1005057 (Welding - Other)",{"$f":"Causes!H804","v":"0019 Incorrect Wire Chemistry"}]
["Q1005057 (Welding - Other)",{"$f":"Causes!H805","v":"0020 Insufficient Purge"}]
["Q1005057 (Welding - Other)",{"$f":"Causes!H806","v":"0021 Insufficient Dwell At Edge of Weld Bead"}]
["Q1005057 (Welding - Other)",{"$f":"Causes!H807","v":"0022 Insufficient Preheat"}]
["Q1005057 (Welding - Other)",{"$f":"Causes!H808","v":"0024 Insufficient Shielding Gas Flow"}]
["Q1005057 (Welding - Other)",{"$f":"Causes!H809","v":"0025 Insufficient Weld Passes"}]
["Q1005057 (Welding - Other)",{"$f":"Causes!H810","v":"0026 Insufficient Wire Feed"}]
["Q1005057 (Welding - Other)",{"$f":"Causes!H811","v":"0027 Interpass"}]
["Q1005057 (Welding - Other)",{"$f":"Causes!H812","v":"0028 Low Hardness"}]
["Q1005057 (Welding - Other)",{"$f":"Causes!H813","v":"0029 Oil, Heavy Rust, Scale, etc. On Plate"}]
["Q1005057 (Welding - Other)",{"$f":"Causes!H814","v":"0030 Operator Error"}]
["Q1005057 (Welding - Other)",{"$f":"Causes!H815","v":"0031 Out of Tolerance"}]
["Q1005057 (Welding - Other)",{"$f":"Causes!H816","v":"0032 Poor Filler Metal Control (ex. Hic)"}]
["Q1005057 (Welding - Other)",{"$f":"Causes!H817","v":"0033 Pre Heat"}]
["Q1005057 (Welding - Other)",{"$f":"Causes!H818","v":"0034 PWHT Error"}]
["Q1005057 (Welding - Other)",{"$f":"Causes!H819","v":"0035 Shielding Problem; Wind, Clogged Or Small Nozzle, Damaged Gas Hose, Excessive Gasflow, etc. "}]
["Q1005057 (Welding - Other)",{"$f":"Causes!H820","v":"0036 Too Fast Travel Speed"}]
["Q1005057 (Welding - Other)",{"$f":"Causes!H821","v":"0037 Too Much Wire Feed"}]
["Q1005057 (Welding - Other)",{"$f":"Causes!H822","v":"0038 Torch Oscillation Too Wide Or Too Narrow"}]
["Q1005057 (Welding - Other)",{"$f":"Causes!H823","v":"0039 Travel Speed"}]
["Q1005057 (Welding - Other)",{"$f":"Causes!H824","v":"0040 Travel Speed Too High"}]
["Q1005057 (Welding - Other)",{"$f":"Causes!H825","v":"0041 Travel Speed Too Low"}]
["Q1005057 (Welding - Other)",{"$f":"Causes!H826","v":"0042 Volts"}]
["Q1005057 (Welding - Other)",{"$f":"Causes!H827","v":"0043 Weld Bead Too Small"}]
["Q1005057 (Welding - Other)",{"$f":"Causes!H828","v":"0044 Weld joint Too Narrow"}]
["Q1005057 (Welding - Other)",{"$f":"Causes!H829","v":"0045 Welding Current Too Low; Too Much"}]
["Q1005057 (Welding - Other)",{"$f":"Causes!H830","v":"0046 Welding Over Convex Bead"}]
["Q1005057 (Welding - Other)",{"$f":"Causes!H831","v":"0047 Welding Over Slag From Covered Electrode"}]
["Q1005057 (Welding - Other)",{"$f":"Causes!H832","v":"0048 Welding Voltage and / Or Current Too Low"}]
["Q1005057 (Welding - Other)",{"$f":"Causes!H833","v":"0049 Welding Voltage Too High"}]
["Q1005057 (Welding - Other)",{"$f":"Causes!H834","v":"0050 Wire – May Need Wire Higher in Mn and Si"}]
["Q1005057 (Welding - Other)",{"$f":"Causes!H835","v":"0051 Wire Feed Speed"}]
["Q1005057 (Welding - Other)",{"$f":"Causes!H836","v":"0052 Wire Feed Too Low"}]
["Q1005057 (Welding - Other)",{"$f":"Causes!H837","v":"0053 Wrong Filler / Base Metal Combination"}]
["Q1005057 (Welding - Other)",{"$f":"Causes!H838","v":"0054 Wrong Gas"}]
["Q1005057 (Welding - Other)",{"$f":"Causes!H839","v":"0055 Incorrect Heat Treatment"}]
["Q1005057 (Welding - Other)",{"$f":"Causes!H840","v":"0056 Material Incorrect"}]
["Q1005060 (Coating)",{"$f":"Causes!H843","v":"0001 Masked Improperly"}]
["Q1005060 (Coating)",{"$f":"Causes!H844","v":"0002 Coating Too Thick"}]
["Q1005060 (Coating)",{"$f":"Causes!H845","v":"0003 Coating Too Thin"}]
["Q1005060 (Coating)",{"$f":"Causes!H846","v":"0004 Improper Set Up"}]
["Q1005060 (Coating)",{"$f":"Causes!H847","v":"0005 Film Thickness Too Thin"}]
["Q1005060 (Coating)",{"$f":"Causes!H848","v":"0006 Pinhole / Outgassing"}]
["Q1005060 (Coating)",{"$f":"Causes!H849","v":"0007 Contamination"}]
["Q1005060 (Coating)",{"$f":"Causes!H850","v":"0008 Incorrect Surface Preparation"}]
["Q1005060 (Coating)",{"$f":"Causes!H851","v":"0009 Damage"}]
["Q1005060 (Coating)",{"$f":"Causes!H852","v":"0010 Incorrect Specification Listed"}]
["Q1005060 (Coating)",{"$f":"Causes!H853","v":"0011 Requirements Not Followed"}]
["Q1005060 (Coating)",{"$f":"Causes!H854","v":"0012 Incorrect Coating Used"}]
["Q1005060 (Coating)",{"$f":"Causes!H855","v":"0013 Recoat Time Exceeded"}]
["Q1005060 (Coating)",{"$f":"Causes!H856","v":"0014 Environmental Conditions Incorrect"}]
["Q1005060 (Coating)",{"$f":"Causes!H857","v":"0015 Handled Incorrectly"}]
["Q1005060 (Coating)",{"$f":"Causes!H858","v":"0016 Incorrect Packaging"}]
["Q1005060 (Coating)",{"$f":"Causes!H859","v":"0017 Improper Handling"}]
["Q1005060 (Coating)",{"$f":"Causes!H860","v":"0018 Improper Storage"}]
["Q1005060 (Coating)",{"$f":"Causes!H861","v":"0019 Incorrect Coating"}]
["Q1005060 (Coating)",{"$f":"Causes!H862","v":"0020 Incorrect Coating Application"}]
["Q1005060 (Coating)",{"$f":"Causes!H863","v":"0021 Drawing Is Not Marked Correctly"}]
["Q1005060 (Coating)",{"$f":"Causes!H864","v":"0022 Requirements Not Followed"}]
["Q1005060 (Coating)",{"$f":"Causes!H865","v":"0024 Film Gauge Out of Calibration"}]
["Q1005060 (Coating)",{"$f":"Causes!H866","v":"0025 Improper Spraying Technique"}]
["Q1005060 (Coating)",{"$f":"Causes!H867","v":"0026 Requirements Not Known"}]
["Q1005060 (Coating)",{"$f":"Causes!H868","v":"0027 Requirements Not Communicated"}]
["Q1005060 (Coating)",{"$f":"Causes!H869","v":"0028 Incorrect Revision"}]
["Q1005060 (Coating)",{"$f":"Causes!H870","v":"0029 Requirements Not Understood"}]
["Q1005060 (Coating)",{"$f":"Causes!H871","v":"0031 PSM Not Followed"}]
["Q1005060 (Coating)",{"$f":"Causes!H872","v":"0032 Incorrect Coating Used"}]
["Q1005060 (Coating)",{"$f":"Causes!H873","v":"0033 Incorrect Coating Specified"}]
["Q1005060 (Coating)",{"$f":"Causes!H874","v":"0036 Requirements Not Understood"}]
["Q1005060 (Coating)",{"$f":"Causes!H875","v":"0037 PSM Not Communicated"}]
["Q1005060 (Coating)",{"$f":"Causes!H876","v":"0038 PSM Not Provided"}]
["Q1005060 (Coating)",{"$f":"Causes!H877","v":"0039 PSM Not Understood"}]
["Q1005060 (Coating)",{"$f":"Causes!H878","v":"0040 Other - Specify in Comments"}]
["Q1005070 (Marking)",{"$f":"Causes!H881","v":"0001 Execution"}]
["Q1005070 (Marking)",{"$f":"Causes!H882","v":"0002 FMC Engineering Error"}]
["Q1005070 (Marking)",{"$f":"Causes!H883","v":"0003 FMC Warehouse / Logistics"}]
["Q1005070 (Marking)",{"$f":"Causes!H884","v":"0004 Operator"}]
["Q1005070 (Marking)",{"$f":"Causes!H885","v":"0005 Equipment Malfunction"}]
["Q1005070 (Marking)",{"$f":"Causes!H886","v":"0006 Programming / Configuration"}]
["Q1005070 (Marking)",{"$f":"Causes!H887","v":"0007 Tooling / Fixture Error"}]
["Q1005070 (Marking)",{"$f":"Causes!H888","v":"0008 Second Tier Supplier"}]
["Q1005070 (Marking)",{"$f":"Causes!H889","v":"0009 Handling / Packaging / Preservation Error"}]
["Q1005070 (Marking)",{"$f":"Causes!H890","v":"0010 Damaged During Transport"}]
["Q1005070 (Marking)",{"$f":"Causes!H891","v":"0011 DWG / DBI error"}]
["Q1005070 (Marking)",{"$f":"Causes!H892","v":"0012 Inadequate Knowledge of Working Process"}]
["Q1005070 (Marking)",{"$f":"Causes!H893","v":"0013 Lack of Maintenance"}]
["Q1005070 (Marking)",{"$f":"Causes!H894","v":"0014 Equipment Modification Not Verified Against the System"}]
["Q1005070 (Marking)",{"$f":"Causes!H895","v":"0015 Equipment In Use Is Obsolete"}]
["Q1005070 (Marking)",{"$f":"Causes!H896","v":"0016 Incorrect Set Up"}]
["Q1005070 (Marking)",{"$f":"Causes!H897","v":"0017 Deterioration / Corrosion"}]
["Q1005070 (Marking)",{"$f":"Causes!H898","v":"0018 Missing Marking"}]
["Q1005070 (Marking)",{"$f":"Causes!H899","v":"0019 Incorrect Marking"}]
["Q1005070 (Marking)",{"$f":"Causes!H900","v":"0020 Lack of Training / Certification"}]
["Q1005070 (Marking)",{"$f":"Causes!H901","v":"0021 Lack of Experience"}]
["Q1005070 (Marking)",{"$f":"Causes!H902","v":"0022 Use of Unapproved Procedure"}]
["Q1005070 (Marking)",{"$f":"Causes!H903","v":"0023 Specification Not followed"}]
["Q1005070 (Marking)",{"$f":"Causes!H904","v":"0024 Misunderstanding"}]
["Q1005070 (Marking)",{"$f":"Causes!H905","v":"0025 Inadequate Protection"}]
["Q1005070 (Marking)",{"$f":"Causes!H906","v":"0026 Missing Spec"}]
["Q1005070 (Marking)",{"$f":"Causes!H907","v":"0027 Missing Quality Matrix"}]
["Q1005070 (Marking)",{"$f":"Causes!H908","v":"0028 Missing Marking Location on Drawing"}]
["Q1005070 (Marking)",{"$f":"Causes!H909","v":"0029 Incorrect Spec"}]
["Q1005070 (Marking)",{"$f":"Causes!H910","v":"0030 Incorrect Quality Matrix"}]
["Q1005070 (Marking)",{"$f":"Causes!H911","v":"0031 Other - Specify in Comments"}]
["Q1005080 (Certification)",{"$f":"Causes!H914","v":"0001 Not Submitted"}]
["Q1005080 (Certification)",{"$f":"Causes!H915","v":"0002 Lost"}]
["Q1005080 (Certification)",{"$f":"Causes!H916","v":"0003 Not Certified"}]
["Q1005080 (Certification)",{"$f":"Causes!H917","v":"0004 Requirements Not Communicated"}]
["Q1005080 (Certification)",{"$f":"Causes!H918","v":"0005 Requirements Not Followed"}]
["Q1005080 (Certification)",{"$f":"Causes!H919","v":"0006 Requirements Not Known"}]
["Q1005080 (Certification)",{"$f":"Causes!H920","v":"0007 Exceeded Shelf Life"}]
["Q1005080 (Certification)",{"$f":"Causes!H921","v":"0008 Other - Specify in Comments"}]
["Q1005090 (Documentation Requirement)",{"$f":"Causes!H924","v":"0001 Missing"}]
["Q1005090 (Documentation Requirement)",{"$f":"Causes!H925","v":"0002 Wrong Document / Spec"}]
["Q1005090 (Documentation Requirement)",{"$f":"Causes!H926","v":"0003 Error In Document / Spec"}]
["Q1005090 (Documentation Requirement)",{"$f":"Causes!H927","v":"0004 Error In Quantity"}]
["Q1005090 (Documentation Requirement)",{"$f":"Causes!H928","v":"0005 Ambiguous / Unclear"}]
["Q1005090 (Documentation Requirement)",{"$f":"Causes!H929","v":"0006 Unqualified Supplier"}]
["Q1005090 (Documentation Requirement)",{"$f":"Causes!H930","v":"0007 Input Requirements Missing"}]
["Q1005090 (Documentation Requirement)",{"$f":"Causes!H931","v":"0008 Input Requirements Incorrect / Ambiguous"}]
["Q1005090 (Documentation Requirement)",{"$f":"Causes!H932","v":"0009 Inputs Not Followed / Detected"}]
["Q1005090 (Documentation Requirement)",{"$f":"Causes!H933","v":"0010 Process Step Missing"}]
["Q1005090 (Documentation Requirement)",{"$f":"Causes!H934","v":"0011 Process Step Incorrect / Ambiguous"}]
["Q1005090 (Documentation Requirement)",{"$f":"Causes!H935","v":"0012 Process Step Not Followed / Detected"}]
["Q1005090 (Documentation Requirement)",{"$f":"Causes!H936","v":"0013 Not Communicated"}]
["Q1005090 (Documentation Requirement)",{"$f":"Causes!H937","v":"0014 Training Issue"}]
["Q1005090 (Documentation Requirement)",{"$f":"Causes!H938","v":"0015 Competence Gap"}]
["Q1005090 (Documentation Requirement)",{"$f":"Causes!H939","v":"0016 Other - Specify in Comments"}]
["Q1005100 (Electrical)",{"$f":"Causes!H942","v":"0001 Specification Not followed"}]
["Q1005100 (Electrical)",{"$f":"Causes!H943","v":"0002   Loose Connections"}]
["Q1005100 (Electrical)",{"$f":"Causes!H944","v":"0003 Configuration Error"}]
["Q1005100 (Electrical)",{"$f":"Causes!H945","v":"0004 Component Substitution"}]
["Q1005100 (Electrical)",{"$f":"Causes!H946","v":"0005 Mis-Wired Internally"}]
["Q1005100 (Electrical)",{"$f":"Causes!H947","v":"0006 Loose on Board"}]
["Q1005100 (Electrical)",{"$f":"Causes!H948","v":"0007 Wrong Part Used"}]
["Q1005100 (Electrical)",{"$f":"Causes!H949","v":"0008 Scratched Flamepath"}]
["Q1005100 (Electrical)",{"$f":"Causes!H950","v":"0009 Missing Ground Lug"}]
["Q1005100 (Electrical)",{"$f":"Causes!H951","v":"0010 Shaft Rotation"}]
["Q1005100 (Electrical)",{"$f":"Causes!H952","v":"0011 Unmade Connection"}]
["Q1005100 (Electrical)",{"$f":"Causes!H953","v":"0012 Loose Wire"}]
["Q1005100 (Electrical)",{"$f":"Causes!H954","v":"0013 Drawing Error"}]
["Q1005100 (Electrical)",{"$f":"Causes!H955","v":"0014 Design Error"}]
["Q1005100 (Electrical)",{"$f":"Causes!H956","v":"0015 Obsolete Components"}]
["Q1005100 (Electrical)",{"$f":"Causes!H957","v":"0016 End of Life"}]
["Q1005100 (Electrical)",{"$f":"Causes!H958","v":"0017 BOM Error"}]
["Q1005100 (Electrical)",{"$f":"Causes!H959","v":"0018 Wrong Source File in Build"}]
["Q1005100 (Electrical)",{"$f":"Causes!H960","v":"0019 Wrong .exe File"}]
["Q1005100 (Electrical)",{"$f":"Causes!H961","v":"0020 Operator Error"}]
["Q1005100 (Electrical)",{"$f":"Causes!H962","v":"0021 Incorrect Menu Choice"}]
["Q1005100 (Electrical)",{"$f":"Causes!H963","v":"0022 Wrong Version Identifier"}]
["Q1005100 (Electrical)",{"$f":"Causes!H964","v":"0023 Training"}]
["Q1005100 (Electrical)",{"$f":"Causes!H965","v":"0024 Ambiguous Specification"}]
["Q1005100 (Electrical)",{"$f":"Causes!H966","v":"0025 Revision Error"}]
["Q1005100 (Electrical)",{"$f":"Causes!H967","v":"0026 Insufficient Testing"}]
["Q1005100 (Electrical)",{"$f":"Causes!H968","v":"0027 Insufficient Packaging"}]
["Q1005100 (Electrical)",{"$f":"Causes!H969","v":"0028 Undocumented Request"}]
["Q1005100 (Electrical)",{"$f":"Causes!H970","v":"0029 Documentation Error"}]
["Q1005100 (Electrical)",{"$f":"Causes!H971","v":"0030 Machine Malfunction"}]
["Q1005100 (Electrical)",{"$f":"Causes!H972","v":"0031 Bad Part"}]
["Q1005100 (Electrical)",{"$f":"Causes!H973","v":"0032 Engineering Change"}]
["Q1005100 (Electrical)",{"$f":"Causes!H974","v":"0033 Source Inspection Error"}]
["Q1005100 (Electrical)",{"$f":"Causes!H975","v":"0034 Part Unavailable"}]
["Q1005100 (Electrical)",{"$f":"Causes!H976","v":"0035 Inadequate Inspection Checklist"}]
["Q1005100 (Electrical)",{"$f":"Causes!H977","v":"0036 Poor Lubrication"}]
["Q1005100 (Electrical)",{"$f":"Causes!H978","v":"0037 Part Dimension"}]
["Q1005100 (Electrical)",{"$f":"Causes!H979","v":"0038 Revision not Communicated"}]
["Q1005100 (Electrical)",{"$f":"Causes!H980","v":"0039 Unprocessed ECN"}]
["Q1005100 (Electrical)",{"$f":"Causes!H981","v":"0040 Coding Issue"}]
["Q1005100 (Electrical)",{"$f":"Causes!H982","v":"0041 Other - Specify in Comments"}]
["Q1005101 (Software)",{"$f":"Causes!H985","v":"0001 Specification Not followed"}]
["Q1005101 (Software)",{"$f":"Causes!H986","v":"0002   Loose Connections"}]
["Q1005101 (Software)",{"$f":"Causes!H987","v":"0003 Configuration Error"}]
["Q1005101 (Software)",{"$f":"Causes!H988","v":"0004 Component Substitution"}]
["Q1005101 (Software)",{"$f":"Causes!H989","v":"0005 Mis-Wired Internally"}]
["Q1005101 (Software)",{"$f":"Causes!H990","v":"0006 Loose on Board"}]
["Q1005101 (Software)",{"$f":"Causes!H991","v":"0007 Wrong Part Used"}]
["Q1005101 (Software)",{"$f":"Causes!H992","v":"0008 Scratched Flamepath"}]
["Q1005101 (Software)",{"$f":"Causes!H993","v":"0009 Missing Ground Lug"}]
["Q1005101 (Software)",{"$f":"Causes!H994","v":"0010 Shaft Rotation"}]
["Q1005101 (Software)",{"$f":"Causes!H995","v":"0011 Unmade Connection"}]
["Q1005101 (Software)",{"$f":"Causes!H996","v":"0012 Loose Wire"}]
["Q1005101 (Software)",{"$f":"Causes!H997","v":"0013 Drawing Error"}]
["Q1005101 (Software)",{"$f":"Causes!H998","v":"0014 Design Error"}]
["Q1005101 (Software)",{"$f":"Causes!H999","v":"0015 Obsolete Components"}]
["Q1005101 (Software)",{"$f":"Causes!H1000","v":"0016 End of Life"}]
["Q1005101 (Software)",{"$f":"Causes!H1001","v":"0017 BOM Error"}]
["Q1005101 (Software)",{"$f":"Causes!H1002","v":"0018 Wrong Source File in Build"}]
["Q1005101 (Software)",{"$f":"Causes!H1003","v":"0019 Wrong .exe File"}]
["Q1005101 (Software)",{"$f":"Causes!H1004","v":"0020 Operator Error"}]
["Q1005101 (Software)",{"$f":"Causes!H1005","v":"0021 Incorrect Menu Choice"}]
["Q1005101 (Software)",{"$f":"Causes!H1006","v":"0022 Wrong Version Identifier"}]
["Q1005101 (Software)",{"$f":"Causes!H1007","v":"0023 Training"}]
["Q1005101 (Software)",{"$f":"Causes!H1008","v":"0024 Ambiguous Specification"}]
["Q1005101 (Software)",{"$f":"Causes!H1009","v":"0025 Revision Error"}]
["Q1005101 (Software)",{"$f":"Causes!H1010","v":"0026 Insufficient Testing"}]
["Q1005101 (Software)",{"$f":"Causes!H1011","v":"0027 Insufficient Packaging"}]
["Q1005101 (Software)",{"$f":"Causes!H1012","v":"0028 Undocumented Request"}]
["Q1005101 (Software)",{"$f":"Causes!H1013","v":"0029 Documentation Error"}]
["Q1005101 (Software)",{"$f":"Causes!H1014","v":"0030 Machine Malfunction"}]
["Q1005101 (Software)",{"$f":"Causes!H1015","v":"0031 Bad Part"}]
["Q1005101 (Software)",{"$f":"Causes!H1016","v":"0032 Engineering Change"}]
["Q1005101 (Software)",{"$f":"Causes!H1017","v":"0033 Source Inspection Error"}]
["Q1005101 (Software)",{"$f":"Causes!H1018","v":"0034 Part Unavailable"}]
["Q1005101 (Software)",{"$f":"Causes!H1019","v":"0035 Inadequate Inspection Checklist"}]
["Q1005101 (Software)",{"$f":"Causes!H1020","v":"0036 Poor Lubrication"}]
["Q1005101 (Software)",{"$f":"Causes!H1021","v":"0037 Part Dimension"}]
["Q1005101 (Software)",{"$f":"Causes!H1022","v":"0038 Revision not Communicated"}]
["Q1005101 (Software)",{"$f":"Causes!H1023","v":"0039 Unprocessed ECN"}]
["Q1005101 (Software)",{"$f":"Causes!H1024","v":"0040 Coding Issue"}]
["Q1005101 (Software)",{"$f":"Causes!H1025","v":"0041 Other - Specify in Comments"}]

{"sheet":"Cause Code Code","index":10,"n_rows":31,"n_cols":1,"rows_kept":31,"cut":false,"hidden":true,"merged":[]}
["Code"]
["0010"]
["0015"]
["0020"]
["0030"]
["0040"]
["0050"]
["0060"]
["0080"]
["0090"]
["0100"]
["1010"]
["1020"]
["1030"]
["1040"]
["1050"]
["1060"]
["1070"]
["1080"]
["0070"]
["0110"]
["0120"]
["0130"]
["0140"]
["0150"]
["0180"]
["0190"]
["0200"]
["0210"]
["0220"]
["0230"]

{"sheet":"Serial or Batch Number","index":11,"n_rows":4,"n_cols":1,"rows_kept":4,"cut":false,"hidden":true,"merged":[]}
[]
["Serial"]
["Batch"]
["N/A"]

{"sheet":"Supplier or Source Inspector","index":12,"n_rows":3,"n_cols":1,"rows_kept":3,"cut":false,"hidden":true,"merged":[]}
[]
["Supplier"]
["Source Inspector"]